Workbook

Sheet ZSS Summary
B2: Redundant System Model - Substations | M2: Sensitivity Modifiers | P2: Scalar | R2: Option Costing | T2: Unit Price | U2: Asset Life | V2: Annual Cost
B3: Input Data - Station Configuration | E3: Constants | M3: Capex/Opex | N3: 0.1 | O3: Normal | P3: =IF(O3="Lower", (1-N3), IF(O3="Upper", 1+N3,1)) -> 1 | R3: Additional Path | T3: =Prices!C2 -> 5103884.372 | U3: 50 | V3: =-PMT($S$12,U3,T3) -> 189052.5702
B4: Substation: | C4: MC | E4: Major Failure CoC | F4: =T4*(1+S13) -> 2785611.079 | M4: PoF | N4: 0.2 | O4: Normal | P4: =IF(O4="Lower", (1-N4), IF(O4="Upper", 1+N4,1)) -> 1 | R4: 1 Replacement | T4: =Prices!C3 -> 2321342.565 | U4: 50 | V4: =-PMT($S$12,U4,T4) -> 85984.6631
B5: Parallel Asset | C5: Transformer | E5: Minor Failure CoC | F5: 200000 | M5: WACC | N5: 0.1 | O5: Normal | P5: =IF(O5="Lower", (1-N5), IF(O5="Upper", 1+N5,1)) -> 1 | R5: 2 Replacements - Same Make | T5: =Prices!C4 -> 4642685.131 | U5: 50 | V5: =-PMT($S$12,U5,T5) -> 171969.3262
B6: Load Profile | C6: 0.5 | M6: Load Forecast | N6: 0.04 | O6: Normal | P6: =IF(O6="Lower", (1-N6), IF(O6="Upper", 1+N6,1)) -> 1 | R6: 2 Replacements - Different Make | T6: =Prices!C5 -> 4734555.05 | U6: 50 | V6: =-PMT($S$12,U6,T6) -> 175372.2725
B7: Switchgear Type | C7: =IF(C5="Transformer","",IF(C5="Indoor CB","Indoor",IF(C5="Outdoor CB","Outdoor"))) ->  | M7: Beta | N7: 0.2 | O7: Normal | P7: =IF(O7="Lower", (1-N7), IF(O7="Upper", 1+N7,1)) -> 1 | R7: System spare available | T7: =Prices!C6 -> 204155.3749 | U7: 25 | V7: =IF(AssetType="Transformer", -PMT($S$12,U7,T7),0) -> 11400.03072
R8: Non-network Solution
B9: Scenario Modifiers | D9: Comment | F9: Annual Cost | G9: Output Yr | H9: Option/Spare | M9: VCR weight | R9: Online Monitoring System | T9: =Prices!C8 -> 683034.4715 | U9: 25 | V9: =IF(AssetType="Transformer", -PMT($S$12,U9,T9),40000) -> 38140.62679
B10: Additional Asset | C10: FALSE | E10: Option Cost | F10: =V3 -> 189052.5702 | G10: =IFERROR(MATCH(B10,$E$155:$Y$155,0)+2018,"Not Chosen") -> Not Chosen | H10: =IF(ISNUMBER(G10),HLOOKUP(G10,$E$144:$Y$153,4)/HLOOKUP(G10,$E$144:$Y$153,10)) -> FALSE | M10: 10% PoE | N10: 0.3
B11: Replace 1 asset | C11: FALSE | E11: Option Cost | F11: =V4 -> 85984.6631 | G11: =IFERROR(MATCH(B11,$E$155:$Y$155,0)+2018,"Not Chosen") -> 2024 | H11: =IF(ISNUMBER(G11),HLOOKUP(G11,$E$144:$Y$153,4)/HLOOKUP(G11,$E$144:$Y$153,7)) -> 1.050839198 | M11: 50% PoE | N11: 0.7 | R11: Constants | U11: Safety Constants
B12: Replace 2 Assets - same type | C12: FALSE | E12: Option Cost | F12: 171969.3262 | G12: Not Chosen | H12: =IF(ISNUMBER(G12),HLOOKUP(G12,$E$144:$Y$153,7)/HLOOKUP(G12,$E$144:$Y$153,8)) -> FALSE | R12: WACC | S12: 0.0275 | U12: DF Staff | V12: 3 | W12: POC_LTI | X12: 0.000260274
B13: Replace 2 Assets - Different Type | C13: FALSE | E13: Option Cost | F13: 175372.2725 | G13: 2035 | H13: =IF(ISNUMBER(G13),HLOOKUP(G13,$E$144:$Y$153,7)/HLOOKUP(G13,$E$144:$Y$153,9)) -> 1.051211125 | R13: Failure Premium | S13: 0.2 | U13: VSL | V13: =4490000*CPI -> 4583288.166 | W13: POC_PUBLIC | X13: 0.000115
B14: Spare/Mobile Asset | C14: FALSE | E14: Option Cost | F14: 11400.03072 | G14: 2019 | H14: =IF(ISNUMBER(G14),HLOOKUP(G14,$E$144:$Y$153,4)/HLOOKUP(G14,$E$144:$Y$153,4)) -> 1 | R14: VCR | S14: 42.76 | U14: VLTI | V14: =127000*CPI -> 129638.6631 | W14: POC_STAFF | X14: 0.001960616
B15: Non-Network MW | C15: 0 | D15: Load Reduction | E15: Option Cost | F15: =V8*C15 -> 0 | G15: Not Chosen | U15: DF Public | V15: 3
B16: Online Monitor | C16: FALSE | E16: Option Cost | F16: 38140.62679 | G16: Not Chosen | H16: =IF(ISNUMBER(G16),HLOOKUP(G16,$E$144:$Y$153,4)/HLOOKUP(G16,$E$144:$Y$153,5)) -> FALSE
B19: ="Scenario: "&IF(OR(C10:C13)=FALSE,"Status Quo",IF(ISADDITIONAL,"Additional path",IF(ISREPLACE,"Replace 1 Asset",IF(ISREPLACE2SAME,"Replace with 2 like Assets",IF(ISREPLACE2DIFF,"Replace with 2 different Assets")))))&", "&IF(ISSPAREREADY," Spare Ready","")&", "&IF(ISPROBABILITYREDUCED,"Online Monitor","") -> Scenario: Status Quo, , | C19: Setting | D19: Model Output | E19: 2019 | F19: 2020 | G19: 2021 | H19: 2022 | I19: 2023 | J19: 2024 | K19: 2025 | L19: 2026 | M19: 2027 | N19: 2028 | O19: 2029 | P19: 2030 | Q19: 2031 | R19: 2032 | S19: 2033 | T19: 2034 | U19: 2035 | V19: 2036 | W19: 2037 | X19: 2038 | Y19: 2039
B21: =IF($C$5="Transformer", "Additional Transformer", "Additional Bus") -> Additional Transformer | C21: =ISADDITIONAL -> FALSE | D21: Energy | E21: =VLOOKUP(E19, Engine!$D$4:$K$26,8,FALSE) -> 316.7656633 | F21: =VLOOKUP(F19, Engine!$D$4:$K$26,8,FALSE) -> 350.4162609 | G21: =VLOOKUP(G19, Engine!$D$4:$K$26,8,FALSE) -> 382.6893972 | H21: =VLOOKUP(H19, Engine!$D$4:$K$26,8,FALSE) -> 438.0177144 | I21: =VLOOKUP(I19, Engine!$D$4:$K$26,8,FALSE) -> 503.2322737 | J21: =VLOOKUP(J19, Engine!$D$4:$K$26,8,FALSE) -> 600.1637404 | K21: =VLOOKUP(K19, Engine!$D$4:$K$26,8,FALSE) -> 757.3584886 | L21: =VLOOKUP(L19, Engine!$D$4:$K$26,8,FALSE) -> 961.9235682 | M21: =VLOOKUP(M19, Engine!$D$4:$K$26,8,FALSE) -> 1152.038148 | N21: =VLOOKUP(N19, Engine!$D$4:$K$26,8,FALSE) -> 1495.673161 | O21: =VLOOKUP(O19, Engine!$D$4:$K$26,8,FALSE) -> 2042.327663 | P21: =VLOOKUP(P19, Engine!$D$4:$K$26,8,FALSE) -> 2759.134128 | Q21: =VLOOKUP(Q19, Engine!$D$4:$K$26,8,FALSE) -> 3738.520068 | R21: =VLOOKUP(R19, Engine!$D$4:$K$26,8,FALSE) -> 5007.310073 | S21: =VLOOKUP(S19, Engine!$D$4:$K$26,8,FALSE) -> 6641.446208 | T21: =VLOOKUP(T19, Engine!$D$4:$K$26,8,FALSE) -> 8697.895088 | U21: =VLOOKUP(U19, Engine!$D$4:$K$26,8,FALSE) -> 11341.5115 | V21: =VLOOKUP(V19, Engine!$D$4:$K$26,8,FALSE) -> 14652.71213 | W21: =VLOOKUP(W19, Engine!$D$4:$K$26,8,FALSE) -> 18720.85895 | X21: =VLOOKUP(X19, Engine!$D$4:$K$26,8,FALSE) -> 23559.58628 | Y21: =VLOOKUP(Y19, Engine!$D$4:$K$26,8,FALSE) -> 29138.01886
B22: Replace 1 Path | C22: =ISREPLACE -> FALSE | D22: 10% PoE (MWh, Pr-Adjusted) | E22: 5.817767554 | F22: 9.787272906 | G22: 13.59871654 | H22: 17.91424045 | I22: 22.60713148 | J22: 28.34891986 | K22: 35.87992097 | L22: 44.53148189 | M22: 52.89164494 | N22: 62.98106258 | O22: 75.68550764 | P22: 89.21850578 | Q22: 104.4487601 | R22: 121.4737659 | S22: 140.5684146 | T22: 162.0987682 | U22: 186.2878849 | V22: 213.6522159 | W22: 244.7647933 | X22: 279.7655738 | Y22: 319.0410255
B23: Replace 2 Paths - Same | C23: =ISREPLACE2SAME -> FALSE | D23: 50% PoE (MWh, Pr-Adjusted) | E23: 2.027675988 | F23: 3.405251064 | G23: 4.706762287 | H23: 6.27893955 | I23: 8.03013293 | J23: 10.30154509 | K23: 13.30769615 | L23: 16.55821738 | M23: 19.67892439 | N23: 23.49471776 | O23: 28.58718019 | P23: 34.34246873 | Q23: 41.08060001 | R23: 48.89957481 | S23: 58.06771516 | T23: 68.71176927 | U23: 81.23461177 | V23: 95.90674362 | W23: 112.9682388 | X23: 132.636408 | Y23: 155.0568649
B24: Replace 2 Paths - different | C24: =ISREPLACE2DIFF -> FALSE | D24: Pr (Terminal Failure) | E24: =(VLOOKUP(E19,Engine!$Q$4:$BB$26,38,FALSE)) -> 0.02345353525 | F24: =(VLOOKUP(F19,Engine!$Q$4:$BB$26,38,FALSE)) -> 0.02451816227 | G24: =(VLOOKUP(G19,Engine!$Q$4:$BB$26,38,FALSE)) -> 0.02561510132 | H24: =(VLOOKUP(H19,Engine!$Q$4:$BB$26,38,FALSE)) -> 0.02674480195 | I24: =(VLOOKUP(I19,Engine!$Q$4:$BB$26,38,FALSE)) -> 0.02790770816 | J24: =(VLOOKUP(J19,Engine!$Q$4:$BB$26,38,FALSE)) -> 0.02910425872 | K24: =(VLOOKUP(K19,Engine!$Q$4:$BB$26,38,FALSE)) -> 0.03033488741 | L24: =(VLOOKUP(L19,Engine!$Q$4:$BB$26,38,FALSE)) -> 0.03160002329 | M24: =(VLOOKUP(M19,Engine!$Q$4:$BB$26,38,FALSE)) -> 0.03290009092 | N24: =(VLOOKUP(N19,Engine!$Q$4:$BB$26,38,FALSE)) -> 0.03423551051 | O24: =(VLOOKUP(O19,Engine!$Q$4:$BB$26,38,FALSE)) -> 0.03560669819 | P24: =(VLOOKUP(P19,Engine!$Q$4:$BB$26,38,FALSE)) -> 0.03701406609 | Q24: =(VLOOKUP(Q19,Engine!$Q$4:$BB$26,38,FALSE)) -> 0.03845802254 | R24: =(VLOOKUP(R19,Engine!$Q$4:$BB$26,38,FALSE)) -> 0.03993897223 | S24: =(VLOOKUP(S19,Engine!$Q$4:$BB$26,38,FALSE)) -> 0.0414573163 | T24: =(VLOOKUP(T19,Engine!$Q$4:$BB$26,38,FALSE)) -> 0.0430134525 | U24: =(VLOOKUP(U19,Engine!$Q$4:$BB$26,38,FALSE)) -> 0.0446077753 | V24: =(VLOOKUP(V19,Engine!$Q$4:$BB$26,38,FALSE)) -> 0.04624067598 | W24: =(VLOOKUP(W19,Engine!$Q$4:$BB$26,38,FALSE)) -> 0.04791254275 | X24: =(VLOOKUP(X19,Engine!$Q$4:$BB$26,38,FALSE)) -> 0.04962376086 | Y24: =(VLOOKUP(Y19,Engine!$Q$4:$BB$26,38,FALSE)) -> 0.05137471263
B25: Spare/Mobile Asset | C25: =ISSPAREREADY -> FALSE | D25: Pr (Repairable Failure) | E25: =VLOOKUP(E19,Engine!$Q$4:$BB$26,37,FALSE) -> 0.009632701978 | F25: =VLOOKUP(F19,Engine!$Q$4:$BB$26,37,FALSE) -> 0.0100699595 | G25: =VLOOKUP(G19,Engine!$Q$4:$BB$26,37,FALSE) -> 0.01052048804 | H25: =VLOOKUP(H19,Engine!$Q$4:$BB$26,37,FALSE) -> 0.01098447223 | I25: =VLOOKUP(I19,Engine!$Q$4:$BB$26,37,FALSE) -> 0.01146209442 | J25: =VLOOKUP(J19,Engine!$Q$4:$BB$26,37,FALSE) -> 0.01195353483 | K25: =VLOOKUP(K19,Engine!$Q$4:$BB$26,37,FALSE) -> 0.01245897161 | L25: =VLOOKUP(L19,Engine!$Q$4:$BB$26,37,FALSE) -> 0.01297858099 | M25: =VLOOKUP(M19,Engine!$Q$4:$BB$26,37,FALSE) -> 0.01351253734 | N25: =VLOOKUP(N19,Engine!$Q$4:$BB$26,37,FALSE) -> 0.01406101325 | O25: =VLOOKUP(O19,Engine!$Q$4:$BB$26,37,FALSE) -> 0.01462417961 | P25: =VLOOKUP(P19,Engine!$Q$4:$BB$26,37,FALSE) -> 0.01520220571 | Q25: =VLOOKUP(Q19,Engine!$Q$4:$BB$26,37,FALSE) -> 0.01579525926 | R25: =VLOOKUP(R19,Engine!$Q$4:$BB$26,37,FALSE) -> 0.01640350645 | S25: =VLOOKUP(S19,Engine!$Q$4:$BB$26,37,FALSE) -> 0.01702711205 | T25: =VLOOKUP(T19,Engine!$Q$4:$BB$26,37,FALSE) -> 0.01766623942 | U25: =VLOOKUP(U19,Engine!$Q$4:$BB$26,37,FALSE) -> 0.01832105057 | V25: =VLOOKUP(V19,Engine!$Q$4:$BB$26,37,FALSE) -> 0.01899170621 | W25: =VLOOKUP(W19,Engine!$Q$4:$BB$26,37,FALSE) -> 0.01967836577 | X25: =VLOOKUP(X19,Engine!$Q$4:$BB$26,37,FALSE) -> 0.02038118749 | Y25: =VLOOKUP(Y19,Engine!$Q$4:$BB$26,37,FALSE) -> 0.0211003284
B26: Non-Network MW | C26: =C15 -> 0
B27: Probability Reduction | C27: =C16 -> FALSE
B29: Scenario Capture Below
B32: Scenario: Status Quo, , | C32: Setting | D32: Model Output | E32: 2019 | F32: 2020 | G32: 2021 | H32: 2022 | I32: 2023 | J32: 2024 | K32: 2025 | L32: 2026 | M32: 2027 | N32: 2028 | O32: 2029 | P32: 2030 | Q32: 2031 | R32: 2032 | S32: 2033 | T32: 2034 | U32: 2035 | V32: 2036 | W32: 2037 | X32: 2038 | Y32: 2039
B34: Additional Transformer | C34: FALSE | D34: 10% PoE (MWh, Pr-Adjusted) | E34: 2095.667107 | F34: 2328.363235 | G34: 2583.757103 | H34: 3112.607455 | I34: 3696.423705 | J34: 4758.596371 | K34: 6530.655324 | L34: 8675.664173 | M34: 10408.53489 | N34: 12822.27436 | O34: 16156.20174 | P34: 19609.22153 | Q34: 23522.62976 | R34: 27902.19418 | S34: 32861.07574 | T34: 38415.47262 | U34: 44571.15584 | V34: 51527.6257 | W34: 59330.26688 | X34: 67821.12762 | Y34: 77211.09325
B35: Replace 1 Path | C35: FALSE | D35: 50% PoE (MWh, Pr-Adjusted) | E35: 316.7656633 | F35: 350.4162609 | G35: 382.6893972 | H35: 438.0177144 | I35: 503.2322737 | J35: 600.1637404 | K35: 757.3584886 | L35: 961.9235682 | M35: 1152.038148 | N35: 1495.673161 | O35: 2042.327663 | P35: 2759.134128 | Q35: 3738.520068 | R35: 5007.310073 | S35: 6641.446208 | T35: 8697.895088 | U35: 11341.5115 | V35: 14652.71213 | W35: 18720.85895 | X35: 23559.58628 | Y35: 29138.01886
B36: Replace 2 Paths - Same | C36: FALSE | D36: Pr (Terminal Failure) | E36: 0.02345353525 | F36: 0.02451816227 | G36: 0.02561510132 | H36: 0.02674480195 | I36: 0.02790770816 | J36: 0.02910425872 | K36: 0.03033488741 | L36: 0.03160002329 | M36: 0.03290009092 | N36: 0.03423551051 | O36: 0.03560669819 | P36: 0.03701406609 | Q36: 0.03845802254 | R36: 0.03993897223 | S36: 0.0414573163 | T36: 0.0430134525 | U36: 0.0446077753 | V36: 0.04624067598 | W36: 0.04791254275 | X36: 0.04962376086 | Y36: 0.05137471263
B37: Replace 2 Paths - different | C37: FALSE | D37: Pr (Repairable Failure) | E37: 0.009632701978 | F37: 0.0100699595 | G37: 0.01052048804 | H37: 0.01098447223 | I37: 0.01146209442 | J37: 0.01195353483 | K37: 0.01245897161 | L37: 0.01297858099 | M37: 0.01351253734 | N37: 0.01406101325 | O37: 0.01462417961 | P37: 0.01520220571 | Q37: 0.01579525926 | R37: 0.01640350645 | S37: 0.01702711205 | T37: 0.01766623942 | U37: 0.01832105057 | V37: 0.01899170621 | W37: 0.01967836577 | X37: 0.02038118749 | Y37: 0.0211003284
B38: Spare/Mobile Asset | C38: FALSE
B39: Non-Network MW | C39: 0 | D39: Energy at Risk (Weighted) | E39: =SUMPRODUCT(E34:E35,$N$10:$N$11)*VCR -> 36364.64749 | F39: =SUMPRODUCT(F34:F35,$N$10:$N$11)*VCR -> 40356.9031 | G39: 44599.09515 | H39: 53039.27466 | I39: 62480.47171 | J39: 79007.37532 | K39: 106444.5008 | L39: 140083.7163 | M39: 168003.4915 | N39: 209252.6246 | O39: 268382.7075 | P39: 334133.4964 | Q39: 413649.6772 | R39: 507808.152 | S39: 620333.6475 | T39: 753139.0785 | U39: 911232.9094 | V39: 1099581.362 | W39: 1321441.414 | X39: 1575194.962 | Y39: 1862623.085
B40: Probability Reduction | C40: FALSE | D40: Safety Risk | E40: =(E36+E37)*(VSL*DF_PUBLIC*POC_PUBLIC+VSL*DF_STAFF*POC_STAFF+VLTI*DF_STAFF*POC_LTI) -> 928.3241125 | F40: =(F36+F37)*(VSL*DF_PUBLIC*POC_PUBLIC+VSL*DF_STAFF*POC_STAFF+VLTI*DF_STAFF*POC_LTI) -> 970.4635563 | G40: 1013.881956 | H40: 1058.597106 | I40: 1104.626579 | J40: 1151.987743 | K40: 1200.697768 | L40: 1250.773637 | M40: 1302.232153 | N40: 1355.08995 | O40: 1409.363499 | P40: 1465.069111 | Q40: 1522.222951 | R40: 1580.841035 | S40: 1640.939242 | T40: 1702.533315 | U40: 1765.638867 | V40: 1830.271387 | W40: 1896.446239 | X40: 1964.178673 | Y40: 2033.483822
D41: Unplanned Replacement Risk | E41: =E36*$F$4 -> 65332.42763 | F41: =F36*$F$4 -> 68298.06444 | G41: =G36*$F$4 -> 71353.71002 | H41: 74500.61662 | I41: 77740.02104 | J41: 81073.14552 | K41: 84501.19843 | L41: 88025.37496 | M41: 91646.85774 | N41: 95366.81737 | O41: 99186.41295 | P41: 103106.7926 | Q41: 107129.0936 | R41: 111254.4435 | S41: 115483.9596 | T41: 119818.7498 | U41: 124259.9131 | V41: 128808.5393 | W41: 133465.7099 | X41: 138232.498 | Y41: 143109.9687
B42: This scenario is the status quo, with no investment or improvements made historically. | D42: Unplanned Fault Risk | E42: =E37*$F$5 -> 1926.540396 | F42: =F37*$F$5 -> 2013.991901 | G42: 2104.097609 | H42: 2196.894446 | I42: 2292.418885 | J42: 2390.706966 | K42: 2491.794323 | L42: 2595.716199 | M42: 2702.507468 | N42: 2812.202649 | O42: 2924.835923 | P42: 3040.441143 | Q42: 3159.051851 | R42: 3280.70129 | S42: 3405.42241 | T42: 3533.247884 | U42: 3664.210114 | V42: 3798.341241 | W42: 3935.673155 | X42: 4076.237499 | Y42: 4220.065681
D43: Option Capital Cost | E43: 0 | F43: 0 | G43: 0 | H43: 0 | I43: 0 | J43: 0 | K43: 0 | L43: 0 | M43: 0 | N43: 0 | O43: 0 | P43: 0 | Q43: 0 | R43: 0 | S43: 0 | T43: 0 | U43: 0 | V43: 0 | W43: 0 | X43: 0 | Y43: 0
D44: Total Cost | E44: =SUM(E39:E43) -> 104551.9396 | F44: =SUM(F39:F43) -> 111639.423 | G44: 119070.7847 | H44: 130795.3828 | I44: 143617.5382 | J44: 163623.2155 | K44: 194638.1913 | L44: 231955.5811 | M44: 263655.0888 | N44: 308786.7345 | O44: 371903.3199 | P44: 441745.7993 | Q44: 525460.0456 | R44: 623924.1378 | S44: 740863.9687 | T44: 878193.6095 | U44: 1040922.671 | V44: 1234018.514 | W44: 1460739.243 | X44: 1719467.876 | Y44: 2011986.603
B46: Scenario: Status Quo, Spare Ready, | C46: Setting | D46: Model Output | E46: 2019 | F46: 2020 | G46: 2021 | H46: 2022 | I46: 2023 | J46: 2024 | K46: 2025 | L46: 2026 | M46: 2027 | N46: 2028 | O46: 2029 | P46: 2030 | Q46: 2031 | R46: 2032 | S46: 2033 | T46: 2034 | U46: 2035 | V46: 2036 | W46: 2037 | X46: 2038 | Y46: 2039
B48: Additional Transformer | C48: FALSE | D48: 10% PoE (MWh, Pr-Adjusted) | E48: 1112.781908 | F48: 1238.090465 | G48: 1375.891317 | H48: 1660.004094 | I48: 1974.411607 | J48: 2545.851704 | K48: 3499.745267 | L48: 4657.224867 | M48: 5597.197203 | N48: 6907.577961 | O48: 8719.709461 | P48: 10603.3095 | Q48: 12741.94226 | R48: 15139.37552 | S48: 17853.93257 | T48: 20880.74169 | U48: 24217.90465 | V48: 27980.37372 | W48: 32165.66612 | X48: 36681.79155 | Y48: 41669.91831
B49: Replace 1 Path | C49: FALSE | D49: 50% PoE (MWh, Pr-Adjusted) | E49: 168.1970562 | F49: 186.3156105 | G49: 203.7547935 | H49: 233.5404389 | I49: 268.695904 | J49: 320.9221553 | K49: 405.5980631 | L49: 515.9803326 | M49: 618.9687531 | N49: 805.0236419 | O49: 1101.307793 | P49: 1490.706166 | Q49: 2023.866421 | R49: 2716.239716 | S49: 3610.152971 | T49: 4737.978199 | U49: 6191.348838 | V49: 8016.496957 | W49: 10265.04107 | X49: 12947.46872 | Y49: 16049.89967
B50: Replace 2 Paths - Same | C50: FALSE | D50: Pr (Terminal Failure) | E50: 0.02345353525 | F50: 0.02451816227 | G50: 0.02561510132 | H50: 0.02674480195 | I50: 0.02790770816 | J50: 0.02910425872 | K50: 0.03033488741 | L50: 0.03160002329 | M50: 0.03290009092 | N50: 0.03423551051 | O50: 0.03560669819 | P50: 0.03701406609 | Q50: 0.03845802254 | R50: 0.03993897223 | S50: 0.0414573163 | T50: 0.0430134525 | U50: 0.0446077753 | V50: 0.04624067598 | W50: 0.04791254275 | X50: 0.04962376086 | Y50: 0.05137471263
B51: Replace 2 Paths - different | C51: FALSE | D51: Pr (Repairable Failure) | E51: 0.009632701978 | F51: 0.0100699595 | G51: 0.01052048804 | H51: 0.01098447223 | I51: 0.01146209442 | J51: 0.01195353483 | K51: 0.01245897161 | L51: 0.01297858099 | M51: 0.01351253734 | N51: 0.01406101325 | O51: 0.01462417961 | P51: 0.01520220571 | Q51: 0.01579525926 | R51: 0.01640350645 | S51: 0.01702711205 | T51: 0.01766623942 | U51: 0.01832105057 | V51: 0.01899170621 | W51: 0.01967836577 | X51: 0.02038118749 | Y51: 0.0211003284
B52: Spare/Mobile Asset | C52: TRUE
B53: Non-Network MW | C53: 0 | D53: Energy at Risk (Weighted) | E53: =SUMPRODUCT(E48:E49,$N$10:$N$11)*VCR -> 19309.24061 | F53: =SUMPRODUCT(F48:F49,$N$10:$N$11)*VCR -> 21459.02333 | G53: 23748.7223 | H53: 28284.86493 | I53: 33370.35789 | J53: 42264.02761 | K53: 57035.09351 | L53: 75187.20391 | M53: 90327.81844 | N53: 112706.3777 | O53: 144820.7778 | P53: 180639.0712 | Q53: 224032.005 | R53: 275510.3964 | S53: 337089.3457 | T53: 409675.3178 | U53: 495986.7343 | V53: 598882.021 | W53: 719874.3744 | X53: 858097.6556 | Y53: 1014947.309
B54: Probability Reduction | C54: FALSE | D54: Safety Risk | E54: =(E50+E51)*(VSL*DF_PUBLIC*POC_PUBLIC+VSL*DF_STAFF*POC_STAFF+VLTI*DF_STAFF*POC_LTI) -> 928.3241125 | F54: 970.4635563 | G54: 1013.881956 | H54: 1058.597106 | I54: 1104.626579 | J54: 1151.987743 | K54: 1200.697768 | L54: 1250.773637 | M54: 1302.232153 | N54: 1355.08995 | O54: 1409.363499 | P54: 1465.069111 | Q54: 1522.222951 | R54: 1580.841035 | S54: 1640.939242 | T54: 1702.533315 | U54: 1765.638867 | V54: 1830.271387 | W54: 1896.446239 | X54: 1964.178673 | Y54: 2033.483822
D55: Unplanned Replacement Risk | E55: =E50*$F$4 -> 65332.42763 | F55: =F50*$F$4 -> 68298.06444 | G55: 71353.71002 | H55: 74500.61662 | I55: 77740.02104 | J55: 81073.14552 | K55: 84501.19843 | L55: 88025.37496 | M55: 91646.85774 | N55: 95366.81737 | O55: 99186.41295 | P55: 103106.7926 | Q55: 107129.0936 | R55: 111254.4435 | S55: 115483.9596 | T55: 119818.7498 | U55: 124259.9131 | V55: 128808.5393 | W55: 133465.7099 | X55: 138232.498 | Y55: 143109.9687
B56: This scenario models the availbility of a spare asset, reducing outage duration. This may be the status uo depending on the station configuration and if spares are already available. | D56: Unplanned Fault Risk | E56: =E51*$F$5 -> 1926.540396 | F56: =F51*$F$5 -> 2013.991901 | G56: 2104.097609 | H56: 2196.894446 | I56: 2292.418885 | J56: 2390.706966 | K56: 2491.794323 | L56: 2595.716199 | M56: 2702.507468 | N56: 2812.202649 | O56: 2924.835923 | P56: 3040.441143 | Q56: 3159.051851 | R56: 3280.70129 | S56: 3405.42241 | T56: 3533.247884 | U56: 3664.210114 | V56: 3798.341241 | W56: 3935.673155 | X56: 4076.237499 | Y56: 4220.065681
D57: Option Capital Cost | E57: =$F$14 -> 11400.03072 | F57: =$F$14 -> 11400.03072 | G57: 11400.03072 | H57: 11400.03072 | I57: 11400.03072 | J57: 11400.03072 | K57: 11400.03072 | L57: 11400.03072 | M57: 11400.03072 | N57: 11400.03072 | O57: 11400.03072 | P57: 11400.03072 | Q57: 11400.03072 | R57: 11400.03072 | S57: 11400.03072 | T57: 11400.03072 | U57: 11400.03072 | V57: 11400.03072 | W57: 11400.03072 | X57: 11400.03072 | Y57: 11400.03072
D58: Total Cost | E58: =SUM(E53:E57) -> 98896.56346 | F58: =SUM(F53:F57) -> 104141.574 | G58: 109620.4426 | H58: 117441.0038 | I58: 125907.4551 | J58: 138279.8986 | K58: 156628.8148 | L58: 178459.0994 | M58: 197379.4465 | N58: 223640.5184 | O58: 259741.4209 | P58: 299651.4048 | Q58: 347242.4041 | R58: 403026.4129 | S58: 469019.6976 | T58: 546129.8796 | U58: 637076.5271 | V58: 744719.2036 | W58: 870572.2344 | X58: 1013770.6 | Y58: 1175710.858
B60: Scenario: Status Quo, , Online Monitor | C60: Setting | D60: Model Output | E60: 2019 | F60: 2020 | G60: 2021 | H60: 2022 | I60: 2023 | J60: 2024 | K60: 2025 | L60: 2026 | M60: 2027 | N60: 2028 | O60: 2029 | P60: 2030 | Q60: 2031 | R60: 2032 | S60: 2033 | T60: 2034 | U60: 2035 | V60: 2036 | W60: 2037 | X60: 2038 | Y60: 2039
B62: Additional Transformer | C62: FALSE | D62: 10% PoE (MWh, Pr-Adjusted) | E62: 1651.405726 | F62: 1833.034046 | G62: 2032.252785 | H62: 2448.065452 | I62: 2906.620938 | J62: 3744.204264 | K62: 5143.851723 | L62: 6837.830864 | M62: 8202.801066 | N62: 10105.86525 | O62: 12735.50436 | P62: 15456.32053 | Q62: 18538.1897 | R62: 21985.02944 | S62: 25885.97285 | T62: 30253.20679 | U62: 35090.62138 | V62: 40555.0873 | W62: 46682.19997 | X62: 53346.02722 | Y62: 60711.70019
B63: Replace 1 Path | C63: FALSE | D63: 50% PoE (MWh, Pr-Adjusted) | E63: 245.5373417 | F63: 271.0674366 | G63: 295.376711 | H63: 337.3938397 | I63: 386.8962811 | J63: 460.6951213 | K63: 581.1816026 | L63: 738.8507371 | M63: 884.9932617 | N63: 1151.952583 | O63: 1578.008345 | P63: 2137.805244 | Q63: 2904.135997 | R63: 3897.8725 | S63: 5178.598482 | T63: 6790.953118 | U63: 8864.746424 | V63: 11462.71777 | W63: 14654.64392 | X63: 18450.05924 | Y63: 22823.2294
B64: Replace 2 Paths - Same | C64: FALSE | D64: Pr (Terminal Failure) | E64: 0.02345353525 | F64: 0.02451816227 | G64: 0.02561510132 | H64: 0.02674480195 | I64: 0.02790770816 | J64: 0.02910425872 | K64: 0.03033488741 | L64: 0.03160002329 | M64: 0.03290009092 | N64: 0.03423551051 | O64: 0.03560669819 | P64: 0.03701406609 | Q64: 0.03845802254 | R64: 0.03993897223 | S64: 0.0414573163 | T64: 0.0430134525 | U64: 0.0446077753 | V64: 0.04624067598 | W64: 0.04791254275 | X64: 0.04962376086 | Y64: 0.05137471263
B65: Replace 2 Paths - different | C65: FALSE | D65: Pr (Repairable Failure) | E65: 0.009632701978 | F65: 0.0100699595 | G65: 0.01052048804 | H65: 0.01098447223 | I65: 0.01146209442 | J65: 0.01195353483 | K65: 0.01245897161 | L65: 0.01297858099 | M65: 0.01351253734 | N65: 0.01406101325 | O65: 0.01462417961 | P65: 0.01520220571 | Q65: 0.01579525926 | R65: 0.01640350645 | S65: 0.01702711205 | T65: 0.01766623942 | U65: 0.01832105057 | V65: 0.01899170621 | W65: 0.01967836577 | X65: 0.02038118749 | Y65: 0.0211003284
B66: Spare/Mobile Asset | C66: FALSE
B67: Non-Network MW | C67: 0 | D67: Energy at Risk (Weighted) | E67: =SUMPRODUCT(E62:E63,$N$10:$N$11)*VCR -> 28533.65636 | F67: 31627.75126 | G67: 34910.95444 | H67: 41502.65603 | I67: 48866.71288 | J67: 61820.17867 | K67: 83381.25763 | L67: 109830.9746 | M67: 131715.1504 | N67: 164118.2841 | O67: 210603.9958 | P67: 262262.4663 | Q67: 324734.4961 | R67: 398695.0774 | S67: 487071.0694 | T67: 591354.9454 | U67: 715482.081 | V67: 863342.7281 | W67: 1037482.063 | X67: 1236570.01 | Y67: 1461954.593
B68: Probability Reduction | C68: TRUE | D68: Safety Risk | E68: =(E64+E65)*(VSL*DF_PUBLIC*POC_PUBLIC+VSL*DF_STAFF*POC_STAFF+VLTI*DF_STAFF*POC_LTI) -> 928.3241125 | F68: 970.4635563 | G68: 1013.881956 | H68: 1058.597106 | I68: 1104.626579 | J68: 1151.987743 | K68: 1200.697768 | L68: 1250.773637 | M68: 1302.232153 | N68: 1355.08995 | O68: 1409.363499 | P68: 1465.069111 | Q68: 1522.222951 | R68: 1580.841035 | S68: 1640.939242 | T68: 1702.533315 | U68: 1765.638867 | V68: 1830.271387 | W68: 1896.446239 | X68: 1964.178673 | Y68: 2033.483822
D69: Unplanned Replacement Risk | E69: =E64*$F$4 -> 65332.42763 | F69: =F64*$F$4 -> 68298.06444 | G69: 71353.71002 | H69: 74500.61662 | I69: 77740.02104 | J69: 81073.14552 | K69: 84501.19843 | L69: 88025.37496 | M69: 91646.85774 | N69: 95366.81737 | O69: 99186.41295 | P69: 103106.7926 | Q69: 107129.0936 | R69: 111254.4435 | S69: 115483.9596 | T69: 119818.7498 | U69: 124259.9131 | V69: 128808.5393 | W69: 133465.7099 | X69: 138232.498 | Y69: 143109.9687
B70: This scenario involves the installation of an online monitor to reduce the probability of failure of the assets. This may be the true status quo depending on what is installed at the substation. | D70: Unplanned Fault Risk | E70: =E65*$F$5 -> 1926.540396 | F70: =F65*$F$5 -> 2013.991901 | G70: 2104.097609 | H70: 2196.894446 | I70: 2292.418885 | J70: 2390.706966 | K70: 2491.794323 | L70: 2595.716199 | M70: 2702.507468 | N70: 2812.202649 | O70: 2924.835923 | P70: 3040.441143 | Q70: 3159.051851 | R70: 3280.70129 | S70: 3405.42241 | T70: 3533.247884 | U70: 3664.210114 | V70: 3798.341241 | W70: 3935.673155 | X70: 4076.237499 | Y70: 4220.065681
D71: Option Capital Cost | E71: =$F$16 -> 38140.62679 | F71: =$F$16 -> 38140.62679 | G71: 38140.62679 | H71: 38140.62679 | I71: 38140.62679 | J71: 38140.62679 | K71: 38140.62679 | L71: 38140.62679 | M71: 38140.62679 | N71: 38140.62679 | O71: 38140.62679 | P71: 38140.62679 | Q71: 38140.62679 | R71: 38140.62679 | S71: 38140.62679 | T71: 38140.62679 | U71: 38140.62679 | V71: 38140.62679 | W71: 38140.62679 | X71: 38140.62679 | Y71: 38140.62679
D72: Total Cost | E72: =SUM(E67:E71) -> 134861.5753 | F72: =SUM(F67:F71) -> 141050.8979 | G72: 147523.2708 | H72: 157399.391 | I72: 168144.4062 | J72: 184576.6457 | K72: 209715.5749 | L72: 239843.4662 | M72: 265507.3745 | N72: 301793.0208 | O72: 352265.2349 | P72: 408015.3959 | Q72: 474685.4913 | R72: 552951.69 | S72: 645742.0175 | T72: 754550.1032 | U72: 883312.4699 | V72: 1035920.507 | W72: 1214920.519 | X72: 1418983.551 | Y72: 1649458.737
B74: Scenario: Status Quo, Spare Ready, Online Monitor | C74: Setting | D74: Model Output | E74: 2019 | F74: 2020 | G74: 2021 | H74: 2022 | I74: 2023 | J74: 2024 | K74: 2025 | L74: 2026 | M74: 2027 | N74: 2028 | O74: 2029 | P74: 2030 | Q74: 2031 | R74: 2032 | S74: 2033 | T74: 2034 | U74: 2035 | V74: 2036 | W74: 2037 | X74: 2038 | Y74: 2039
B76: Additional Transformer | C76: FALSE | D76: 10% PoE (MWh, Pr-Adjusted) | E76: 873.658874 | F76: 970.8695784 | G76: 1077.667215 | H76: 1299.754293 | I76: 1545.162802 | J76: 1993.019456 | K76: 2741.742718 | L76: 3649.728101 | M76: 4384.520295 | N76: 5409.654104 | O76: 6827.573385 | P76: 8299.000845 | Q76: 9967.902872 | R76: 11836.64302 | S76: 13950.49151 | T76: 16304.89842 | U76: 18897.66937 | V76: 21818.0903 | W76: 25063.47481 | X76: 28560.80739 | Y76: 32419.44438
B77: Replace 1 Path | C77: FALSE | D77: 50% PoE (MWh, Pr-Adjusted) | E77: 129.9145547 | F77: 143.5832783 | G77: 156.6391927 | H77: 179.1305995 | I77: 205.6586105 | J77: 245.1872279 | K77: 309.7028122 | L77: 394.240384 | M77: 472.8558769 | N77: 616.3744554 | O77: 845.609823 | P77: 1147.363084 | Q77: 1561.147734 | R77: 2098.778461 | S77: 2793.058319 | T77: 3668.962108 | U77: 4797.78669 | V77: 6214.985174 | W77: 7960.142026 | X77: 10040.38158 | Y77: 12443.69904
B78: Replace 2 Paths - Same | C78: FALSE | D78: Pr (Terminal Failure) | E78: 0.02345353525 | F78: 0.02451816227 | G78: 0.02561510132 | H78: 0.02674480195 | I78: 0.02790770816 | J78: 0.02910425872 | K78: 0.03033488741 | L78: 0.03160002329 | M78: 0.03290009092 | N78: 0.03423551051 | O78: 0.03560669819 | P78: 0.03701406609 | Q78: 0.03845802254 | R78: 0.03993897223 | S78: 0.0414573163 | T78: 0.0430134525 | U78: 0.0446077753 | V78: 0.04624067598 | W78: 0.04791254275 | X78: 0.04962376086 | Y78: 0.05137471263
B79: Replace 2 Paths - different | C79: FALSE | D79: Pr (Repairable Failure) | E79: 0.009632701978 | F79: 0.0100699595 | G79: 0.01052048804 | H79: 0.01098447223 | I79: 0.01146209442 | J79: 0.01195353483 | K79: 0.01245897161 | L79: 0.01297858099 | M79: 0.01351253734 | N79: 0.01406101325 | O79: 0.01462417961 | P79: 0.01520220571 | Q79: 0.01579525926 | R79: 0.01640350645 | S79: 0.01702711205 | T79: 0.01766623942 | U79: 0.01832105057 | V79: 0.01899170621 | W79: 0.01967836577 | X79: 0.02038118749 | Y79: 0.0211003284
B80: Spare/Mobile Asset | C80: TRUE
B81: Non-Network MW | C81: 0 | D81: Energy at Risk (Weighted) | E81: =SUMPRODUCT(E76:E77,$N$10:$N$11)*VCR -> 15095.89849 | F81: 16752.04964 | G81: 18512.83934 | H81: 22034.98517 | I81: 25977.12195 | J81: 32905.39769 | K81: 44441.10017 | L81: 58619.11525 | M81: 70398.14845 | N81: 87844.36304 | O81: 112894.9046 | P81: 140802.4547 | Q81: 174596.532 | R81: 214661.0935 | S81: 262558.7267 | T81: 318978.6107 | U81: 386026.6539 | V81: 465909.3986 | W81: 559777.2259 | X81: 666906.7386 | Y81: 788341.4321
B82: Probability Reduction | C82: TRUE | D82: Safety Risk | E82: =(E78+E79)*(VSL*DF_PUBLIC*POC_PUBLIC+VSL*DF_STAFF*POC_STAFF+VLTI*DF_STAFF*POC_LTI) -> 928.3241125 | F82: 970.4635563 | G82: 1013.881956 | H82: 1058.597106 | I82: 1104.626579 | J82: 1151.987743 | K82: 1200.697768 | L82: 1250.773637 | M82: 1302.232153 | N82: 1355.08995 | O82: 1409.363499 | P82: 1465.069111 | Q82: 1522.222951 | R82: 1580.841035 | S82: 1640.939242 | T82: 1702.533315 | U82: 1765.638867 | V82: 1830.271387 | W82: 1896.446239 | X82: 1964.178673 | Y82: 2033.483822
D83: Unplanned Replacement Risk | E83: =E78*$F$4 -> 65332.42763 | F83: =F78*$F$4 -> 68298.06444 | G83: 71353.71002 | H83: 74500.61662 | I83: 77740.02104 | J83: 81073.14552 | K83: 84501.19843 | L83: 88025.37496 | M83: 91646.85774 | N83: 95366.81737 | O83: 99186.41295 | P83: 103106.7926 | Q83: 107129.0936 | R83: 111254.4435 | S83: 115483.9596 | T83: 119818.7498 | U83: 124259.9131 | V83: 128808.5393 | W83: 133465.7099 | X83: 138232.498 | Y83: 143109.9687
B84: This scenario models the cumulative benefit of two lower-cost options; installation of an online monitor to reduce the probability of failure of the assets, as well as having a spare available. | D84: Unplanned Fault Risk | E84: =E79*$F$5 -> 1926.540396 | F84: =F79*$F$5 -> 2013.991901 | G84: 2104.097609 | H84: 2196.894446 | I84: 2292.418885 | J84: 2390.706966 | K84: 2491.794323 | L84: 2595.716199 | M84: 2702.507468 | N84: 2812.202649 | O84: 2924.835923 | P84: 3040.441143 | Q84: 3159.051851 | R84: 3280.70129 | S84: 3405.42241 | T84: 3533.247884 | U84: 3664.210114 | V84: 3798.341241 | W84: 3935.673155 | X84: 4076.237499 | Y84: 4220.065681
D85: Option Capital Cost | E85: =$F$14+$F$16 -> 49540.65751 | F85: =$F$14+$F$16 -> 49540.65751 | G85: 49540.65751 | H85: 49540.65751 | I85: 49540.65751 | J85: 49540.65751 | K85: 49540.65751 | L85: 49540.65751 | M85: 49540.65751 | N85: 49540.65751 | O85: 49540.65751 | P85: 49540.65751 | Q85: 49540.65751 | R85: 49540.65751 | S85: 49540.65751 | T85: 49540.65751 | U85: 49540.65751 | V85: 49540.65751 | W85: 49540.65751 | X85: 49540.65751 | Y85: 49540.65751
D86: Total Cost | E86: =SUM(E81:E85) -> 132823.8481 | F86: =SUM(F81:F85) -> 137575.2271 | G86: 142525.1864 | H86: 149331.7509 | I86: 156654.846 | J86: 167061.8954 | K86: 182175.4482 | L86: 200031.6376 | M86: 215590.4033 | N86: 236919.1305 | O86: 265956.1745 | P86: 297955.415 | Q86: 335947.558 | R86: 380317.7368 | S86: 432629.7055 | T86: 493573.7992 | U86: 565257.0734 | V86: 649887.208 | W86: 748615.7128 | X86: 860720.3103 | Y86: 987245.6078
B88: Scenario: Replace 1 Asset, , | C88: Setting | D88: Model Output | E88: 2019 | F88: 2020 | G88: 2021 | H88: 2022 | I88: 2023 | J88: 2024 | K88: 2025 | L88: 2026 | M88: 2027 | N88: 2028 | O88: 2029 | P88: 2030 | Q88: 2031 | R88: 2032 | S88: 2033 | T88: 2034 | U88: 2035 | V88: 2036 | W88: 2037 | X88: 2038 | Y88: 2039
B90: Additional Transformer | C90: FALSE | D90: 10% PoE (MWh, Pr-Adjusted) | E90: 11.51633359 | F90: 22.99746978 | G90: 35.76826329 | H90: 54.79187174 | I90: 78.21345991 | J90: 117.363668 | K90: 183.6488737 | L90: 272.8230032 | M90: 359.8992166 | N90: 482.9050845 | O90: 657.5021134 | P90: 855.5998522 | Q90: 1094.93783 | R90: 1379.965539 | S90: 1723.394582 | T90: 2140.928967 | U90: 2643.7238 | V90: 3248.208192 | W90: 3986.123708 | X90: 4862.562658 | Y90: 5884.614428
B91: Replace 1 Path | C91: TRUE | D91: 50% PoE (MWh, Pr-Adjusted) | E91: 1.592536633 | F91: 3.149721611 | G91: 4.789837134 | H91: 6.903339292 | I91: 9.456047958 | J91: 13.00745921 | K91: 18.61318696 | L91: 26.52054766 | M91: 35.00757594 | N91: 50.21940708 | O91: 75.34388239 | P91: 110.8004205 | Q91: 162.2761245 | R91: 233.1833668 | S91: 329.7492045 | T91: 457.9675333 | U91: 630.7044175 | V91: 857.3316134 | W91: 1148.61856 | X91: 1511.078821 | Y91: 1948.207617
B92: Replace 2 Paths - Same | C92: FALSE | D92: Pr (Terminal Failure) | E92: 0.01196746716 | F92: 0.01253739768 | G92: 0.01312831651 | H92: 0.0137410069 | I92: 0.01437618713 | J92: 0.01503453204 | K92: 0.01571668412 | L92: 0.01642326023 | M92: 0.01715485611 | N92: 0.01791204951 | O92: 0.0186954026 | P92: 0.01950546382 | Q92: 0.02034276929 | R92: 0.02120784404 | S92: 0.02210120299 | T92: 0.02302335174 | U92: 0.02397478734 | V92: 0.02495599885 | W92: 0.02596746789 | X92: 0.02700966911 | Y92: 0.0280830706
B93: Replace 2 Paths - different | C93: FALSE | D93: Pr (Repairable Failure) | E93: 0.004915209726 | F93: 0.005149288332 | G93: 0.005391987139 | H93: 0.005643627836 | I93: 0.00590450543 | J93: 0.006174897089 | K93: 0.006455066691 | L93: 0.006745267596 | M93: 0.007045744473 | N93: 0.007356734619 | O93: 0.007678468926 | P93: 0.00801117264 | Q93: 0.008355065959 | R93: 0.008710364518 | S93: 0.009077279798 | T93: 0.009456019465 | U93: 0.009846787658 | V93: 0.01024978524 | W93: 0.01066521003 | X93: 0.01109325695 | Y93: 0.01153411828
B94: Spare/Mobile Asset | C94: FALSE
B95: Non-Network MW | C95: 0 | D95: Energy at Risk (Weighted) | E95: =SUMPRODUCT(E90:E91,$N$10:$N$11)*VCR -> 195.3993338 | F95: 389.2890096 | G95: 602.2046866 | H95: 909.5008823 | I95: 1286.360691 | J95: 1894.880402 | K95: 2912.977664 | L95: 4293.586518 | M95: 5664.633914 | N95: 7697.873717 | O95: 10689.6302 | P95: 14292.11309 | Q95: 18903.11145 | R95: 24681.84247 | S95: 31977.75889 | T95: 41171.721 | U95: 52791.93353 | V95: 67329.66454 | W95: 85514.44566 | X95: 107606.5651 | Y95: 133801.5843
B96: Probability Reduction | C96: FALSE | D96: Safety Risk | E96: =(E92+E93)*(VSL*DF_PUBLIC*POC_PUBLIC+VSL*DF_STAFF*POC_STAFF+VLTI*DF_STAFF*POC_LTI) -> 473.6892844 | F96: 496.2479408 | G96: 519.6373444 | H96: 543.8884971 | I96: 569.0298294 | J96: 595.0880524 | K96: 622.0885968 | L96: 650.0558793 | M96: 679.0134793 | N96: 708.9842654 | O96: 739.9904894 | P96: 772.0538586 | Q96: 805.195594 | R96: 839.4364768 | S96: 874.7968879 | T96: 911.2968405 | U96: 948.9560078 | V96: 987.7937477 | W96: 1027.829123 | X96: 1069.080922 | Y96: 1111.567672
D97: Unplanned Replacement Risk | E97: =E92*$F$4 -> 33336.7091 | F97: =F92*$F$4 -> 34924.31387 | G97: 36570.38392 | H97: 38277.10106 | I97: 40046.46615 | J97: 41880.35902 | K97: 43780.5694 | L97: 45748.81565 | M97: 47786.75723 | N97: 49896.00355 | O97: 52078.12061 | P97: 54334.63611 | Q97: 56667.0435 | R97: 59076.80532 | S97: 61565.35589 | T97: 64134.10368 | U97: 66784.43322 | V97: 69517.70687 | W97: 72335.26623 | X97: 75238.43349 | Y97: 78228.51258
B98: This scenario involves the replacement of 1 of n redundant assets in the system. | D98: Unplanned Fault Risk | E98: =E93*$F$5 -> 983.0419452 | F98: =F93*$F$5 -> 1029.857666 | G98: 1078.397428 | H98: 1128.725567 | I98: 1180.901086 | J98: 1234.979418 | K98: 1291.013338 | L98: 1349.053519 | M98: 1409.148895 | N98: 1471.346924 | O98: 1535.693785 | P98: 1602.234528 | Q98: 1671.013192 | R98: 1742.072904 | S98: 1815.45596 | T98: 1891.203893 | U98: 1969.357532 | V98: 2049.957048 | W98: 2133.042005 | X98: 2218.651391 | Y98: 2306.823656
D99: Option Capital Cost | E99: =$F$11 -> 85984.6631 | F99: =$F$11 -> 85984.6631 | G99: 85984.6631 | H99: 85984.6631 | I99: 85984.6631 | J99: 85984.6631 | K99: 85984.6631 | L99: 85984.6631 | M99: 85984.6631 | N99: 85984.6631 | O99: 85984.6631 | P99: 85984.6631 | Q99: 85984.6631 | R99: 85984.6631 | S99: 85984.6631 | T99: 85984.6631 | U99: 85984.6631 | V99: 85984.6631 | W99: 85984.6631 | X99: 85984.6631 | Y99: 85984.6631
D100: Total Cost | E100: =SUM(E95:E99) -> 120973.5028 | F100: =SUM(F95:F99) -> 122824.3716 | G100: 124755.2865 | H100: 126843.8791 | I100: 129067.4209 | J100: 131589.97 | K100: 134591.3121 | L100: 138026.1747 | M100: 141524.2166 | N100: 145758.8716 | O100: 151028.0982 | P100: 156985.7007 | Q100: 164031.0268 | R100: 172324.8203 | S100: 182218.0307 | T100: 194092.9885 | U100: 208479.3434 | V100: 225869.7853 | W100: 246995.2461 | X100: 272117.394 | Y100: 301433.1513
B102: Scenario: Replace with 2 like Assets, , | C102: Setting | D102: Model Output | E102: 2019 | F102: 2020 | G102: 2021 | H102: 2022 | I102: 2023 | J102: 2024 | K102: 2025 | L102: 2026 | M102: 2027 | N102: 2028 | O102: 2029 | P102: 2030 | Q102: 2031 | R102: 2032 | S102: 2033 | T102: 2034 | U102: 2035 | V102: 2036 | W102: 2037 | X102: 2038 | Y102: 2039
B104: Additional Transformer | C104: FALSE | D104: 10% PoE (MWh, Pr-Adjusted) | E104: 1.559936095 | F104: 5.57539111 | G104: 12.09695891 | H104: 23.34747992 | I104: 39.70711819 | J104: 68.53589084 | K104: 120.3994864 | L104: 197.2256 | M104: 282.9257091 | N104: 408.399765 | O104: 592.9961585 | P104: 816.9001468 | Q104: 1098.82893 | R104: 1446.631882 | S104: 1874.592378 | T104: 2393.149229 | U104: 3012.2955 | V104: 3756.400301 | W104: 4642.058204 | X104: 5668.998647 | Y104: 6866.565115
B105: Replace 1 Path | C105: FALSE | D105: 50% PoE (MWh, Pr-Adjusted) | E105: 0.2154342937 | F105: 0.761765522 | G105: 1.614278536 | H105: 2.927783003 | I105: 4.772575898 | J105: 7.542020887 | K105: 12.10510071 | L105: 19.01294123 | M105: 27.28488262 | N105: 42.1378766 | O105: 67.48617622 | P105: 105.1660305 | Q105: 162.2100423 | R105: 244.1551402 | S105: 359.9735927 | T105: 519.1185435 | U105: 739.6996416 | V105: 1037.027612 | W105: 1428.854204 | X105: 1928.17654 | Y105: 2544.043287
B106: Replace 2 Paths - Same | C106: TRUE | D106: Pr (Terminal Failure) | E106: 0.0004813990672 | F106: 0.0005566330866 | G106: 0.0006415317003 | H106: 0.0007372118543 | I106: 0.0008446661062 | J106: 0.0009648053658 | K106: 0.001098480829 | L106: 0.001246497174 | M106: 0.001409621301 | N106: 0.0015885885 | O106: 0.001784107016 | P106: 0.001996861554 | Q106: 0.002227516042 | R106: 0.00247671586 | S106: 0.002745089677 | T106: 0.003033250981 | U106: 0.003341799382 | V106: 0.003671321717 | W106: 0.00402239302 | X106: 0.004395577357 | Y106: 0.004791428565
B107: Replace 2 Paths - different | C107: FALSE | D107: Pr (Repairable Failure) | E107: 0.000197717474 | F107: 0.0002286171606 | G107: 0.0002634862341 | H107: 0.0003027834402 | I107: 0.0003469164365 | J107: 0.0003962593467 | K107: 0.0004511617689 | L107: 0.0005119541965 | M107: 0.0005789516059 | N107: 0.000652455991 | O107: 0.0007327582387 | P107: 0.0008201395668 | Q107: 0.00091487266 | R107: 0.001017222585 | S107: 0.001127447546 | T107: 0.00124579951 | U107: 0.001372524746 | V107: 0.001507864277 | W107: 0.001652054276 | X107: 0.001805326414 | Y107: 0.001967908161
B108: Spare/Mobile Asset | C108: FALSE
B109: Non-Network MW | C109: 0 | D109: Energy at Risk (Weighted) | E109: =SUMPRODUCT(E104:E105,$N$10:$N$11)*VCR -> 26.45923951 | F109: 94.32228276 | G109: 203.4983741 | H109: 387.1358732 | I109: 652.2156539 | J109: 1104.926177 | K109: 1906.814486 | L109: 3099.105354 | M109: 4446.062103 | N109: 6500.223107 | O109: 9626.950948 | P109: 13627.02471 | Q109: 18951.0485 | R109: 25865.44544 | S109: 34822.0006 | T109: 46237.57455 | U109: 60782.41635 | V109: 79227.41354 | W109: 102316.7867 | X109: 130436.0949 | Y109: 164232.601
B110: Probability Reduction | C110: FALSE | D110: Safety Risk | E110: =(E106+E107)*(VSL*DF_PUBLIC*POC_PUBLIC+VSL*DF_STAFF*POC_STAFF+VLTI*DF_STAFF*POC_LTI) -> 19.05445627 | F110: 22.03232522 | G110: 25.39273248 | H110: 29.17988837 | I110: 33.4330797 | J110: 38.1883616 | K110: 43.47942557 | L110: 49.33812197 | M110: 55.79480575 | N110: 62.87858071 | O110: 70.61748024 | P110: 79.03860591 | Q110: 88.16823692 | R110: 98.03191834 | S110: 108.6545338 | T110: 120.060366 | U110: 132.2731482 | V110: 145.3161086 | W110: 159.2120075 | X110: 173.9831716 | Y110: 189.6515226
D111: Unplanned Replacement Risk | E111: =E106*$F$4 -> 1340.990575 | F111: =F106*$F$4 -> 1550.563293 | G111: 1787.057812 | H111: 2053.585509 | I111: 2352.911263 | J111: 2687.572516 | K111: 3059.940366 | L111: 3472.256337 | M111: 3926.656713 | N111: 4425.189725 | O111: 4969.828269 | P111: 5562.479667 | Q111: 6204.993364 | R111: 6899.167138 | S111: 7646.752215 | T111: 8449.457538 | U111: 9308.95338 | V111: 10226.87445 | W111: 11204.82256 | X111: 12244.36898 | Y111: 13347.05649
B112: This scenario involves replacing 2 of n redundant assets (n>=2) in a single station. When coupled in the time model with the 'replace 1 asset' option, this refers to the replacement of the second asset. | D112: Unplanned Fault Risk | E112: =E107*$F$5 -> 39.5434948 | F112: =F107*$F$5 -> 45.72343211 | G112: 52.69724681 | H112: 60.55668803 | I112: 69.38328729 | J112: 79.25186933 | K112: 90.23235378 | L112: 102.3908393 | M112: 115.7903212 | N112: 130.4911982 | O112: 146.5516477 | P112: 164.0279134 | Q112: 182.974532 | R112: 203.4445171 | S112: 225.4895092 | T112: 249.159902 | U112: 274.5049492 | V112: 301.5728553 | W112: 330.4108552 | X112: 361.0652829 | Y112: 393.5816322
D113: Option Capital Cost | E113: =$F$12 -> 171969.3262 | F113: =$F$12 -> 171969.3262 | G113: 171969.3262 | H113: 171969.3262 | I113: 171969.3262 | J113: 171969.3262 | K113: 171969.3262 | L113: 171969.3262 | M113: 171969.3262 | N113: 171969.3262 | O113: 171969.3262 | P113: 171969.3262 | Q113: 171969.3262 | R113: 171969.3262 | S113: 171969.3262 | T113: 171969.3262 | U113: 171969.3262 | V113: 171969.3262 | W113: 171969.3262 | X113: 171969.3262 | Y113: 171969.3262
D114: Total Cost | E114: =SUM(E109:E113) -> 173395.374 | F114: =SUM(F109:F113) -> 173681.9675 | G114: 174037.9724 | H114: 174499.7842 | I114: 175077.2695 | J114: 175879.2651 | K114: 177069.7928 | L114: 178692.4169 | M114: 180513.6302 | N114: 183088.1088 | O114: 186783.2746 | P114: 191401.8971 | Q114: 197396.5108 | R114: 205035.4152 | S114: 214772.2231 | T114: 227025.5786 | U114: 242467.474 | V114: 261870.5032 | W114: 285980.5583 | X114: 315184.8385 | Y114: 350132.2168
B116: Scenario: Replace with 2 different Assets, , | C116: Setting | D116: Model Output | E116: 2019 | F116: 2020 | G116: 2021 | H116: 2022 | I116: 2023 | J116: 2024 | K116: 2025 | L116: 2026 | M116: 2027 | N116: 2028 | O116: 2029 | P116: 2030 | Q116: 2031 | R116: 2032 | S116: 2033 | T116: 2034 | U116: 2035 | V116: 2036 | W116: 2037 | X116: 2038 | Y116: 2039
B118: Additional Transformer | C118: FALSE | D118: 10% PoE (MWh, Pr-Adjusted) | E118: 0.3250123123 | F118: 1.161860321 | G118: 2.521676017 | H118: 4.869079226 | I118: 8.285660495 | J118: 14.31227563 | K118: 25.16709964 | L118: 41.27265982 | M118: 59.28148363 | N118: 85.69715342 | O118: 124.639315 | P118: 172.0163813 | Q118: 232.0990168 | R118: 306.8856015 | S118: 400.4275618 | T118: 518.0589067 | U118: 664.416669 | V118: 845.6359012 | W118: 1072.992387 | X118: 1351.049349 | Y118: 1684.228601
B119: Replace 1 Path | C119: FALSE | D119: 50% PoE (MWh, Pr-Adjusted) | E119: 0.04488379124 | F119: 0.1587215551 | G119: 0.3363988856 | H119: 0.6102404948 | I119: 0.9950143013 | J119: 1.57295387 | K119: 2.525960111 | L119: 3.970507226 | M119: 5.702982901 | N119: 8.819532649 | O119: 14.14920328 | P119: 22.0920905 | Q119: 34.1501841 | R119: 51.52539052 | S119: 76.16450687 | T119: 110.1438227 | U119: 157.4187636 | V119: 221.4056332 | W119: 306.1066253 | X119: 414.5748536 | Y119: 549.0792664
B120: Replace 2 Paths - Same | C120: FALSE | D120: Pr (Terminal Failure) | E120: 0.0004813990672 | F120: 0.0005566330866 | G120: 0.0006415317003 | H120: 0.0007372118543 | I120: 0.0008446661062 | J120: 0.0009648053658 | K120: 0.001098480829 | L120: 0.001246497174 | M120: 0.001409621301 | N120: 0.0015885885 | O120: 0.001784107016 | P120: 0.001996861554 | Q120: 0.002227516042 | R120: 0.00247671586 | S120: 0.002745089677 | T120: 0.003033250981 | U120: 0.003341799382 | V120: 0.003671321717 | W120: 0.00402239302 | X120: 0.004395577357 | Y120: 0.004791428565
B121: Replace 2 Paths - different | C121: TRUE | D121: Pr (Repairable Failure) | E121: 0.000197717474 | F121: 0.0002286171606 | G121: 0.0002634862341 | H121: 0.0003027834402 | I121: 0.0003469164365 | J121: 0.0003962593467 | K121: 0.0004511617689 | L121: 0.0005119541965 | M121: 0.0005789516059 | N121: 0.000652455991 | O121: 0.0007327582387 | P121: 0.0008201395668 | Q121: 0.00091487266 | R121: 0.001017222585 | S121: 0.001127447546 | T121: 0.00124579951 | U121: 0.001372524746 | V121: 0.001507864277 | W121: 0.001652054276 | X121: 0.001805326414 | Y121: 0.001967908161
B122: Spare/Mobile Asset | C122: FALSE
B123: Non-Network MW | C123: 0 | D123: Energy at Risk (Weighted) | E123: =SUMPRODUCT(E118:E119,$N$10:$N$11)*VCR -> 5.512719581 | F123: 19.65519778 | G123: 42.41715138 | H123: 80.7262668 | I123: 136.0712209 | J123: 230.679527 | K123: 398.4505923 | L123: 648.2909025 | M123: 931.1645562 | N123: 1363.309335 | O123: 2022.387085 | P123: 2867.886592 | Q123: 3999.549498 | R123: 5478.986485 | S123: 7416.440783 | T123: 9942.484557 | U123: 13234.99546 | V123: 17474.93075 | W123: 22926.72985 | X123: 29740.31556 | Y123: 38040.32509
B124: Probability Reduction | C124: FALSE | D124: Safety Risk | E124: =(E120+E121)*(VSL*DF_PUBLIC*POC_PUBLIC+VSL*DF_STAFF*POC_STAFF+VLTI*DF_STAFF*POC_LTI) -> 19.05445627 | F124: 22.03232522 | G124: 25.39273248 | H124: 29.17988837 | I124: 33.4330797 | J124: 38.1883616 | K124: 43.47942557 | L124: 49.33812197 | M124: 55.79480575 | N124: 62.87858071 | O124: 70.61748024 | P124: 79.03860591 | Q124: 88.16823692 | R124: 98.03191834 | S124: 108.6545338 | T124: 120.060366 | U124: 132.2731482 | V124: 145.3161086 | W124: 159.2120075 | X124: 173.9831716 | Y124: 189.6515226
D125: Unplanned Replacement Risk | E125: =E120*$F$4 -> 1340.990575 | F125: =F120*$F$4 -> 1550.563293 | G125: 1787.057812 | H125: 2053.585509 | I125: 2352.911263 | J125: 2687.572516 | K125: 3059.940366 | L125: 3472.256337 | M125: 3926.656713 | N125: 4425.189725 | O125: 4969.828269 | P125: 5562.479667 | Q125: 6204.993364 | R125: 6899.167138 | S125: 7646.752215 | T125: 8449.457538 | U125: 9308.95338 | V125: 10226.87445 | W125: 11204.82256 | X125: 12244.36898 | Y125: 13347.05649
B126: This scenario involves replacing 2 of n redundant assets (n>=2) in a single station. When coupled in the time model with the 'replace 1 asset' option, this refers to the replacement of the second asset. | D126: Unplanned Fault Risk | E126: =E121*$F$5 -> 39.5434948 | F126: =F121*$F$5 -> 45.72343211 | G126: 52.69724681 | H126: 60.55668803 | I126: 69.38328729 | J126: 79.25186933 | K126: 90.23235378 | L126: 102.3908393 | M126: 115.7903212 | N126: 130.4911982 | O126: 146.5516477 | P126: 164.0279134 | Q126: 182.974532 | R126: 203.4445171 | S126: 225.4895092 | T126: 249.159902 | U126: 274.5049492 | V126: 301.5728553 | W126: 330.4108552 | X126: 361.0652829 | Y126: 393.5816322
D127: Option Capital Cost | E127: =$F$13 -> 175372.2725 | F127: =$F$13 -> 175372.2725 | G127: 175372.2725 | H127: 175372.2725 | I127: 175372.2725 | J127: 175372.2725 | K127: 175372.2725 | L127: 175372.2725 | M127: 175372.2725 | N127: 175372.2725 | O127: 175372.2725 | P127: 175372.2725 | Q127: 175372.2725 | R127: 175372.2725 | S127: 175372.2725 | T127: 175372.2725 | U127: 175372.2725 | V127: 175372.2725 | W127: 175372.2725 | X127: 175372.2725 | Y127: 175372.2725
D128: Total Cost | E128: =SUM(E123:E127) -> 176777.3737 | F128: =SUM(F123:F127) -> 177010.2467 | G128: 177279.8374 | H128: 177596.3208 | I128: 177964.0713 | J128: 178407.9647 | K128: 178964.3752 | L128: 179644.5487 | M128: 180401.6789 | N128: 181354.1413 | O128: 182581.657 | P128: 184045.7052 | Q128: 185847.9581 | R128: 188051.9025 | S128: 190769.6095 | T128: 194133.4348 | U128: 198322.9994 | V128: 203520.9666 | W128: 209993.4477 | X128: 217892.0055 | Y128: 227342.8872
B130: Scenario: Additional path, , | C130: Setting | D130: Model Output | E130: 2019 | F130: 2020 | G130: 2021 | H130: 2022 | I130: 2023 | J130: 2024 | K130: 2025 | L130: 2026 | M130: 2027 | N130: 2028 | O130: 2029 | P130: 2030 | Q130: 2031 | R130: 2032 | S130: 2033 | T130: 2034 | U130: 2035 | V130: 2036 | W130: 2037 | X130: 2038 | Y130: 2039
B132: Additional Bus | C132: TRUE | D132: 10% PoE (MWh, Pr-Adjusted) | E132: 5.817767554 | F132: 9.787272906 | G132: 13.59871654 | H132: 17.91424045 | I132: 22.60713148 | J132: 28.34891986 | K132: 35.87992097 | L132: 44.53148189 | M132: 52.89164494 | N132: 62.98106258 | O132: 75.68550764 | P132: 89.21850578 | Q132: 104.4487601 | R132: 121.4737659 | S132: 140.5684146 | T132: 162.0987682 | U132: 186.2878849 | V132: 213.6522159 | W132: 244.7647933 | X132: 279.7655738 | Y132: 319.0410255
B133: Replace 1 Path | C133: FALSE | D133: 50% PoE (MWh, Pr-Adjusted) | E133: 2.027675988 | F133: 3.405251064 | G133: 4.706762287 | H133: 6.27893955 | I133: 8.03013293 | J133: 10.30154509 | K133: 13.30769615 | L133: 16.55821738 | M133: 19.67892439 | N133: 23.49471776 | O133: 28.58718019 | P133: 34.34246873 | Q133: 41.08060001 | R133: 48.89957481 | S133: 58.06771516 | T133: 68.71176927 | U133: 81.23461177 | V133: 95.90674362 | W133: 112.9682388 | X133: 132.636408 | Y133: 155.0568649
B134: Replace 2 Paths - Same | C134: FALSE | D134: Pr (Terminal Failure) | E134: 0.02345379726 | F134: 0.02451975082 | G134: 0.02561966 | H134: 0.02675443314 | I134: 0.02792491281 | J134: 0.02913189738 | K134: 0.0303761521 | L134: 0.03165841587 | M134: 0.03297940572 | N134: 0.03433981998 | O134: 0.03574034072 | P134: 0.03718163558 | Q134: 0.03866435922 | R134: 0.04018915455 | S134: 0.04175665371 | T134: 0.04336747892 | U134: 0.04502224322 | V134: 0.04672155102 | W134: 0.04846599873 | X134: 0.0502561752 | Y134: 0.05209266212
B135: Replace 2 Paths - different | C135: FALSE | D135: Pr (Repairable Failure) | E135: 0.009632809591 | F135: 0.01007061194 | G135: 0.01052236036 | H135: 0.0109884279 | I135: 0.01146916062 | J135: 0.01196488642 | K135: 0.01247591961 | L135: 0.01300256366 | M135: 0.01354511306 | N135: 0.01410385463 | O135: 0.01467906851 | P135: 0.0152710289 | Q135: 0.01588000468 | R135: 0.0165062599 | S135: 0.0171500542 | T135: 0.01781164313 | U135: 0.01849127846 | V135: 0.01918920845 | W135: 0.01990567805 | X135: 0.0206409291 | Y135: 0.02139520051
B136: Spare/Mobile Asset | C136: FALSE
B137: Non-Network MW | C137: 0 | D137: Energy at Risk (Weighted) | E137: =SUMPRODUCT(E132:E133,$N$10:$N$11)*VCR -> 135.3227199 | F137: 227.4771117 | G137: 315.3271446 | H137: 417.7450951 | I137: 530.3622215 | J137: 672.0057915 | K137: 858.5935874 | L137: 1066.870412 | M137: 1267.523586 | N137: 1511.164963 | O137: 1826.56517 | P137: 2172.433766 | Q137: 2569.493215 | R137: 3021.927542 | S137: 3541.294472 | T137: 4136.083676 | U137: 4821.215387 | V137: 5611.411275 | W137: 6521.20809 | X137: 7558.905747 | Y137: 8733.820357
B138: Probability Reduction | C138: FALSE | D138: Safety Risk | E138: =(E134+E135)*(VSL*DF_PUBLIC*POC_PUBLIC+VSL*DF_STAFF*POC_STAFF+VLTI*DF_STAFF*POC_LTI) -> 928.3344834 | F138: 970.5264335 | G138: 1014.062395 | H138: 1058.978322 | I138: 1105.307563 | J138: 1153.08172 | K138: 1202.331083 | L138: 1253.084898 | M138: 1305.371545 | N138: 1359.218666 | O138: 1414.653259 | P138: 1471.701749 | Q138: 1530.390049 | R138: 1590.743605 | S138: 1652.78744 | T138: 1716.546182 | U138: 1782.044094 | V138: 1849.305101 | W138: 1918.35281 | X138: 1989.210528 | Y138: 2061.901279
D139: Unplanned Replacement Risk | E139: =E134*$F$4 -> 65333.1575 | F139: =F134*$F$4 -> 68302.48953 | G139: 71366.40873 | H139: 74527.44535 | I139: 77787.94649 | J139: 81150.13607 | K139: 84616.14582 | L139: 88188.03399 | M139: 91867.79793 | N139: 95657.38297 | O139: 99558.68908 | P139: 103573.576 | Q139: 107703.8674 | R139: 111951.3541 | S139: 116317.7972 | T139: 120804.9297 | U139: 125414.4595 | V139: 130148.0701 | W139: 135007.423 | X139: 139994.1584 | Y139: 145109.8967
B140: This scenario involves the installation of an additional asset in parallel to increase redundancy (e.g. install a 3rd transformer in a 2-transformer station | D140: Unplanned Fault Risk | E140: =E135*$F$5 -> 1926.561918 | F140: =F135*$F$5 -> 2014.122389 | G140: 2104.472072 | H140: 2197.685579 | I140: 2293.832124 | J140: 2392.977285 | K140: 2495.183923 | L140: 2600.512733 | M140: 2709.022613 | N140: 2820.770927 | O140: 2935.813702 | P140: 3054.20578 | Q140: 3176.000936 | R140: 3301.251981 | S140: 3430.01084 | T140: 3562.328626 | U140: 3698.255693 | V140: 3837.841691 | W140: 3981.13561 | X140: 4128.18582 | Y140: 4279.040103
D141: Option Capital Cost | E141: =$F$10 -> 189052.5702 | F141: =$F$10 -> 189052.5702 | G141: 189052.5702 | H141: 189052.5702 | I141: 189052.5702 | J141: 189052.5702 | K141: 189052.5702 | L141: 189052.5702 | M141: 189052.5702 | N141: 189052.5702 | O141: 189052.5702 | P141: 189052.5702 | Q141: 189052.5702 | R141: 189052.5702 | S141: 189052.5702 | T141: 189052.5702 | U141: 189052.5702 | V141: 189052.5702 | W141: 189052.5702 | X141: 189052.5702 | Y141: 189052.5702
D142: Total Cost | E142: =SUM(E137:E141) -> 257375.9468 | F142: =SUM(F137:F141) -> 260567.1856 | G142: 263852.8405 | H142: 267254.4245 | I142: 270770.0186 | J142: 274420.771 | K142: 278224.8246 | L142: 282161.0722 | M142: 286202.2859 | N142: 290401.1077 | O142: 294788.2914 | P142: 299324.4875 | Q142: 304032.3218 | R142: 308917.8474 | S142: 313994.4601 | T142: 319272.4584 | U142: 324768.5448 | V142: 330499.1984 | W142: 336480.6897 | X142: 342723.0307 | Y142: 349237.2286
B144: Scenario selected | C144: Setting | D144: Model Output | E144: 2019 | F144: 2020 | G144: 2021 | H144: 2022 | I144: 2023 | J144: 2024 | K144: 2025 | L144: 2026 | M144: 2027 | N144: 2028 | O144: 2029 | P144: 2030 | Q144: 2031 | R144: 2032 | S144: 2033 | T144: 2034 | U144: 2035 | V144: 2036 | W144: 2037 | X144: 2038 | Y144: 2039
D146: Status Quo | E146: =E44 -> 104551.9396 | F146: 111639.423 | G146: 119070.7847 | H146: 130795.3828 | I146: 143617.5382 | J146: 163623.2155 | K146: 194638.1913 | L146: 231955.5811 | M146: 263655.0888 | N146: 308786.7345 | O146: 371903.3199 | P146: 441745.7993 | Q146: 525460.0456 | R146: 623924.1378 | S146: 740863.9687 | T146: 878193.6095 | U146: 1040922.671 | V146: 1234018.514 | W146: 1460739.243 | X146: 1719467.876 | Y146: 2011986.603
D147: Spare/Mobile Asset | E147: =E58 -> 98896.56346 | F147: 104141.574 | G147: 109620.4426 | H147: 117441.0038 | I147: 125907.4551 | J147: 138279.8986 | K147: 156628.8148 | L147: 178459.0994 | M147: 197379.4465 | N147: 223640.5184 | O147: 259741.4209 | P147: 299651.4048 | Q147: 347242.4041 | R147: 403026.4129 | S147: 469019.6976 | T147: 546129.8796 | U147: 637076.5271 | V147: 744719.2036 | W147: 870572.2344 | X147: 1013770.6 | Y147: 1175710.858
D148: Online Monitor | E148: =E72 -> 134861.5753 | F148: 141050.8979 | G148: 147523.2708 | H148: 157399.391 | I148: 168144.4062 | J148: 184576.6457 | K148: 209715.5749 | L148: 239843.4662 | M148: 265507.3745 | N148: 301793.0208 | O148: 352265.2349 | P148: 408015.3959 | Q148: 474685.4913 | R148: 552951.69 | S148: 645742.0175 | T148: 754550.1032 | U148: 883312.4699 | V148: 1035920.507 | W148: 1214920.519 | X148: 1418983.551 | Y148: 1649458.737
D149: Spare and Online monitor | E149: =E86 -> 132823.8481 | F149: 137575.2271 | G149: 142525.1864 | H149: 149331.7509 | I149: 156654.846 | J149: 167061.8954 | K149: 182175.4482 | L149: 200031.6376 | M149: 215590.4033 | N149: 236919.1305 | O149: 265956.1745 | P149: 297955.415 | Q149: 335947.558 | R149: 380317.7368 | S149: 432629.7055 | T149: 493573.7992 | U149: 565257.0734 | V149: 649887.208 | W149: 748615.7128 | X149: 860720.3103 | Y149: 987245.6078
D150: Replace 1 asset | E150: =E100 -> 120973.5028 | F150: 122824.3716 | G150: 124755.2865 | H150: 126843.8791 | I150: 129067.4209 | J150: 131589.97 | K150: 134591.3121 | L150: 138026.1747 | M150: 141524.2166 | N150: 145758.8716 | O150: 151028.0982 | P150: 156985.7007 | Q150: 164031.0268 | R150: 172324.8203 | S150: 182218.0307 | T150: 194092.9885 | U150: 208479.3434 | V150: 225869.7853 | W150: 246995.2461 | X150: 272117.394 | Y150: 301433.1513
D151: Replace 2 Assets - same type | E151: =E114 -> 173395.374 | F151: 173681.9675 | G151: 174037.9724 | H151: 174499.7842 | I151: 175077.2695 | J151: 175879.2651 | K151: 177069.7928 | L151: 178692.4169 | M151: 180513.6302 | N151: 183088.1088 | O151: 186783.2746 | P151: 191401.8971 | Q151: 197396.5108 | R151: 205035.4152 | S151: 214772.2231 | T151: 227025.5786 | U151: 242467.474 | V151: 261870.5032 | W151: 285980.5583 | X151: 315184.8385 | Y151: 350132.2168
D152: Replace 2 Assets - Different Type | E152: =E128 -> 176777.3737 | F152: 177010.2467 | G152: 177279.8374 | H152: 177596.3208 | I152: 177964.0713 | J152: 178407.9647 | K152: 178964.3752 | L152: 179644.5487 | M152: 180401.6789 | N152: 181354.1413 | O152: 182581.657 | P152: 184045.7052 | Q152: 185847.9581 | R152: 188051.9025 | S152: 190769.6095 | T152: 194133.4348 | U152: 198322.9994 | V152: 203520.9666 | W152: 209993.4477 | X152: 217892.0055 | Y152: 227342.8872
D153: Additional Asset | E153: =E142 -> 257375.9468 | F153: 260567.1856 | G153: 263852.8405 | H153: 267254.4245 | I153: 270770.0186 | J153: 274420.771 | K153: 278224.8246 | L153: 282161.0722 | M153: 286202.2859 | N153: 290401.1077 | O153: 294788.2914 | P153: 299324.4875 | Q153: 304032.3218 | R153: 308917.8474 | S153: 313994.4601 | T153: 319272.4584 | U153: 324768.5448 | V153: 330499.1984 | W153: 336480.6897 | X153: 342723.0307 | Y153: 349237.2286
D154: Min Cost | E154: =MIN(E146:E153) -> 98896.56346 | F154: =MIN(F146:F153) -> 104141.574 | G154: =MIN(G146:G153) -> 109620.4426 | H154: 117441.0038 | I154: 125907.4551 | J154: 131589.97 | K154: 134591.3121 | L154: 138026.1747 | M154: 141524.2166 | N154: 145758.8716 | O154: 151028.0982 | P154: 156985.7007 | Q154: 164031.0268 | R154: 172324.8203 | S154: 182218.0307 | T154: 194092.9885 | U154: 198322.9994 | V154: 203520.9666 | W154: 209993.4477 | X154: 217892.0055 | Y154: 227342.8872
D155: Preferred option | E155: =INDEX($D$146:$D$153,MATCH(E154,E$146:E$153,0)) -> Spare/Mobile Asset | F155: =INDEX($D$146:$D$153,MATCH(F154,F$146:F$153,0)) -> Spare/Mobile Asset | G155: =INDEX($D$146:$D$153,MATCH(G154,G$146:G$153,0)) -> Spare/Mobile Asset | H155: Spare/Mobile Asset | I155: Spare/Mobile Asset | J155: Replace 1 asset | K155: Replace 1 asset | L155: Replace 1 asset | M155: Replace 1 asset | N155: Replace 1 asset | O155: Replace 1 asset | P155: Replace 1 asset | Q155: Replace 1 asset | R155: Replace 1 asset | S155: Replace 1 asset | T155: Replace 1 asset | U155: Replace 2 Assets - Different Type | V155: Replace 2 Assets - Different Type | W155: Replace 2 Assets - Different Type | X155: Replace 2 Assets - Different Type | Y155: Replace 2 Assets - Different Type

Sheet Workings >

Sheet Engine
A1: Substation | C1: =ZSS -> MC | R1: Station Load and Capacity Data | Z1: Asset Probability Data | AK1: =BETA_NIL*SENSITIVITY_BETA -> 0.05 | AL1: =IF(ISREPLACE2SAME, IF(AssetType="Transformer", BETA_6MONTH, BETA_4MONTH), IF(ISREPLACE2DIFF, BETA_NIL, IF(ISSPAREREADY, BETA_1MONTH, IF(AssetType="Transformer", BETA_6MONTH, BETA_4MONTH))))*SENSITIVITY_BETA -> 0.24
A2: BAse Max | C2: =MAX(G34:G3336) -> 0 | D2: Risk Table | N2: Year | Q2: Year | R2: Base | S2: Peak Load | T2: Base Load Growth | U2: Peak Load Growth | V2: N Rating | W2: N-1 Cyclic | X2: N-1 2Hr | Y2: N-2 Cyclic | Z2: N-3 Cyclic | AA2: N-4 Cyclic | AB2: Load Transfers | AC2: PoF (Tx1) | AD2: PoF (Tx2) | AE2: PoF (Tx3) | AF2: PoF (Tx4) | AG2: # of Tx | AH2: λ (Annual failure rate per asset | AI2: Age (Tx1) | AJ2: Age (Tx2) | AK2: Age (Tx3) | AL2: Age (Tx4) | AM2: B12 | AN2: B23 | AO2: B13 | AP2: B14 | AQ2: B24 | AR2: B34 | AS2: Q1 | AT2: Q2 | AU2: Q3 | AV2: Q4 | AW2: PoF (1 Path) | AX2: PoF (2 Path) | AY2: PoF (3 Path) | AZ2: PoF (4 Path) | BA2: PoF (Minor Fault) | BB2: PoF(Major Fault)
D3: Year | E3: N Risk | F3: 1x Failure | G3: 2x Failure | H3: 3x Failure | I3: 4x Failure | J3: Minor Fault | K3: Total kWh | L3: Feeder Fault | N3: 2017 | Q3: 2017 | R3: =MAX($G$34:$G$3336) -> 0 | S3: =MAX($G$34:$G$3336) -> 0 | V3: =V4 -> 82.99431818 | W3: 55.32954545 | X3: 59.91136364 | Y3: 27.66477273 | Z3: 0 | AA3: 0 | AW3: =AW4 -> 0.009680286224 | AX3: =AX4 -> 0.00129423827 | AY3: =AY4 -> 1.277919113e-05 | AZ3: =AZ4 -> FALSE | BC3: Year | BD3: N-1 Rating | BE3: N-2 Rating | BF3: Load at Risk N-2 | BG3: Hours 2x Failure | BH3: Energy at risk N-2 | BI3: EUSE (all)
D4: 2018 | E4: =SUMIFS($T$37:$T$3336,$A$37:$A$3336,$D4) -> 0 | F4: =SUMIFS($U$37:$U$3336,$A$37:$A$3336,$D4) -> 0 | G4: =SUMIFS($V$37:$V$3336,$A$37:$A$3336,$D4) -> 0 | H4: =SUMIFS($W$37:$W$3336,$A$37:$A$3336,$D4) -> 111.8763128 | I4: =SUMIFS($X$37:$X$3336,$A$37:$A$3336,$D4) -> 0 | J4: =SUMIFS($Y$37:$Y$3336,$A$37:$A$3336,$D4) -> 0 | K4: =(SUM(E4:I4,L4)) -> 111.8763128 | L4: =HLOOKUP(D4,Assets!$E$21:$AA$30,10,FALSE) -> 0 | N4: 2018 | Q4: 2018 | R4: =S4 -> 53.29442211 | S4: =Load!K6*SENSITIVITY_FORECAST_FACTOR -> 53.29442211 | T4: =R4/$C$2-1 ->  | U4: =S4/($C$2)-1 ->  | V4: =HLOOKUP($Q4,Assets!$E$2:$AA$18,11,FALSE) -> 82.99431818 | W4: =HLOOKUP($Q4,Assets!$E$2:$AA$18,14,FALSE) -> 55.32954545 | X4: =HLOOKUP($Q4,Assets!$E$2:$AA$18,13,FALSE) -> 59.91136364 | Y4: =HLOOKUP($Q4,Assets!$E$2:$AA$18,15,FALSE) -> 27.66477273 | Z4: =HLOOKUP($Q4,Assets!$E$2:$AA$18,16,FALSE) -> 0 | AA4: =HLOOKUP($Q4,Assets!$E$2:$AA$18,17,FALSE) -> 0 | AB4: =IF($AB$30="Yes",VLOOKUP(Engine!Q4,Load!$A$6:$P$29,16,FALSE),0)+NN_LOAD_TRANSFER -> 18.67635319 | AC4: =HLOOKUP($Q4, Assets!$E$2:$AA$6,2,FALSE) -> 0.01100314847 | AD4: =HLOOKUP($Q4, Assets!$E$2:$AA$6,3,FALSE) -> 0.01100314847 | AE4: =HLOOKUP($Q4, Assets!$E$2:$AA$6,4,FALSE) -> 0.0004144679164 | AF4: =HLOOKUP($Q4, Assets!$E$2:$AA$6,5,FALSE) -> TRUE | AG4: =COUNTIF(AC4:AF4, "<>"&TRUE) -> 3 | AH4: =(AC4*AD4*AE4*AF4)^(1/AG4)*SENSITIVITY_PoF_FACTOR*IF(ISPROBABILITYREDUCED,0.8,1) -> 0.003688430643 | AI4: =HLOOKUP($Q4, Assets!$E$2:$AA$10,6,FALSE) -> 1958 | AJ4: =HLOOKUP($Q4, Assets!$E$2:$AA$10,7,FALSE) -> 1958 | AK4: =HLOOKUP($Q4, Assets!$E$2:$AA$10,8,FALSE) -> 2001 | AL4: =HLOOKUP($Q4, Assets!$E$2:$AA$10,9,FALSE) -> 9999 | AM4: =IF(OR(AI4=9999,AJ4=9999), TRUE, IFERROR(IF(ABS(AI4-AJ4)>1, $AK$1,$AL$1),0)) -> 0.24 | AN4: =IF(OR(AJ4=9999,AK4=9999), TRUE, IFERROR(IF(ABS(AJ4-AK4)>1, $AK$1,$AL$1),0)) -> 0.05 | AO4: =IF(OR(AI4=9999,AK4=9999), TRUE, IFERROR(IF(ABS(AI4-AK4)>1, $AK$1,$AL$1),0)) -> 0.05 | AP4: =IF(OR(AI4=9999,AL4=9999), TRUE, IFERROR(IF(ABS(AI4-AL4)>1, $AK$1,$AL$1),0)) -> TRUE | AQ4: =IF(OR(AJ4=9999,AL4=9999), TRUE, IFERROR(IF(ABS(AJ4-AL4)>1, $AK$1,$AL$1),0)) -> TRUE | AR4: =IF(OR(AK4=9999,AL4=9999), TRUE, IFERROR(IF(ABS(AK4-AL4)>1, $AK$1,$AL$1),0)) -> TRUE | AS4: =IF(AG4=1,AH4,(1-MAX(AM4:AR4))*AH4) -> 0.002803207289 | AT4: =IF(AG4=1,0,IF(AG4=2,MAX(AM4:AR4)*AH4,IF(AG4=3,0.5*MAX(AM4:AR4)*(1-$AK$1)*AH4, IF(AG4=4,0.33*MAX(AM4:AR4)*$AK$1*(1-$AK$1)*AH4,FALSE)))) -> 0.0004204810933 | AU4: =IF(AG4=1,FALSE,IF(AG4=2,FALSE,IF(AG4=3,MAX(AN4:AS4)*$AK$1*AH4,IF(AG4=4,0.33*MAX(AN4:AS4)*$AK$1*(1-$AK$1)*AH4,FALSE)))) -> 9.221076609e-06 | AV4: =IF(AG4=4,MAX(AM4:AR4)*$AK$1*$AK$1*AH4,FALSE) -> FALSE | AW4: =IF(AG4=1,AH4,IF(AG4=2,2*AS4+AT4,IF(AG4=3,3*AS4+3*AT4+AU4,IF(AG4=4,4*AS4+6*AT4+4*AU4+AV4)))) -> 0.009680286224 | AX4: =IF(AG4=1,FALSE,IF(AG4=2,AS4^2+AT4,IF(AG4=3,3*AS4^2+3*AT4+AU4,IF(AG4=4,6*AS4^2+6*AT4+4*AU4+AV4)))) -> 0.00129423827 | AY4: =IF(AG4=3,AS4^3+3*AS4*AT4+AU4,IF(AG4=4,4*AS4^3+12*AS4*AT4+3*AT4^2+4*AU4+AV4,FALSE)) -> 1.277919113e-05 | AZ4: =IF(AG4=4,AS4^4+3*AT4^2+4*AS4*AU4+AV4+6*AS4^2*AT4,FALSE) -> FALSE | BA4: =(IF(AC4<>TRUE,VLOOKUP(AC4,MAJORMINORPOF,2,FALSE),0)+IF(AD4<>TRUE,VLOOKUP(AD4,MAJORMINORPOF,2,FALSE),0)+IF(AE4<>TRUE,VLOOKUP(AE4,MAJORMINORPOF,2,FALSE),0)+IF(AF4<>TRUE,VLOOKUP(AF4,MAJORMINORPOF,2,FALSE),0)) -> 0.009208528427 | BB4: =SUM(AC4:AF4) -> 0.02242076486 | BC4: =D4 -> 2018 | BD4: =W4 -> 55.32954545 | BE4: =X4 -> 59.91136364 | BF4: =S4-Y4 -> 25.62964939 | BG4: =COUNTIF((OFFSET(Origin,$P4,19):OFFSET(Origin,$P5-1,19)),">0") ->  | BH4: =SUM(OFFSET(Origin,$P4,19):OFFSET(Origin,$P5-1,19)) ->  | BI4: =SUM(E4:I4,L4) -> 111.8763128
D5: 2019 | E5: 0 | F5: 0 | G5: =SUMIFS($V$37:$V$3336,$A$37:$A$3336,$D5) -> 0.4785425505 | H5: 316.2871207 | I5: 0 | J5: 0 | K5: =(SUM(E5:I5,L5)) -> 316.7656633 | L5: =HLOOKUP(D5,Assets!$E$21:$AA$30,10,FALSE) -> 0 | N5: 2019 | Q5: 2019 | R5: =S5 -> 57.88937371 | S5: =Load!K7*SENSITIVITY_FORECAST_FACTOR -> 57.88937371 | T5: =R5/$C$2-1 ->  | U5: =S5/($C$2)-1 ->  | V5: =HLOOKUP($Q5,Assets!$E$2:$AA$18,11,FALSE) -> 82.99431818 | W5: =HLOOKUP($Q5,Assets!$E$2:$AA$18,14,FALSE) -> 55.32954545 | X5: =HLOOKUP($Q5,Assets!$E$2:$AA$18,13,FALSE) -> 59.91136364 | Y5: =HLOOKUP($Q5,Assets!$E$2:$AA$18,15,FALSE) -> 27.66477273 | Z5: =HLOOKUP($Q5,Assets!$E$2:$AA$18,16,FALSE) -> 0 | AA5: =HLOOKUP($Q5,Assets!$E$2:$AA$18,17,FALSE) -> 0 | AB5: =IF($AB$30="Yes",VLOOKUP(Engine!Q5,Load!$A$6:$P$29,16,FALSE),0)+NN_LOAD_TRANSFER -> 18.47050938 | AC5: =HLOOKUP($Q5, Assets!$E$2:$AA$6,2,FALSE) -> 0.01148633011 | AD5: =HLOOKUP($Q5, Assets!$E$2:$AA$6,3,FALSE) -> 0.01148633011 | AE5: =HLOOKUP($Q5, Assets!$E$2:$AA$6,4,FALSE) -> 0.0004808750401 | AF5: =HLOOKUP($Q5, Assets!$E$2:$AA$6,5,FALSE) -> TRUE | AG5: =COUNTIF(AC5:AF5, "<>"&TRUE) -> 3 | AH5: =(AC5*AD5*AE5*AF5)^(1/AG5)*SENSITIVITY_PoF_FACTOR*IF(ISPROBABILITYREDUCED,0.8,1) -> 0.003988396019 | AI5: =HLOOKUP($Q5, Assets!$E$2:$AA$10,6,FALSE) -> 1958 | AJ5: =HLOOKUP($Q5, Assets!$E$2:$AA$10,7,FALSE) -> 1958 | AK5: =HLOOKUP($Q5, Assets!$E$2:$AA$10,8,FALSE) -> 2001 | AL5: =HLOOKUP($Q5, Assets!$E$2:$AA$10,9,FALSE) -> 9999 | AM5: =IF(OR(AI5=9999,AJ5=9999), TRUE, IFERROR(IF(ABS(AI5-AJ5)>1, $AK$1,$AL$1),0)) -> 0.24 | AN5: 0.05 | AO5: =IF(OR(AI5=9999,AK5=9999), TRUE, IFERROR(IF(ABS(AI5-AK5)>1, $AK$1,$AL$1),0)) -> 0.05 | AP5: TRUE | AQ5: TRUE | AR5: TRUE | AS5: =IF(AG5=1,AH5,(1-MAX(AM5:AR5))*AH5) -> 0.003031180974 | AT5: =IF(AG5=1,0,IF(AG5=2,MAX(AM5:AR5)*AH5,IF(AG5=3,0.5*MAX(AM5:AR5)*(1-$AK$1)*AH5, IF(AG5=4,0.33*MAX(AM5:AR5)*$AK$1*(1-$AK$1)*AH5,FALSE)))) -> 0.0004546771461 | AU5: =AT5*$AK$1 -> 2.273385731e-05 | AV5: =IF(AG5=4,MAX(AM5:AR5)*$AK$1*$AK$1*AH5,FALSE) -> FALSE | AW5: =IF(AG5=1,AH5,IF(AG5=2,2*AS5+AT5,IF(AG5=3,3*AS5+3*AT5+AU5,IF(AG5=4,4*AS5+6*AT5+4*AU5+AV5)))) -> 0.01048030822 | AX5: =IF(AG5=1,FALSE,IF(AG5=2,AS5^2+AT5,IF(AG5=3,3*AS5^2+3*AT5+AU5,IF(AG5=4,6*AS5^2+6*AT5+4*AU5+AV5)))) -> 0.00141432947 | AY5: =IF(AG5=3,AS5^3+3*AS5*AT5+AU5,IF(AG5=4,4*AS5^3+12*AS5*AT5+3*AT5^2+4*AU5+AV5,FALSE)) -> 2.689633412e-05 | AZ5: =IF(AG5=4,AS5^4+3*AT5^2+4*AS5*AU5+AV5+6*AS5^2*AT5,FALSE) -> FALSE | BA5: =(IF(AC5<>TRUE,VLOOKUP(AC5,MAJORMINORPOF,2,FALSE),0)+IF(AD5<>TRUE,VLOOKUP(AD5,MAJORMINORPOF,2,FALSE),0)+IF(AE5<>TRUE,VLOOKUP(AE5,MAJORMINORPOF,2,FALSE),0)+IF(AF5<>TRUE,VLOOKUP(AF5,MAJORMINORPOF,2,FALSE),0)) -> 0.009632701978 | BB5: =SUM(AC5:AF5) -> 0.02345353525 | BC5: =D5 -> 2019 | BD5: =W5 -> 55.32954545 | BE5: =X5 -> 59.91136364 | BF5: 30.22460098 | BG5: =COUNTIF((OFFSET(Origin,$P5,19):OFFSET(Origin,$P6-1,19)),">0") ->  | BH5: =SUM(OFFSET(Origin,$P5,19):OFFSET(Origin,$P6-1,19)) ->  | BI5: =SUM(E5:I5,L5) -> 316.7656633
D6: 2020 | E6: 0 | F6: 0 | G6: =SUMIFS($V$37:$V$3336,$A$37:$A$3336,$D6) -> 1.439691528 | H6: 348.9765694 | I6: 0 | J6: 0 | K6: =(SUM(E6:I6,L6)) -> 350.4162609 | L6: =HLOOKUP(D6,Assets!$E$21:$AA$30,10,FALSE) -> 0 | N6: 2020 | Q6: 2020 | R6: =S6 -> 57.57484029 | S6: =Load!K8*SENSITIVITY_FORECAST_FACTOR -> 57.57484029 | V6: =HLOOKUP($Q6,Assets!$E$2:$AA$18,11,FALSE) -> 82.99431818 | W6: =HLOOKUP($Q6,Assets!$E$2:$AA$18,14,FALSE) -> 55.32954545 | X6: =HLOOKUP($Q6,Assets!$E$2:$AA$18,13,FALSE) -> 59.91136364 | Y6: =HLOOKUP($Q6,Assets!$E$2:$AA$18,15,FALSE) -> 27.66477273 | Z6: =HLOOKUP($Q6,Assets!$E$2:$AA$18,16,FALSE) -> 0 | AA6: =HLOOKUP($Q6,Assets!$E$2:$AA$18,17,FALSE) -> 0 | AB6: =IF($AB$30="Yes",VLOOKUP(Engine!Q6,Load!$A$6:$P$29,16,FALSE),0)+NN_LOAD_TRANSFER -> 18.26693431 | AC6: =HLOOKUP($Q6, Assets!$E$2:$AA$6,2,FALSE) -> 0.01198235314 | AD6: =HLOOKUP($Q6, Assets!$E$2:$AA$6,3,FALSE) -> 0.01198235314 | AE6: =HLOOKUP($Q6, Assets!$E$2:$AA$6,4,FALSE) -> 0.0005534559806 | AF6: =HLOOKUP($Q6, Assets!$E$2:$AA$6,5,FALSE) -> TRUE | AG6: 3 | AH6: 0.004299214412 | AI6: =HLOOKUP($Q6, Assets!$E$2:$AA$10,6,FALSE) -> 1958 | AJ6: =HLOOKUP($Q6, Assets!$E$2:$AA$10,7,FALSE) -> 1958 | AK6: =HLOOKUP($Q6, Assets!$E$2:$AA$10,8,FALSE) -> 2001 | AL6: =HLOOKUP($Q6, Assets!$E$2:$AA$10,9,FALSE) -> 9999 | AM6: 0.24 | AN6: 0.05 | AO6: 0.05 | AP6: TRUE | AQ6: TRUE | AR6: TRUE | AS6: =IF(AG6=1,AH6,(1-MAX(AM6:AR6))*AH6) -> 0.003267402953 | AT6: 0.0004901104429 | AU6: 2.450552215e-05 | AV6: FALSE | AW6: 0.01129704571 | AX6: 0.001526864617 | AY6: 2.934456961e-05 | AZ6: FALSE | BA6: 0.0100699595 | BB6: 0.02451816227 | BC6: 2020 | BD6: 55.32954545 | BE6: 59.91136364 | BF6: 29.91006756 | BG6: =COUNTIF((OFFSET(Origin,$P6,19):OFFSET(Origin,$P7-1,19)),">0") ->  | BH6: =SUM(OFFSET(Origin,$P6,19):OFFSET(Origin,$P7-1,19)) ->  | BI6: 350.4162609
D7: 2021 | E7: 0 | F7: 0 | G7: 0.6936611974 | H7: 381.995736 | I7: 0 | J7: 0 | K7: =(SUM(E7:I7,L7)) -> 382.6893972 | L7: =HLOOKUP(D7,Assets!$E$21:$AA$30,10,FALSE) -> 0 | N7: 2021 | Q7: 2021 | R7: 57.36732017 | S7: =Load!K9*SENSITIVITY_FORECAST_FACTOR -> 57.36732017 | V7: =HLOOKUP($Q7,Assets!$E$2:$AA$18,11,FALSE) -> 82.99431818 | W7: =HLOOKUP($Q7,Assets!$E$2:$AA$18,14,FALSE) -> 55.32954545 | X7: =HLOOKUP($Q7,Assets!$E$2:$AA$18,13,FALSE) -> 59.91136364 | Y7: =HLOOKUP($Q7,Assets!$E$2:$AA$18,15,FALSE) -> 27.66477273 | Z7: =HLOOKUP($Q7,Assets!$E$2:$AA$18,16,FALSE) -> 0 | AA7: =HLOOKUP($Q7,Assets!$E$2:$AA$18,17,FALSE) -> 0 | AB7: =IF($AB$30="Yes",VLOOKUP(Engine!Q7,Load!$A$6:$P$29,16,FALSE),0)+NN_LOAD_TRANSFER -> 18.06560296 | AC7: =HLOOKUP($Q7, Assets!$E$2:$AA$6,2,FALSE) -> 0.01249134349 | AD7: =HLOOKUP($Q7, Assets!$E$2:$AA$6,3,FALSE) -> 0.01249134349 | AE7: =HLOOKUP($Q7, Assets!$E$2:$AA$6,4,FALSE) -> 0.0006324143429 | AF7: =HLOOKUP($Q7, Assets!$E$2:$AA$6,5,FALSE) -> TRUE | AG7: =COUNTIF(AC7:AF7, "<>"&TRUE) -> 3 | AH7: 0.004621042941 | AI7: =HLOOKUP($Q7, Assets!$E$2:$AA$10,6,FALSE) -> 1958 | AJ7: =HLOOKUP($Q7, Assets!$E$2:$AA$10,7,FALSE) -> 1958 | AK7: =HLOOKUP($Q7, Assets!$E$2:$AA$10,8,FALSE) -> 2001 | AL7: =HLOOKUP($Q7, Assets!$E$2:$AA$10,9,FALSE) -> 9999 | AM7: 0.24 | AN7: 0.05 | AO7: =IF(OR(AI7=9999,AK7=9999), TRUE, IFERROR(IF(ABS(AI7-AK7)>1, $AK$1,$AL$1),0)) -> 0.05 | AP7: =IF(OR(AI7=9999,AL7=9999), TRUE, IFERROR(IF(ABS(AI7-AL7)>1, $AK$1,$AL$1),0)) -> TRUE | AQ7: =IF(OR(AJ7=9999,AL7=9999), TRUE, IFERROR(IF(ABS(AJ7-AL7)>1, $AK$1,$AL$1),0)) -> TRUE | AR7: TRUE | AS7: 0.003511992635 | AT7: 0.0005267988953 | AU7: 2.633994477e-05 | AV7: FALSE | AW7: 0.01214271454 | AX7: 0.001643738908 | AY7: 3.193360353e-05 | AZ7: FALSE | BA7: 0.01052048804 | BB7: 0.02561510132 | BC7: 2021 | BD7: 55.32954545 | BE7: 59.91136364 | BF7: 29.70254745 | BG7: =COUNTIF((OFFSET(Origin,$P7,19):OFFSET(Origin,$P8-1,19)),">0") ->  | BH7: =SUM(OFFSET(Origin,$P7,19):OFFSET(Origin,$P8-1,19)) ->  | BI7: 382.6893972
D8: 2022 | E8: 0 | F8: 0 | G8: 2.633007366 | H8: 435.384707 | I8: 0 | J8: 0 | K8: 438.0177144 | L8: =HLOOKUP(D8,Assets!$E$21:$AA$30,10,FALSE) -> 0 | N8: 2022 | Q8: 2022 | R8: 57.53536344 | S8: =Load!K10*SENSITIVITY_FORECAST_FACTOR -> 57.53536344 | V8: =HLOOKUP($Q8,Assets!$E$2:$AA$18,11,FALSE) -> 82.99431818 | W8: =HLOOKUP($Q8,Assets!$E$2:$AA$18,14,FALSE) -> 55.32954545 | X8: =HLOOKUP($Q8,Assets!$E$2:$AA$18,13,FALSE) -> 59.91136364 | Y8: =HLOOKUP($Q8,Assets!$E$2:$AA$18,15,FALSE) -> 27.66477273 | Z8: =HLOOKUP($Q8,Assets!$E$2:$AA$18,16,FALSE) -> 0 | AA8: =HLOOKUP($Q8,Assets!$E$2:$AA$18,17,FALSE) -> 0 | AB8: =IF($AB$30="Yes",VLOOKUP(Engine!Q8,Load!$A$6:$P$29,16,FALSE),0)+NN_LOAD_TRANSFER -> 17.86649061 | AC8: =HLOOKUP($Q8, Assets!$E$2:$AA$6,2,FALSE) -> 0.01301342623 | AD8: =HLOOKUP($Q8, Assets!$E$2:$AA$6,3,FALSE) -> 0.01301342623 | AE8: =HLOOKUP($Q8, Assets!$E$2:$AA$6,4,FALSE) -> 0.0007179494855 | AF8: =HLOOKUP($Q8, Assets!$E$2:$AA$6,5,FALSE) -> TRUE | AG8: =COUNTIF(AC8:AF8, "<>"&TRUE) -> 3 | AH8: 0.004954034948 | AI8: =HLOOKUP($Q8, Assets!$E$2:$AA$10,6,FALSE) -> 1958 | AJ8: =HLOOKUP($Q8, Assets!$E$2:$AA$10,7,FALSE) -> 1958 | AK8: =HLOOKUP($Q8, Assets!$E$2:$AA$10,8,FALSE) -> 2001 | AL8: =HLOOKUP($Q8, Assets!$E$2:$AA$10,9,FALSE) -> 9999 | AM8: 0.24 | AN8: 0.05 | AO8: =IF(OR(AI8=9999,AK8=9999), TRUE, IFERROR(IF(ABS(AI8-AK8)>1, $AK$1,$AL$1),0)) -> 0.05 | AP8: TRUE | AQ8: TRUE | AR8: TRUE | AS8: 0.00376506656 | AT8: 0.0005647599841 | AU8: 2.82379992e-05 | AV8: FALSE | AW8: 0.01301771763 | AX8: 0.00176504513 | AY8: 3.467044855e-05 | AZ8: FALSE | BA8: 0.01098447223 | BB8: 0.02674480195 | BC8: 2022 | BD8: 55.32954545 | BE8: 59.91136364 | BF8: 29.87059071 | BG8: =COUNTIF((OFFSET(Origin,$P8,19):OFFSET(Origin,$P9-1,19)),">0") ->  | BH8: =SUM(OFFSET(Origin,$P8,19):OFFSET(Origin,$P9-1,19)) ->  | BI8: 438.0177144
D9: 2023 | E9: 0 | F9: 0 | G9: 7.392017029 | H9: 495.8402567 | I9: 0 | J9: 0 | K9: 503.2322737 | L9: =HLOOKUP(D9,Assets!$E$21:$AA$30,10,FALSE) -> 0 | N9: 2023 | Q9: 2023 | R9: 58.35759353 | S9: =Load!K11*SENSITIVITY_FORECAST_FACTOR -> 58.35759353 | U9: =S9/($C$2)-1 ->  | V9: =HLOOKUP($Q9,Assets!$E$2:$AA$18,11,FALSE) -> 82.99431818 | W9: =HLOOKUP($Q9,Assets!$E$2:$AA$18,14,FALSE) -> 55.32954545 | X9: =HLOOKUP($Q9,Assets!$E$2:$AA$18,13,FALSE) -> 59.91136364 | Y9: =HLOOKUP($Q9,Assets!$E$2:$AA$18,15,FALSE) -> 27.66477273 | Z9: =HLOOKUP($Q9,Assets!$E$2:$AA$18,16,FALSE) -> 0 | AA9: =HLOOKUP($Q9,Assets!$E$2:$AA$18,17,FALSE) -> 0 | AB9: =IF($AB$30="Yes",VLOOKUP(Engine!Q9,Load!$A$6:$P$29,16,FALSE),0)+NN_LOAD_TRANSFER -> 17.66957281 | AC9: =HLOOKUP($Q9, Assets!$E$2:$AA$6,2,FALSE) -> 0.01354872567 | AD9: =HLOOKUP($Q9, Assets!$E$2:$AA$6,3,FALSE) -> 0.01354872567 | AE9: =HLOOKUP($Q9, Assets!$E$2:$AA$6,4,FALSE) -> 0.0008102568148 | AF9: =HLOOKUP($Q9, Assets!$E$2:$AA$6,5,FALSE) -> TRUE | AG9: 3 | AH9: 0.005298340486 | AI9: =HLOOKUP($Q9, Assets!$E$2:$AA$10,6,FALSE) -> 1958 | AJ9: =HLOOKUP($Q9, Assets!$E$2:$AA$10,7,FALSE) -> 1958 | AK9: =HLOOKUP($Q9, Assets!$E$2:$AA$10,8,FALSE) -> 2001 | AL9: =HLOOKUP($Q9, Assets!$E$2:$AA$10,9,FALSE) -> 9999 | AM9: 0.24 | AN9: 0.05 | AO9: 0.05 | AP9: TRUE | AQ9: TRUE | AR9: TRUE | AS9: 0.00402673877 | AT9: 0.0006040108154 | AU9: 3.020054077e-05 | AV9: FALSE | AW9: 0.0139224493 | AX9: 0.001890876862 | AY9: 3.756241413e-05 | AZ9: FALSE | BA9: 0.01146209442 | BB9: 0.02790770816 | BC9: 2023 | BD9: 55.32954545 | BE9: 59.91136364 | BF9: 30.6928208 | BG9: =COUNTIF((OFFSET(Origin,$P9,19):OFFSET(Origin,$P10-1,19)),">0") ->  | BH9: =SUM(OFFSET(Origin,$P9,19):OFFSET(Origin,$P10-1,19)) ->  | BI9: 503.2322737
D10: 2024 | E10: 0 | F10: 0 | G10: 18.90775195 | H10: 581.2559884 | I10: 0 | J10: 0 | K10: 600.1637404 | L10: =HLOOKUP(D10,Assets!$E$21:$AA$30,10,FALSE) -> 0 | N10: 2024 | Q10: 2024 | R10: 58.59997557 | S10: =Load!K12*SENSITIVITY_FORECAST_FACTOR -> 58.59997557 | U10: =S10/($C$2)-1 ->  | V10: =HLOOKUP($Q10,Assets!$E$2:$AA$18,11,FALSE) -> 82.99431818 | W10: =HLOOKUP($Q10,Assets!$E$2:$AA$18,14,FALSE) -> 55.32954545 | X10: =HLOOKUP($Q10,Assets!$E$2:$AA$18,13,FALSE) -> 59.91136364 | Y10: =HLOOKUP($Q10,Assets!$E$2:$AA$18,15,FALSE) -> 27.66477273 | Z10: =HLOOKUP($Q10,Assets!$E$2:$AA$18,16,FALSE) -> 0 | AA10: =HLOOKUP($Q10,Assets!$E$2:$AA$18,17,FALSE) -> 0 | AB10: =IF($AB$30="Yes",VLOOKUP(Engine!Q10,Load!$A$6:$P$29,16,FALSE),0)+NN_LOAD_TRANSFER -> 17.47482536 | AC10: =HLOOKUP($Q10, Assets!$E$2:$AA$6,2,FALSE) -> 0.01409736534 | AD10: =HLOOKUP($Q10, Assets!$E$2:$AA$6,3,FALSE) -> 0.01409736534 | AE10: =HLOOKUP($Q10, Assets!$E$2:$AA$6,4,FALSE) -> 0.0009095280471 | AF10: =HLOOKUP($Q10, Assets!$E$2:$AA$6,5,FALSE) -> TRUE | AG10: 3 | AH10: 0.005654106724 | AI10: =HLOOKUP($Q10, Assets!$E$2:$AA$10,6,FALSE) -> 1958 | AJ10: =HLOOKUP($Q10, Assets!$E$2:$AA$10,7,FALSE) -> 1958 | AK10: =HLOOKUP($Q10, Assets!$E$2:$AA$10,8,FALSE) -> 2001 | AL10: =HLOOKUP($Q10, Assets!$E$2:$AA$10,9,FALSE) -> 9999 | AM10: 0.24 | AN10: =IF(OR(AJ10=9999,AK10=9999), TRUE, IFERROR(IF(ABS(AJ10-AK10)>1, $AK$1,$AL$1),0)) -> 0.05 | AO10: 0.05 | AP10: TRUE | AQ10: TRUE | AR10: TRUE | AS10: 0.00429712111 | AT10: =IF(AG10=1,0,IF(AG10=2,MAX(AM10:AR10)*AH10,IF(AG10=3,0.5*MAX(AM10:AR10)*(1-$AK$1)*AH10, IF(AG10=4,0.33*MAX(AM10:AR10)*$AK$1*(1-$AK$1)*AH10,FALSE)))) -> 0.0006445681666 | AU10: 3.222840833e-05 | AV10: FALSE | AW10: 0.01485729624 | AX10: 0.002021328658 | AY10: 4.061711817e-05 | AZ10: FALSE | BA10: 0.01195353483 | BB10: 0.02910425872 | BC10: 2024 | BD10: 55.32954545 | BE10: 59.91136364 | BF10: 30.93520284 | BG10: =COUNTIF((OFFSET(Origin,$P10,19):OFFSET(Origin,$P11-1,19)),">0") ->  | BH10: =SUM(OFFSET(Origin,$P10,19):OFFSET(Origin,$P11-1,19)) ->  | BI10: =SUM(E10:I10,L10) -> 600.1637404
D11: 2025 | E11: 0 | F11: 0 | G11: 59.92830973 | H11: 697.4301789 | I11: 0 | J11: 0 | K11: 757.3584886 | L11: =HLOOKUP(D11,Assets!$E$21:$AA$30,10,FALSE) -> 0 | N11: 2025 | Q11: 2025 | R11: 59.35858585 | S11: =Load!K13*SENSITIVITY_FORECAST_FACTOR -> 59.35858585 | V11: =HLOOKUP($Q11,Assets!$E$2:$AA$18,11,FALSE) -> 82.99431818 | W11: =HLOOKUP($Q11,Assets!$E$2:$AA$18,14,FALSE) -> 55.32954545 | X11: =HLOOKUP($Q11,Assets!$E$2:$AA$18,13,FALSE) -> 59.91136364 | Y11: =HLOOKUP($Q11,Assets!$E$2:$AA$18,15,FALSE) -> 27.66477273 | Z11: =HLOOKUP($Q11,Assets!$E$2:$AA$18,16,FALSE) -> 0 | AA11: =HLOOKUP($Q11,Assets!$E$2:$AA$18,17,FALSE) -> 0 | AB11: =IF($AB$30="Yes",VLOOKUP(Engine!Q11,Load!$A$6:$P$29,16,FALSE),0)+NN_LOAD_TRANSFER -> 17.28222434 | AC11: =HLOOKUP($Q11, Assets!$E$2:$AA$6,2,FALSE) -> 0.01465946798 | AD11: =HLOOKUP($Q11, Assets!$E$2:$AA$6,3,FALSE) -> 0.01465946798 | AE11: =HLOOKUP($Q11, Assets!$E$2:$AA$6,4,FALSE) -> 0.001015951441 | AF11: =HLOOKUP($Q11, Assets!$E$2:$AA$6,5,FALSE) -> TRUE | AG11: 3 | AH11: 0.006021478266 | AI11: =HLOOKUP($Q11, Assets!$E$2:$AA$10,6,FALSE) -> 1958 | AJ11: =HLOOKUP($Q11, Assets!$E$2:$AA$10,7,FALSE) -> 1958 | AK11: =HLOOKUP($Q11, Assets!$E$2:$AA$10,8,FALSE) -> 2001 | AL11: =HLOOKUP($Q11, Assets!$E$2:$AA$10,9,FALSE) -> 9999 | AM11: 0.24 | AN11: 0.05 | AO11: 0.05 | AP11: TRUE | AQ11: TRUE | AR11: TRUE | AS11: 0.004576323482 | AT11: 0.0006864485223 | AU11: 3.432242611e-05 | AV11: FALSE | AW11: 0.01582263844 | AX11: 0.002156496203 | AY11: 4.384249833e-05 | AZ11: FALSE | BA11: 0.01245897161 | BB11: 0.03033488741 | BC11: 2025 | BD11: 55.32954545 | BE11: 59.91136364 | BF11: 31.69381312 | BG11: =COUNTIF((OFFSET(Origin,$P11,19):OFFSET(Origin,$P12-1,19)),">0") ->  | BH11: =SUM(OFFSET(Origin,$P11,19):OFFSET(Origin,$P12-1,19)) ->  | BI11: 757.3584886
D12: 2026 | E12: 0 | F12: 0 | G12: 146.9066779 | H12: 815.0168903 | I12: 0 | J12: 0 | K12: 961.9235682 | L12: =HLOOKUP(D12,Assets!$E$21:$AA$30,10,FALSE) -> 0 | N12: 2026 | Q12: 2026 | R12: 60.591056 | S12: =Load!K14*SENSITIVITY_FORECAST_FACTOR -> 60.591056 | V12: =HLOOKUP($Q12,Assets!$E$2:$AA$18,11,FALSE) -> 82.99431818 | W12: =HLOOKUP($Q12,Assets!$E$2:$AA$18,14,FALSE) -> 55.32954545 | X12: =HLOOKUP($Q12,Assets!$E$2:$AA$18,13,FALSE) -> 59.91136364 | Y12: =HLOOKUP($Q12,Assets!$E$2:$AA$18,15,FALSE) -> 27.66477273 | Z12: =HLOOKUP($Q12,Assets!$E$2:$AA$18,16,FALSE) -> 0 | AA12: =HLOOKUP($Q12,Assets!$E$2:$AA$18,17,FALSE) -> 0 | AB12: =IF($AB$30="Yes",VLOOKUP(Engine!Q12,Load!$A$6:$P$29,16,FALSE),0)+NN_LOAD_TRANSFER -> 17.0917461 | AC12: =HLOOKUP($Q12, Assets!$E$2:$AA$6,2,FALSE) -> 0.01523515564 | AD12: =HLOOKUP($Q12, Assets!$E$2:$AA$6,3,FALSE) -> 0.01523515564 | AE12: =HLOOKUP($Q12, Assets!$E$2:$AA$6,4,FALSE) -> 0.001129712008 | AF12: =HLOOKUP($Q12, Assets!$E$2:$AA$6,5,FALSE) -> TRUE | AG12: 3 | AH12: 0.006400597416 | AI12: =HLOOKUP($Q12, Assets!$E$2:$AA$10,6,FALSE) -> 1958 | AJ12: =HLOOKUP($Q12, Assets!$E$2:$AA$10,7,FALSE) -> 1958 | AK12: =HLOOKUP($Q12, Assets!$E$2:$AA$10,8,FALSE) -> 2001 | AL12: =HLOOKUP($Q12, Assets!$E$2:$AA$10,9,FALSE) -> 9999 | AM12: 0.24 | AN12: 0.05 | AO12: 0.05 | AP12: TRUE | AQ12: TRUE | AR12: TRUE | AS12: 0.004864454036 | AT12: 0.0007296681054 | AU12: 3.648340527e-05 | AV12: FALSE | AW12: 0.01681884983 | AX12: 0.002296476461 | AY12: 4.72468233e-05 | AZ12: FALSE | BA12: 0.01297858099 | BB12: 0.03160002329 | BC12: 2026 | BD12: 55.32954545 | BE12: 59.91136364 | BF12: 32.92628327 | BG12: =COUNTIF((OFFSET(Origin,$P12,19):OFFSET(Origin,$P13-1,19)),">0") ->  | BH12: =SUM(OFFSET(Origin,$P12,19):OFFSET(Origin,$P13-1,19)) ->  | BI12: 961.9235682
D13: 2027 | E13: 0 | F13: 0 | G13: 232.2894513 | H13: 919.7486971 | I13: 0 | J13: 0 | K13: 1152.038148 | L13: =HLOOKUP(D13,Assets!$E$21:$AA$30,10,FALSE) -> 0 | N13: 2027 | Q13: 2027 | R13: 61.44985138 | S13: =Load!K15*SENSITIVITY_FORECAST_FACTOR -> 61.44985138 | V13: =HLOOKUP($Q13,Assets!$E$2:$AA$18,11,FALSE) -> 82.99431818 | W13: =HLOOKUP($Q13,Assets!$E$2:$AA$18,14,FALSE) -> 55.32954545 | X13: =HLOOKUP($Q13,Assets!$E$2:$AA$18,13,FALSE) -> 59.91136364 | Y13: =HLOOKUP($Q13,Assets!$E$2:$AA$18,15,FALSE) -> 27.66477273 | Z13: =HLOOKUP($Q13,Assets!$E$2:$AA$18,16,FALSE) -> 0 | AA13: =HLOOKUP($Q13,Assets!$E$2:$AA$18,17,FALSE) -> 0 | AB13: =IF($AB$30="Yes",VLOOKUP(Engine!Q13,Load!$A$6:$P$29,16,FALSE),0)+NN_LOAD_TRANSFER -> 16.90336724 | AC13: =HLOOKUP($Q13, Assets!$E$2:$AA$6,2,FALSE) -> 0.01582454961 | AD13: =HLOOKUP($Q13, Assets!$E$2:$AA$6,3,FALSE) -> 0.01582454961 | AE13: =HLOOKUP($Q13, Assets!$E$2:$AA$6,4,FALSE) -> 0.001250991696 | AF13: =HLOOKUP($Q13, Assets!$E$2:$AA$6,5,FALSE) -> TRUE | AG13: 3 | AH13: 0.006791604402 | AI13: =HLOOKUP($Q13, Assets!$E$2:$AA$10,6,FALSE) -> 1958 | AJ13: =HLOOKUP($Q13, Assets!$E$2:$AA$10,7,FALSE) -> 1958 | AK13: =HLOOKUP($Q13, Assets!$E$2:$AA$10,8,FALSE) -> 2001 | AL13: =HLOOKUP($Q13, Assets!$E$2:$AA$10,9,FALSE) -> 9999 | AM13: 0.24 | AN13: 0.05 | AO13: 0.05 | AP13: TRUE | AQ13: TRUE | AR13: TRUE | AS13: 0.005161619345 | AT13: 0.0007742429018 | AU13: 3.871214509e-05 | AV13: FALSE | AW13: 0.01784629889 | AX13: 0.002441367793 | AY13: 5.083870399e-05 | AZ13: FALSE | BA13: 0.01351253734 | BB13: 0.03290009092 | BC13: 2027 | BD13: 55.32954545 | BE13: 59.91136364 | BF13: 33.78507866 | BG13: =COUNTIF((OFFSET(Origin,$P13,19):OFFSET(Origin,$P14-1,19)),">0") ->  | BH13: =SUM(OFFSET(Origin,$P13,19):OFFSET(Origin,$P14-1,19)) ->  | BI13: 1152.038148
D14: 2028 | E14: 0 | F14: 0 | G14: 450.4027285 | H14: 1045.270432 | I14: 0 | J14: 0 | K14: 1495.673161 | L14: =HLOOKUP(D14,Assets!$E$21:$AA$30,10,FALSE) -> 0 | N14: 2028 | Q14: 2028 | R14: 61.69367987 | S14: =Load!K16*SENSITIVITY_FORECAST_FACTOR -> 61.69367987 | V14: =HLOOKUP($Q14,Assets!$E$2:$AA$18,11,FALSE) -> 82.99431818 | W14: =HLOOKUP($Q14,Assets!$E$2:$AA$18,14,FALSE) -> 55.32954545 | X14: =HLOOKUP($Q14,Assets!$E$2:$AA$18,13,FALSE) -> 59.91136364 | Y14: =HLOOKUP($Q14,Assets!$E$2:$AA$18,15,FALSE) -> 27.66477273 | Z14: =HLOOKUP($Q14,Assets!$E$2:$AA$18,16,FALSE) -> 0 | AA14: =HLOOKUP($Q14,Assets!$E$2:$AA$18,17,FALSE) -> 0 | AB14: =IF($AB$30="Yes",VLOOKUP(Engine!Q14,Load!$A$6:$P$29,16,FALSE),0)+NN_LOAD_TRANSFER -> 16.71706462 | AC14: =HLOOKUP($Q14, Assets!$E$2:$AA$6,2,FALSE) -> 0.01642777047 | AD14: =HLOOKUP($Q14, Assets!$E$2:$AA$6,3,FALSE) -> 0.01642777047 | AE14: =HLOOKUP($Q14, Assets!$E$2:$AA$6,4,FALSE) -> 0.001379969568 | AF14: =HLOOKUP($Q14, Assets!$E$2:$AA$6,5,FALSE) -> TRUE | AG14: 3 | AH14: 0.007194637559 | AI14: =HLOOKUP($Q14, Assets!$E$2:$AA$10,6,FALSE) -> 1958 | AJ14: =HLOOKUP($Q14, Assets!$E$2:$AA$10,7,FALSE) -> 1958 | AK14: =HLOOKUP($Q14, Assets!$E$2:$AA$10,8,FALSE) -> 2001 | AL14: =HLOOKUP($Q14, Assets!$E$2:$AA$10,9,FALSE) -> 9999 | AM14: 0.24 | AN14: 0.05 | AO14: 0.05 | AP14: TRUE | AQ14: TRUE | AR14: TRUE | AS14: 0.005467924545 | AT14: 0.0008201886817 | AU14: 4.100943409e-05 | AV14: FALSE | AW14: 0.01890534911 | AX14: 0.002591270076 | AY14: 5.462710466e-05 | AZ14: FALSE | BA14: 0.01406101325 | BB14: 0.03423551051 | BC14: 2028 | BD14: 55.32954545 | BE14: 59.91136364 | BF14: 34.02890714 | BG14: =COUNTIF((OFFSET(Origin,$P14,19):OFFSET(Origin,$P15-1,19)),">0") ->  | BH14: =SUM(OFFSET(Origin,$P14,19):OFFSET(Origin,$P15-1,19)) ->  | BI14: 1495.673161
D15: 2029 | E15: 0 | F15: 0 | G15: 828.7807912 | H15: 1213.546872 | I15: 0 | J15: 0 | K15: 2042.327663 | L15: =HLOOKUP(D15,Assets!$E$21:$AA$30,10,FALSE) -> 0 | N15: 2029 | Q15: 2029 | R15: 63.47871218 | S15: =Load!K17*SENSITIVITY_FORECAST_FACTOR -> 63.47871218 | V15: =HLOOKUP($Q15,Assets!$E$2:$AA$18,11,FALSE) -> 82.99431818 | W15: =HLOOKUP($Q15,Assets!$E$2:$AA$18,14,FALSE) -> 55.32954545 | X15: =HLOOKUP($Q15,Assets!$E$2:$AA$18,13,FALSE) -> 59.91136364 | Y15: =HLOOKUP($Q15,Assets!$E$2:$AA$18,15,FALSE) -> 27.66477273 | Z15: =HLOOKUP($Q15,Assets!$E$2:$AA$18,16,FALSE) -> 0 | AA15: =HLOOKUP($Q15,Assets!$E$2:$AA$18,17,FALSE) -> 0 | AB15: =IF($AB$30="Yes",VLOOKUP(Engine!Q15,Load!$A$6:$P$29,16,FALSE),0)+NN_LOAD_TRANSFER -> 16.53281536 | AC15: =HLOOKUP($Q15, Assets!$E$2:$AA$6,2,FALSE) -> 0.01704493812 | AD15: =HLOOKUP($Q15, Assets!$E$2:$AA$6,3,FALSE) -> 0.01704493812 | AE15: =HLOOKUP($Q15, Assets!$E$2:$AA$6,4,FALSE) -> 0.001516821947 | AF15: =HLOOKUP($Q15, Assets!$E$2:$AA$6,5,FALSE) -> TRUE | AG15: 3 | AH15: 0.007609833486 | AI15: =HLOOKUP($Q15, Assets!$E$2:$AA$10,6,FALSE) -> 1958 | AJ15: =HLOOKUP($Q15, Assets!$E$2:$AA$10,7,FALSE) -> 1958 | AK15: =HLOOKUP($Q15, Assets!$E$2:$AA$10,8,FALSE) -> 2001 | AL15: =HLOOKUP($Q15, Assets!$E$2:$AA$10,9,FALSE) -> 9999 | AM15: 0.24 | AN15: 0.05 | AO15: 0.05 | AP15: TRUE | AQ15: TRUE | AR15: TRUE | AS15: 0.005783473449 | AT15: 0.0008675210174 | AU15: 4.337605087e-05 | AV15: FALSE | AW15: 0.01999635945 | AX15: 0.002746284798 | AY15: 5.862135407e-05 | AZ15: FALSE | BA15: 0.01462417961 | BB15: 0.03560669819 | BC15: 2029 | BD15: 55.32954545 | BE15: 59.91136364 | BF15: 35.81393945 | BG15: =COUNTIF((OFFSET(Origin,$P15,19):OFFSET(Origin,$P16-1,19)),">0") ->  | BH15: =SUM(OFFSET(Origin,$P15,19):OFFSET(Origin,$P16-1,19)) ->  | BI15: 2042.327663
D16: 2030 | E16: 0 | F16: 0 | G16: 1364.324311 | H16: 1394.809817 | I16: 0 | J16: 0 | K16: 2759.134128 | L16: =HLOOKUP(D16,Assets!$E$21:$AA$30,10,FALSE) -> 0 | N16: 2030 | Q16: 2030 | R16: 64.44477383 | S16: =Load!K18*SENSITIVITY_FORECAST_FACTOR -> 64.44477383 | V16: =HLOOKUP($Q16,Assets!$E$2:$AA$18,11,FALSE) -> 82.99431818 | W16: =HLOOKUP($Q16,Assets!$E$2:$AA$18,14,FALSE) -> 55.32954545 | X16: =HLOOKUP($Q16,Assets!$E$2:$AA$18,13,FALSE) -> 59.91136364 | Y16: =HLOOKUP($Q16,Assets!$E$2:$AA$18,15,FALSE) -> 27.66477273 | Z16: =HLOOKUP($Q16,Assets!$E$2:$AA$18,16,FALSE) -> 0 | AA16: =HLOOKUP($Q16,Assets!$E$2:$AA$18,17,FALSE) -> 0 | AB16: =IF($AB$30="Yes",VLOOKUP(Engine!Q16,Load!$A$6:$P$29,16,FALSE),0)+NN_LOAD_TRANSFER -> 16.35059683 | AC16: =HLOOKUP($Q16, Assets!$E$2:$AA$6,2,FALSE) -> 0.01767617176 | AD16: =HLOOKUP($Q16, Assets!$E$2:$AA$6,3,FALSE) -> 0.01767617176 | AE16: =HLOOKUP($Q16, Assets!$E$2:$AA$6,4,FALSE) -> 0.001661722563 | AF16: =HLOOKUP($Q16, Assets!$E$2:$AA$6,5,FALSE) -> TRUE | AG16: 3 | AH16: 0.008037327177 | AI16: =HLOOKUP($Q16, Assets!$E$2:$AA$10,6,FALSE) -> 1958 | AJ16: =HLOOKUP($Q16, Assets!$E$2:$AA$10,7,FALSE) -> 1958 | AK16: =HLOOKUP($Q16, Assets!$E$2:$AA$10,8,FALSE) -> 2001 | AL16: =HLOOKUP($Q16, Assets!$E$2:$AA$10,9,FALSE) -> 9999 | AM16: 0.24 | AN16: 0.05 | AO16: 0.05 | AP16: TRUE | AQ16: TRUE | AR16: TRUE | AS16: 0.006108368655 | AT16: 0.0009162552982 | AU16: 4.581276491e-05 | AV16: FALSE | AW16: 0.02111968462 | AX16: 0.002906515162 | AY16: 6.283115682e-05 | AZ16: FALSE | BA16: 0.01520220571 | BB16: 0.03701406609 | BC16: 2030 | BD16: 55.32954545 | BE16: 59.91136364 | BF16: 36.7800011 | BG16: =COUNTIF((OFFSET(Origin,$P16,19):OFFSET(Origin,$P17-1,19)),">0") ->  | BH16: =SUM(OFFSET(Origin,$P16,19):OFFSET(Origin,$P17-1,19)) ->  | BI16: 2759.134128
D17: 2031 | E17: 0 | F17: 0 | G17: 2141.294818 | H17: 1597.225251 | I17: 0 | J17: 0 | K17: 3738.520068 | L17: =HLOOKUP(D17,Assets!$E$21:$AA$30,10,FALSE) -> 0 | N17: 2031 | Q17: 2031 | R17: 65.41083548 | S17: =Load!K19*SENSITIVITY_FORECAST_FACTOR -> 65.41083548 | V17: =HLOOKUP($Q17,Assets!$E$2:$AA$18,11,FALSE) -> 82.99431818 | W17: =HLOOKUP($Q17,Assets!$E$2:$AA$18,14,FALSE) -> 55.32954545 | X17: =HLOOKUP($Q17,Assets!$E$2:$AA$18,13,FALSE) -> 59.91136364 | Y17: =HLOOKUP($Q17,Assets!$E$2:$AA$18,15,FALSE) -> 27.66477273 | Z17: =HLOOKUP($Q17,Assets!$E$2:$AA$18,16,FALSE) -> 0 | AA17: =HLOOKUP($Q17,Assets!$E$2:$AA$18,17,FALSE) -> 0 | AB17: =IF($AB$30="Yes",VLOOKUP(Engine!Q17,Load!$A$6:$P$29,16,FALSE),0)+NN_LOAD_TRANSFER -> 16.17038664 | AC17: =HLOOKUP($Q17, Assets!$E$2:$AA$6,2,FALSE) -> 0.01832158993 | AD17: =HLOOKUP($Q17, Assets!$E$2:$AA$6,3,FALSE) -> 0.01832158993 | AE17: =HLOOKUP($Q17, Assets!$E$2:$AA$6,4,FALSE) -> 0.001814842682 | AF17: =HLOOKUP($Q17, Assets!$E$2:$AA$6,5,FALSE) -> TRUE | AG17: 3 | AH17: 0.008477252139 | AI17: =HLOOKUP($Q17, Assets!$E$2:$AA$10,6,FALSE) -> 1958 | AJ17: =HLOOKUP($Q17, Assets!$E$2:$AA$10,7,FALSE) -> 1958 | AK17: =HLOOKUP($Q17, Assets!$E$2:$AA$10,8,FALSE) -> 2001 | AL17: =HLOOKUP($Q17, Assets!$E$2:$AA$10,9,FALSE) -> 9999 | AM17: 0.24 | AN17: 0.05 | AO17: 0.05 | AP17: TRUE | AQ17: TRUE | AR17: TRUE | AS17: 0.006442711626 | AT17: 0.0009664067439 | AU17: 4.832033719e-05 | AV17: FALSE | AW17: 0.02227567545 | AX17: 0.003072066168 | AY17: 6.726660459e-05 | AZ17: FALSE | BA17: 0.01579525926 | BB17: 0.03845802254 | BC17: 2031 | BD17: 55.32954545 | BE17: 59.91136364 | BF17: 37.74606275 | BG17: =COUNTIF((OFFSET(Origin,$P17,19):OFFSET(Origin,$P18-1,19)),">0") ->  | BH17: =SUM(OFFSET(Origin,$P17,19):OFFSET(Origin,$P18-1,19)) ->  | BI17: 3738.520068
D18: 2032 | E18: 0 | F18: 0 | G18: 3185.518653 | H18: 1821.79142 | I18: 0 | J18: 0 | K18: 5007.310073 | L18: =HLOOKUP(D18,Assets!$E$21:$AA$30,10,FALSE) -> 0 | N18: 2032 | Q18: 2032 | R18: 66.37689713 | S18: =Load!K20*SENSITIVITY_FORECAST_FACTOR -> 66.37689713 | V18: =HLOOKUP($Q18,Assets!$E$2:$AA$18,11,FALSE) -> 82.99431818 | W18: =HLOOKUP($Q18,Assets!$E$2:$AA$18,14,FALSE) -> 55.32954545 | X18: =HLOOKUP($Q18,Assets!$E$2:$AA$18,13,FALSE) -> 59.91136364 | Y18: =HLOOKUP($Q18,Assets!$E$2:$AA$18,15,FALSE) -> 27.66477273 | Z18: =HLOOKUP($Q18,Assets!$E$2:$AA$18,16,FALSE) -> 0 | AA18: =HLOOKUP($Q18,Assets!$E$2:$AA$18,17,FALSE) -> 0 | AB18: =IF($AB$30="Yes",VLOOKUP(Engine!Q18,Load!$A$6:$P$29,16,FALSE),0)+NN_LOAD_TRANSFER -> 15.99216266 | AC18: =HLOOKUP($Q18, Assets!$E$2:$AA$6,2,FALSE) -> 0.0189813105 | AD18: =HLOOKUP($Q18, Assets!$E$2:$AA$6,3,FALSE) -> 0.0189813105 | AE18: =HLOOKUP($Q18, Assets!$E$2:$AA$6,4,FALSE) -> 0.00197635122 | AF18: =HLOOKUP($Q18, Assets!$E$2:$AA$6,5,FALSE) -> TRUE | AG18: 3 | AH18: 0.008929740488 | AI18: =HLOOKUP($Q18, Assets!$E$2:$AA$10,6,FALSE) -> 1958 | AJ18: =HLOOKUP($Q18, Assets!$E$2:$AA$10,7,FALSE) -> 1958 | AK18: =HLOOKUP($Q18, Assets!$E$2:$AA$10,8,FALSE) -> 2001 | AL18: =HLOOKUP($Q18, Assets!$E$2:$AA$10,9,FALSE) -> 9999 | AM18: 0.24 | AN18: 0.05 | AO18: 0.05 | AP18: TRUE | AQ18: TRUE | AR18: TRUE | AS18: 0.006786602771 | AT18: 0.001017990416 | AU18: 5.089952078e-05 | AV18: FALSE | AW18: 0.02346467908 | AX18: 0.003243044699 | AY18: 7.19381877e-05 | AZ18: FALSE | BA18: 0.01640350645 | BB18: 0.03993897223 | BC18: 2032 | BD18: 55.32954545 | BE18: 59.91136364 | BF18: 38.7121244 | BG18: =COUNTIF((OFFSET(Origin,$P18,19):OFFSET(Origin,$P19-1,19)),">0") ->  | BH18: =SUM(OFFSET(Origin,$P18,19):OFFSET(Origin,$P19-1,19)) ->  | BI18: 5007.310073
D19: 2033 | E19: 0 | F19: 0 | G19: 4567.69415 | H19: 2073.752058 | I19: 0 | J19: 0 | K19: 6641.446208 | L19: =HLOOKUP(D19,Assets!$E$21:$AA$30,10,FALSE) -> 0 | N19: 2033 | Q19: 2033 | R19: 67.34295878 | S19: =Load!K21*SENSITIVITY_FORECAST_FACTOR -> 67.34295878 | V19: =HLOOKUP($Q19,Assets!$E$2:$AA$18,11,FALSE) -> 82.99431818 | W19: =HLOOKUP($Q19,Assets!$E$2:$AA$18,14,FALSE) -> 55.32954545 | X19: =HLOOKUP($Q19,Assets!$E$2:$AA$18,13,FALSE) -> 59.91136364 | Y19: =HLOOKUP($Q19,Assets!$E$2:$AA$18,15,FALSE) -> 27.66477273 | Z19: =HLOOKUP($Q19,Assets!$E$2:$AA$18,16,FALSE) -> 0 | AA19: =HLOOKUP($Q19,Assets!$E$2:$AA$18,17,FALSE) -> 0 | AB19: =IF($AB$30="Yes",VLOOKUP(Engine!Q19,Load!$A$6:$P$29,16,FALSE),0)+NN_LOAD_TRANSFER -> 15.815903 | AC19: =HLOOKUP($Q19, Assets!$E$2:$AA$6,2,FALSE) -> 0.01965545072 | AD19: =HLOOKUP($Q19, Assets!$E$2:$AA$6,3,FALSE) -> 0.01965545072 | AE19: =HLOOKUP($Q19, Assets!$E$2:$AA$6,4,FALSE) -> 0.002146414858 | AF19: =HLOOKUP($Q19, Assets!$E$2:$AA$6,5,FALSE) -> TRUE | AG19: 3 | AH19: 0.009394923037 | AI19: =HLOOKUP($Q19, Assets!$E$2:$AA$10,6,FALSE) -> 1958 | AJ19: =HLOOKUP($Q19, Assets!$E$2:$AA$10,7,FALSE) -> 1958 | AK19: =HLOOKUP($Q19, Assets!$E$2:$AA$10,8,FALSE) -> 2001 | AL19: =HLOOKUP($Q19, Assets!$E$2:$AA$10,9,FALSE) -> 9999 | AM19: 0.24 | AN19: 0.05 | AO19: 0.05 | AP19: TRUE | AQ19: TRUE | AR19: TRUE | AS19: 0.007140141508 | AT19: 0.001071021226 | AU19: 5.355106131e-05 | AV19: FALSE | AW19: 0.02468703926 | AX19: 0.003419559602 | AY19: 7.685680663e-05 | AZ19: FALSE | BA19: 0.01702711205 | BB19: 0.0414573163 | BC19: 2033 | BD19: 55.32954545 | BE19: 59.91136364 | BF19: 39.67818606 | BG19: =COUNTIF((OFFSET(Origin,$P19,19):OFFSET(Origin,$P20-1,19)),">0") ->  | BH19: =SUM(OFFSET(Origin,$P19,19):OFFSET(Origin,$P20-1,19)) ->  | BI19: 6641.446208
D20: 2034 | E20: 0 | F20: 0 | G20: 6345.07549 | H20: 2352.819598 | I20: 0 | J20: 0 | K20: 8697.895088 | L20: =HLOOKUP(D20,Assets!$E$21:$AA$30,10,FALSE) -> 0 | N20: 2034 | Q20: 2034 | R20: 68.30902044 | S20: =Load!K22*SENSITIVITY_FORECAST_FACTOR -> 68.30902044 | V20: =HLOOKUP($Q20,Assets!$E$2:$AA$18,11,FALSE) -> 82.99431818 | W20: =HLOOKUP($Q20,Assets!$E$2:$AA$18,14,FALSE) -> 55.32954545 | X20: =HLOOKUP($Q20,Assets!$E$2:$AA$18,13,FALSE) -> 59.91136364 | Y20: =HLOOKUP($Q20,Assets!$E$2:$AA$18,15,FALSE) -> 27.66477273 | Z20: =HLOOKUP($Q20,Assets!$E$2:$AA$18,16,FALSE) -> 0 | AA20: =HLOOKUP($Q20,Assets!$E$2:$AA$18,17,FALSE) -> 0 | AB20: =IF($AB$30="Yes",VLOOKUP(Engine!Q20,Load!$A$6:$P$29,16,FALSE),0)+NN_LOAD_TRANSFER -> 15.641586 | AC20: =HLOOKUP($Q20, Assets!$E$2:$AA$6,2,FALSE) -> 0.02034412718 | AD20: =HLOOKUP($Q20, Assets!$E$2:$AA$6,3,FALSE) -> 0.02034412718 | AE20: =HLOOKUP($Q20, Assets!$E$2:$AA$6,4,FALSE) -> 0.002325198135 | AF20: =HLOOKUP($Q20, Assets!$E$2:$AA$6,5,FALSE) -> TRUE | AG20: 3 | AH20: 0.00987292937 | AI20: =HLOOKUP($Q20, Assets!$E$2:$AA$10,6,FALSE) -> 1958 | AJ20: =HLOOKUP($Q20, Assets!$E$2:$AA$10,7,FALSE) -> 1958 | AK20: =HLOOKUP($Q20, Assets!$E$2:$AA$10,8,FALSE) -> 2001 | AL20: =HLOOKUP($Q20, Assets!$E$2:$AA$10,9,FALSE) -> 9999 | AM20: 0.24 | AN20: 0.05 | AO20: 0.05 | AP20: TRUE | AQ20: TRUE | AR20: TRUE | AS20: 0.007503426321 | AT20: 0.001125513948 | AU20: 5.627569741e-05 | AV20: FALSE | AW20: 0.02594309651 | AX20: 0.003601721762 | AY20: 8.203378382e-05 | AZ20: FALSE | BA20: 0.01766623942 | BB20: 0.0430134525 | BC20: 2034 | BD20: 55.32954545 | BE20: 59.91136364 | BF20: 40.64424771 | BG20: =COUNTIF((OFFSET(Origin,$P20,19):OFFSET(Origin,$P21-1,19)),">0") ->  | BH20: =SUM(OFFSET(Origin,$P20,19):OFFSET(Origin,$P21-1,19)) ->  | BI20: 8697.895088
D21: 2035 | E21: 0 | F21: 0 | G21: 8678.374745 | H21: 2663.136756 | I21: 0 | J21: 0 | K21: 11341.5115 | L21: =HLOOKUP(D21,Assets!$E$21:$AA$30,10,FALSE) -> 0 | N21: 2035 | Q21: 2035 | R21: 69.27508209 | S21: =Load!K23*SENSITIVITY_FORECAST_FACTOR -> 69.27508209 | V21: =HLOOKUP($Q21,Assets!$E$2:$AA$18,11,FALSE) -> 82.99431818 | W21: =HLOOKUP($Q21,Assets!$E$2:$AA$18,14,FALSE) -> 55.32954545 | X21: =HLOOKUP($Q21,Assets!$E$2:$AA$18,13,FALSE) -> 59.91136364 | Y21: =HLOOKUP($Q21,Assets!$E$2:$AA$18,15,FALSE) -> 27.66477273 | Z21: =HLOOKUP($Q21,Assets!$E$2:$AA$18,16,FALSE) -> 0 | AA21: =HLOOKUP($Q21,Assets!$E$2:$AA$18,17,FALSE) -> 0 | AB21: =IF($AB$30="Yes",VLOOKUP(Engine!Q21,Load!$A$6:$P$29,16,FALSE),0)+NN_LOAD_TRANSFER -> 15.46919027 | AC21: =HLOOKUP($Q21, Assets!$E$2:$AA$6,2,FALSE) -> 0.02104745588 | AD21: =HLOOKUP($Q21, Assets!$E$2:$AA$6,3,FALSE) -> 0.02104745588 | AE21: =HLOOKUP($Q21, Assets!$E$2:$AA$6,4,FALSE) -> 0.002512863549 | AF21: =HLOOKUP($Q21, Assets!$E$2:$AA$6,5,FALSE) -> TRUE | AG21: 3 | AH21: 0.01036388791 | AI21: =HLOOKUP($Q21, Assets!$E$2:$AA$10,6,FALSE) -> 1958 | AJ21: =HLOOKUP($Q21, Assets!$E$2:$AA$10,7,FALSE) -> 1958 | AK21: =HLOOKUP($Q21, Assets!$E$2:$AA$10,8,FALSE) -> 2001 | AL21: =HLOOKUP($Q21, Assets!$E$2:$AA$10,9,FALSE) -> 9999 | AM21: 0.24 | AN21: 0.05 | AO21: 0.05 | AP21: TRUE | AQ21: TRUE | AR21: TRUE | AS21: 0.007876554813 | AT21: 0.001181483222 | AU21: 5.90741611e-05 | AV21: FALSE | AW21: 0.02723318827 | AX21: 0.003789644174 | AY21: 8.748087555e-05 | AZ21: FALSE | BA21: 0.01832105057 | BB21: 0.0446077753 | BC21: 2035 | BD21: 55.32954545 | BE21: 59.91136364 | BF21: 41.61030936 | BG21: =COUNTIF((OFFSET(Origin,$P21,19):OFFSET(Origin,$P22-1,19)),">0") ->  | BH21: =SUM(OFFSET(Origin,$P21,19):OFFSET(Origin,$P22-1,19)) ->  | BI21: 11341.5115
D22: 2036 | E22: 0 | F22: 0 | G22: 11645.26095 | H22: 3007.45118 | I22: 0 | J22: 0 | K22: 14652.71213 | L22: =HLOOKUP(D22,Assets!$E$21:$AA$30,10,FALSE) -> 0 | N22: 2036 | Q22: 2036 | R22: 70.24114374 | S22: =Load!K24*SENSITIVITY_FORECAST_FACTOR -> 70.24114374 | V22: =HLOOKUP($Q22,Assets!$E$2:$AA$18,11,FALSE) -> 82.99431818 | W22: =HLOOKUP($Q22,Assets!$E$2:$AA$18,14,FALSE) -> 55.32954545 | X22: =HLOOKUP($Q22,Assets!$E$2:$AA$18,13,FALSE) -> 59.91136364 | Y22: =HLOOKUP($Q22,Assets!$E$2:$AA$18,15,FALSE) -> 27.66477273 | Z22: =HLOOKUP($Q22,Assets!$E$2:$AA$18,16,FALSE) -> 0 | AA22: =HLOOKUP($Q22,Assets!$E$2:$AA$18,17,FALSE) -> 0 | AB22: =IF($AB$30="Yes",VLOOKUP(Engine!Q22,Load!$A$6:$P$29,16,FALSE),0)+NN_LOAD_TRANSFER -> 15.29869461 | AC22: =HLOOKUP($Q22, Assets!$E$2:$AA$6,2,FALSE) -> 0.02176555217 | AD22: =HLOOKUP($Q22, Assets!$E$2:$AA$6,3,FALSE) -> 0.02176555217 | AE22: =HLOOKUP($Q22, Assets!$E$2:$AA$6,4,FALSE) -> 0.002709571637 | AF22: =HLOOKUP($Q22, Assets!$E$2:$AA$6,5,FALSE) -> TRUE | AG22: 3 | AH22: 0.01086792599 | AI22: =HLOOKUP($Q22, Assets!$E$2:$AA$10,6,FALSE) -> 1958 | AJ22: =HLOOKUP($Q22, Assets!$E$2:$AA$10,7,FALSE) -> 1958 | AK22: =HLOOKUP($Q22, Assets!$E$2:$AA$10,8,FALSE) -> 2001 | AL22: =HLOOKUP($Q22, Assets!$E$2:$AA$10,9,FALSE) -> 9999 | AM22: 0.24 | AN22: 0.05 | AO22: 0.05 | AP22: TRUE | AQ22: TRUE | AR22: TRUE | AS22: 0.008259623749 | AT22: 0.001238943562 | AU22: 6.194717812e-05 | AV22: FALSE | AW22: 0.02855764911 | AX22: 0.003983442019 | AY22: 9.32102841e-05 | AZ22: FALSE | BA22: 0.01899170621 | BB22: 0.04624067598 | BC22: 2036 | BD22: 55.32954545 | BE22: 59.91136364 | BF22: 42.57637101 | BG22: =COUNTIF((OFFSET(Origin,$P22,19):OFFSET(Origin,$P23-1,19)),">0") ->  | BH22: =SUM(OFFSET(Origin,$P22,19):OFFSET(Origin,$P23-1,19)) ->  | BI22: 14652.71213
D23: 2037 | E23: 0 | F23: 0 | G23: 15334.77991 | H23: 3386.079038 | I23: 0 | J23: 0 | K23: 18720.85895 | L23: =HLOOKUP(D23,Assets!$E$21:$AA$30,10,FALSE) -> 0 | N23: 2037 | Q23: 2037 | R23: 71.20720539 | S23: =Load!K25*SENSITIVITY_FORECAST_FACTOR -> 71.20720539 | V23: =HLOOKUP($Q23,Assets!$E$2:$AA$18,11,FALSE) -> 82.99431818 | W23: =HLOOKUP($Q23,Assets!$E$2:$AA$18,14,FALSE) -> 55.32954545 | X23: =HLOOKUP($Q23,Assets!$E$2:$AA$18,13,FALSE) -> 59.91136364 | Y23: =HLOOKUP($Q23,Assets!$E$2:$AA$18,15,FALSE) -> 27.66477273 | Z23: =HLOOKUP($Q23,Assets!$E$2:$AA$18,16,FALSE) -> 0 | AA23: =HLOOKUP($Q23,Assets!$E$2:$AA$18,17,FALSE) -> 0 | AB23: =IF($AB$30="Yes",VLOOKUP(Engine!Q23,Load!$A$6:$P$29,16,FALSE),0)+NN_LOAD_TRANSFER -> 15.1300781 | AC23: =HLOOKUP($Q23, Assets!$E$2:$AA$6,2,FALSE) -> 0.02249853085 | AD23: =HLOOKUP($Q23, Assets!$E$2:$AA$6,3,FALSE) -> 0.02249853085 | AE23: =HLOOKUP($Q23, Assets!$E$2:$AA$6,4,FALSE) -> 0.002915481059 | AF23: =HLOOKUP($Q23, Assets!$E$2:$AA$6,5,FALSE) -> TRUE | AG23: 3 | AH23: 0.01138516986 | AI23: =HLOOKUP($Q23, Assets!$E$2:$AA$10,6,FALSE) -> 1958 | AJ23: =HLOOKUP($Q23, Assets!$E$2:$AA$10,7,FALSE) -> 1958 | AK23: =HLOOKUP($Q23, Assets!$E$2:$AA$10,8,FALSE) -> 2001 | AL23: =HLOOKUP($Q23, Assets!$E$2:$AA$10,9,FALSE) -> 9999 | AM23: 0.24 | AN23: 0.05 | AO23: 0.05 | AP23: TRUE | AQ23: TRUE | AR23: TRUE | AS23: 0.008652729096 | AT23: 0.001297909364 | AU23: 6.489546822e-05 | AV23: FALSE | AW23: 0.02991681085 | AX23: 0.004183232724 | AY23: 9.923466999e-05 | AZ23: FALSE | BA23: 0.01967836577 | BB23: 0.04791254275 | BC23: 2037 | BD23: 55.32954545 | BE23: 59.91136364 | BF23: 43.54243266 | BG23: =COUNTIF((OFFSET(Origin,$P23,19):OFFSET(Origin,$P24-1,19)),">0") ->  | BH23: =SUM(OFFSET(Origin,$P23,19):OFFSET(Origin,$P24-1,19)) ->  | BI23: 18720.85895
D24: 2038 | E24: 0 | F24: 0 | G24: 19756.64993 | H24: 3802.93635 | I24: 0 | J24: 0 | K24: 23559.58628 | L24: =HLOOKUP(D24,Assets!$E$21:$AA$30,10,FALSE) -> 0 | N24: 2038 | Q24: 2038 | R24: 72.17326704 | S24: =Load!K26*SENSITIVITY_FORECAST_FACTOR -> 72.17326704 | V24: =HLOOKUP($Q24,Assets!$E$2:$AA$18,11,FALSE) -> 82.99431818 | W24: =HLOOKUP($Q24,Assets!$E$2:$AA$18,14,FALSE) -> 55.32954545 | X24: =HLOOKUP($Q24,Assets!$E$2:$AA$18,13,FALSE) -> 59.91136364 | Y24: =HLOOKUP($Q24,Assets!$E$2:$AA$18,15,FALSE) -> 27.66477273 | Z24: =HLOOKUP($Q24,Assets!$E$2:$AA$18,16,FALSE) -> 0 | AA24: =HLOOKUP($Q24,Assets!$E$2:$AA$18,17,FALSE) -> 0 | AB24: =IF($AB$30="Yes",VLOOKUP(Engine!Q24,Load!$A$6:$P$29,16,FALSE),0)+NN_LOAD_TRANSFER -> 14.96332001 | AC24: =HLOOKUP($Q24, Assets!$E$2:$AA$6,2,FALSE) -> 0.02324650609 | AD24: =HLOOKUP($Q24, Assets!$E$2:$AA$6,3,FALSE) -> 0.02324650609 | AE24: =HLOOKUP($Q24, Assets!$E$2:$AA$6,4,FALSE) -> 0.003130748671 | AF24: =HLOOKUP($Q24, Assets!$E$2:$AA$6,5,FALSE) -> TRUE | AG24: 3 | AH24: 0.01191574482 | AI24: =HLOOKUP($Q24, Assets!$E$2:$AA$10,6,FALSE) -> 1958 | AJ24: =HLOOKUP($Q24, Assets!$E$2:$AA$10,7,FALSE) -> 1958 | AK24: =HLOOKUP($Q24, Assets!$E$2:$AA$10,8,FALSE) -> 2001 | AL24: =HLOOKUP($Q24, Assets!$E$2:$AA$10,9,FALSE) -> 9999 | AM24: 0.24 | AN24: 0.05 | AO24: 0.05 | AP24: TRUE | AQ24: TRUE | AR24: TRUE | AS24: 0.00905596606 | AT24: 0.001358394909 | AU24: 6.791974545e-05 | AV24: FALSE | AW24: 0.03131100265 | AX24: 0.004389136036 | AY24: 0.0001055671645 | AZ24: FALSE | BA24: 0.02038118749 | BB24: 0.04962376086 | BC24: 2038 | BD24: 55.32954545 | BE24: 59.91136364 | BF24: 44.50849432 | BG24: =COUNTIF((OFFSET(Origin,$P24,19):OFFSET(Origin,$P25-1,19)),">0") ->  | BH24: =SUM(OFFSET(Origin,$P24,19):OFFSET(Origin,$P25-1,19)) ->  | BI24: 23559.58628
D25: 2039 | E25: 0 | F25: 0 | G25: 24875.97681 | H25: 4262.04205 | I25: 0 | J25: 0 | K25: 29138.01886 | L25: =HLOOKUP(D25,Assets!$E$21:$AA$30,10,FALSE) -> 0 | N25: 2039 | Q25: 2039 | R25: 73.13932869 | S25: =Load!K27*SENSITIVITY_FORECAST_FACTOR -> 73.13932869 | V25: =HLOOKUP($Q25,Assets!$E$2:$AA$18,11,FALSE) -> 82.99431818 | W25: =HLOOKUP($Q25,Assets!$E$2:$AA$18,14,FALSE) -> 55.32954545 | X25: =HLOOKUP($Q25,Assets!$E$2:$AA$18,13,FALSE) -> 59.91136364 | Y25: =HLOOKUP($Q25,Assets!$E$2:$AA$18,15,FALSE) -> 27.66477273 | Z25: =HLOOKUP($Q25,Assets!$E$2:$AA$18,16,FALSE) -> 0 | AA25: =HLOOKUP($Q25,Assets!$E$2:$AA$18,17,FALSE) -> 0 | AB25: =IF($AB$30="Yes",VLOOKUP(Engine!Q25,Load!$A$6:$P$29,16,FALSE),0)+NN_LOAD_TRANSFER -> 14.79839987 | AC25: =HLOOKUP($Q25, Assets!$E$2:$AA$6,2,FALSE) -> 0.02400959152 | AD25: =HLOOKUP($Q25, Assets!$E$2:$AA$6,3,FALSE) -> 0.02400959152 | AE25: =HLOOKUP($Q25, Assets!$E$2:$AA$6,4,FALSE) -> 0.003355529595 | AF25: =HLOOKUP($Q25, Assets!$E$2:$AA$6,5,FALSE) -> TRUE | AG25: 3 | AH25: 0.01245977516 | AI25: =HLOOKUP($Q25, Assets!$E$2:$AA$10,6,FALSE) -> 1958 | AJ25: =HLOOKUP($Q25, Assets!$E$2:$AA$10,7,FALSE) -> 1958 | AK25: =HLOOKUP($Q25, Assets!$E$2:$AA$10,8,FALSE) -> 2001 | AL25: =HLOOKUP($Q25, Assets!$E$2:$AA$10,9,FALSE) -> 9999 | AM25: 0.24 | AN25: 0.05 | AO25: 0.05 | AP25: TRUE | AQ25: TRUE | AR25: TRUE | AS25: 0.009469429121 | AT25: 0.001420414368 | AU25: 7.102071841e-05 | AV25: FALSE | AW25: 0.03274055119 | AX25: 0.004601274086 | AY25: 0.0001122213825 | AZ25: FALSE | BA25: 0.0211003284 | BB25: 0.05137471263 | BC25: 2039 | BD25: 55.32954545 | BE25: 59.91136364 | BF25: 45.47455597 | BG25: =COUNTIF((OFFSET(Origin,$P25,19):OFFSET(Origin,$P26-1,19)),">0") ->  | BH25: =SUM(OFFSET(Origin,$P25,19):OFFSET(Origin,$P26-1,19)) ->  | BI25: 29138.01886
J26: 0 | N26: 2040 | Q26: 2040 | R26: 74.10539035 | S26: =Load!K28*SENSITIVITY_FORECAST_FACTOR -> 74.10539035 | V26: =HLOOKUP($Q26,Assets!$E$2:$AA$18,11,FALSE) -> 82.99431818 | W26: =HLOOKUP($Q26,Assets!$E$2:$AA$18,14,FALSE) -> 55.32954545 | X26: =HLOOKUP($Q26,Assets!$E$2:$AA$18,13,FALSE) -> 59.91136364 | Y26: =HLOOKUP($Q26,Assets!$E$2:$AA$18,15,FALSE) -> 27.66477273 | Z26: =HLOOKUP($Q26,Assets!$E$2:$AA$18,16,FALSE) -> 0 | AA26: =HLOOKUP($Q26,Assets!$E$2:$AA$18,17,FALSE) -> 0 | AB26: =IF($AB$30="Yes",VLOOKUP(Engine!Q26,Load!$A$6:$P$29,16,FALSE),0)+NN_LOAD_TRANSFER -> 14.63529742 | AC26: =HLOOKUP($Q26, Assets!$E$2:$AA$6,2,FALSE) -> 0.02478790017 | AD26: =HLOOKUP($Q26, Assets!$E$2:$AA$6,3,FALSE) -> 0.02478790017 | AE26: =HLOOKUP($Q26, Assets!$E$2:$AA$6,4,FALSE) -> 0.003589977284 | AF26: =HLOOKUP($Q26, Assets!$E$2:$AA$6,5,FALSE) -> TRUE | AG26: 3 | AH26: 0.01301738429 | AI26: =HLOOKUP($Q26, Assets!$E$2:$AA$10,6,FALSE) -> 1958 | AJ26: =HLOOKUP($Q26, Assets!$E$2:$AA$10,7,FALSE) -> 1958 | AK26: =HLOOKUP($Q26, Assets!$E$2:$AA$10,8,FALSE) -> 2001 | AL26: =HLOOKUP($Q26, Assets!$E$2:$AA$10,9,FALSE) -> 9999 | AM26: 0.24 | AN26: 0.05 | AO26: 0.05 | AP26: TRUE | AQ26: TRUE | AR26: TRUE | AS26: 0.009893212057 | AT26: 0.001483981809 | AU26: 7.419909043e-05 | AV26: FALSE | AW26: 0.03420578069 | AX26: 0.004819771451 | AY26: 0.0001192114351 | AZ26: FALSE | BA26: 0.02183594438 | BB26: 0.05316577763
X29: After Mobile | Y29: =IF(ISSPAREREADY, 75,0) -> 0 | Z29: =Y29/2 -> 0 | AA29: =Z29/2 -> 0
X30: Power factor | Y30: =VLOOKUP(C1,Load!$AP$3:$AU$54,6,FALSE) -> 0.9918040968 | AA30: Load Transfers | AB30: YES
A31: 0 | B31: 1 | C31: 2 | D31: 3 | E31: 4 | F31: 5 | G31: 6 | H31: 7 | I31: 8 | J31: 9 | K31: 10 | L31: 11 | M31: 12 | N31: 13 | O31: 14 | P31: 15 | Q31: 16 | R31: 17 | S31: 18 | T31: 19 | U31: 20 | V31: 21 | W31: 22 | X31: 23 | Y31: 24 | Z31: 25 | AA31: 26 | AB31: 27 | AC31: 28 | AD31: 29 | AE31: 30 | AF31: 31 | AG31: 32
D32: Probability of fault: | W32: Expected energy at risk
D33: PI Point: | E33: =C40-C41 -> 427 | G33: =VLOOKUP($C$1,Load!$Q$58:$R$109,2,FALSE) -> MC:-:66/22kV:Trans Summation:MW | W33: Outage (Days) | X33: 24
E34: =C39-C40 -> 372 | S34: 365 | T34: =IF(ISSPAREREADY, 30, IF(AssetType="Transformer", 180,120)) -> 180 | U34: =IF(ISSPAREREADY, (180-T34)/5*4,T34/5*4) -> 144 | V34: =U34/5*4 -> 115.2 | W34: =V34/5*4 -> 92.16 | X34: 24
E35: Station Capacity | I35: MWh over Capacity (Inc Xfers | N35: Probability of Outage | S35: kWh at risk
A36: Year | B36: MVA | C36: Hours at or below MVA | D36: N rating (MVA) | E36: N-1 Rating | F36: N-2 | G36: N-3 | H36: N-4 | I36: MVA After Xfers | J36: N | K36: N-1 | L36: N-2 | M36: N-3 | N36: N-4 | O36: 1 Failure | P36: 2 Failures | Q36: 3 Failures | R36: 4 Failures | S36: Minor | T36: N | U36: N-1 | V36: N-2 | W36: N-3 | X36: N-4 | Y36: Minor
A37: 2018 | B37: 1 | C37: =IF(LOADPROFILE=0.1,Results_10PoE!C8,IF(LOADPROFILE=0.5,Results_50PoE!C8,"Invalid Load Profile %")) -> 7859 | D37: =VLOOKUP($A37,$Q$4:$AB$26,6,FALSE) -> 82.99431818 | E37: =VLOOKUP($A37,$Q$4:$AB$26,7,FALSE) -> 55.32954545 | F37: =VLOOKUP($A37,$Q$4:$AB$26,9,FALSE) -> 27.66477273 | G37: =VLOOKUP($A37,$Q$4:$AB$26,10,FALSE) -> 0 | H37: =VLOOKUP($A37,$Q$4:$AB$26,11,FALSE) -> 0 | I37: =IF(B37-VLOOKUP(A37,$Q$4:$AB$26,12,FALSE)<0,0,B37-VLOOKUP(A37,$Q$4:$AB$26,12,FALSE)) -> 0 | J37: =IF(B37=150,0,IF(IF($I37>D37,($I37-D37)*($C37-$C38),0)<0,0,IF($I37>D37,($I37-D37)*($C37-$C38),0)))*$Y$30 -> 0 | K37: =IF(C37=150,0,IF(IF($I37>E37,($I37-E37)*($C37-$C38),0)<0,0,IF($I37>E37,($I37-E37)*($C37-$C38),0)))*$Y$30 -> 0 | L37: =IF(D37=150,0,IF(IF($I37>F37,($I37-F37)*($C37-$C38),0)<0,0,IF($I37>F37,($I37-F37)*($C37-$C38),0)))*$Y$30 -> 0 | M37: =IF(E37=150,0,IF(IF($I37>G37,($I37-G37)*($C37-$C38),0)<0,0,IF($I37>G37,($I37-G37)*($C37-$C38),0)))*$Y$30 -> 0 | N37: =IF(F37=150,0,IF(IF($I37>H37,($I37-H37)*($C37-$C38),0)<0,0,IF($I37>H37,($I37-H37)*($C37-$C38),0)))*$Y$30 -> 0 | O37: =VLOOKUP($A37, $Q$4:$BB$26,33,FALSE) -> 0.009680286224 | P37: =VLOOKUP($A37, $Q$4:$BB$26,34,FALSE) -> 0.00129423827 | Q37: =VLOOKUP($A37, $Q$4:$BB$26,35,FALSE) -> 1.277919113e-05 | R37: =VLOOKUP($A37, $Q$4:$BB$26,36,FALSE) -> FALSE | S37: =VLOOKUP($A37, $Q$4:$BB$26,37,FALSE) -> 0.009208528427 | T37: =J37*1000*($S$34/365) -> 0 | U37: =O37*K37*1000*($T$34/365) -> 0 | V37: =P37*L37*1000*($U$34/365) -> 0 | W37: =Q37*M37*1000*($V$34/365) -> 0 | X37: =R37*N37*1000*($W$34/365) -> 0 | Y37: =S37*K37*1000*($X$34/365) -> 0
A38: 2018 | B38: 2 | C38: =IF(LOADPROFILE=0.1,Results_10PoE!C9,IF(LOADPROFILE=0.5,Results_50PoE!C9,"Invalid Load Profile %")) -> 7566 | D38: =VLOOKUP($A38,$Q$4:$AB$26,6,FALSE) -> 82.99431818 | E38: =VLOOKUP($A38,$Q$4:$AB$26,7,FALSE) -> 55.32954545 | F38: =VLOOKUP($A38,$Q$4:$AB$26,9,FALSE) -> 27.66477273 | G38: =VLOOKUP($A38,$Q$4:$AB$26,10,FALSE) -> 0 | H38: =VLOOKUP($A38,$Q$4:$AB$26,11,FALSE) -> 0 | I38: =IF(B38-VLOOKUP(A38,$Q$4:$AB$26,12,FALSE)<0,0,B38-VLOOKUP(A38,$Q$4:$AB$26,12,FALSE)) -> 0 | J38: =IF(B38=150,0,IF(IF($I38>D38,($I38-D38)*($C38-$C39),0)<0,0,IF($I38>D38,($I38-D38)*($C38-$C39),0)))*$Y$30 -> 0 | K38: =IF(C38=150,0,IF(IF($I38>E38,($I38-E38)*($C38-$C39),0)<0,0,IF($I38>E38,($I38-E38)*($C38-$C39),0)))*$Y$30 -> 0 | L38: =IF(D38=150,0,IF(IF($I38>F38,($I38-F38)*($C38-$C39),0)<0,0,IF($I38>F38,($I38-F38)*($C38-$C39),0)))*$Y$30 -> 0 | M38: =IF(E38=150,0,IF(IF($I38>G38,($I38-G38)*($C38-$C39),0)<0,0,IF($I38>G38,($I38-G38)*($C38-$C39),0)))*$Y$30 -> 0 | N38: =IF(F38=150,0,IF(IF($I38>H38,($I38-H38)*($C38-$C39),0)<0,0,IF($I38>H38,($I38-H38)*($C38-$C39),0)))*$Y$30 -> 0 | O38: =VLOOKUP($A38, $Q$4:$BB$26,33,FALSE) -> 0.009680286224 | P38: =VLOOKUP($A38, $Q$4:$BB$26,34,FALSE) -> 0.00129423827 | Q38: =VLOOKUP($A38, $Q$4:$BB$26,35,FALSE) -> 1.277919113e-05 | R38: =VLOOKUP($A38, $Q$4:$BB$26,36,FALSE) -> FALSE | S38: =VLOOKUP($A38, $Q$4:$BB$26,37,FALSE) -> 0.009208528427 | T38: =J38*1000*($S$34/365) -> 0 | U38: =O38*K38*1000*($T$34/365) -> 0 | V38: =P38*L38*1000*($U$34/365) -> 0 | W38: =Q38*M38*1000*($V$34/365) -> 0 | X38: =R38*N38*1000*($W$34/365) -> 0 | Y38: =S38*K38*1000*($X$34/365) -> 0
A39: 2018 | B39: 3 | C39: =IF(LOADPROFILE=0.1,Results_10PoE!C10,IF(LOADPROFILE=0.5,Results_50PoE!C10,"Invalid Load Profile %")) -> 7268 | D39: 82.99431818 | E39: 55.32954545 | F39: 27.66477273 | G39: 0 | H39: 0 | I39: 0 | J39: 0 | K39: 0 | L39: 0 | M39: 0 | N39: 0 | O39: 0.009680286224 | P39: =VLOOKUP($A39, $Q$4:$BB$26,34,FALSE) -> 0.00129423827 | Q39: 1.277919113e-05 | R39: FALSE | S39: 0.009208528427 | T39: 0 | U39: 0 | V39: 0 | W39: 0 | X39: 0 | Y39: 0
A40: 2018 | B40: 4 | C40: =IF(LOADPROFILE=0.1,Results_10PoE!C11,IF(LOADPROFILE=0.5,Results_50PoE!C11,"Invalid Load Profile %")) -> 6896 | D40: 82.99431818 | E40: 55.32954545 | F40: 27.66477273 | G40: 0 | H40: 0 | I40: 0 | J40: 0 | K40: 0 | L40: 0 | M40: 0 | N40: 0 | O40: 0.009680286224 | P40: 0.00129423827 | Q40: 1.277919113e-05 | R40: FALSE | S40: 0.009208528427 | T40: 0 | U40: 0 | V40: 0 | W40: 0 | X40: 0 | Y40: =S40*K40*1000*($X$34/365) -> 0
A41: 2018 | B41: 5 | C41: =IF(LOADPROFILE=0.1,Results_10PoE!C12,IF(LOADPROFILE=0.5,Results_50PoE!C12,"Invalid Load Profile %")) -> 6469 | D41: 82.99431818 | E41: 55.32954545 | F41: 27.66477273 | G41: 0 | H41: 0 | I41: 0 | J41: 0 | K41: 0 | L41: 0 | M41: 0 | N41: 0 | O41: 0.009680286224 | P41: 0.00129423827 | Q41: 1.277919113e-05 | R41: FALSE | S41: 0.009208528427 | T41: 0 | U41: 0 | V41: 0 | W41: 0 | X41: 0 | Y41: 0
A42: 2018 | B42: 6 | C42: =IF(LOADPROFILE=0.1,Results_10PoE!C13,IF(LOADPROFILE=0.5,Results_50PoE!C13,"Invalid Load Profile %")) -> 6074 | D42: 82.99431818 | E42: 55.32954545 | F42: 27.66477273 | G42: 0 | H42: 0 | I42: 0 | J42: 0 | K42: 0 | L42: 0 | M42: 0 | N42: 0 | O42: 0.009680286224 | P42: 0.00129423827 | Q42: 1.277919113e-05 | R42: FALSE | S42: 0.009208528427 | T42: 0 | U42: 0 | V42: 0 | W42: 0 | X42: 0 | Y42: 0
A43: 2018 | B43: 7 | C43: =IF(LOADPROFILE=0.1,Results_10PoE!C14,IF(LOADPROFILE=0.5,Results_50PoE!C14,"Invalid Load Profile %")) -> 5718 | D43: 82.99431818 | E43: 55.32954545 | F43: 27.66477273 | G43: 0 | H43: 0 | I43: 0 | J43: 0 | K43: 0 | L43: 0 | M43: 0 | N43: 0 | O43: 0.009680286224 | P43: 0.00129423827 | Q43: 1.277919113e-05 | R43: FALSE | S43: 0.009208528427 | T43: 0 | U43: 0 | V43: =P43*L43*1000*($U$34/365) -> 0 | W43: 0 | X43: 0 | Y43: 0
A44: 2018 | B44: 8 | C44: =IF(LOADPROFILE=0.1,Results_10PoE!C15,IF(LOADPROFILE=0.5,Results_50PoE!C15,"Invalid Load Profile %")) -> 5398 | D44: 82.99431818 | E44: 55.32954545 | F44: 27.66477273 | G44: 0 | H44: 0 | I44: 0 | J44: 0 | K44: 0 | L44: =IF(D44=150,0,IF(IF($I44>F44,($I44-F44)*($C44-$C45),0)<0,0,IF($I44>F44,($I44-F44)*($C44-$C45),0)))*$Y$30 -> 0 | M44: 0 | N44: 0 | O44: 0.009680286224 | P44: =VLOOKUP($A44, $Q$4:$BB$26,34,FALSE) -> 0.00129423827 | Q44: 1.277919113e-05 | R44: FALSE | S44: 0.009208528427 | T44: 0 | U44: 0 | V44: =P44*L44*1000*($U$34/365) -> 0 | W44: 0 | X44: 0 | Y44: 0
A45: 2018 | B45: 9 | C45: =IF(LOADPROFILE=0.1,Results_10PoE!C16,IF(LOADPROFILE=0.5,Results_50PoE!C16,"Invalid Load Profile %")) -> 5084 | D45: 82.99431818 | E45: 55.32954545 | F45: 27.66477273 | G45: 0 | H45: 0 | I45: 0 | J45: 0 | K45: 0 | L45: 0 | M45: 0 | N45: 0 | O45: 0.009680286224 | P45: 0.00129423827 | Q45: 1.277919113e-05 | R45: FALSE | S45: 0.009208528427 | T45: 0 | U45: 0 | V45: 0 | W45: 0 | X45: 0 | Y45: 0
A46: 2018 | B46: 10 | C46: =IF(LOADPROFILE=0.1,Results_10PoE!C17,IF(LOADPROFILE=0.5,Results_50PoE!C17,"Invalid Load Profile %")) -> 4760 | D46: 82.99431818 | E46: 55.32954545 | F46: 27.66477273 | G46: 0 | H46: 0 | I46: 0 | J46: 0 | K46: 0 | L46: 0 | M46: 0 | N46: 0 | O46: 0.009680286224 | P46: 0.00129423827 | Q46: 1.277919113e-05 | R46: FALSE | S46: 0.009208528427 | T46: 0 | U46: 0 | V46: 0 | W46: 0 | X46: 0 | Y46: 0
A47: 2018 | B47: 11 | C47: =IF(LOADPROFILE=0.1,Results_10PoE!C18,IF(LOADPROFILE=0.5,Results_50PoE!C18,"Invalid Load Profile %")) -> 4469 | D47: 82.99431818 | E47: 55.32954545 | F47: 27.66477273 | G47: 0 | H47: 0 | I47: 0 | J47: 0 | K47: 0 | L47: 0 | M47: 0 | N47: 0 | O47: 0.009680286224 | P47: =VLOOKUP($A47, $Q$4:$BB$26,34,FALSE) -> 0.00129423827 | Q47: 1.277919113e-05 | R47: FALSE | S47: 0.009208528427 | T47: 0 | U47: 0 | V47: 0 | W47: 0 | X47: 0 | Y47: 0
A48: 2018 | B48: 12 | C48: =IF(LOADPROFILE=0.1,Results_10PoE!C19,IF(LOADPROFILE=0.5,Results_50PoE!C19,"Invalid Load Profile %")) -> 4242 | D48: 82.99431818 | E48: 55.32954545 | F48: 27.66477273 | G48: 0 | H48: 0 | I48: 0 | J48: 0 | K48: 0 | L48: 0 | M48: 0 | N48: 0 | O48: 0.009680286224 | P48: 0.00129423827 | Q48: 1.277919113e-05 | R48: FALSE | S48: 0.009208528427 | T48: 0 | U48: 0 | V48: 0 | W48: 0 | X48: 0 | Y48: 0
A49: 2018 | B49: 13 | C49: =IF(LOADPROFILE=0.1,Results_10PoE!C20,IF(LOADPROFILE=0.5,Results_50PoE!C20,"Invalid Load Profile %")) -> 4042 | D49: 82.99431818 | E49: 55.32954545 | F49: 27.66477273 | G49: 0 | H49: 0 | I49: 0 | J49: 0 | K49: 0 | L49: 0 | M49: 0 | N49: 0 | O49: 0.009680286224 | P49: 0.00129423827 | Q49: 1.277919113e-05 | R49: FALSE | S49: 0.009208528427 | T49: 0 | U49: 0 | V49: 0 | W49: 0 | X49: 0 | Y49: 0
A50: 2018 | B50: 14 | C50: =IF(LOADPROFILE=0.1,Results_10PoE!C21,IF(LOADPROFILE=0.5,Results_50PoE!C21,"Invalid Load Profile %")) -> 3854 | D50: 82.99431818 | E50: 55.32954545 | F50: 27.66477273 | G50: 0 | H50: 0 | I50: 0 | J50: 0 | K50: 0 | L50: 0 | M50: 0 | N50: 0 | O50: 0.009680286224 | P50: 0.00129423827 | Q50: 1.277919113e-05 | R50: FALSE | S50: 0.009208528427 | T50: 0 | U50: 0 | V50: 0 | W50: 0 | X50: 0 | Y50: 0
A51: 2018 | B51: 15 | C51: =IF(LOADPROFILE=0.1,Results_10PoE!C22,IF(LOADPROFILE=0.5,Results_50PoE!C22,"Invalid Load Profile %")) -> 3680 | D51: 82.99431818 | E51: 55.32954545 | F51: 27.66477273 | G51: 0 | H51: 0 | I51: 0 | J51: 0 | K51: 0 | L51: 0 | M51: 0 | N51: 0 | O51: 0.009680286224 | P51: 0.00129423827 | Q51: 1.277919113e-05 | R51: FALSE | S51: 0.009208528427 | T51: 0 | U51: 0 | V51: 0 | W51: 0 | X51: 0 | Y51: 0
A52: 2018 | B52: 16 | C52: =IF(LOADPROFILE=0.1,Results_10PoE!C23,IF(LOADPROFILE=0.5,Results_50PoE!C23,"Invalid Load Profile %")) -> 3550 | D52: 82.99431818 | E52: 55.32954545 | F52: 27.66477273 | G52: 0 | H52: 0 | I52: 0 | J52: 0 | K52: 0 | L52: 0 | M52: 0 | N52: 0 | O52: 0.009680286224 | P52: 0.00129423827 | Q52: 1.277919113e-05 | R52: FALSE | S52: 0.009208528427 | T52: 0 | U52: 0 | V52: 0 | W52: 0 | X52: 0 | Y52: 0
A53: 2018 | B53: 17 | C53: =IF(LOADPROFILE=0.1,Results_10PoE!C24,IF(LOADPROFILE=0.5,Results_50PoE!C24,"Invalid Load Profile %")) -> 3416 | D53: 82.99431818 | E53: 55.32954545 | F53: 27.66477273 | G53: 0 | H53: 0 | I53: 0 | J53: 0 | K53: 0 | L53: 0 | M53: 0 | N53: 0 | O53: 0.009680286224 | P53: 0.00129423827 | Q53: 1.277919113e-05 | R53: FALSE | S53: 0.009208528427 | T53: 0 | U53: 0 | V53: 0 | W53: 0 | X53: 0 | Y53: 0
A54: 2018 | B54: 18 | C54: =IF(LOADPROFILE=0.1,Results_10PoE!C25,IF(LOADPROFILE=0.5,Results_50PoE!C25,"Invalid Load Profile %")) -> 3272 | D54: 82.99431818 | E54: 55.32954545 | F54: 27.66477273 | G54: 0 | H54: 0 | I54: 0 | J54: 0 | K54: 0 | L54: 0 | M54: 0 | N54: 0 | O54: 0.009680286224 | P54: 0.00129423827 | Q54: 1.277919113e-05 | R54: FALSE | S54: 0.009208528427 | T54: 0 | U54: 0 | V54: 0 | W54: 0 | X54: 0 | Y54: 0
A55: 2018 | B55: 19 | C55: =IF(LOADPROFILE=0.1,Results_10PoE!C26,IF(LOADPROFILE=0.5,Results_50PoE!C26,"Invalid Load Profile %")) -> 3109 | D55: 82.99431818 | E55: 55.32954545 | F55: 27.66477273 | G55: 0 | H55: 0 | I55: 0.323646807 | J55: 0 | K55: 0 | L55: 0 | M55: 45.58118053 | N55: 45.58118053 | O55: 0.009680286224 | P55: 0.00129423827 | Q55: 1.277919113e-05 | R55: FALSE | S55: 0.009208528427 | T55: 0 | U55: 0 | V55: 0 | W55: 0.1838436142 | X55: 0 | Y55: 0
A56: 2018 | B56: 20 | C56: =IF(LOADPROFILE=0.1,Results_10PoE!C27,IF(LOADPROFILE=0.5,Results_50PoE!C27,"Invalid Load Profile %")) -> 2967 | D56: 82.99431818 | E56: 55.32954545 | F56: 27.66477273 | G56: 0 | H56: 0 | I56: 1.323646807 | J56: 0 | K56: 0 | L56: 0 | M56: 212.6733288 | N56: 212.6733288 | O56: 0.009680286224 | P56: 0.00129423827 | Q56: 1.277919113e-05 | R56: FALSE | S56: 0.009208528427 | T56: 0 | U56: 0 | V56: 0 | W56: 0.8577801836 | X56: 0 | Y56: 0
A57: 2018 | B57: 21 | C57: =IF(LOADPROFILE=0.1,Results_10PoE!C28,IF(LOADPROFILE=0.5,Results_50PoE!C28,"Invalid Load Profile %")) -> 2805 | D57: 82.99431818 | E57: 55.32954545 | F57: 27.66477273 | G57: 0 | H57: 0 | I57: 2.323646807 | J57: 0 | K57: 0 | L57: 0 | M57: 361.8225804 | N57: 361.8225804 | O57: 0.009680286224 | P57: 0.00129423827 | Q57: 1.277919113e-05 | R57: FALSE | S57: 0.009208528427 | T57: 0 | U57: 0 | V57: 0 | W57: 1.459347259 | X57: 0 | Y57: 0
A58: 2018 | B58: 22 | C58: =IF(LOADPROFILE=0.1,Results_10PoE!C29,IF(LOADPROFILE=0.5,Results_50PoE!C29,"Invalid Load Profile %")) -> 2648 | D58: 82.99431818 | E58: 55.32954545 | F58: 27.66477273 | G58: 0 | H58: 0 | I58: 3.323646807 | J58: 0 | K58: 0 | L58: 0 | M58: 619.7244257 | N58: 619.7244257 | O58: 0.009680286224 | P58: 0.00129423827 | Q58: 1.277919113e-05 | R58: FALSE | S58: 0.009208528427 | T58: 0 | U58: 0 | V58: 0 | W58: 2.499548649 | X58: 0 | Y58: 0
A59: 2018 | B59: 23 | C59: =IF(LOADPROFILE=0.1,Results_10PoE!C30,IF(LOADPROFILE=0.5,Results_50PoE!C30,"Invalid Load Profile %")) -> 2460 | D59: 82.99431818 | E59: 55.32954545 | F59: 27.66477273 | G59: 0 | H59: 0 | I59: 4.323646807 | J59: 0 | K59: 0 | L59: 0 | M59: 711.8429623 | N59: 711.8429623 | O59: 0.009680286224 | P59: 0.00129423827 | Q59: 1.277919113e-05 | R59: FALSE | S59: 0.009208528427 | T59: 0 | U59: 0 | V59: 0 | W59: 2.871092442 | X59: 0 | Y59: 0
A60: 2018 | B60: 24 | C60: =IF(LOADPROFILE=0.1,Results_10PoE!C31,IF(LOADPROFILE=0.5,Results_50PoE!C31,"Invalid Load Profile %")) -> 2294 | D60: 82.99431818 | E60: 55.32954545 | F60: 27.66477273 | G60: 0 | H60: 0 | I60: 5.323646807 | J60: 0 | K60: 0 | L60: 0 | M60: 1198.56334 | N60: 1198.56334 | O60: 0.009680286224 | P60: 0.00129423827 | Q60: 1.277919113e-05 | R60: FALSE | S60: 0.009208528427 | T60: 0 | U60: 0 | V60: 0 | W60: 4.834192833 | X60: 0 | Y60: 0
A61: 2018 | B61: 25 | C61: =IF(LOADPROFILE=0.1,Results_10PoE!C32,IF(LOADPROFILE=0.5,Results_50PoE!C32,"Invalid Load Profile %")) -> 2067 | D61: 82.99431818 | E61: 55.32954545 | F61: 27.66477273 | G61: 0 | H61: 0 | I61: 6.323646807 | J61: 0 | K61: 0 | L61: 0 | M61: 1285.722856 | N61: 1285.722856 | O61: 0.009680286224 | P61: 0.00129423827 | Q61: 1.277919113e-05 | R61: FALSE | S61: 0.009208528427 | T61: 0 | U61: 0 | V61: 0 | W61: 5.185735295 | X61: 0 | Y61: 0
A62: 2018 | B62: 26 | C62: =IF(LOADPROFILE=0.1,Results_10PoE!C33,IF(LOADPROFILE=0.5,Results_50PoE!C33,"Invalid Load Profile %")) -> 1862 | D62: 82.99431818 | E62: 55.32954545 | F62: 27.66477273 | G62: 0 | H62: 0 | I62: 7.323646807 | J62: 0 | K62: 0 | L62: 0 | M62: 1568.942548 | N62: 1568.942548 | O62: 0.009680286224 | P62: 0.00129423827 | Q62: 1.277919113e-05 | R62: FALSE | S62: 0.009208528427 | T62: 0 | U62: 0 | V62: 0 | W62: 6.328051733 | X62: 0 | Y62: 0
A63: 2018 | B63: 27 | C63: =IF(LOADPROFILE=0.1,Results_10PoE!C34,IF(LOADPROFILE=0.5,Results_50PoE!C34,"Invalid Load Profile %")) -> 1646 | D63: 82.99431818 | E63: 55.32954545 | F63: 27.66477273 | G63: 0 | H63: 0 | I63: 8.323646807 | J63: 0 | K63: 0 | L63: 0 | M63: 1444.699726 | N63: 1444.699726 | O63: 0.009680286224 | P63: 0.00129423827 | Q63: 1.277919113e-05 | R63: FALSE | S63: 0.009208528427 | T63: 0 | U63: 0 | V63: 0 | W63: 5.826940326 | X63: 0 | Y63: 0
A64: 2018 | B64: 28 | C64: =IF(LOADPROFILE=0.1,Results_10PoE!C35,IF(LOADPROFILE=0.5,Results_50PoE!C35,"Invalid Load Profile %")) -> 1471 | D64: 82.99431818 | E64: 55.32954545 | F64: 27.66477273 | G64: 0 | H64: 0 | I64: 9.323646807 | J64: 0 | K64: 0 | L64: 0 | M64: 1646.007136 | N64: 1646.007136 | O64: 0.009680286224 | P64: 0.00129423827 | Q64: 1.277919113e-05 | R64: FALSE | S64: 0.009208528427 | T64: 0 | U64: 0 | V64: 0 | W64: 6.638878092 | X64: 0 | Y64: 0
A65: 2018 | B65: 29 | C65: =IF(LOADPROFILE=0.1,Results_10PoE!C36,IF(LOADPROFILE=0.5,Results_50PoE!C36,"Invalid Load Profile %")) -> 1293 | D65: 82.99431818 | E65: 55.32954545 | F65: 27.66477273 | G65: 0 | H65: 0 | I65: 10.32364681 | J65: 0 | K65: 0 | L65: 0 | M65: 1699.679843 | N65: 1699.679843 | O65: 0.009680286224 | P65: 0.00129423827 | Q65: 1.277919113e-05 | R65: FALSE | S65: 0.009208528427 | T65: 0 | U65: 0 | V65: 0 | W65: 6.855357443 | X65: 0 | Y65: 0
A66: 2018 | B66: 30 | C66: =IF(LOADPROFILE=0.1,Results_10PoE!C37,IF(LOADPROFILE=0.5,Results_50PoE!C37,"Invalid Load Profile %")) -> 1127 | D66: 82.99431818 | E66: 55.32954545 | F66: 27.66477273 | G66: 0 | H66: 0 | I66: 11.32364681 | J66: 0 | K66: 0 | L66: 0 | M66: 2077.705269 | N66: 2077.705269 | O66: 0.009680286224 | P66: 0.00129423827 | Q66: 1.277919113e-05 | R66: FALSE | S66: 0.009208528427 | T66: 0 | U66: 0 | V66: 0 | W66: 8.380056012 | X66: 0 | Y66: 0
A67: 2018 | B67: 31 | C67: =IF(LOADPROFILE=0.1,Results_10PoE!C38,IF(LOADPROFILE=0.5,Results_50PoE!C38,"Invalid Load Profile %")) -> 942 | D67: 82.99431818 | E67: 55.32954545 | F67: 27.66477273 | G67: 0 | H67: 0 | I67: 12.32364681 | J67: 0 | K67: 0 | L67: 0 | M67: 2273.411671 | N67: 2273.411671 | O67: 0.009680286224 | P67: 0.00129423827 | Q67: 1.277919113e-05 | R67: FALSE | S67: 0.009208528427 | T67: 0 | U67: 0 | V67: 0 | W67: 9.1694031 | X67: 0 | Y67: 0
A68: 2018 | B68: 32 | C68: =IF(LOADPROFILE=0.1,Results_10PoE!C39,IF(LOADPROFILE=0.5,Results_50PoE!C39,"Invalid Load Profile %")) -> 756 | D68: 82.99431818 | E68: 55.32954545 | F68: 27.66477273 | G68: 0 | H68: 0 | I68: 13.32364681 | J68: 0 | K68: 0 | L68: 0 | M68: 1968.952676 | N68: 1968.952676 | O68: 0.009680286224 | P68: 0.00129423827 | Q68: 1.277919113e-05 | R68: FALSE | S68: 0.009208528427 | T68: 0 | U68: 0 | V68: 0 | W68: 7.941421697 | X68: 0 | Y68: 0
A69: 2018 | B69: 33 | C69: =IF(LOADPROFILE=0.1,Results_10PoE!C40,IF(LOADPROFILE=0.5,Results_50PoE!C40,"Invalid Load Profile %")) -> 607 | D69: 82.99431818 | E69: 55.32954545 | F69: 27.66477273 | G69: 0 | H69: 0 | I69: 14.32364681 | J69: 0 | K69: 0 | L69: 0 | M69: 1548.481423 | N69: 1548.481423 | O69: 0.009680286224 | P69: 0.00129423827 | Q69: 1.277919113e-05 | R69: FALSE | S69: 0.009208528427 | T69: 0 | U69: 0 | V69: 0 | W69: 6.24552541 | X69: 0 | Y69: 0
A70: 2018 | B70: 34 | C70: =IF(LOADPROFILE=0.1,Results_10PoE!C41,IF(LOADPROFILE=0.5,Results_50PoE!C41,"Invalid Load Profile %")) -> 498 | D70: 82.99431818 | E70: 55.32954545 | F70: 27.66477273 | G70: 0 | H70: 0 | I70: 15.32364681 | J70: 0 | K70: 0 | L70: 0 | M70: 1671.786125 | N70: 1671.786125 | O70: 0.009680286224 | P70: 0.00129423827 | Q70: 1.277919113e-05 | R70: FALSE | S70: 0.009208528427 | T70: 0 | U70: 0 | V70: 0 | W70: 6.742853076 | X70: 0 | Y70: 0
A71: 2018 | B71: 35 | C71: =IF(LOADPROFILE=0.1,Results_10PoE!C42,IF(LOADPROFILE=0.5,Results_50PoE!C42,"Invalid Load Profile %")) -> 388 | D71: 82.99431818 | E71: 55.32954545 | F71: 27.66477273 | G71: 0 | H71: 0 | I71: 16.32364681 | J71: 0 | K71: 0 | L71: 0 | M71: 1117.100325 | N71: 1117.100325 | O71: 0.009680286224 | P71: 0.00129423827 | Q71: 1.277919113e-05 | R71: FALSE | S71: 0.009208528427 | T71: 0 | U71: 0 | V71: 0 | W71: 4.505626197 | X71: 0 | Y71: 0
A72: 2018 | B72: 36 | C72: =IF(LOADPROFILE=0.1,Results_10PoE!C43,IF(LOADPROFILE=0.5,Results_50PoE!C43,"Invalid Load Profile %")) -> 319 | D72: 82.99431818 | E72: 55.32954545 | F72: 27.66477273 | G72: 0 | H72: 0 | I72: 17.32364681 | J72: 0 | K72: 0 | L72: 0 | M72: 1116.808152 | N72: 1116.808152 | O72: 0.009680286224 | P72: 0.00129423827 | Q72: 1.277919113e-05 | R72: FALSE | S72: 0.009208528427 | T72: 0 | U72: 0 | V72: 0 | W72: 4.50444777 | X72: 0 | Y72: 0
A73: 2018 | B73: 37 | C73: =IF(LOADPROFILE=0.1,Results_10PoE!C44,IF(LOADPROFILE=0.5,Results_50PoE!C44,"Invalid Load Profile %")) -> 254 | D73: 82.99431818 | E73: 55.32954545 | F73: 27.66477273 | G73: 0 | H73: 0 | I73: 18.32364681 | J73: 0 | K73: 0 | L73: 0 | M73: 872.3264627 | N73: 872.3264627 | O73: 0.009680286224 | P73: 0.00129423827 | Q73: 1.277919113e-05 | R73: FALSE | S73: 0.009208528427 | T73: 0 | U73: 0 | V73: 0 | W73: 3.518374201 | X73: 0 | Y73: 0
A74: 2018 | B74: 38 | C74: =IF(LOADPROFILE=0.1,Results_10PoE!C45,IF(LOADPROFILE=0.5,Results_50PoE!C45,"Invalid Load Profile %")) -> 206 | D74: 82.99431818 | E74: 55.32954545 | F74: 27.66477273 | G74: 0 | H74: 0 | I74: 19.32364681 | J74: 0 | K74: 0 | L74: 0 | M74: 1245.742684 | N74: 1245.742684 | O74: 0.009680286224 | P74: 0.00129423827 | Q74: 1.277919113e-05 | R74: FALSE | S74: 0.009208528427 | T74: 0 | U74: 0 | V74: 0 | W74: 5.024482358 | X74: 0 | Y74: 0
A75: 2018 | B75: 39 | C75: =IF(LOADPROFILE=0.1,Results_10PoE!C46,IF(LOADPROFILE=0.5,Results_50PoE!C46,"Invalid Load Profile %")) -> 141 | D75: 82.99431818 | E75: 55.32954545 | F75: 27.66477273 | G75: 0 | H75: 0 | I75: 20.32364681 | J75: 0 | K75: 0 | L75: 0 | M75: 765.9688943 | N75: 765.9688943 | O75: 0.009680286224 | P75: 0.00129423827 | Q75: 1.277919113e-05 | R75: FALSE | S75: 0.009208528427 | T75: 0 | U75: 0 | V75: 0 | W75: 3.089399797 | X75: 0 | Y75: 0
A76: 2018 | B76: 40 | C76: =IF(LOADPROFILE=0.1,Results_10PoE!C47,IF(LOADPROFILE=0.5,Results_50PoE!C47,"Invalid Load Profile %")) -> 103 | D76: 82.99431818 | E76: 55.32954545 | F76: 27.66477273 | G76: 0 | H76: 0 | I76: 21.32364681 | J76: 0 | K76: 0 | L76: 0 | M76: 993.9973723 | N76: 993.9973723 | O76: 0.009680286224 | P76: 0.00129423827 | Q76: 1.277919113e-05 | R76: FALSE | S76: 0.009208528427 | T76: 0 | U76: 0 | V76: 0 | W76: 4.009112254 | X76: 0 | Y76: 0
A77: 2018 | B77: 41 | C77: =IF(LOADPROFILE=0.1,Results_10PoE!C48,IF(LOADPROFILE=0.5,Results_50PoE!C48,"Invalid Load Profile %")) -> 56 | D77: 82.99431818 | E77: 55.32954545 | F77: 27.66477273 | G77: 0 | H77: 0 | I77: 22.32364681 | J77: 0 | K77: 0 | L77: 0 | M77: 642.0798464 | N77: 642.0798464 | O77: 0.009680286224 | P77: 0.00129423827 | Q77: 1.277919113e-05 | R77: FALSE | S77: 0.009208528427 | T77: 0 | U77: 0 | V77: 0 | W77: 2.589715277 | X77: 0 | Y77: 0
A78: 2018 | B78: 42 | C78: =IF(LOADPROFILE=0.1,Results_10PoE!C49,IF(LOADPROFILE=0.5,Results_50PoE!C49,"Invalid Load Profile %")) -> 27 | D78: 82.99431818 | E78: 55.32954545 | F78: 27.66477273 | G78: 0 | H78: 0 | I78: 23.32364681 | J78: 0 | K78: 0 | L78: 0 | M78: 300.7223499 | N78: 300.7223499 | O78: 0.009680286224 | P78: 0.00129423827 | Q78: 1.277919113e-05 | R78: FALSE | S78: 0.009208528427 | T78: 0 | U78: 0 | V78: 0 | W78: 1.212910307 | X78: 0 | Y78: 0
A79: 2018 | B79: 43 | C79: =IF(LOADPROFILE=0.1,Results_10PoE!C50,IF(LOADPROFILE=0.5,Results_50PoE!C50,"Invalid Load Profile %")) -> 14 | D79: 82.99431818 | E79: 55.32954545 | F79: 27.66477273 | G79: 0 | H79: 0 | I79: 24.32364681 | J79: 0 | K79: 0 | L79: 0 | M79: 217.118633 | N79: 217.118633 | O79: 0.009680286224 | P79: 0.00129423827 | Q79: 1.277919113e-05 | R79: FALSE | S79: 0.009208528427 | T79: 0 | U79: 0 | V79: 0 | W79: 0.8757095302 | X79: 0 | Y79: 0
A80: 2018 | B80: 44 | C80: =IF(LOADPROFILE=0.1,Results_10PoE!C51,IF(LOADPROFILE=0.5,Results_50PoE!C51,"Invalid Load Profile %")) -> 5 | D80: 82.99431818 | E80: 55.32954545 | F80: 27.66477273 | G80: 0 | H80: 0 | I80: 25.32364681 | J80: 0 | K80: 0 | L80: 0 | M80: 50.2321933 | N80: 50.2321933 | O80: 0.009680286224 | P80: 0.00129423827 | Q80: 1.277919113e-05 | R80: FALSE | S80: 0.009208528427 | T80: 0 | U80: 0 | V80: 0 | W80: 0.20260265 | X80: 0 | Y80: 0
A81: 2018 | B81: 45 | C81: =IF(LOADPROFILE=0.1,Results_10PoE!C52,IF(LOADPROFILE=0.5,Results_50PoE!C52,"Invalid Load Profile %")) -> 3 | D81: 82.99431818 | E81: 55.32954545 | F81: 27.66477273 | G81: 0 | H81: 0 | I81: 26.32364681 | J81: 0 | K81: 0 | L81: 0 | M81: 26.10790075 | N81: 26.10790075 | O81: 0.009680286224 | P81: 0.00129423827 | Q81: 1.277919113e-05 | R81: FALSE | S81: 0.009208528427 | T81: 0 | U81: 0 | V81: 0 | W81: 0.105301591 | X81: 0 | Y81: 0
A82: 2018 | B82: 46 | C82: =IF(LOADPROFILE=0.1,Results_10PoE!C53,IF(LOADPROFILE=0.5,Results_50PoE!C53,"Invalid Load Profile %")) -> 2 | D82: 82.99431818 | E82: 55.32954545 | F82: 27.66477273 | G82: 0 | H82: 0 | I82: 27.32364681 | J82: 0 | K82: 0 | L82: 0 | M82: 54.19940969 | N82: 54.19940969 | O82: 0.009680286224 | P82: 0.00129423827 | Q82: 1.277919113e-05 | R82: FALSE | S82: 0.009208528427 | T82: 0 | U82: 0 | V82: 0 | W82: 0.2186037142 | X82: 0 | Y82: 0
A83: 2018 | B83: 47 | C83: =IF(LOADPROFILE=0.1,Results_10PoE!C54,IF(LOADPROFILE=0.5,Results_50PoE!C54,"Invalid Load Profile %")) -> 0 | D83: 82.99431818 | E83: 55.32954545 | F83: 27.66477273 | G83: 0 | H83: 0 | I83: 28.32364681 | J83: 0 | K83: 0 | L83: 0 | M83: 0 | N83: 0 | O83: 0.009680286224 | P83: 0.00129423827 | Q83: 1.277919113e-05 | R83: FALSE | S83: 0.009208528427 | T83: 0 | U83: 0 | V83: 0 | W83: 0 | X83: 0 | Y83: 0
A84: 2018 | B84: 48 | C84: =IF(LOADPROFILE=0.1,Results_10PoE!C55,IF(LOADPROFILE=0.5,Results_50PoE!C55,"Invalid Load Profile %")) -> 0 | D84: 82.99431818 | E84: 55.32954545 | F84: 27.66477273 | G84: 0 | H84: 0 | I84: 29.32364681 | J84: 0 | K84: 0 | L84: 0 | M84: 0 | N84: 0 | O84: 0.009680286224 | P84: 0.00129423827 | Q84: 1.277919113e-05 | R84: FALSE | S84: 0.009208528427 | T84: 0 | U84: 0 | V84: 0 | W84: 0 | X84: 0 | Y84: 0
A85: 2018 | B85: 49 | C85: =IF(LOADPROFILE=0.1,Results_10PoE!C56,IF(LOADPROFILE=0.5,Results_50PoE!C56,"Invalid Load Profile %")) -> 0 | D85: 82.99431818 | E85: 55.32954545 | F85: 27.66477273 | G85: 0 | H85: 0 | I85: 30.32364681 | J85: 0 | K85: 0 | L85: 0 | M85: 0 | N85: 0 | O85: 0.009680286224 | P85: 0.00129423827 | Q85: 1.277919113e-05 | R85: FALSE | S85: 0.009208528427 | T85: 0 | U85: 0 | V85: 0 | W85: 0 | X85: 0 | Y85: 0
A86: 2018 | B86: 50 | C86: =IF(LOADPROFILE=0.1,Results_10PoE!C57,IF(LOADPROFILE=0.5,Results_50PoE!C57,"Invalid Load Profile %")) -> 0 | D86: 82.99431818 | E86: 55.32954545 | F86: 27.66477273 | G86: 0 | H86: 0 | I86: 31.32364681 | J86: 0 | K86: 0 | L86: 0 | M86: 0 | N86: 0 | O86: 0.009680286224 | P86: 0.00129423827 | Q86: 1.277919113e-05 | R86: FALSE | S86: 0.009208528427 | T86: 0 | U86: 0 | V86: 0 | W86: 0 | X86: 0 | Y86: 0
A87: 2018 | B87: 51 | C87: =IF(LOADPROFILE=0.1,Results_10PoE!C58,IF(LOADPROFILE=0.5,Results_50PoE!C58,"Invalid Load Profile %")) -> 0 | D87: 82.99431818 | E87: 55.32954545 | F87: 27.66477273 | G87: 0 | H87: 0 | I87: 32.32364681 | J87: 0 | K87: 0 | L87: 0 | M87: 0 | N87: 0 | O87: 0.009680286224 | P87: 0.00129423827 | Q87: 1.277919113e-05 | R87: FALSE | S87: 0.009208528427 | T87: 0 | U87: 0 | V87: 0 | W87: 0 | X87: 0 | Y87: 0
A88: 2018 | B88: 52 | C88: =IF(LOADPROFILE=0.1,Results_10PoE!C59,IF(LOADPROFILE=0.5,Results_50PoE!C59,"Invalid Load Profile %")) -> 0 | D88: 82.99431818 | E88: 55.32954545 | F88: 27.66477273 | G88: 0 | H88: 0 | I88: 33.32364681 | J88: 0 | K88: 0 | L88: 0 | M88: 0 | N88: 0 | O88: 0.009680286224 | P88: 0.00129423827 | Q88: 1.277919113e-05 | R88: FALSE | S88: 0.009208528427 | T88: 0 | U88: 0 | V88: 0 | W88: 0 | X88: 0 | Y88: 0
A89: 2018 | B89: 53 | C89: =IF(LOADPROFILE=0.1,Results_10PoE!C60,IF(LOADPROFILE=0.5,Results_50PoE!C60,"Invalid Load Profile %")) -> 0 | D89: 82.99431818 | E89: 55.32954545 | F89: 27.66477273 | G89: 0 | H89: 0 | I89: 34.32364681 | J89: 0 | K89: 0 | L89: 0 | M89: 0 | N89: 0 | O89: 0.009680286224 | P89: 0.00129423827 | Q89: 1.277919113e-05 | R89: FALSE | S89: 0.009208528427 | T89: 0 | U89: 0 | V89: 0 | W89: 0 | X89: 0 | Y89: 0
A90: 2018 | B90: 54 | C90: =IF(LOADPROFILE=0.1,Results_10PoE!C61,IF(LOADPROFILE=0.5,Results_50PoE!C61,"Invalid Load Profile %")) -> 0 | D90: 82.99431818 | E90: 55.32954545 | F90: 27.66477273 | G90: 0 | H90: 0 | I90: 35.32364681 | J90: 0 | K90: 0 | L90: 0 | M90: 0 | N90: 0 | O90: 0.009680286224 | P90: 0.00129423827 | Q90: 1.277919113e-05 | R90: FALSE | S90: 0.009208528427 | T90: 0 | U90: 0 | V90: 0 | W90: 0 | X90: 0 | Y90: 0
A91: 2018 | B91: 55 | C91: =IF(LOADPROFILE=0.1,Results_10PoE!C62,IF(LOADPROFILE=0.5,Results_50PoE!C62,"Invalid Load Profile %")) -> 0 | D91: 82.99431818 | E91: 55.32954545 | F91: 27.66477273 | G91: 0 | H91: 0 | I91: 36.32364681 | J91: 0 | K91: 0 | L91: 0 | M91: 0 | N91: 0 | O91: 0.009680286224 | P91: 0.00129423827 | Q91: 1.277919113e-05 | R91: FALSE | S91: 0.009208528427 | T91: 0 | U91: 0 | V91: 0 | W91: 0 | X91: 0 | Y91: 0
A92: 2018 | B92: 56 | C92: =IF(LOADPROFILE=0.1,Results_10PoE!C63,IF(LOADPROFILE=0.5,Results_50PoE!C63,"Invalid Load Profile %")) -> 0 | D92: 82.99431818 | E92: 55.32954545 | F92: 27.66477273 | G92: 0 | H92: 0 | I92: 37.32364681 | J92: 0 | K92: 0 | L92: 0 | M92: 0 | N92: 0 | O92: 0.009680286224 | P92: 0.00129423827 | Q92: 1.277919113e-05 | R92: FALSE | S92: 0.009208528427 | T92: 0 | U92: 0 | V92: 0 | W92: 0 | X92: 0 | Y92: 0
A93: 2018 | B93: 57 | C93: =IF(LOADPROFILE=0.1,Results_10PoE!C64,IF(LOADPROFILE=0.5,Results_50PoE!C64,"Invalid Load Profile %")) -> 0 | D93: 82.99431818 | E93: 55.32954545 | F93: 27.66477273 | G93: 0 | H93: 0 | I93: 38.32364681 | J93: 0 | K93: 0 | L93: 0 | M93: 0 | N93: 0 | O93: 0.009680286224 | P93: 0.00129423827 | Q93: 1.277919113e-05 | R93: FALSE | S93: 0.009208528427 | T93: 0 | U93: 0 | V93: 0 | W93: 0 | X93: 0 | Y93: 0
A94: 2018 | B94: 58 | C94: =IF(LOADPROFILE=0.1,Results_10PoE!C65,IF(LOADPROFILE=0.5,Results_50PoE!C65,"Invalid Load Profile %")) -> 0 | D94: 82.99431818 | E94: 55.32954545 | F94: 27.66477273 | G94: 0 | H94: 0 | I94: 39.32364681 | J94: 0 | K94: 0 | L94: 0 | M94: 0 | N94: 0 | O94: 0.009680286224 | P94: 0.00129423827 | Q94: 1.277919113e-05 | R94: FALSE | S94: 0.009208528427 | T94: 0 | U94: 0 | V94: 0 | W94: 0 | X94: 0 | Y94: 0
A95: 2018 | B95: 59 | C95: =IF(LOADPROFILE=0.1,Results_10PoE!C66,IF(LOADPROFILE=0.5,Results_50PoE!C66,"Invalid Load Profile %")) -> 0 | D95: 82.99431818 | E95: 55.32954545 | F95: 27.66477273 | G95: 0 | H95: 0 | I95: 40.32364681 | J95: 0 | K95: 0 | L95: 0 | M95: 0 | N95: 0 | O95: 0.009680286224 | P95: 0.00129423827 | Q95: 1.277919113e-05 | R95: FALSE | S95: 0.009208528427 | T95: 0 | U95: 0 | V95: 0 | W95: 0 | X95: 0 | Y95: 0
A96: 2018 | B96: 60 | C96: =IF(LOADPROFILE=0.1,Results_10PoE!C67,IF(LOADPROFILE=0.5,Results_50PoE!C67,"Invalid Load Profile %")) -> 0 | D96: 82.99431818 | E96: 55.32954545 | F96: 27.66477273 | G96: 0 | H96: 0 | I96: 41.32364681 | J96: 0 | K96: 0 | L96: 0 | M96: 0 | N96: 0 | O96: 0.009680286224 | P96: 0.00129423827 | Q96: 1.277919113e-05 | R96: FALSE | S96: 0.009208528427 | T96: 0 | U96: 0 | V96: 0 | W96: 0 | X96: 0 | Y96: 0
A97: 2018 | B97: 61 | C97: =IF(LOADPROFILE=0.1,Results_10PoE!C68,IF(LOADPROFILE=0.5,Results_50PoE!C68,"Invalid Load Profile %")) -> 0 | D97: 82.99431818 | E97: 55.32954545 | F97: 27.66477273 | G97: 0 | H97: 0 | I97: 42.32364681 | J97: 0 | K97: 0 | L97: 0 | M97: 0 | N97: 0 | O97: 0.009680286224 | P97: 0.00129423827 | Q97: 1.277919113e-05 | R97: FALSE | S97: 0.009208528427 | T97: 0 | U97: 0 | V97: 0 | W97: 0 | X97: 0 | Y97: 0
A98: 2018 | B98: 62 | C98: =IF(LOADPROFILE=0.1,Results_10PoE!C69,IF(LOADPROFILE=0.5,Results_50PoE!C69,"Invalid Load Profile %")) -> 0 | D98: 82.99431818 | E98: 55.32954545 | F98: 27.66477273 | G98: 0 | H98: 0 | I98: 43.32364681 | J98: 0 | K98: 0 | L98: 0 | M98: 0 | N98: 0 | O98: 0.009680286224 | P98: 0.00129423827 | Q98: 1.277919113e-05 | R98: FALSE | S98: 0.009208528427 | T98: 0 | U98: 0 | V98: 0 | W98: 0 | X98: 0 | Y98: 0
A99: 2018 | B99: 63 | C99: =IF(LOADPROFILE=0.1,Results_10PoE!C70,IF(LOADPROFILE=0.5,Results_50PoE!C70,"Invalid Load Profile %")) -> 0 | D99: 82.99431818 | E99: 55.32954545 | F99: 27.66477273 | G99: 0 | H99: 0 | I99: 44.32364681 | J99: 0 | K99: 0 | L99: 0 | M99: 0 | N99: 0 | O99: 0.009680286224 | P99: 0.00129423827 | Q99: 1.277919113e-05 | R99: FALSE | S99: 0.009208528427 | T99: 0 | U99: 0 | V99: 0 | W99: 0 | X99: 0 | Y99: 0
A100: 2018 | B100: 64 | C100: =IF(LOADPROFILE=0.1,Results_10PoE!C71,IF(LOADPROFILE=0.5,Results_50PoE!C71,"Invalid Load Profile %")) -> 0 | D100: 82.99431818 | E100: 55.32954545 | F100: 27.66477273 | G100: 0 | H100: 0 | I100: 45.32364681 | J100: 0 | K100: 0 | L100: 0 | M100: 0 | N100: 0 | O100: 0.009680286224 | P100: 0.00129423827 | Q100: 1.277919113e-05 | R100: FALSE | S100: 0.009208528427 | T100: 0 | U100: 0 | V100: 0 | W100: 0 | X100: 0 | Y100: 0
A101: 2018 | B101: 65 | C101: =IF(LOADPROFILE=0.1,Results_10PoE!C72,IF(LOADPROFILE=0.5,Results_50PoE!C72,"Invalid Load Profile %")) -> 0 | D101: 82.99431818 | E101: 55.32954545 | F101: 27.66477273 | G101: 0 | H101: 0 | I101: 46.32364681 | J101: 0 | K101: 0 | L101: 0 | M101: 0 | N101: 0 | O101: 0.009680286224 | P101: 0.00129423827 | Q101: 1.277919113e-05 | R101: FALSE | S101: 0.009208528427 | T101: 0 | U101: 0 | V101: 0 | W101: 0 | X101: 0 | Y101: 0
A102: 2018 | B102: 66 | C102: =IF(LOADPROFILE=0.1,Results_10PoE!C73,IF(LOADPROFILE=0.5,Results_50PoE!C73,"Invalid Load Profile %")) -> 0 | D102: =VLOOKUP($A102,$Q$4:$AB$26,6,FALSE) -> 82.99431818 | E102: =VLOOKUP($A102,$Q$4:$AB$26,7,FALSE) -> 55.32954545 | F102: =VLOOKUP($A102,$Q$4:$AB$26,9,FALSE) -> 27.66477273 | G102: =VLOOKUP($A102,$Q$4:$AB$26,10,FALSE) -> 0 | H102: =VLOOKUP($A102,$Q$4:$AB$26,11,FALSE) -> 0 | I102: =IF(B102-VLOOKUP(A102,$Q$4:$AB$26,12,FALSE)<0,0,B102-VLOOKUP(A102,$Q$4:$AB$26,12,FALSE)) -> 47.32364681 | J102: =IF(B102=150,0,IF(IF($I102>D102,($I102-D102)*($C102-$C103),0)<0,0,IF($I102>D102,($I102-D102)*($C102-$C103),0)))*$Y$30 -> 0 | K102: =IF(C102=150,0,IF(IF($I102>E102,($I102-E102)*($C102-$C103),0)<0,0,IF($I102>E102,($I102-E102)*($C102-$C103),0)))*$Y$30 -> 0 | L102: =IF(D102=150,0,IF(IF($I102>F102,($I102-F102)*($C102-$C103),0)<0,0,IF($I102>F102,($I102-F102)*($C102-$C103),0)))*$Y$30 -> 0 | M102: =IF(E102=150,0,IF(IF($I102>G102,($I102-G102)*($C102-$C103),0)<0,0,IF($I102>G102,($I102-G102)*($C102-$C103),0)))*$Y$30 -> 0 | N102: =IF(F102=150,0,IF(IF($I102>H102,($I102-H102)*($C102-$C103),0)<0,0,IF($I102>H102,($I102-H102)*($C102-$C103),0)))*$Y$30 -> 0 | O102: =VLOOKUP($A102, $Q$4:$BB$26,33,FALSE) -> 0.009680286224 | P102: =VLOOKUP($A102, $Q$4:$BB$26,34,FALSE) -> 0.00129423827 | Q102: =VLOOKUP($A102, $Q$4:$BB$26,35,FALSE) -> 1.277919113e-05 | R102: =VLOOKUP($A102, $Q$4:$BB$26,36,FALSE) -> FALSE | S102: =VLOOKUP($A102, $Q$4:$BB$26,37,FALSE) -> 0.009208528427 | T102: =J102*1000*($S$34/365) -> 0 | U102: =O102*K102*1000*($T$34/365) -> 0 | V102: =P102*L102*1000*($U$34/365) -> 0 | W102: =Q102*M102*1000*($V$34/365) -> 0 | X102: =R102*N102*1000*($W$34/365) -> 0 | Y102: =S102*K102*1000*($X$34/365) -> 0
A103: 2018 | B103: 67 | C103: =IF(LOADPROFILE=0.1,Results_10PoE!C74,IF(LOADPROFILE=0.5,Results_50PoE!C74,"Invalid Load Profile %")) -> 0 | D103: 82.99431818 | E103: 55.32954545 | F103: 27.66477273 | G103: 0 | H103: 0 | I103: 48.32364681 | J103: 0 | K103: 0 | L103: 0 | M103: 0 | N103: 0 | O103: 0.009680286224 | P103: 0.00129423827 | Q103: 1.277919113e-05 | R103: FALSE | S103: 0.009208528427 | T103: 0 | U103: 0 | V103: 0 | W103: 0 | X103: 0 | Y103: 0
A104: 2018 | B104: 68 | C104: =IF(LOADPROFILE=0.1,Results_10PoE!C75,IF(LOADPROFILE=0.5,Results_50PoE!C75,"Invalid Load Profile %")) -> 0 | D104: 82.99431818 | E104: 55.32954545 | F104: 27.66477273 | G104: 0 | H104: 0 | I104: 49.32364681 | J104: 0 | K104: 0 | L104: 0 | M104: 0 | N104: 0 | O104: 0.009680286224 | P104: 0.00129423827 | Q104: 1.277919113e-05 | R104: FALSE | S104: 0.009208528427 | T104: 0 | U104: 0 | V104: 0 | W104: 0 | X104: 0 | Y104: 0
A105: 2018 | B105: 69 | C105: =IF(LOADPROFILE=0.1,Results_10PoE!C76,IF(LOADPROFILE=0.5,Results_50PoE!C76,"Invalid Load Profile %")) -> 0 | D105: 82.99431818 | E105: 55.32954545 | F105: 27.66477273 | G105: 0 | H105: 0 | I105: 50.32364681 | J105: 0 | K105: 0 | L105: 0 | M105: 0 | N105: 0 | O105: 0.009680286224 | P105: 0.00129423827 | Q105: 1.277919113e-05 | R105: FALSE | S105: 0.009208528427 | T105: 0 | U105: 0 | V105: 0 | W105: 0 | X105: 0 | Y105: 0
A106: 2018 | B106: 70 | C106: =IF(LOADPROFILE=0.1,Results_10PoE!C77,IF(LOADPROFILE=0.5,Results_50PoE!C77,"Invalid Load Profile %")) -> 0 | D106: 82.99431818 | E106: 55.32954545 | F106: 27.66477273 | G106: 0 | H106: 0 | I106: 51.32364681 | J106: 0 | K106: 0 | L106: 0 | M106: 0 | N106: 0 | O106: 0.009680286224 | P106: 0.00129423827 | Q106: 1.277919113e-05 | R106: FALSE | S106: 0.009208528427 | T106: 0 | U106: 0 | V106: 0 | W106: 0 | X106: 0 | Y106: 0
A107: 2018 | B107: 71 | C107: =IF(LOADPROFILE=0.1,Results_10PoE!C78,IF(LOADPROFILE=0.5,Results_50PoE!C78,"Invalid Load Profile %")) -> 0 | D107: 82.99431818 | E107: 55.32954545 | F107: 27.66477273 | G107: 0 | H107: 0 | I107: 52.32364681 | J107: 0 | K107: 0 | L107: 0 | M107: 0 | N107: 0 | O107: 0.009680286224 | P107: 0.00129423827 | Q107: 1.277919113e-05 | R107: FALSE | S107: 0.009208528427 | T107: 0 | U107: 0 | V107: 0 | W107: 0 | X107: 0 | Y107: 0
A108: 2018 | B108: 72 | C108: =IF(LOADPROFILE=0.1,Results_10PoE!C79,IF(LOADPROFILE=0.5,Results_50PoE!C79,"Invalid Load Profile %")) -> 0 | D108: 82.99431818 | E108: 55.32954545 | F108: 27.66477273 | G108: 0 | H108: 0 | I108: 53.32364681 | J108: 0 | K108: 0 | L108: 0 | M108: 0 | N108: 0 | O108: 0.009680286224 | P108: 0.00129423827 | Q108: 1.277919113e-05 | R108: FALSE | S108: 0.009208528427 | T108: 0 | U108: 0 | V108: 0 | W108: 0 | X108: 0 | Y108: 0
A109: 2018 | B109: 73 | C109: =IF(LOADPROFILE=0.1,Results_10PoE!C80,IF(LOADPROFILE=0.5,Results_50PoE!C80,"Invalid Load Profile %")) -> 0 | D109: 82.99431818 | E109: 55.32954545 | F109: 27.66477273 | G109: 0 | H109: 0 | I109: 54.32364681 | J109: 0 | K109: 0 | L109: 0 | M109: 0 | N109: 0 | O109: 0.009680286224 | P109: 0.00129423827 | Q109: 1.277919113e-05 | R109: FALSE | S109: 0.009208528427 | T109: 0 | U109: 0 | V109: 0 | W109: 0 | X109: 0 | Y109: 0
A110: 2018 | B110: 74 | C110: =IF(LOADPROFILE=0.1,Results_10PoE!C81,IF(LOADPROFILE=0.5,Results_50PoE!C81,"Invalid Load Profile %")) -> 0 | D110: 82.99431818 | E110: 55.32954545 | F110: 27.66477273 | G110: 0 | H110: 0 | I110: 55.32364681 | J110: 0 | K110: 0 | L110: 0 | M110: 0 | N110: 0 | O110: 0.009680286224 | P110: 0.00129423827 | Q110: 1.277919113e-05 | R110: FALSE | S110: 0.009208528427 | T110: 0 | U110: 0 | V110: 0 | W110: 0 | X110: 0 | Y110: 0
A111: 2018 | B111: 75 | C111: =IF(LOADPROFILE=0.1,Results_10PoE!C82,IF(LOADPROFILE=0.5,Results_50PoE!C82,"Invalid Load Profile %")) -> 0 | D111: 82.99431818 | E111: 55.32954545 | F111: 27.66477273 | G111: 0 | H111: 0 | I111: 56.32364681 | J111: 0 | K111: 0 | L111: 0 | M111: 0 | N111: 0 | O111: 0.009680286224 | P111: 0.00129423827 | Q111: 1.277919113e-05 | R111: FALSE | S111: 0.009208528427 | T111: 0 | U111: 0 | V111: 0 | W111: 0 | X111: 0 | Y111: 0
A112: 2018 | B112: 76 | C112: =IF(LOADPROFILE=0.1,Results_10PoE!C83,IF(LOADPROFILE=0.5,Results_50PoE!C83,"Invalid Load Profile %")) -> 0 | D112: 82.99431818 | E112: 55.32954545 | F112: 27.66477273 | G112: 0 | H112: 0 | I112: 57.32364681 | J112: 0 | K112: 0 | L112: 0 | M112: 0 | N112: 0 | O112: 0.009680286224 | P112: 0.00129423827 | Q112: 1.277919113e-05 | R112: FALSE | S112: 0.009208528427 | T112: 0 | U112: 0 | V112: 0 | W112: 0 | X112: 0 | Y112: 0
A113: 2018 | B113: 77 | C113: =IF(LOADPROFILE=0.1,Results_10PoE!C84,IF(LOADPROFILE=0.5,Results_50PoE!C84,"Invalid Load Profile %")) -> 0 | D113: 82.99431818 | E113: 55.32954545 | F113: 27.66477273 | G113: 0 | H113: 0 | I113: 58.32364681 | J113: 0 | K113: 0 | L113: 0 | M113: 0 | N113: 0 | O113: 0.009680286224 | P113: 0.00129423827 | Q113: 1.277919113e-05 | R113: FALSE | S113: 0.009208528427 | T113: 0 | U113: 0 | V113: 0 | W113: 0 | X113: 0 | Y113: 0
A114: 2018 | B114: 78 | C114: =IF(LOADPROFILE=0.1,Results_10PoE!C85,IF(LOADPROFILE=0.5,Results_50PoE!C85,"Invalid Load Profile %")) -> 0 | D114: 82.99431818 | E114: 55.32954545 | F114: 27.66477273 | G114: 0 | H114: 0 | I114: 59.32364681 | J114: 0 | K114: 0 | L114: 0 | M114: 0 | N114: 0 | O114: 0.009680286224 | P114: 0.00129423827 | Q114: 1.277919113e-05 | R114: FALSE | S114: 0.009208528427 | T114: 0 | U114: 0 | V114: 0 | W114: 0 | X114: 0 | Y114: 0
A115: 2018 | B115: 79 | C115: =IF(LOADPROFILE=0.1,Results_10PoE!C86,IF(LOADPROFILE=0.5,Results_50PoE!C86,"Invalid Load Profile %")) -> 0 | D115: 82.99431818 | E115: 55.32954545 | F115: 27.66477273 | G115: 0 | H115: 0 | I115: 60.32364681 | J115: 0 | K115: 0 | L115: 0 | M115: 0 | N115: 0 | O115: 0.009680286224 | P115: 0.00129423827 | Q115: 1.277919113e-05 | R115: FALSE | S115: 0.009208528427 | T115: 0 | U115: 0 | V115: 0 | W115: 0 | X115: 0 | Y115: 0
A116: 2018 | B116: 80 | C116: =IF(LOADPROFILE=0.1,Results_10PoE!C87,IF(LOADPROFILE=0.5,Results_50PoE!C87,"Invalid Load Profile %")) -> 0 | D116: 82.99431818 | E116: 55.32954545 | F116: 27.66477273 | G116: 0 | H116: 0 | I116: 61.32364681 | J116: 0 | K116: 0 | L116: 0 | M116: 0 | N116: 0 | O116: 0.009680286224 | P116: 0.00129423827 | Q116: 1.277919113e-05 | R116: FALSE | S116: 0.009208528427 | T116: 0 | U116: 0 | V116: 0 | W116: 0 | X116: 0 | Y116: 0
A117: 2018 | B117: 81 | C117: =IF(LOADPROFILE=0.1,Results_10PoE!C88,IF(LOADPROFILE=0.5,Results_50PoE!C88,"Invalid Load Profile %")) -> 0 | D117: 82.99431818 | E117: 55.32954545 | F117: 27.66477273 | G117: 0 | H117: 0 | I117: 62.32364681 | J117: 0 | K117: 0 | L117: 0 | M117: 0 | N117: 0 | O117: 0.009680286224 | P117: 0.00129423827 | Q117: 1.277919113e-05 | R117: FALSE | S117: 0.009208528427 | T117: 0 | U117: 0 | V117: 0 | W117: 0 | X117: 0 | Y117: 0
A118: 2018 | B118: 82 | C118: =IF(LOADPROFILE=0.1,Results_10PoE!C89,IF(LOADPROFILE=0.5,Results_50PoE!C89,"Invalid Load Profile %")) -> 0 | D118: 82.99431818 | E118: 55.32954545 | F118: 27.66477273 | G118: 0 | H118: 0 | I118: 63.32364681 | J118: 0 | K118: 0 | L118: 0 | M118: 0 | N118: 0 | O118: 0.009680286224 | P118: 0.00129423827 | Q118: 1.277919113e-05 | R118: FALSE | S118: 0.009208528427 | T118: 0 | U118: 0 | V118: 0 | W118: 0 | X118: 0 | Y118: 0
A119: 2018 | B119: 83 | C119: =IF(LOADPROFILE=0.1,Results_10PoE!C90,IF(LOADPROFILE=0.5,Results_50PoE!C90,"Invalid Load Profile %")) -> 0 | D119: 82.99431818 | E119: 55.32954545 | F119: 27.66477273 | G119: 0 | H119: 0 | I119: 64.32364681 | J119: 0 | K119: 0 | L119: 0 | M119: 0 | N119: 0 | O119: 0.009680286224 | P119: 0.00129423827 | Q119: 1.277919113e-05 | R119: FALSE | S119: 0.009208528427 | T119: 0 | U119: 0 | V119: 0 | W119: 0 | X119: 0 | Y119: 0
A120: 2018 | B120: 84 | C120: =IF(LOADPROFILE=0.1,Results_10PoE!C91,IF(LOADPROFILE=0.5,Results_50PoE!C91,"Invalid Load Profile %")) -> 0 | D120: 82.99431818 | E120: 55.32954545 | F120: 27.66477273 | G120: 0 | H120: 0 | I120: 65.32364681 | J120: 0 | K120: 0 | L120: 0 | M120: 0 | N120: 0 | O120: 0.009680286224 | P120: 0.00129423827 | Q120: 1.277919113e-05 | R120: FALSE | S120: 0.009208528427 | T120: 0 | U120: 0 | V120: 0 | W120: 0 | X120: 0 | Y120: 0
A121: 2018 | B121: 85 | C121: =IF(LOADPROFILE=0.1,Results_10PoE!C92,IF(LOADPROFILE=0.5,Results_50PoE!C92,"Invalid Load Profile %")) -> 0 | D121: 82.99431818 | E121: 55.32954545 | F121: 27.66477273 | G121: 0 | H121: 0 | I121: 66.32364681 | J121: 0 | K121: 0 | L121: 0 | M121: 0 | N121: 0 | O121: 0.009680286224 | P121: 0.00129423827 | Q121: 1.277919113e-05 | R121: FALSE | S121: 0.009208528427 | T121: 0 | U121: 0 | V121: 0 | W121: 0 | X121: 0 | Y121: 0
A122: 2018 | B122: 86 | C122: =IF(LOADPROFILE=0.1,Results_10PoE!C93,IF(LOADPROFILE=0.5,Results_50PoE!C93,"Invalid Load Profile %")) -> 0 | D122: 82.99431818 | E122: 55.32954545 | F122: 27.66477273 | G122: 0 | H122: 0 | I122: 67.32364681 | J122: 0 | K122: 0 | L122: 0 | M122: 0 | N122: 0 | O122: 0.009680286224 | P122: 0.00129423827 | Q122: 1.277919113e-05 | R122: FALSE | S122: 0.009208528427 | T122: 0 | U122: 0 | V122: 0 | W122: 0 | X122: 0 | Y122: 0
A123: 2018 | B123: 87 | C123: =IF(LOADPROFILE=0.1,Results_10PoE!C94,IF(LOADPROFILE=0.5,Results_50PoE!C94,"Invalid Load Profile %")) -> 0 | D123: 82.99431818 | E123: 55.32954545 | F123: 27.66477273 | G123: 0 | H123: 0 | I123: 68.32364681 | J123: 0 | K123: 0 | L123: 0 | M123: 0 | N123: 0 | O123: 0.009680286224 | P123: 0.00129423827 | Q123: 1.277919113e-05 | R123: FALSE | S123: 0.009208528427 | T123: 0 | U123: 0 | V123: 0 | W123: 0 | X123: 0 | Y123: 0
A124: 2018 | B124: 88 | C124: =IF(LOADPROFILE=0.1,Results_10PoE!C95,IF(LOADPROFILE=0.5,Results_50PoE!C95,"Invalid Load Profile %")) -> 0 | D124: 82.99431818 | E124: 55.32954545 | F124: 27.66477273 | G124: 0 | H124: 0 | I124: 69.32364681 | J124: 0 | K124: 0 | L124: 0 | M124: 0 | N124: 0 | O124: 0.009680286224 | P124: 0.00129423827 | Q124: 1.277919113e-05 | R124: FALSE | S124: 0.009208528427 | T124: 0 | U124: 0 | V124: 0 | W124: 0 | X124: 0 | Y124: 0
A125: 2018 | B125: 89 | C125: =IF(LOADPROFILE=0.1,Results_10PoE!C96,IF(LOADPROFILE=0.5,Results_50PoE!C96,"Invalid Load Profile %")) -> 0 | D125: 82.99431818 | E125: 55.32954545 | F125: 27.66477273 | G125: 0 | H125: 0 | I125: 70.32364681 | J125: 0 | K125: 0 | L125: 0 | M125: 0 | N125: 0 | O125: 0.009680286224 | P125: 0.00129423827 | Q125: 1.277919113e-05 | R125: FALSE | S125: 0.009208528427 | T125: 0 | U125: 0 | V125: 0 | W125: 0 | X125: 0 | Y125: 0
A126: 2018 | B126: 90 | C126: =IF(LOADPROFILE=0.1,Results_10PoE!C97,IF(LOADPROFILE=0.5,Results_50PoE!C97,"Invalid Load Profile %")) -> 0 | D126: 82.99431818 | E126: 55.32954545 | F126: 27.66477273 | G126: 0 | H126: 0 | I126: 71.32364681 | J126: 0 | K126: 0 | L126: 0 | M126: 0 | N126: 0 | O126: 0.009680286224 | P126: 0.00129423827 | Q126: 1.277919113e-05 | R126: FALSE | S126: 0.009208528427 | T126: 0 | U126: 0 | V126: 0 | W126: 0 | X126: 0 | Y126: 0
A127: 2018 | B127: 91 | C127: =IF(LOADPROFILE=0.1,Results_10PoE!C98,IF(LOADPROFILE=0.5,Results_50PoE!C98,"Invalid Load Profile %")) -> 0 | D127: 82.99431818 | E127: 55.32954545 | F127: 27.66477273 | G127: 0 | H127: 0 | I127: 72.32364681 | J127: 0 | K127: 0 | L127: 0 | M127: 0 | N127: 0 | O127: 0.009680286224 | P127: 0.00129423827 | Q127: 1.277919113e-05 | R127: FALSE | S127: 0.009208528427 | T127: 0 | U127: 0 | V127: 0 | W127: 0 | X127: 0 | Y127: 0
A128: 2018 | B128: 92 | C128: =IF(LOADPROFILE=0.1,Results_10PoE!C99,IF(LOADPROFILE=0.5,Results_50PoE!C99,"Invalid Load Profile %")) -> 0 | D128: 82.99431818 | E128: 55.32954545 | F128: 27.66477273 | G128: 0 | H128: 0 | I128: 73.32364681 | J128: 0 | K128: 0 | L128: 0 | M128: 0 | N128: 0 | O128: 0.009680286224 | P128: 0.00129423827 | Q128: 1.277919113e-05 | R128: FALSE | S128: 0.009208528427 | T128: 0 | U128: 0 | V128: 0 | W128: 0 | X128: 0 | Y128: 0
A129: 2018 | B129: 93 | C129: =IF(LOADPROFILE=0.1,Results_10PoE!C100,IF(LOADPROFILE=0.5,Results_50PoE!C100,"Invalid Load Profile %")) -> 0 | D129: 82.99431818 | E129: 55.32954545 | F129: 27.66477273 | G129: 0 | H129: 0 | I129: 74.32364681 | J129: 0 | K129: 0 | L129: 0 | M129: 0 | N129: 0 | O129: 0.009680286224 | P129: 0.00129423827 | Q129: 1.277919113e-05 | R129: FALSE | S129: 0.009208528427 | T129: 0 | U129: 0 | V129: 0 | W129: 0 | X129: 0 | Y129: 0
A130: 2018 | B130: 94 | C130: =IF(LOADPROFILE=0.1,Results_10PoE!C101,IF(LOADPROFILE=0.5,Results_50PoE!C101,"Invalid Load Profile %")) -> 0 | D130: 82.99431818 | E130: 55.32954545 | F130: 27.66477273 | G130: 0 | H130: 0 | I130: 75.32364681 | J130: 0 | K130: 0 | L130: 0 | M130: 0 | N130: 0 | O130: 0.009680286224 | P130: 0.00129423827 | Q130: 1.277919113e-05 | R130: FALSE | S130: 0.009208528427 | T130: 0 | U130: 0 | V130: 0 | W130: 0 | X130: 0 | Y130: 0
A131: 2018 | B131: 95 | C131: =IF(LOADPROFILE=0.1,Results_10PoE!C102,IF(LOADPROFILE=0.5,Results_50PoE!C102,"Invalid Load Profile %")) -> 0 | D131: 82.99431818 | E131: 55.32954545 | F131: 27.66477273 | G131: 0 | H131: 0 | I131: 76.32364681 | J131: 0 | K131: 0 | L131: 0 | M131: 0 | N131: 0 | O131: 0.009680286224 | P131: 0.00129423827 | Q131: 1.277919113e-05 | R131: FALSE | S131: 0.009208528427 | T131: 0 | U131: 0 | V131: 0 | W131: 0 | X131: 0 | Y131: 0
A132: 2018 | B132: 96 | C132: =IF(LOADPROFILE=0.1,Results_10PoE!C103,IF(LOADPROFILE=0.5,Results_50PoE!C103,"Invalid Load Profile %")) -> 0 | D132: 82.99431818 | E132: 55.32954545 | F132: 27.66477273 | G132: 0 | H132: 0 | I132: 77.32364681 | J132: 0 | K132: 0 | L132: 0 | M132: 0 | N132: 0 | O132: 0.009680286224 | P132: 0.00129423827 | Q132: 1.277919113e-05 | R132: FALSE | S132: 0.009208528427 | T132: 0 | U132: 0 | V132: 0 | W132: 0 | X132: 0 | Y132: 0
A133: 2018 | B133: 97 | C133: =IF(LOADPROFILE=0.1,Results_10PoE!C104,IF(LOADPROFILE=0.5,Results_50PoE!C104,"Invalid Load Profile %")) -> 0 | D133: 82.99431818 | E133: 55.32954545 | F133: 27.66477273 | G133: 0 | H133: 0 | I133: 78.32364681 | J133: 0 | K133: 0 | L133: 0 | M133: 0 | N133: 0 | O133: 0.009680286224 | P133: 0.00129423827 | Q133: 1.277919113e-05 | R133: FALSE | S133: 0.009208528427 | T133: 0 | U133: 0 | V133: 0 | W133: 0 | X133: 0 | Y133: 0
A134: 2018 | B134: 98 | C134: =IF(LOADPROFILE=0.1,Results_10PoE!C105,IF(LOADPROFILE=0.5,Results_50PoE!C105,"Invalid Load Profile %")) -> 0 | D134: 82.99431818 | E134: 55.32954545 | F134: 27.66477273 | G134: 0 | H134: 0 | I134: 79.32364681 | J134: 0 | K134: 0 | L134: 0 | M134: 0 | N134: 0 | O134: 0.009680286224 | P134: 0.00129423827 | Q134: 1.277919113e-05 | R134: FALSE | S134: 0.009208528427 | T134: 0 | U134: 0 | V134: 0 | W134: 0 | X134: 0 | Y134: 0
A135: 2018 | B135: 99 | C135: =IF(LOADPROFILE=0.1,Results_10PoE!C106,IF(LOADPROFILE=0.5,Results_50PoE!C106,"Invalid Load Profile %")) -> 0 | D135: 82.99431818 | E135: 55.32954545 | F135: 27.66477273 | G135: 0 | H135: 0 | I135: 80.32364681 | J135: 0 | K135: 0 | L135: 0 | M135: 0 | N135: 0 | O135: 0.009680286224 | P135: 0.00129423827 | Q135: 1.277919113e-05 | R135: FALSE | S135: 0.009208528427 | T135: 0 | U135: 0 | V135: 0 | W135: 0 | X135: 0 | Y135: 0
A136: 2018 | B136: 100 | C136: =IF(LOADPROFILE=0.1,Results_10PoE!C107,IF(LOADPROFILE=0.5,Results_50PoE!C107,"Invalid Load Profile %")) -> 0 | D136: 82.99431818 | E136: 55.32954545 | F136: 27.66477273 | G136: 0 | H136: 0 | I136: 81.32364681 | J136: 0 | K136: 0 | L136: 0 | M136: 0 | N136: 0 | O136: 0.009680286224 | P136: 0.00129423827 | Q136: 1.277919113e-05 | R136: FALSE | S136: 0.009208528427 | T136: 0 | U136: 0 | V136: 0 | W136: 0 | X136: 0 | Y136: 0
A137: 2018 | B137: 101 | C137: =IF(LOADPROFILE=0.1,Results_10PoE!C108,IF(LOADPROFILE=0.5,Results_50PoE!C108,"Invalid Load Profile %")) -> 0 | D137: 82.99431818 | E137: 55.32954545 | F137: 27.66477273 | G137: 0 | H137: 0 | I137: 82.32364681 | J137: 0 | K137: 0 | L137: 0 | M137: 0 | N137: 0 | O137: 0.009680286224 | P137: 0.00129423827 | Q137: 1.277919113e-05 | R137: FALSE | S137: 0.009208528427 | T137: 0 | U137: 0 | V137: 0 | W137: 0 | X137: 0 | Y137: 0
A138: 2018 | B138: 102 | C138: =IF(LOADPROFILE=0.1,Results_10PoE!C109,IF(LOADPROFILE=0.5,Results_50PoE!C109,"Invalid Load Profile %")) -> 0 | D138: 82.99431818 | E138: 55.32954545 | F138: 27.66477273 | G138: 0 | H138: 0 | I138: 83.32364681 | J138: 0 | K138: 0 | L138: 0 | M138: 0 | N138: 0 | O138: 0.009680286224 | P138: 0.00129423827 | Q138: 1.277919113e-05 | R138: FALSE | S138: 0.009208528427 | T138: 0 | U138: 0 | V138: 0 | W138: 0 | X138: 0 | Y138: 0
A139: 2018 | B139: 103 | C139: =IF(LOADPROFILE=0.1,Results_10PoE!C110,IF(LOADPROFILE=0.5,Results_50PoE!C110,"Invalid Load Profile %")) -> 0 | D139: 82.99431818 | E139: 55.32954545 | F139: 27.66477273 | G139: 0 | H139: 0 | I139: 84.32364681 | J139: 0 | K139: 0 | L139: 0 | M139: 0 | N139: 0 | O139: 0.009680286224 | P139: 0.00129423827 | Q139: 1.277919113e-05 | R139: FALSE | S139: 0.009208528427 | T139: 0 | U139: 0 | V139: 0 | W139: 0 | X139: 0 | Y139: 0
A140: 2018 | B140: 104 | C140: =IF(LOADPROFILE=0.1,Results_10PoE!C111,IF(LOADPROFILE=0.5,Results_50PoE!C111,"Invalid Load Profile %")) -> 0 | D140: 82.99431818 | E140: 55.32954545 | F140: 27.66477273 | G140: 0 | H140: 0 | I140: 85.32364681 | J140: 0 | K140: 0 | L140: 0 | M140: 0 | N140: 0 | O140: 0.009680286224 | P140: 0.00129423827 | Q140: 1.277919113e-05 | R140: FALSE | S140: 0.009208528427 | T140: 0 | U140: 0 | V140: 0 | W140: 0 | X140: 0 | Y140: 0
A141: 2018 | B141: 105 | C141: =IF(LOADPROFILE=0.1,Results_10PoE!C112,IF(LOADPROFILE=0.5,Results_50PoE!C112,"Invalid Load Profile %")) -> 0 | D141: 82.99431818 | E141: 55.32954545 | F141: 27.66477273 | G141: 0 | H141: 0 | I141: 86.32364681 | J141: 0 | K141: 0 | L141: 0 | M141: 0 | N141: 0 | O141: 0.009680286224 | P141: 0.00129423827 | Q141: 1.277919113e-05 | R141: FALSE | S141: 0.009208528427 | T141: 0 | U141: 0 | V141: 0 | W141: 0 | X141: 0 | Y141: 0
A142: 2018 | B142: 106 | C142: =IF(LOADPROFILE=0.1,Results_10PoE!C113,IF(LOADPROFILE=0.5,Results_50PoE!C113,"Invalid Load Profile %")) -> 0 | D142: 82.99431818 | E142: 55.32954545 | F142: 27.66477273 | G142: 0 | H142: 0 | I142: 87.32364681 | J142: 0 | K142: 0 | L142: 0 | M142: 0 | N142: 0 | O142: 0.009680286224 | P142: 0.00129423827 | Q142: 1.277919113e-05 | R142: FALSE | S142: 0.009208528427 | T142: 0 | U142: 0 | V142: 0 | W142: 0 | X142: 0 | Y142: 0
A143: 2018 | B143: 107 | C143: =IF(LOADPROFILE=0.1,Results_10PoE!C114,IF(LOADPROFILE=0.5,Results_50PoE!C114,"Invalid Load Profile %")) -> 0 | D143: 82.99431818 | E143: 55.32954545 | F143: 27.66477273 | G143: 0 | H143: 0 | I143: 88.32364681 | J143: 0 | K143: 0 | L143: 0 | M143: 0 | N143: 0 | O143: 0.009680286224 | P143: 0.00129423827 | Q143: 1.277919113e-05 | R143: FALSE | S143: 0.009208528427 | T143: 0 | U143: 0 | V143: 0 | W143: 0 | X143: 0 | Y143: 0
A144: 2018 | B144: 108 | C144: =IF(LOADPROFILE=0.1,Results_10PoE!C115,IF(LOADPROFILE=0.5,Results_50PoE!C115,"Invalid Load Profile %")) -> 0 | D144: 82.99431818 | E144: 55.32954545 | F144: 27.66477273 | G144: 0 | H144: 0 | I144: 89.32364681 | J144: 0 | K144: 0 | L144: 0 | M144: 0 | N144: 0 | O144: 0.009680286224 | P144: 0.00129423827 | Q144: 1.277919113e-05 | R144: FALSE | S144: 0.009208528427 | T144: 0 | U144: 0 | V144: 0 | W144: 0 | X144: 0 | Y144: 0
A145: 2018 | B145: 109 | C145: =IF(LOADPROFILE=0.1,Results_10PoE!C116,IF(LOADPROFILE=0.5,Results_50PoE!C116,"Invalid Load Profile %")) -> 0 | D145: 82.99431818 | E145: 55.32954545 | F145: 27.66477273 | G145: 0 | H145: 0 | I145: 90.32364681 | J145: 0 | K145: 0 | L145: 0 | M145: 0 | N145: 0 | O145: 0.009680286224 | P145: 0.00129423827 | Q145: 1.277919113e-05 | R145: FALSE | S145: 0.009208528427 | T145: 0 | U145: 0 | V145: 0 | W145: 0 | X145: 0 | Y145: 0
A146: 2018 | B146: 110 | C146: =IF(LOADPROFILE=0.1,Results_10PoE!C117,IF(LOADPROFILE=0.5,Results_50PoE!C117,"Invalid Load Profile %")) -> 0 | D146: 82.99431818 | E146: 55.32954545 | F146: 27.66477273 | G146: 0 | H146: 0 | I146: 91.32364681 | J146: 0 | K146: 0 | L146: 0 | M146: 0 | N146: 0 | O146: 0.009680286224 | P146: 0.00129423827 | Q146: 1.277919113e-05 | R146: FALSE | S146: 0.009208528427 | T146: 0 | U146: 0 | V146: 0 | W146: 0 | X146: 0 | Y146: 0
A147: 2018 | B147: 111 | C147: =IF(LOADPROFILE=0.1,Results_10PoE!C118,IF(LOADPROFILE=0.5,Results_50PoE!C118,"Invalid Load Profile %")) -> 0 | D147: 82.99431818 | E147: 55.32954545 | F147: 27.66477273 | G147: 0 | H147: 0 | I147: 92.32364681 | J147: 0 | K147: 0 | L147: 0 | M147: 0 | N147: 0 | O147: 0.009680286224 | P147: 0.00129423827 | Q147: 1.277919113e-05 | R147: FALSE | S147: 0.009208528427 | T147: 0 | U147: 0 | V147: 0 | W147: 0 | X147: 0 | Y147: 0
A148: 2018 | B148: 112 | C148: =IF(LOADPROFILE=0.1,Results_10PoE!C119,IF(LOADPROFILE=0.5,Results_50PoE!C119,"Invalid Load Profile %")) -> 0 | D148: 82.99431818 | E148: 55.32954545 | F148: 27.66477273 | G148: 0 | H148: 0 | I148: 93.32364681 | J148: 0 | K148: 0 | L148: 0 | M148: 0 | N148: 0 | O148: 0.009680286224 | P148: 0.00129423827 | Q148: 1.277919113e-05 | R148: FALSE | S148: 0.009208528427 | T148: 0 | U148: 0 | V148: 0 | W148: 0 | X148: 0 | Y148: 0
A149: 2018 | B149: 113 | C149: =IF(LOADPROFILE=0.1,Results_10PoE!C120,IF(LOADPROFILE=0.5,Results_50PoE!C120,"Invalid Load Profile %")) -> 0 | D149: 82.99431818 | E149: 55.32954545 | F149: 27.66477273 | G149: 0 | H149: 0 | I149: 94.32364681 | J149: 0 | K149: 0 | L149: 0 | M149: 0 | N149: 0 | O149: 0.009680286224 | P149: 0.00129423827 | Q149: 1.277919113e-05 | R149: FALSE | S149: 0.009208528427 | T149: 0 | U149: 0 | V149: 0 | W149: 0 | X149: 0 | Y149: 0
A150: 2018 | B150: 114 | C150: =IF(LOADPROFILE=0.1,Results_10PoE!C121,IF(LOADPROFILE=0.5,Results_50PoE!C121,"Invalid Load Profile %")) -> 0 | D150: 82.99431818 | E150: 55.32954545 | F150: 27.66477273 | G150: 0 | H150: 0 | I150: 95.32364681 | J150: 0 | K150: 0 | L150: 0 | M150: 0 | N150: 0 | O150: 0.009680286224 | P150: 0.00129423827 | Q150: 1.277919113e-05 | R150: FALSE | S150: 0.009208528427 | T150: 0 | U150: 0 | V150: 0 | W150: 0 | X150: 0 | Y150: 0
A151: 2018 | B151: 115 | C151: =IF(LOADPROFILE=0.1,Results_10PoE!C122,IF(LOADPROFILE=0.5,Results_50PoE!C122,"Invalid Load Profile %")) -> 0 | D151: 82.99431818 | E151: 55.32954545 | F151: 27.66477273 | G151: 0 | H151: 0 | I151: 96.32364681 | J151: 0 | K151: 0 | L151: 0 | M151: 0 | N151: 0 | O151: 0.009680286224 | P151: 0.00129423827 | Q151: 1.277919113e-05 | R151: FALSE | S151: 0.009208528427 | T151: 0 | U151: 0 | V151: 0 | W151: 0 | X151: 0 | Y151: 0
A152: 2018 | B152: 116 | C152: =IF(LOADPROFILE=0.1,Results_10PoE!C123,IF(LOADPROFILE=0.5,Results_50PoE!C123,"Invalid Load Profile %")) -> 0 | D152: 82.99431818 | E152: 55.32954545 | F152: 27.66477273 | G152: 0 | H152: 0 | I152: 97.32364681 | J152: 0 | K152: 0 | L152: 0 | M152: 0 | N152: 0 | O152: 0.009680286224 | P152: 0.00129423827 | Q152: 1.277919113e-05 | R152: FALSE | S152: 0.009208528427 | T152: 0 | U152: 0 | V152: 0 | W152: 0 | X152: 0 | Y152: 0
A153: 2018 | B153: 117 | C153: =IF(LOADPROFILE=0.1,Results_10PoE!C124,IF(LOADPROFILE=0.5,Results_50PoE!C124,"Invalid Load Profile %")) -> 0 | D153: 82.99431818 | E153: 55.32954545 | F153: 27.66477273 | G153: 0 | H153: 0 | I153: 98.32364681 | J153: 0 | K153: 0 | L153: 0 | M153: 0 | N153: 0 | O153: 0.009680286224 | P153: 0.00129423827 | Q153: 1.277919113e-05 | R153: FALSE | S153: 0.009208528427 | T153: 0 | U153: 0 | V153: 0 | W153: 0 | X153: 0 | Y153: 0
A154: 2018 | B154: 118 | C154: =IF(LOADPROFILE=0.1,Results_10PoE!C125,IF(LOADPROFILE=0.5,Results_50PoE!C125,"Invalid Load Profile %")) -> 0 | D154: 82.99431818 | E154: 55.32954545 | F154: 27.66477273 | G154: 0 | H154: 0 | I154: 99.32364681 | J154: 0 | K154: 0 | L154: 0 | M154: 0 | N154: 0 | O154: 0.009680286224 | P154: 0.00129423827 | Q154: 1.277919113e-05 | R154: FALSE | S154: 0.009208528427 | T154: 0 | U154: 0 | V154: 0 | W154: 0 | X154: 0 | Y154: 0
A155: 2018 | B155: 119 | C155: =IF(LOADPROFILE=0.1,Results_10PoE!C126,IF(LOADPROFILE=0.5,Results_50PoE!C126,"Invalid Load Profile %")) -> 0 | D155: 82.99431818 | E155: 55.32954545 | F155: 27.66477273 | G155: 0 | H155: 0 | I155: 100.3236468 | J155: 0 | K155: 0 | L155: 0 | M155: 0 | N155: 0 | O155: 0.009680286224 | P155: 0.00129423827 | Q155: 1.277919113e-05 | R155: FALSE | S155: 0.009208528427 | T155: 0 | U155: 0 | V155: 0 | W155: 0 | X155: 0 | Y155: 0
A156: 2018 | B156: 120 | C156: =IF(LOADPROFILE=0.1,Results_10PoE!C127,IF(LOADPROFILE=0.5,Results_50PoE!C127,"Invalid Load Profile %")) -> 0 | D156: 82.99431818 | E156: 55.32954545 | F156: 27.66477273 | G156: 0 | H156: 0 | I156: 101.3236468 | J156: 0 | K156: 0 | L156: 0 | M156: 0 | N156: 0 | O156: 0.009680286224 | P156: 0.00129423827 | Q156: 1.277919113e-05 | R156: FALSE | S156: 0.009208528427 | T156: 0 | U156: 0 | V156: 0 | W156: 0 | X156: 0 | Y156: 0
A157: 2018 | B157: 121 | C157: =IF(LOADPROFILE=0.1,Results_10PoE!C128,IF(LOADPROFILE=0.5,Results_50PoE!C128,"Invalid Load Profile %")) -> 0 | D157: 82.99431818 | E157: 55.32954545 | F157: 27.66477273 | G157: 0 | H157: 0 | I157: 102.3236468 | J157: 0 | K157: 0 | L157: 0 | M157: 0 | N157: 0 | O157: 0.009680286224 | P157: 0.00129423827 | Q157: 1.277919113e-05 | R157: FALSE | S157: 0.009208528427 | T157: 0 | U157: 0 | V157: 0 | W157: 0 | X157: 0 | Y157: 0
A158: 2018 | B158: 122 | C158: =IF(LOADPROFILE=0.1,Results_10PoE!C129,IF(LOADPROFILE=0.5,Results_50PoE!C129,"Invalid Load Profile %")) -> 0 | D158: 82.99431818 | E158: 55.32954545 | F158: 27.66477273 | G158: 0 | H158: 0 | I158: 103.3236468 | J158: 0 | K158: 0 | L158: 0 | M158: 0 | N158: 0 | O158: 0.009680286224 | P158: 0.00129423827 | Q158: 1.277919113e-05 | R158: FALSE | S158: 0.009208528427 | T158: 0 | U158: 0 | V158: 0 | W158: 0 | X158: 0 | Y158: 0
A159: 2018 | B159: 123 | C159: =IF(LOADPROFILE=0.1,Results_10PoE!C130,IF(LOADPROFILE=0.5,Results_50PoE!C130,"Invalid Load Profile %")) -> 0 | D159: 82.99431818 | E159: 55.32954545 | F159: 27.66477273 | G159: 0 | H159: 0 | I159: 104.3236468 | J159: 0 | K159: 0 | L159: 0 | M159: 0 | N159: 0 | O159: 0.009680286224 | P159: 0.00129423827 | Q159: 1.277919113e-05 | R159: FALSE | S159: 0.009208528427 | T159: 0 | U159: 0 | V159: 0 | W159: 0 | X159: 0 | Y159: 0
A160: 2018 | B160: 124 | C160: =IF(LOADPROFILE=0.1,Results_10PoE!C131,IF(LOADPROFILE=0.5,Results_50PoE!C131,"Invalid Load Profile %")) -> 0 | D160: 82.99431818 | E160: 55.32954545 | F160: 27.66477273 | G160: 0 | H160: 0 | I160: 105.3236468 | J160: 0 | K160: 0 | L160: 0 | M160: 0 | N160: 0 | O160: 0.009680286224 | P160: 0.00129423827 | Q160: 1.277919113e-05 | R160: FALSE | S160: 0.009208528427 | T160: 0 | U160: 0 | V160: 0 | W160: 0 | X160: 0 | Y160: 0
A161: 2018 | B161: 125 | C161: =IF(LOADPROFILE=0.1,Results_10PoE!C132,IF(LOADPROFILE=0.5,Results_50PoE!C132,"Invalid Load Profile %")) -> 0 | D161: 82.99431818 | E161: 55.32954545 | F161: 27.66477273 | G161: 0 | H161: 0 | I161: 106.3236468 | J161: 0 | K161: 0 | L161: 0 | M161: 0 | N161: 0 | O161: 0.009680286224 | P161: 0.00129423827 | Q161: 1.277919113e-05 | R161: FALSE | S161: 0.009208528427 | T161: 0 | U161: 0 | V161: 0 | W161: 0 | X161: 0 | Y161: 0
A162: 2018 | B162: 126 | C162: =IF(LOADPROFILE=0.1,Results_10PoE!C133,IF(LOADPROFILE=0.5,Results_50PoE!C133,"Invalid Load Profile %")) -> 0 | D162: 82.99431818 | E162: 55.32954545 | F162: 27.66477273 | G162: 0 | H162: 0 | I162: 107.3236468 | J162: 0 | K162: 0 | L162: 0 | M162: 0 | N162: 0 | O162: 0.009680286224 | P162: 0.00129423827 | Q162: 1.277919113e-05 | R162: FALSE | S162: 0.009208528427 | T162: 0 | U162: 0 | V162: 0 | W162: 0 | X162: 0 | Y162: 0
A163: 2018 | B163: 127 | C163: =IF(LOADPROFILE=0.1,Results_10PoE!C134,IF(LOADPROFILE=0.5,Results_50PoE!C134,"Invalid Load Profile %")) -> 0 | D163: 82.99431818 | E163: 55.32954545 | F163: 27.66477273 | G163: 0 | H163: 0 | I163: 108.3236468 | J163: 0 | K163: 0 | L163: 0 | M163: 0 | N163: 0 | O163: 0.009680286224 | P163: 0.00129423827 | Q163: 1.277919113e-05 | R163: FALSE | S163: 0.009208528427 | T163: 0 | U163: 0 | V163: 0 | W163: 0 | X163: 0 | Y163: 0
A164: 2018 | B164: 128 | C164: =IF(LOADPROFILE=0.1,Results_10PoE!C135,IF(LOADPROFILE=0.5,Results_50PoE!C135,"Invalid Load Profile %")) -> 0 | D164: 82.99431818 | E164: 55.32954545 | F164: 27.66477273 | G164: 0 | H164: 0 | I164: 109.3236468 | J164: 0 | K164: 0 | L164: 0 | M164: 0 | N164: 0 | O164: 0.009680286224 | P164: 0.00129423827 | Q164: 1.277919113e-05 | R164: FALSE | S164: 0.009208528427 | T164: 0 | U164: 0 | V164: 0 | W164: 0 | X164: 0 | Y164: 0
A165: 2018 | B165: 129 | C165: =IF(LOADPROFILE=0.1,Results_10PoE!C136,IF(LOADPROFILE=0.5,Results_50PoE!C136,"Invalid Load Profile %")) -> 0 | D165: 82.99431818 | E165: 55.32954545 | F165: 27.66477273 | G165: 0 | H165: 0 | I165: 110.3236468 | J165: 0 | K165: 0 | L165: 0 | M165: 0 | N165: 0 | O165: 0.009680286224 | P165: 0.00129423827 | Q165: 1.277919113e-05 | R165: FALSE | S165: 0.009208528427 | T165: 0 | U165: 0 | V165: 0 | W165: 0 | X165: 0 | Y165: 0
A166: 2018 | B166: 130 | C166: =IF(LOADPROFILE=0.1,Results_10PoE!C137,IF(LOADPROFILE=0.5,Results_50PoE!C137,"Invalid Load Profile %")) -> 0 | D166: =VLOOKUP($A166,$Q$4:$AB$26,6,FALSE) -> 82.99431818 | E166: =VLOOKUP($A166,$Q$4:$AB$26,7,FALSE) -> 55.32954545 | F166: =VLOOKUP($A166,$Q$4:$AB$26,9,FALSE) -> 27.66477273 | G166: =VLOOKUP($A166,$Q$4:$AB$26,10,FALSE) -> 0 | H166: =VLOOKUP($A166,$Q$4:$AB$26,11,FALSE) -> 0 | I166: =IF(B166-VLOOKUP(A166,$Q$4:$AB$26,12,FALSE)<0,0,B166-VLOOKUP(A166,$Q$4:$AB$26,12,FALSE)) -> 111.3236468 | J166: =IF(B166=150,0,IF(IF($I166>D166,($I166-D166)*($C166-$C167),0)<0,0,IF($I166>D166,($I166-D166)*($C166-$C167),0)))*$Y$30 -> 0 | K166: =IF(C166=150,0,IF(IF($I166>E166,($I166-E166)*($C166-$C167),0)<0,0,IF($I166>E166,($I166-E166)*($C166-$C167),0)))*$Y$30 -> 0 | L166: =IF(D166=150,0,IF(IF($I166>F166,($I166-F166)*($C166-$C167),0)<0,0,IF($I166>F166,($I166-F166)*($C166-$C167),0)))*$Y$30 -> 0 | M166: =IF(E166=150,0,IF(IF($I166>G166,($I166-G166)*($C166-$C167),0)<0,0,IF($I166>G166,($I166-G166)*($C166-$C167),0)))*$Y$30 -> 0 | N166: =IF(F166=150,0,IF(IF($I166>H166,($I166-H166)*($C166-$C167),0)<0,0,IF($I166>H166,($I166-H166)*($C166-$C167),0)))*$Y$30 -> 0 | O166: =VLOOKUP($A166, $Q$4:$BB$26,33,FALSE) -> 0.009680286224 | P166: =VLOOKUP($A166, $Q$4:$BB$26,34,FALSE) -> 0.00129423827 | Q166: =VLOOKUP($A166, $Q$4:$BB$26,35,FALSE) -> 1.277919113e-05 | R166: =VLOOKUP($A166, $Q$4:$BB$26,36,FALSE) -> FALSE | S166: =VLOOKUP($A166, $Q$4:$BB$26,37,FALSE) -> 0.009208528427 | T166: =J166*1000*($S$34/365) -> 0 | U166: =O166*K166*1000*($T$34/365) -> 0 | V166: =P166*L166*1000*($U$34/365) -> 0 | W166: =Q166*M166*1000*($V$34/365) -> 0 | X166: =R166*N166*1000*($W$34/365) -> 0 | Y166: =S166*K166*1000*($X$34/365) -> 0
A167: 2018 | B167: 131 | C167: =IF(LOADPROFILE=0.1,Results_10PoE!C138,IF(LOADPROFILE=0.5,Results_50PoE!C138,"Invalid Load Profile %")) -> 0 | D167: 82.99431818 | E167: 55.32954545 | F167: 27.66477273 | G167: 0 | H167: 0 | I167: 112.3236468 | J167: 0 | K167: 0 | L167: 0 | M167: 0 | N167: 0 | O167: 0.009680286224 | P167: 0.00129423827 | Q167: 1.277919113e-05 | R167: FALSE | S167: 0.009208528427 | T167: 0 | U167: 0 | V167: 0 | W167: 0 | X167: 0 | Y167: 0
A168: 2018 | B168: 132 | C168: =IF(LOADPROFILE=0.1,Results_10PoE!C139,IF(LOADPROFILE=0.5,Results_50PoE!C139,"Invalid Load Profile %")) -> 0 | D168: 82.99431818 | E168: 55.32954545 | F168: 27.66477273 | G168: 0 | H168: 0 | I168: 113.3236468 | J168: 0 | K168: 0 | L168: 0 | M168: 0 | N168: 0 | O168: 0.009680286224 | P168: 0.00129423827 | Q168: 1.277919113e-05 | R168: FALSE | S168: 0.009208528427 | T168: 0 | U168: 0 | V168: 0 | W168: 0 | X168: 0 | Y168: 0
A169: 2018 | B169: 133 | C169: =IF(LOADPROFILE=0.1,Results_10PoE!C140,IF(LOADPROFILE=0.5,Results_50PoE!C140,"Invalid Load Profile %")) -> 0 | D169: 82.99431818 | E169: 55.32954545 | F169: 27.66477273 | G169: 0 | H169: 0 | I169: 114.3236468 | J169: 0 | K169: 0 | L169: 0 | M169: 0 | N169: 0 | O169: 0.009680286224 | P169: 0.00129423827 | Q169: 1.277919113e-05 | R169: FALSE | S169: 0.009208528427 | T169: 0 | U169: 0 | V169: 0 | W169: 0 | X169: 0 | Y169: 0
A170: 2018 | B170: 134 | C170: =IF(LOADPROFILE=0.1,Results_10PoE!C141,IF(LOADPROFILE=0.5,Results_50PoE!C141,"Invalid Load Profile %")) -> 0 | D170: 82.99431818 | E170: 55.32954545 | F170: 27.66477273 | G170: 0 | H170: 0 | I170: 115.3236468 | J170: 0 | K170: 0 | L170: 0 | M170: 0 | N170: 0 | O170: 0.009680286224 | P170: 0.00129423827 | Q170: 1.277919113e-05 | R170: FALSE | S170: 0.009208528427 | T170: 0 | U170: 0 | V170: 0 | W170: 0 | X170: 0 | Y170: 0
A171: 2018 | B171: 135 | C171: =IF(LOADPROFILE=0.1,Results_10PoE!C142,IF(LOADPROFILE=0.5,Results_50PoE!C142,"Invalid Load Profile %")) -> 0 | D171: 82.99431818 | E171: 55.32954545 | F171: 27.66477273 | G171: 0 | H171: 0 | I171: 116.3236468 | J171: 0 | K171: 0 | L171: 0 | M171: 0 | N171: 0 | O171: 0.009680286224 | P171: 0.00129423827 | Q171: 1.277919113e-05 | R171: FALSE | S171: 0.009208528427 | T171: 0 | U171: 0 | V171: 0 | W171: 0 | X171: 0 | Y171: 0
A172: 2018 | B172: 136 | C172: =IF(LOADPROFILE=0.1,Results_10PoE!C143,IF(LOADPROFILE=0.5,Results_50PoE!C143,"Invalid Load Profile %")) -> 0 | D172: 82.99431818 | E172: 55.32954545 | F172: 27.66477273 | G172: 0 | H172: 0 | I172: 117.3236468 | J172: 0 | K172: 0 | L172: 0 | M172: 0 | N172: 0 | O172: 0.009680286224 | P172: 0.00129423827 | Q172: 1.277919113e-05 | R172: FALSE | S172: 0.009208528427 | T172: 0 | U172: 0 | V172: 0 | W172: 0 | X172: 0 | Y172: 0
A173: 2018 | B173: 137 | C173: =IF(LOADPROFILE=0.1,Results_10PoE!C144,IF(LOADPROFILE=0.5,Results_50PoE!C144,"Invalid Load Profile %")) -> 0 | D173: 82.99431818 | E173: 55.32954545 | F173: 27.66477273 | G173: 0 | H173: 0 | I173: 118.3236468 | J173: 0 | K173: 0 | L173: 0 | M173: 0 | N173: 0 | O173: 0.009680286224 | P173: 0.00129423827 | Q173: 1.277919113e-05 | R173: FALSE | S173: 0.009208528427 | T173: 0 | U173: 0 | V173: 0 | W173: 0 | X173: 0 | Y173: 0
A174: 2018 | B174: 138 | C174: =IF(LOADPROFILE=0.1,Results_10PoE!C145,IF(LOADPROFILE=0.5,Results_50PoE!C145,"Invalid Load Profile %")) -> 0 | D174: 82.99431818 | E174: 55.32954545 | F174: 27.66477273 | G174: 0 | H174: 0 | I174: 119.3236468 | J174: 0 | K174: 0 | L174: 0 | M174: 0 | N174: 0 | O174: 0.009680286224 | P174: 0.00129423827 | Q174: 1.277919113e-05 | R174: FALSE | S174: 0.009208528427 | T174: 0 | U174: 0 | V174: 0 | W174: 0 | X174: 0 | Y174: 0
A175: 2018 | B175: 139 | C175: =IF(LOADPROFILE=0.1,Results_10PoE!C146,IF(LOADPROFILE=0.5,Results_50PoE!C146,"Invalid Load Profile %")) -> 0 | D175: 82.99431818 | E175: 55.32954545 | F175: 27.66477273 | G175: 0 | H175: 0 | I175: 120.3236468 | J175: 0 | K175: 0 | L175: 0 | M175: 0 | N175: 0 | O175: 0.009680286224 | P175: 0.00129423827 | Q175: 1.277919113e-05 | R175: FALSE | S175: 0.009208528427 | T175: 0 | U175: 0 | V175: 0 | W175: 0 | X175: 0 | Y175: 0
A176: 2018 | B176: 140 | C176: =IF(LOADPROFILE=0.1,Results_10PoE!C147,IF(LOADPROFILE=0.5,Results_50PoE!C147,"Invalid Load Profile %")) -> 0 | D176: 82.99431818 | E176: 55.32954545 | F176: 27.66477273 | G176: 0 | H176: 0 | I176: 121.3236468 | J176: 0 | K176: 0 | L176: 0 | M176: 0 | N176: 0 | O176: 0.009680286224 | P176: 0.00129423827 | Q176: 1.277919113e-05 | R176: FALSE | S176: 0.009208528427 | T176: 0 | U176: 0 | V176: 0 | W176: 0 | X176: 0 | Y176: 0
A177: 2018 | B177: 141 | C177: =IF(LOADPROFILE=0.1,Results_10PoE!C148,IF(LOADPROFILE=0.5,Results_50PoE!C148,"Invalid Load Profile %")) -> 0 | D177: 82.99431818 | E177: 55.32954545 | F177: 27.66477273 | G177: 0 | H177: 0 | I177: 122.3236468 | J177: 0 | K177: 0 | L177: 0 | M177: 0 | N177: 0 | O177: 0.009680286224 | P177: 0.00129423827 | Q177: 1.277919113e-05 | R177: FALSE | S177: 0.009208528427 | T177: 0 | U177: 0 | V177: 0 | W177: 0 | X177: 0 | Y177: 0
A178: 2018 | B178: 142 | C178: =IF(LOADPROFILE=0.1,Results_10PoE!C149,IF(LOADPROFILE=0.5,Results_50PoE!C149,"Invalid Load Profile %")) -> 0 | D178: 82.99431818 | E178: 55.32954545 | F178: 27.66477273 | G178: 0 | H178: 0 | I178: 123.3236468 | J178: 0 | K178: 0 | L178: 0 | M178: 0 | N178: 0 | O178: 0.009680286224 | P178: 0.00129423827 | Q178: 1.277919113e-05 | R178: FALSE | S178: 0.009208528427 | T178: 0 | U178: 0 | V178: 0 | W178: 0 | X178: 0 | Y178: 0
A179: 2018 | B179: 143 | C179: =IF(LOADPROFILE=0.1,Results_10PoE!C150,IF(LOADPROFILE=0.5,Results_50PoE!C150,"Invalid Load Profile %")) -> 0 | D179: 82.99431818 | E179: 55.32954545 | F179: 27.66477273 | G179: 0 | H179: 0 | I179: 124.3236468 | J179: 0 | K179: 0 | L179: 0 | M179: 0 | N179: 0 | O179: 0.009680286224 | P179: 0.00129423827 | Q179: 1.277919113e-05 | R179: FALSE | S179: 0.009208528427 | T179: 0 | U179: 0 | V179: 0 | W179: 0 | X179: 0 | Y179: 0
A180: 2018 | B180: 144 | C180: =IF(LOADPROFILE=0.1,Results_10PoE!C151,IF(LOADPROFILE=0.5,Results_50PoE!C151,"Invalid Load Profile %")) -> 0 | D180: 82.99431818 | E180: 55.32954545 | F180: 27.66477273 | G180: 0 | H180: 0 | I180: 125.3236468 | J180: 0 | K180: 0 | L180: 0 | M180: 0 | N180: 0 | O180: 0.009680286224 | P180: 0.00129423827 | Q180: 1.277919113e-05 | R180: FALSE | S180: 0.009208528427 | T180: 0 | U180: 0 | V180: 0 | W180: 0 | X180: 0 | Y180: 0
A181: 2018 | B181: 145 | C181: =IF(LOADPROFILE=0.1,Results_10PoE!C152,IF(LOADPROFILE=0.5,Results_50PoE!C152,"Invalid Load Profile %")) -> 0 | D181: 82.99431818 | E181: 55.32954545 | F181: 27.66477273 | G181: 0 | H181: 0 | I181: 126.3236468 | J181: 0 | K181: 0 | L181: 0 | M181: 0 | N181: 0 | O181: 0.009680286224 | P181: 0.00129423827 | Q181: 1.277919113e-05 | R181: FALSE | S181: 0.009208528427 | T181: 0 | U181: 0 | V181: 0 | W181: 0 | X181: 0 | Y181: 0
A182: 2018 | B182: 146 | C182: =IF(LOADPROFILE=0.1,Results_10PoE!C153,IF(LOADPROFILE=0.5,Results_50PoE!C153,"Invalid Load Profile %")) -> 0 | D182: 82.99431818 | E182: 55.32954545 | F182: 27.66477273 | G182: 0 | H182: 0 | I182: 127.3236468 | J182: 0 | K182: 0 | L182: 0 | M182: 0 | N182: 0 | O182: 0.009680286224 | P182: 0.00129423827 | Q182: 1.277919113e-05 | R182: FALSE | S182: 0.009208528427 | T182: 0 | U182: 0 | V182: 0 | W182: 0 | X182: 0 | Y182: 0
A183: 2018 | B183: 147 | C183: =IF(LOADPROFILE=0.1,Results_10PoE!C154,IF(LOADPROFILE=0.5,Results_50PoE!C154,"Invalid Load Profile %")) -> 0 | D183: 82.99431818 | E183: 55.32954545 | F183: 27.66477273 | G183: 0 | H183: 0 | I183: 128.3236468 | J183: 0 | K183: 0 | L183: 0 | M183: 0 | N183: 0 | O183: 0.009680286224 | P183: 0.00129423827 | Q183: 1.277919113e-05 | R183: FALSE | S183: 0.009208528427 | T183: 0 | U183: 0 | V183: 0 | W183: 0 | X183: 0 | Y183: 0
A184: 2018 | B184: 148 | C184: =IF(LOADPROFILE=0.1,Results_10PoE!C155,IF(LOADPROFILE=0.5,Results_50PoE!C155,"Invalid Load Profile %")) -> 0 | D184: 82.99431818 | E184: 55.32954545 | F184: 27.66477273 | G184: 0 | H184: 0 | I184: 129.3236468 | J184: 0 | K184: 0 | L184: 0 | M184: 0 | N184: 0 | O184: 0.009680286224 | P184: 0.00129423827 | Q184: 1.277919113e-05 | R184: FALSE | S184: 0.009208528427 | T184: 0 | U184: 0 | V184: 0 | W184: 0 | X184: 0 | Y184: 0
A185: 2018 | B185: 149 | C185: =IF(LOADPROFILE=0.1,Results_10PoE!C156,IF(LOADPROFILE=0.5,Results_50PoE!C156,"Invalid Load Profile %")) -> 0 | D185: 82.99431818 | E185: 55.32954545 | F185: 27.66477273 | G185: 0 | H185: 0 | I185: 130.3236468 | J185: 0 | K185: 0 | L185: 0 | M185: 0 | N185: 0 | O185: 0.009680286224 | P185: 0.00129423827 | Q185: 1.277919113e-05 | R185: FALSE | S185: 0.009208528427 | T185: 0 | U185: 0 | V185: 0 | W185: 0 | X185: 0 | Y185: 0
A186: 2018 | B186: 150 | C186: =IF(LOADPROFILE=0.1,Results_10PoE!C157,IF(LOADPROFILE=0.5,Results_50PoE!C157,"Invalid Load Profile %")) -> 0 | D186: 82.99431818 | E186: 55.32954545 | F186: 27.66477273 | G186: 0 | H186: 0 | I186: 131.3236468 | J186: 0 | K186: 0 | L186: 0 | M186: 0 | N186: 0 | O186: 0.009680286224 | P186: 0.00129423827 | Q186: 1.277919113e-05 | R186: FALSE | S186: 0.009208528427 | T186: 0 | U186: 0 | V186: 0 | W186: 0 | X186: 0 | Y186: 0
A187: 2019 | B187: 1 | C187: =IF(LOADPROFILE=0.1,Results_10PoE!C158,IF(LOADPROFILE=0.5,Results_50PoE!C158,"Invalid Load Profile %")) -> 8383 | D187: 82.99431818 | E187: 55.32954545 | F187: 27.66477273 | G187: 0 | H187: 0 | I187: 0 | J187: 0 | K187: 0 | L187: 0 | M187: 0 | N187: 0 | O187: 0.01048030822 | P187: 0.00141432947 | Q187: 2.689633412e-05 | R187: FALSE | S187: 0.009632701978 | T187: 0 | U187: 0 | V187: 0 | W187: 0 | X187: 0 | Y187: 0
A188: 2019 | B188: 2 | C188: =IF(LOADPROFILE=0.1,Results_10PoE!C159,IF(LOADPROFILE=0.5,Results_50PoE!C159,"Invalid Load Profile %")) -> 8201 | D188: 82.99431818 | E188: 55.32954545 | F188: 27.66477273 | G188: 0 | H188: 0 | I188: 0 | J188: 0 | K188: 0 | L188: 0 | M188: 0 | N188: 0 | O188: 0.01048030822 | P188: 0.00141432947 | Q188: 2.689633412e-05 | R188: FALSE | S188: 0.009632701978 | T188: 0 | U188: 0 | V188: 0 | W188: 0 | X188: 0 | Y188: 0
A189: 2019 | B189: 3 | C189: =IF(LOADPROFILE=0.1,Results_10PoE!C160,IF(LOADPROFILE=0.5,Results_50PoE!C160,"Invalid Load Profile %")) -> 7968 | D189: 82.99431818 | E189: 55.32954545 | F189: 27.66477273 | G189: 0 | H189: 0 | I189: 0 | J189: 0 | K189: 0 | L189: 0 | M189: 0 | N189: 0 | O189: 0.01048030822 | P189: 0.00141432947 | Q189: 2.689633412e-05 | R189: FALSE | S189: 0.009632701978 | T189: 0 | U189: 0 | V189: 0 | W189: 0 | X189: 0 | Y189: 0
A190: 2019 | B190: 4 | C190: =IF(LOADPROFILE=0.1,Results_10PoE!C161,IF(LOADPROFILE=0.5,Results_50PoE!C161,"Invalid Load Profile %")) -> 7674 | D190: 82.99431818 | E190: 55.32954545 | F190: 27.66477273 | G190: 0 | H190: 0 | I190: 0 | J190: 0 | K190: 0 | L190: 0 | M190: 0 | N190: 0 | O190: 0.01048030822 | P190: 0.00141432947 | Q190: 2.689633412e-05 | R190: FALSE | S190: 0.009632701978 | T190: 0 | U190: 0 | V190: 0 | W190: 0 | X190: 0 | Y190: 0
A191: 2019 | B191: 5 | C191: =IF(LOADPROFILE=0.1,Results_10PoE!C162,IF(LOADPROFILE=0.5,Results_50PoE!C162,"Invalid Load Profile %")) -> 7277 | D191: 82.99431818 | E191: 55.32954545 | F191: 27.66477273 | G191: 0 | H191: 0 | I191: 0 | J191: 0 | K191: 0 | L191: 0 | M191: 0 | N191: 0 | O191: 0.01048030822 | P191: 0.00141432947 | Q191: 2.689633412e-05 | R191: FALSE | S191: 0.009632701978 | T191: 0 | U191: 0 | V191: 0 | W191: 0 | X191: 0 | Y191: 0
A192: 2019 | B192: 6 | C192: =IF(LOADPROFILE=0.1,Results_10PoE!C163,IF(LOADPROFILE=0.5,Results_50PoE!C163,"Invalid Load Profile %")) -> 6894 | D192: 82.99431818 | E192: 55.32954545 | F192: 27.66477273 | G192: 0 | H192: 0 | I192: 0 | J192: 0 | K192: 0 | L192: 0 | M192: 0 | N192: 0 | O192: 0.01048030822 | P192: 0.00141432947 | Q192: 2.689633412e-05 | R192: FALSE | S192: 0.009632701978 | T192: 0 | U192: 0 | V192: 0 | W192: 0 | X192: 0 | Y192: 0
A193: 2019 | B193: 7 | C193: =IF(LOADPROFILE=0.1,Results_10PoE!C164,IF(LOADPROFILE=0.5,Results_50PoE!C164,"Invalid Load Profile %")) -> 6545 | D193: 82.99431818 | E193: 55.32954545 | F193: 27.66477273 | G193: 0 | H193: 0 | I193: 0 | J193: 0 | K193: 0 | L193: 0 | M193: 0 | N193: 0 | O193: 0.01048030822 | P193: 0.00141432947 | Q193: 2.689633412e-05 | R193: FALSE | S193: 0.009632701978 | T193: 0 | U193: 0 | V193: 0 | W193: 0 | X193: 0 | Y193: 0
A194: 2019 | B194: 8 | C194: =IF(LOADPROFILE=0.1,Results_10PoE!C165,IF(LOADPROFILE=0.5,Results_50PoE!C165,"Invalid Load Profile %")) -> 6166 | D194: 82.99431818 | E194: 55.32954545 | F194: 27.66477273 | G194: 0 | H194: 0 | I194: 0 | J194: 0 | K194: 0 | L194: 0 | M194: 0 | N194: 0 | O194: 0.01048030822 | P194: 0.00141432947 | Q194: 2.689633412e-05 | R194: FALSE | S194: 0.009632701978 | T194: 0 | U194: 0 | V194: 0 | W194: 0 | X194: 0 | Y194: 0
A195: 2019 | B195: 9 | C195: =IF(LOADPROFILE=0.1,Results_10PoE!C166,IF(LOADPROFILE=0.5,Results_50PoE!C166,"Invalid Load Profile %")) -> 5770 | D195: 82.99431818 | E195: 55.32954545 | F195: 27.66477273 | G195: 0 | H195: 0 | I195: 0 | J195: 0 | K195: 0 | L195: 0 | M195: 0 | N195: 0 | O195: 0.01048030822 | P195: 0.00141432947 | Q195: 2.689633412e-05 | R195: FALSE | S195: 0.009632701978 | T195: 0 | U195: 0 | V195: 0 | W195: 0 | X195: 0 | Y195: 0
A196: 2019 | B196: 10 | C196: =IF(LOADPROFILE=0.1,Results_10PoE!C167,IF(LOADPROFILE=0.5,Results_50PoE!C167,"Invalid Load Profile %")) -> 5334 | D196: 82.99431818 | E196: 55.32954545 | F196: 27.66477273 | G196: 0 | H196: 0 | I196: 0 | J196: 0 | K196: 0 | L196: 0 | M196: 0 | N196: 0 | O196: 0.01048030822 | P196: 0.00141432947 | Q196: 2.689633412e-05 | R196: FALSE | S196: 0.009632701978 | T196: 0 | U196: 0 | V196: 0 | W196: 0 | X196: 0 | Y196: 0
A197: 2019 | B197: 11 | C197: =IF(LOADPROFILE=0.1,Results_10PoE!C168,IF(LOADPROFILE=0.5,Results_50PoE!C168,"Invalid Load Profile %")) -> 4980 | D197: 82.99431818 | E197: 55.32954545 | F197: 27.66477273 | G197: 0 | H197: 0 | I197: 0 | J197: 0 | K197: 0 | L197: 0 | M197: 0 | N197: 0 | O197: 0.01048030822 | P197: 0.00141432947 | Q197: 2.689633412e-05 | R197: FALSE | S197: 0.009632701978 | T197: 0 | U197: 0 | V197: 0 | W197: 0 | X197: 0 | Y197: 0
A198: 2019 | B198: 12 | C198: =IF(LOADPROFILE=0.1,Results_10PoE!C169,IF(LOADPROFILE=0.5,Results_50PoE!C169,"Invalid Load Profile %")) -> 4697 | D198: 82.99431818 | E198: 55.32954545 | F198: 27.66477273 | G198: 0 | H198: 0 | I198: 0 | J198: 0 | K198: 0 | L198: 0 | M198: 0 | N198: 0 | O198: 0.01048030822 | P198: 0.00141432947 | Q198: 2.689633412e-05 | R198: FALSE | S198: 0.009632701978 | T198: 0 | U198: 0 | V198: 0 | W198: 0 | X198: 0 | Y198: 0
A199: 2019 | B199: 13 | C199: =IF(LOADPROFILE=0.1,Results_10PoE!C170,IF(LOADPROFILE=0.5,Results_50PoE!C170,"Invalid Load Profile %")) -> 4432 | D199: 82.99431818 | E199: 55.32954545 | F199: 27.66477273 | G199: 0 | H199: 0 | I199: 0 | J199: 0 | K199: 0 | L199: 0 | M199: 0 | N199: 0 | O199: 0.01048030822 | P199: 0.00141432947 | Q199: 2.689633412e-05 | R199: FALSE | S199: 0.009632701978 | T199: 0 | U199: 0 | V199: 0 | W199: 0 | X199: 0 | Y199: 0
A200: 2019 | B200: 14 | C200: =IF(LOADPROFILE=0.1,Results_10PoE!C171,IF(LOADPROFILE=0.5,Results_50PoE!C171,"Invalid Load Profile %")) -> 4247 | D200: 82.99431818 | E200: 55.32954545 | F200: 27.66477273 | G200: 0 | H200: 0 | I200: 0 | J200: 0 | K200: 0 | L200: 0 | M200: 0 | N200: 0 | O200: 0.01048030822 | P200: 0.00141432947 | Q200: 2.689633412e-05 | R200: FALSE | S200: 0.009632701978 | T200: 0 | U200: 0 | V200: 0 | W200: 0 | X200: 0 | Y200: 0
A201: 2019 | B201: 15 | C201: =IF(LOADPROFILE=0.1,Results_10PoE!C172,IF(LOADPROFILE=0.5,Results_50PoE!C172,"Invalid Load Profile %")) -> 4074 | D201: 82.99431818 | E201: 55.32954545 | F201: 27.66477273 | G201: 0 | H201: 0 | I201: 0 | J201: 0 | K201: 0 | L201: 0 | M201: 0 | N201: 0 | O201: 0.01048030822 | P201: 0.00141432947 | Q201: 2.689633412e-05 | R201: FALSE | S201: 0.009632701978 | T201: 0 | U201: 0 | V201: 0 | W201: 0 | X201: 0 | Y201: 0
A202: 2019 | B202: 16 | C202: =IF(LOADPROFILE=0.1,Results_10PoE!C173,IF(LOADPROFILE=0.5,Results_50PoE!C173,"Invalid Load Profile %")) -> 3915 | D202: 82.99431818 | E202: 55.32954545 | F202: 27.66477273 | G202: 0 | H202: 0 | I202: 0 | J202: 0 | K202: 0 | L202: 0 | M202: 0 | N202: 0 | O202: 0.01048030822 | P202: 0.00141432947 | Q202: 2.689633412e-05 | R202: FALSE | S202: 0.009632701978 | T202: 0 | U202: 0 | V202: 0 | W202: 0 | X202: 0 | Y202: 0
... 3134 more rows

Sheet Q_Tables
O2: Source: NUREG CR-5485
H6: λ
A7: // Branches | B7: # Required | C7: # failures | D7: Term
A8: m | B8: k | E8: p(k+1) | F8: Part A | G8: Part B | H8: Part C | I8: Expression | J8: Simplified | K8: xref NUREG
A9: 2 | B9: 1 | C9: 2 | D9: Q2_1 | E9: β | F9: =ROUND(1/((FACT(A9-1)/FACT((A9-1)-(B9-1)))/(FACT(B9-1))),2) -> 1 | G9: 1 | H9: ="(1-"&E9&")"&$H$6 -> (1-β)λ | I9: =F9&"."&G9&"."&H9 -> 1.1.(1-β)λ | J9: (1-β)λ | K9: OK
A10: 2 | B10: 2 | C10: 1 | D10: Q2_2 | E10: 0 | F10: =ROUND(1/((FACT(A10-1)/FACT((A10-1)-(B10-1)))/(FACT(B10-1))),2) -> 1 | G10: =E9 -> β | H10: ="(1-"&E10&")"&$H$6 -> (1-0)λ | I10: =F10&"."&G10&"."&H10 -> 1.β.(1-0)λ | J10: βλ | K10: OK
A13: 3 | B13: 1 | C13: 3 | D13: Q3_1 | E13: β | F13: =ROUND(1/((FACT(A13-1)/FACT((A13-1)-(B13-1)))/(FACT(B13-1))),2) -> 1 | G13: 1 | H13: ="(1-"&E13&")"&$H$6 -> (1-β)λ | I13: =F13&"."&G13&"."&H13 -> 1.1.(1-β)λ | J13: (1-β)λ | K13: OK
A14: 3 | B14: 2 | C14: 2 | D14: Q3_2 | E14: ϒ | F14: =ROUND(1/((FACT(A14-1)/FACT((A14-1)-(B14-1)))/(FACT(B14-1))),2) -> 0.5 | G14: =E13 -> β | H14: ="(1-"&E14&")"&$H$6 -> (1-ϒ)λ | I14: =F14&"."&G14&"."&H14 -> 0.5.β.(1-ϒ)λ | J14: 0.5β(1-ϒ)λ | K14: OK
A15: 3 | B15: 3 | C15: 1 | D15: Q3_3 | E15: 0 | F15: =ROUND(1/((FACT(A15-1)/FACT((A15-1)-(B15-1)))/(FACT(B15-1))),2) -> 1 | G15: βϒ | H15: (1-0)λ | I15: =F15&"."&G15&"."&H15 -> 1.βϒ.(1-0)λ | J15: βϒλ | K15: OK
A17: 4 | B17: 1 | C17: 4 | D17: Q4_1 | E17: β | F17: =ROUND(1/((FACT(A17-1)/FACT((A17-1)-(B17-1)))/(FACT(B17-1))),2) -> 1 | G17: 1 | H17: (1-β)λ | I17: =F17&"."&G17&"."&H17 -> 1.1.(1-β)λ | J17: (1-β)λ | K17: N/A
A18: 4 | B18: 2 | C18: 3 | D18: Q4_2 | E18: γ | F18: =ROUND(1/((FACT(A18-1)/FACT((A18-1)-(B18-1)))/(FACT(B18-1))),2) -> 0.33 | G18: =E17 -> β | H18: (1-γ)λ | I18: =F18&"."&G18&"."&H18 -> 0.33.β.(1-γ)λ | J18: 0.33β(1-ϒ)λ | K18: N/A
A19: 4 | B19: 3 | C19: 2 | D19: Q4_3 | E19: δ | F19: =ROUND(1/((FACT(A19-1)/FACT((A19-1)-(B19-1)))/(FACT(B19-1))),2) -> 0.33 | G19: βϒ | H19: (1-δ)λ | I19: =F19&"."&G19&"."&H19 -> 0.33.βϒ.(1-δ)λ | J19: 0.33βϒ(1-δ)λ | K19: N/A
A20: 4 | B20: 4 | C20: 1 | D20: Q4_4 | E20: 0 | F20: =ROUND(1/((FACT(A20-1)/FACT((A20-1)-(B20-1)))/(FACT(B20-1))),2) -> 1 | G20: βϒδ | H20: (1-0)λ | I20: =F20&"."&G20&"."&H20 -> 1.βϒδ.(1-0)λ | J20: βϒδλ | K20: N/A
O42: https://en.wikipedia.org/wiki/List_of_mathematical_symbols

Sheet Load
A1: =Engine!$C$1 -> MC | B1: MVA | D1: based on 2018 forecasts | Q1: Load Forecast | R1: Actual > | AB1: Trend (Linear) >
B2: 10% Forecast | C2: 50% Forecast | D2: NIEIR 10% | E2: NIEIR 50% | F2: Difference | G2: =CONCATENATE("Growth Profile ",A14,"+") -> Growth Profile 2026+ | H2: 10% Forecast | I2: 50% Forecast | J2: 10% POE Growth | K2: Selected Load | M2: Change in forecast | N2: 0 | P2: Load transfer (MW) | Q2: ZSS | R2: =2018 -> 2018 | S2: =R2+1 -> 2019 | T2: =S2+1 -> 2020 | U2: 2021 | V2: 2022 | W2: 2023 | X2: 2024 | Y2: 2025 | Z2: 2026 | AA2: 2027 | AB2: 2028 | AC2: =AB2+1 -> 2029 | AD2: =AC2+1 -> 2030 | AE2: 2031 | AF2: 2032 | AG2: 2033 | AH2: 2034 | AI2: 2035 | AJ2: 2036 | AK2: 2037 | AL2: 2038 | AM2: 2039 | AN2: 2040 | AO2: 2041 | AP2: ZSS | AQ2: Extra xFer | AR2: Extra xFer Yr | AS2: Extra xFer Cost | AT2: 2018 | AU2: Power factor
Q3: BH | R3: 44.20046147 | S3: 47.80115364 | T3: 48.20601448 | U3: 48.81842879 | V3: 50.07343135 | W3: 51.86559149 | X3: 52.59407301 | Y3: 53.74215981 | Z3: 54.78129255 | AA3: 55.7161338 | AB3: 56.09912284 | AC3: 57.28177849 | AD3: 58.18018586 | AE3: 59.07859322 | AF3: 59.97700059 | AG3: 60.87540795 | AH3: 61.77381532 | AI3: 62.67222268 | AJ3: 63.57063005 | AK3: 64.46903741 | AL3: 65.36744478 | AM3: 66.26585214 | AN3: 67.16425951 | AO3: 68.06266687 | AP3: =Q3 -> BH | AR3: 9999 | AT3: 14.71185347 | AU3: 0.9998441182
M4: POE | N4: =LOADPROFILE -> 0.5 | Q4: BR | R4: 29.54094376 | S4: 30.95904485 | T4: 31.0236183 | U4: 30.96788451 | V4: 30.905681 | W4: 31.20989518 | X4: 31.30799637 | Y4: 31.92368742 | Z4: 32.51301765 | AA4: 33.06029354 | AB4: 33.16517742 | AC4: 33.84932495 | AD4: 34.33442177 | AE4: 34.81951859 | AF4: 35.30461541 | AG4: 35.78971224 | AH4: 36.27480906 | AI4: 36.75990588 | AJ4: 37.2450027 | AK4: 37.73009952 | AL4: 38.21519635 | AM4: 38.70029317 | AN4: 39.18538999 | AO4: 39.67048681 | AP4: BR | AR4: 9999 | AT4: 8.002484864 | AU4: 0.9866911733
Q5: BT | R5: 30.36363154 | S5: 31.8679515 | T5: 32.40751389 | U5: 32.61515193 | V5: 32.79899279 | W5: 33.1251383 | X5: 33.1661738 | Y5: 33.82579826 | Z5: 34.45823829 | AA5: 35.04642016 | AB5: 35.11920044 | AC5: 35.86116874 | AD5: 36.37383626 | AE5: 36.88650378 | AF5: 37.3991713 | AG5: 37.91183882 | AH5: 38.42450634 | AI5: 38.93717385 | AJ5: 39.44984137 | AK5: 39.96250889 | AL5: 40.47517641 | AM5: 40.98784393 | AN5: 41.50051145 | AO5: 42.01317896 | AP5: BT | AR5: 9999 | AT5: 6.631633315 | AU5: 0.9957371189
A6: =2018 -> 2018 | B6: =K6*(1+$N$2) -> 53.29442211 | C6: =I6 -> 53.29442211 | D6: 2101.537033 | E6: 1914.687656 | F6: =(D6-E6)/E6 -> 0.09758739342 | H6: =VLOOKUP($A$1, $Q$3:$AO$54, MATCH($A6,$Q$2:$AO$2,0), FALSE) -> 58.49528585 | I6: =H6/(1+F6) -> 53.29442211 | K6: =IF($N$4=0.1,H6,I6) -> 53.29442211 | L6: =MATCH(A6, $Q$2:$AC$2,0) -> 2 | N6: NIEIR 10% | O6: NIEIR 50% | P6: =VLOOKUP($A$1, $AP$3:$AV$54, MATCH($A6,$AP$2:$AV$2,0), FALSE) -> 18.67635319 | Q6: BU | R6: 30.03966883 | S6: 31.64685526 | T6: 31.61287137 | U6: 31.36348094 | V6: 31.25423474 | W6: 31.59769545 | X6: 31.64710637 | Y6: 32.18258364 | Z6: 32.68476912 | AA6: 33.10941613 | AB6: 33.23686672 | AC6: 33.80405436 | AD6: 34.21468968 | AE6: 34.625325 | AF6: 35.03596032 | AG6: 35.44659564 | AH6: 35.85723096 | AI6: 36.26786629 | AJ6: 36.67850161 | AK6: 37.08913693 | AL6: 37.49977225 | AM6: 37.91040757 | AN6: 38.32104289 | AO6: 38.73167821 | AP6: BU | AR6: 9999 | AT6: 6.783344094 | AU6: 0.9892700008
A7: =A6+1 -> 2019 | B7: =K7*(1+$N$2) -> 57.88937371 | C7: =I7 -> 57.88937371 | D7: 2223 | E7: 2009 | F7: 0.106520657 | H7: =VLOOKUP($A$1, $Q$3:$AO$54, MATCH($A7,$Q$2:$AO$2,0), FALSE) -> 64.05578783 | I7: =H7/(1+F7) -> 57.88937371 | J7: =(H7-H6)/H6 -> 0.09505897614 | K7: =IF($N$4=0.1,H7,I7) -> 57.88937371 | L7: 3 | N7: =(D8-D7)/D7 -> 0.008547008547 | O7: =(E8-E7)/E7 -> 0.001493280239 | P7: =P6*(1-$O$23) -> 18.47050938 | Q7: BW | R7: 22.96460172 | S7: 24.1653552 | T7: 24.213859 | U7: 24.06359358 | V7: 23.95403349 | W7: 24.23041769 | X7: 24.26839899 | Y7: 24.62075293 | Z7: 24.97849326 | AA7: 25.32340921 | AB7: 25.61172048 | AC7: 25.97734475 | AD7: 26.31627467 | AE7: 26.6552046 | AF7: 26.99413452 | AG7: 27.33306445 | AH7: 27.67199437 | AI7: 28.0109243 | AJ7: 28.34985422 | AK7: 28.68878415 | AL7: 29.02771407 | AM7: 29.366644 | AN7: 29.70557392 | AO7: 30.04450385 | AP7: BW | AR7: 9999 | AT7: 4.405892033 | AU7: 0.9947390546
A8: 2020 | B8: 57.57484029 | C8: 57.57484029 | D8: 2242 | E8: 2012 | F8: 0.1143141153 | H8: 64.15645722 | I8: 57.57484029 | J8: =(H8-H7)/H7 -> 0.001571589248 | K8: 57.57484029 | L8: 4 | N8: =(D9-D8)/D8 -> 0.00267618198 | O8: 0.002982107356 | P8: =P7*(1-$O$23) -> 18.26693431 | Q8: CDA | R8: 35.68322179 | S8: 35.02334931 | T8: 36.00169076 | U8: 36.73781397 | V8: 37.31158527 | W8: 37.80104856 | X8: 37.85752013 | Y8: 38.68043843 | Z8: 39.42710774 | AA8: 40.10613495 | AB8: 40.26293093 | AC8: 41.13778188 | AD8: 41.76143369 | AE8: 42.3850855 | AF8: 43.00873732 | AG8: 43.63238913 | AH8: 44.25604095 | AI8: 44.87969276 | AJ8: 45.50334457 | AK8: 46.12699639 | AL8: 46.7506482 | AM8: 47.37430001 | AN8: 47.99795183 | AO8: 48.62160364 | AP8: CDA | AR8: 9999 | AT8: 22.07073612 | AU8: 0.9918537293
A9: 2021 | B9: 57.36732017 | C9: 57.36732017 | D9: 2248 | E9: 2018 | F9: 0.1139742319 | H9: 63.90571643 | I9: 57.36732017 | J9: =(H9-H8)/H8 -> -0.003908270559 | K9: 57.36732017 | L9: 5 | N9: 0.004893238434 | O9: 0.008424182359 | P9: 18.06560296 | Q9: CFD | R9: 47.99338883 | S9: 53.91698645 | T9: 55.49572309 | U9: 56.59187995 | V9: 56.99559821 | W9: 57.65897646 | X9: 57.80963696 | Y9: 58.95646971 | Z9: 59.69809642 | AA9: 60.40555802 | AB9: 60.84360042 | AC9: 61.79777687 | AD9: 62.5494784 | AE9: 63.30117992 | AF9: 64.05288144 | AG9: 64.80458297 | AH9: 65.55628449 | AI9: 66.30798601 | AJ9: 67.05968754 | AK9: 67.81138906 | AL9: 68.56309058 | AM9: 69.31479211 | AN9: 70.06649363 | AO9: 70.81819516 | AP9: CFD | AR9: 9999 | AT9: 12.95321633 | AU9: 0.9929359626
A10: 2022 | B10: 57.53536344 | C10: 57.53536344 | D10: 2259 | E10: 2035 | F10: 0.1100737101 | H10: 63.86849435 | I10: 57.53536344 | J10: -0.0005824530195 | K10: 57.53536344 | L10: 6 | N10: 0.01505090748 | O10: 0.01867321867 | P10: 17.86649061 | Q10: CM | R10: 23.85144291 | S10: 27.5492563 | T10: 28.17912192 | U10: 28.53507508 | V10: 28.87555518 | W10: 29.74529813 | X10: 30.6657145 | Y10: 31.82633312 | Z10: 32.626719 | AA10: 33.01016515 | AB10: 33.08216592 | AC10: 34.04724 | AD10: 34.64891348 | AE10: 35.25058697 | AF10: 35.85226046 | AG10: 36.45393394 | AH10: 37.05560743 | AI10: 37.65728091 | AJ10: 38.2589544 | AK10: 38.86062789 | AL10: 39.46230137 | AM10: 40.06397486 | AN10: 40.66564835 | AO10: 41.26732183 | AP10: CM | AR10: 9999 | AT10: 5.226879221 | AU10: 0.9999046231
A11: 2023 | B11: 58.35759353 | C11: 58.35759353 | D11: 2293 | E11: 2073 | F11: 0.1061263869 | H11: 64.55087408 | I11: 58.35759353 | J11: 0.01068413678 | K11: 58.35759353 | L11: 7 | N11: 0.006105538596 | O11: 0.008683068017 | P11: 17.66957281 | Q11: CRM | R11: 73.46415056 | S11: 88.29618692 | T11: 88.85034521 | U11: 88.69767672 | V11: 88.98134701 | W11: 90.04492607 | X11: 90.55048551 | Y11: 92.31748324 | Z11: 94.12081874 | AA11: 95.89239279 | AB11: 97.31640555 | AC11: 99.17154205 | AD11: 100.882217 | AE11: 102.592892 | AF11: 104.3035669 | AG11: 106.0142419 | AH11: 107.7249169 | AI11: 109.4355918 | AJ11: 111.1462668 | AK11: 112.8569417 | AL11: 114.5676167 | AM11: 116.2782917 | AN11: 117.9889666 | AO11: 119.6996416 | AP11: CRM | AR11: 9999 | AT11: 14.39723415 | AU11: 0.998093981
A12: 2024 | B12: 58.59997557 | C12: 58.59997557 | D12: 2307 | E12: 2091 | F12: 0.1032998565 | H12: 64.65334464 | I12: 58.59997557 | J12: 0.001587438761 | K12: 58.59997557 | L12: 8 | N12: 0.02080624187 | O12: 0.01243424199 | P12: 17.47482536 | Q12: DC | R12: 81.72715048 | S12: 93.90688064 | T12: 95.12759926 | U12: 96.09862069 | V12: 97.29674262 | W12: 99.28337625 | X12: 100.1877958 | Y12: 101.8436296 | Z12: 103.3980232 | AA12: 104.7135031 | AB12: 105.1085105 | AC12: 106.8636833 | AD12: 108.1348136 | AE12: 109.4059439 | AF12: 110.6770742 | AG12: 111.9482045 | AH12: 113.2193348 | AI12: 114.4904651 | AJ12: 115.7615954 | AK12: 117.0327257 | AL12: 118.303856 | AM12: 119.5749863 | AN12: 120.8461166 | AO12: 122.1172468 | AP12: DC | AR12: 9999 | AT12: 18.54708252 | AU12: 0.9996654323
A13: 2025 | B13: 59.35858585 | C13: 59.35858585 | D13: 2355 | E13: 2117 | F13: 0.1124232404 | H13: 66.03187042 | I13: =H13/(1+F13) -> 59.35858585 | J13: 0.02132180152 | K13: 59.35858585 | L13: 9 | N13: 0.0195329087 | O13: 0.02031176193 | P13: 17.28222434 | Q13: DMA | R13: 40.56616143 | S13: 46.62718426 | T13: 47.11149367 | U13: 47.41962622 | V13: 47.89159374 | W13: 49.03075126 | X13: 49.85209954 | Y13: 51.28740506 | Z13: 52.70625148 | AA13: 54.02419829 | AB13: 54.861848 | AC13: 56.37324752 | AD13: 57.64887654 | AE13: 58.92450555 | AF13: 60.20013457 | AG13: 61.47576358 | AH13: 62.7513926 | AI13: 64.02702161 | AJ13: 65.30265063 | AK13: 66.57827964 | AL13: 67.85390866 | AM13: 69.12953767 | AN13: 70.40516669 | AO13: 71.6807957 | AP13: DMA | AR13: 9999 | AT13: 21.46728537 | AU13: 0.995093885
A14: 2026 | B14: 60.591056 | C14: 60.591056 | D14: 2401 | E14: 2160 | F14: 0.1115740741 | H14: 67.35144696 | I14: =H14/(1+F14) -> 60.591056 | J14: 0.01998393405 | K14: 60.591056 | L14: 10 | N14: 0.0179092045 | O14: 0.01388888889 | P14: 17.0917461 | Q14: DN | R14: 69.43740435 | S14: 85.22128217 | T14: 85.44391914 | U14: 84.96377327 | V14: 84.71735463 | W14: 85.67569099 | X14: 85.97944716 | Y14: 87.64002896 | Z14: 89.33677724 | AA14: 91.0055109 | AB14: 92.01503282 | AC14: 93.8263554 | AD14: 95.37002072 | AE14: 96.91368605 | AF14: 98.45735138 | AG14: 100.0010167 | AH14: 101.544682 | AI14: 103.0883474 | AJ14: 104.6320127 | AK14: 106.175678 | AL14: 107.7193433 | AM14: 109.2630087 | AN14: 110.806674 | AO14: 112.3503393 | AP14: DN | AR14: 9999 | AT14: 15.97979688 | AU14: 0.990740667
A15: 2027 | B15: 61.44985138 | C15: 61.44985138 | D15: 2444 | E15: 2190 | F15: 0.1159817352 | H15: 68.57691177 | I15: 61.44985138 | J15: =(H15-H14)/H14 -> 0.01819507766 | K15: 61.44985138 | L15: 11 | N15: 0.00736497545 | O15: 0.009132420091 | P15: 16.90336724 | Q15: DSH | R15: 62.79772511 | S15: 69.35790194 | T15: 70.0305203 | U15: 69.67028199 | V15: 69.464555 | W15: 70.29744166 | X15: 70.5614834 | Y15: 72.00534451 | Z15: 73.4812942 | AA15: 74.93345683 | AB15: 75.81222204 | AC15: 77.38763708 | AD15: 78.73059604 | AE15: 80.073555 | AF15: 81.41651396 | AG15: 82.75947292 | AH15: 84.10243188 | AI15: 85.44539084 | AJ15: 86.7883498 | AK15: 88.13130876 | AL15: 89.47426772 | AM15: 90.81722668 | AN15: 92.16018564 | AO15: 93.5031446 | AP15: DSH | AR15: 9999 | AT15: 18.23139113 | AU15: 0.9879564091
A16: 2028 | B16: 61.69367987 | C16: 61.69367987 | D16: 2462 | E16: 2210 | F16: 0.1140271493 | H16: 68.72843431 | I16: =H16/(1+F16) -> 61.69367987 | J16: =(H16-H15)/H15 -> 0.002209527012 | K16: 61.69367987 | L16: 12 | N16: 0.007717303006 | O16: 0.01402714932 | P16: 16.71706462 | Q16: DVY | R16: 79.44673253 | S16: 86.49165099 | T16: 87.50492496 | U16: 88.15114374 | V16: 89.28173822 | W16: 90.8658663 | X16: 91.20787091 | Y16: 93.07580661 | Z16: 94.98151565 | AA16: 96.85306382 | AB16: 97.98404982 | AC16: 100.0193459 | AD16: 101.7523074 | AE16: 103.4852689 | AF16: 105.2182304 | AG16: 106.9511919 | AH16: 108.6841534 | AI16: 110.4171149 | AJ16: 112.1500764 | AK16: 113.8830379 | AL16: 115.6159994 | AM16: 117.3489609 | AN16: 119.0819224 | AO16: 120.8148839 | AP16: DVY | AR16: 9999 | AT16: 17.4191466 | AU16: 0.9552939063
A17: 2029 | B17: 63.47871218 | C17: 63.47871218 | D17: 2481 | E17: 2241 | F17: 0.1070950469 | H17: 70.27696783 | I17: 63.47871218 | J17: =(H17-H16)/H16 -> 0.02253119156 | K17: =IF($N$4=0.1,H17,I17) -> 63.47871218 | L17: =MATCH(A17, $Q$2:$AC$2,0) -> 13 | M17: Avg | N17: =AVERAGE(N7:N16) -> 0.01106035086 | O17: =AVERAGE(O7:O16) -> 0.01100503189 | P17: 16.53281536 | Q17: EB | R17: 57.51023621 | S17: 63.48812538 | T17: 64.51631823 | U17: 65.40969143 | V17: 66.34595881 | W17: 68.25790742 | X17: 69.32613522 | Y17: 70.31233223 | Z17: 71.62735901 | AA17: 72.82381865 | AB17: 73.10016971 | AC17: 74.45582959 | AD17: 75.46178513 | AE17: 76.46774066 | AF17: 77.4736962 | AG17: 78.47965174 | AH17: 79.48560728 | AI17: 80.49156282 | AJ17: 81.49751836 | AK17: 82.5034739 | AL17: 83.50942944 | AM17: 84.51538498 | AN17: 85.52134052 | AO17: 86.52729606 | AP17: EB | AR17: 9999 | AT17: 14.82629143 | AU17: 0.9999347683
A18: 2030 | B18: 64.44477383 | C18: 64.44477383 | F18: =F17 -> 0.1070950469 | G18: =AVERAGE(J9:J17) -> 0.01022470931 | H18: 71.3464899 | I18: =H18/(1+F18) -> 64.44477383 | K18: 64.44477383 | P18: 16.35059683 | Q18: EL | R18: 30.67519365 | S18: 34.8738965 | T18: 35.3051099 | U18: 35.54179677 | V18: 35.804866 | W18: 36.20450137 | X18: 36.31395425 | Y18: 37.00592756 | Z18: 37.71283647 | AA18: 38.54858664 | AB18: 38.81856481 | AC18: 39.64553801 | AD18: 40.30072603 | AE18: 40.95591405 | AF18: 41.61110207 | AG18: 42.26629009 | AH18: 42.92147811 | AI18: 43.57666613 | AJ18: 44.23185415 | AK18: 44.88704217 | AL18: 45.54223019 | AM18: 46.19741821 | AN18: 46.85260623 | AO18: 47.50779425 | AP18: EL | AR18: 9999 | AT18: 7.508802535 | AU18: 0.9993280977
A19: 2031 | B19: 65.41083548 | C19: 65.41083548 | F19: 0.1070950469 | G19: 0.01022470931 | H19: 72.41601197 | I19: 65.41083548 | K19: 65.41083548 | N19: PoE | O19: Weighting | P19: 16.17038664 | Q19: EM | R19: 31.27103743 | S19: 35.06197328 | T19: 36.0814738 | U19: 37.19445216 | V19: 38.14305976 | W19: 38.60016936 | X19: 38.69584903 | Y19: 39.42464756 | Z19: 40.16924432 | AA19: 41.04963537 | AB19: 41.33405288 | AC19: 42.20510448 | AD19: 42.89524403 | AE19: 43.58538358 | AF19: 44.27552313 | AG19: 44.96566268 | AH19: 45.65580223 | AI19: 46.34594178 | AJ19: 47.03608133 | AK19: 47.72622088 | AL19: 48.41636043 | AM19: 49.10649998 | AN19: 49.79663952 | AO19: 50.48677907 | AP19: EM | AR19: 9999 | AT19: 6.182631011 | AU19: 0.9959321858
A20: 2032 | B20: 66.37689713 | C20: 66.37689713 | F20: 0.1070950469 | G20: 0.01022470931 | H20: 73.48553404 | I20: 66.37689713 | K20: 66.37689713 | N20: 0.1 | O20: ='ZSS Summary'!N10 -> 0.3 | P20: 15.99216266 | Q20: EW | R20: 24.85777933 | S20: 26.47525369 | T20: 26.56521194 | U20: 26.58433691 | V20: 26.61504134 | W20: 26.91870967 | X20: 27.05557207 | Y20: 27.58153588 | Z20: 28.1179321 | AA20: 28.64452559 | AB20: 28.9627221 | AC20: 29.53564448 | AD20: 30.02337345 | AE20: 30.51110243 | AF20: 30.99883141 | AG20: 31.48656038 | AH20: 31.97428936 | AI20: 32.46201834 | AJ20: 32.94974731 | AK20: 33.43747629 | AL20: 33.92520527 | AM20: 34.41293424 | AN20: 34.90066322 | AO20: 35.3883922 | AP20: EW | AR20: 9999 | AT20: 5.384667242 | AU20: 0.9961025924
A21: 2033 | B21: 67.34295878 | C21: 67.34295878 | F21: 0.1070950469 | G21: 0.01022470931 | H21: 74.55505611 | I21: 67.34295878 | K21: 67.34295878 | N21: 0.5 | O21: ='ZSS Summary'!N11 -> 0.7 | P21: 15.815903 | Q21: FSH | R21: 67.26972371 | S21: 74.50140729 | T21: 74.60171868 | U21: 74.18910044 | V21: 74.0078177 | W21: 74.45141445 | X21: 74.68836212 | Y21: 75.70373088 | Z21: 76.73532128 | AA21: 77.73057292 | AB21: 78.44354341 | AC21: 79.5214675 | AD21: 80.47518796 | AE21: 81.42890842 | AF21: 82.38262888 | AG21: 83.33634934 | AH21: 84.2900698 | AI21: 85.24379026 | AJ21: 86.19751072 | AK21: 87.15123118 | AL21: 88.10495164 | AM21: 89.0586721 | AN21: 90.01239256 | AO21: 90.96611302 | AP21: FSH | AR21: 9999 | AT21: 21.06759486 | AU21: 0.9920350006
A22: 2034 | B22: 68.30902044 | C22: 68.30902044 | F22: 0.1070950469 | G22: 0.01022470931 | H22: 75.62457818 | I22: 68.30902044 | K22: 68.30902044 | P22: 15.641586 | Q22: FTN | R22: 51.86764786 | S22: 57.18367 | T22: 57.54444189 | U22: 57.04526405 | V22: 56.70759916 | W22: 57.06968854 | X22: 57.15880637 | Y22: 57.98566754 | Z22: 58.82536873 | AA22: 59.63515057 | AB22: 60.52424629 | AC22: 61.33995676 | AD22: 62.17799304 | AE22: 63.01602933 | AF22: 63.85406562 | AG22: 64.6921019 | AH22: 65.53013819 | AI22: 66.36817448 | AJ22: 67.20621076 | AK22: 68.04424705 | AL22: 68.88228334 | AM22: 69.72031962 | AN22: 70.55835591 | AO22: 71.3963922 | AP22: FTN | AR22: 9999 | AT22: 17.85449055 | AU22: 0.9969422052
A23: 2035 | B23: 69.27508209 | C23: 69.27508209 | F23: 0.1070950469 | G23: 0.01022470931 | H23: 76.69410025 | I23: 69.27508209 | K23: 69.27508209 | N23: Avg Load growth | O23: =O20*N17+O17*O21 -> 0.01102162758 | P23: 15.46919027 | Q23: GW | R23: 63.49617246 | S23: 71.19507644 | T23: 72.7475589 | U23: 73.61907066 | V23: 73.965546 | W23: 74.9081211 | X23: 75.14010124 | Y23: 76.7292454 | Z23: 78.17260368 | AA23: 79.48634332 | AB23: 79.78985038 | AC23: 81.48060766 | AD23: 82.68626728 | AE23: 83.8919269 | AF23: 85.09758652 | AG23: 86.30324614 | AH23: 87.50890577 | AI23: 88.71456539 | AJ23: 89.92022501 | AK23: 91.12588463 | AL23: 92.33154425 | AM23: 93.53720387 | AN23: 94.74286349 | AO23: 95.94852311 | AP23: GW | AR23: 9999 | AT23: 19.07911978 | AU23: 0.9999832689
A24: 2036 | B24: 70.24114374 | C24: 70.24114374 | F24: 0.1070950469 | G24: 0.01022470931 | H24: 77.76362232 | I24: 70.24114374 | K24: 70.24114374 | P24: 15.29869461 | Q24: HGS | R24: 47.52007611 | S24: 50.44775236 | T24: 50.51887937 | U24: 50.26393632 | V24: 50.39196567 | W24: 50.91796829 | X24: 50.99621991 | Y24: 51.72223454 | Z24: 52.45947591 | AA24: 53.17040594 | AB24: 53.67949763 | AC24: 54.44998484 | AD24: 55.13145752 | AE24: 55.81293021 | AF24: 56.49440289 | AG24: 57.17587557 | AH24: 57.85734826 | AI24: 58.53882094 | AJ24: 59.22029362 | AK24: 59.90176631 | AL24: 60.58323899 | AM24: 61.26471168 | AN24: 61.94618436 | AO24: 62.62765704 | AP24: HGS | AR24: 9999 | AT24: 13.74778393 | AU24: 0.9998337169
A25: 2037 | B25: 71.20720539 | C25: 71.20720539 | F25: 0.1070950469 | G25: 0.01022470931 | H25: 78.83314439 | I25: 71.20720539 | K25: 71.20720539 | P25: 15.1300781 | Q25: HT | R25: 45.81897483 | S25: 52.47517468 | T25: 53.79655698 | U25: 55.07876421 | V25: 55.80718468 | W25: 56.2093445 | X25: 56.32401946 | Y25: 57.49394698 | Z25: 58.61948607 | AA25: 59.66939856 | AB25: 59.79951302 | AC25: 61.11920443 | AD25: 62.0318483 | AE25: 62.94449217 | AF25: 63.85713604 | AG25: 64.76977991 | AH25: 65.68242378 | AI25: 66.59506765 | AJ25: 67.50771152 | AK25: 68.42035539 | AL25: 69.33299926 | AM25: 70.24564313 | AN25: 71.158287 | AO25: 72.07093087 | AP25: HT | AR25: 9999 | AT25: 19.00112894 | AU25: 0.9996221549
A26: 2038 | B26: =K26*(1+$N$2) -> 72.17326704 | C26: =I26 -> 72.17326704 | F26: 0.1070950469 | G26: 0.01022470931 | H26: 79.90266646 | I26: =H26/(1+F26) -> 72.17326704 | K26: =IF($N$4=0.1,H26,I26) -> 72.17326704 | P26: 14.96332001 | Q26: K | R26: 37.10086384 | S26: 45.70709999 | T26: 46.27958922 | U26: 46.98535686 | V26: 47.95725318 | W26: 49.14715378 | X26: 49.71277149 | Y26: 50.63303719 | Z26: 51.57268028 | AA26: 52.49619655 | AB26: 53.05471444 | AC26: 54.05799357 | AD26: 54.91269809 | AE26: 55.76740262 | AF26: 56.62210714 | AG26: 57.47681167 | AH26: 58.3315162 | AI26: 59.18622072 | AJ26: 60.04092525 | AK26: 60.89562978 | AL26: 61.7503343 | AM26: 62.60503883 | AN26: 63.45974335 | AO26: 64.31444788 | AP26: K | AR26: 9999 | AT26: 8.141484439 | AU26: 0.98870553
A27: 2039 | B27: =K27*(1+$N$2) -> 73.13932869 | C27: =I27 -> 73.13932869 | F27: 0.1070950469 | G27: 0.01022470931 | H27: 80.97218853 | I27: =H27/(1+F27) -> 73.13932869 | K27: =IF($N$4=0.1,H27,I27) -> 73.13932869 | P27: 14.79839987 | Q27: KBH | R27: 26.26998242 | S27: 35.35657047 | T27: 37.19846067 | U27: 38.52807031 | V27: 39.5180508 | W27: 40.45890941 | X27: 41.25316249 | Y27: 42.29462838 | Z27: 43.34539222 | AA27: 44.37245219 | AB27: 45.1844857 | AC27: 46.27216526 | AD27: 47.26621229 | AE27: 48.26025931 | AF27: 49.25430633 | AG27: 50.24835335 | AH27: 51.24240038 | AI27: 52.2364474 | AJ27: 53.23049442 | AK27: 54.22454144 | AL27: 55.21858847 | AM27: 56.21263549 | AN27: 57.20668251 | AO27: 58.20072953 | AP27: KBH | AR27: 9999 | AT27: 35.30124239 | AU27: 0.980026812
A28: 2040 | B28: =K28*(1+$N$2) -> 74.10539035 | C28: =I28 -> 74.10539035 | F28: 0.1070950469 | G28: 0.01022470931 | H28: 82.0417106 | I28: =H28/(1+F28) -> 74.10539035 | K28: =IF($N$4=0.1,H28,I28) -> 74.10539035 | P28: 14.63529742 | Q28: LD | R28: 48.61070108 | S28: 58.49552093 | T28: 58.55694675 | U28: 58.21865412 | V28: 57.92360419 | W28: 58.27522473 | X28: 58.65261956 | Y28: 59.460948 | Z28: 60.28261813 | AA28: 61.07573437 | AB28: 61.73105765 | AC28: 62.5720943 | AD28: 63.34926056 | AE28: 64.12642681 | AF28: 64.90359307 | AG28: 65.68075932 | AH28: 66.45792557 | AI28: 67.23509183 | AJ28: 68.01225808 | AK28: 68.78942434 | AL28: 69.56659059 | AM28: 70.34375684 | AN28: 71.1209231 | AO28: 71.89808935 | AP28: LD | AR28: 9999 | AT28: 29.84742235 | AU28: 0.9973488701
P29: 14.47399262 | Q29: LWN | R29: 45.73231417 | S29: 47.82265378 | T29: 47.76675843 | U29: 47.36672221 | V29: 47.21601722 | W29: 47.54266862 | X29: 47.71468703 | Y29: 48.40822214 | Z29: 49.1120926 | AA29: 49.79048725 | AB29: 50.53489896 | AC29: 51.21888428 | AD29: 51.92115318 | AE29: 52.62342208 | AF29: 53.32569097 | AG29: 54.02795987 | AH29: 54.73022877 | AI29: 55.43249766 | AJ29: 56.13476656 | AK29: 56.83703546 | AL29: 57.53930435 | AM29: 58.24157325 | AN29: 58.94384214 | AO29: 59.64611104 | AP29: LWN | AR29: 9999 | AT29: 27.26047757 | AU29: 0.9876897278
A30: 1 | B30: =A30+1 -> 2 | C30: =B30+1 -> 3 | D30: 4 | E30: 5 | F30: 6 | G30: 7 | H30: 8 | I30: 9 | J30: 10 | K30: 11 | L30: 12 | Q30: M | R30: 35.29742516 | S30: 42.05004829 | T30: 42.27618052 | U30: 41.98985674 | V30: 41.90258692 | W30: 42.31721115 | X30: 42.37950276 | Y30: 43.2182179 | Z30: 44.02226182 | AA30: 44.76995184 | AB30: 45.15143981 | AC30: 46.03695724 | AD30: 46.74651804 | AE30: 47.45607884 | AF30: 48.16563965 | AG30: 48.87520045 | AH30: 49.58476125 | AI30: 50.29432206 | AJ30: 51.00388286 | AK30: 51.71344366 | AL30: 52.42300447 | AM30: 53.13256527 | AN30: 53.84212607 | AO30: 54.55168688 | AP30: M | AR30: 9999 | AT30: 4.119745339 | AU30: 0.9952057977
Q31: MC | R31: 58.49528585 | S31: 64.05578783 | T31: 64.15645722 | U31: 63.90571643 | V31: 63.86849435 | W31: 64.55087408 | X31: 64.65334464 | Y31: 66.03187042 | Z31: 67.35144696 | AA31: 68.57691177 | AB31: 68.72843431 | AC31: 70.27696783 | AD31: 71.3464899 | AE31: 72.41601197 | AF31: 73.48553404 | AG31: 74.55505611 | AH31: 75.62457818 | AI31: 76.69410025 | AJ31: 77.76362232 | AK31: 78.83314439 | AL31: 79.90266646 | AM31: 80.97218853 | AN31: 82.0417106 | AO31: 83.11123267 | AP31: MC | AR31: 9999 | AT31: 18.67635319 | AU31: 0.9918040968
Q32: MGE | R32: 73.40290302 | S32: 84.33264925 | T32: 84.42494711 | U32: 83.99171453 | V32: 84.05382752 | W32: 85.01256918 | X32: 85.14434618 | Y32: 86.80077432 | Z32: 88.49200657 | AA32: 90.15413749 | AB32: 91.15912759 | AC32: 92.96495622 | AD32: 94.50324882 | AE32: 96.04154142 | AF32: 97.57983402 | AG32: 99.11812662 | AH32: 100.6564192 | AI32: 102.1947118 | AJ32: 103.7330044 | AK32: 105.271297 | AL32: 106.8095896 | AM32: 108.3478822 | AN32: 109.8861748 | AO32: 111.4244674 | AP32: MGE | AR32: 9999 | AT32: 23.23529577 | AU32: 0.9991030574
Q33: MR | R33: 46.80194564 | S33: 50.0842359 | T33: 50.35515635 | U33: 50.40949795 | V33: 50.53442433 | W33: 51.06031248 | X33: 51.12834631 | Y33: 52.19066499 | Z33: 53.20774996 | AA33: 54.15245812 | AB33: 54.26927695 | AC33: 55.46279559 | AD33: 56.28716103 | AE33: 57.11152647 | AF33: 57.93589192 | AG33: 58.76025736 | AH33: 59.5846228 | AI33: 60.40898824 | AJ33: 61.23335368 | AK33: 62.05771912 | AL33: 62.88208457 | AM33: 63.70645001 | AN33: 64.53081545 | AO33: 65.35518089 | AP33: MR | AR33: 9999 | AT33: 14.03126761 | AU33: 0.9994353599
Q34: MTN | R34: 63.10496373 | S34: 66.82666021 | T34: 66.92092017 | U34: 66.74177576 | V34: 67.15015027 | W34: 68.73288017 | X34: 69.45380462 | Y34: 71.43714012 | Z34: 73.3986413 | AA34: 75.22139989 | AB34: 75.94189566 | AC34: 78.11870887 | AD34: 79.79475305 | AE34: 81.47079724 | AF34: 83.14684142 | AG34: 84.82288561 | AH34: 86.49892979 | AI34: 88.17497397 | AJ34: 89.85101816 | AK34: 91.52706234 | AL34: 93.20310653 | AM34: 94.87915071 | AN34: 96.5551949 | AO34: 98.23123908 | AP34: MTN | AR34: 9999 | AT34: 15.29676995 | AU34: 0.9997030681
Q35: NB | R35: 46.44646643 | S35: 50.69603901 | T35: 50.73719315 | U35: 50.45496641 | V35: 50.47776129 | W35: 51.01873821 | X35: 51.09158624 | Y35: 52.18356658 | Z35: 53.22808919 | AA35: 54.19749011 | AB35: 54.31731147 | AC35: 55.54322092 | AD35: 56.38975831 | AE35: 57.23629571 | AF35: 58.08283311 | AG35: 58.92937051 | AH35: 59.77590791 | AI35: 60.62244531 | AJ35: 61.4689827 | AK35: 62.3155201 | AL35: 63.1620575 | AM35: 64.0085949 | AN35: 64.8551323 | AO35: 65.7016697 | AP35: =Q35 -> NB | AR35: 9999 | AT35: 9.602295974 | AU35: 0.9808503373
Q36: NO | R36: 51.69962822 | S36: 60.5169245 | T36: 61.2755805 | U36: 62.09919228 | V36: 63.25510071 | W36: 64.45662131 | X36: 66.03098907 | Y36: 67.63625825 | Z36: 68.74842421 | AA36: 69.76241611 | AB36: 70.13923158 | AC36: 71.56625671 | AD36: 72.600521 | AE36: 73.63478528 | AF36: 74.66904957 | AG36: 75.70331386 | AH36: 76.73757815 | AI36: 77.77184244 | AJ36: 78.80610673 | AK36: 79.84037101 | AL36: 80.8746353 | AM36: 81.90889959 | AN36: 82.94316388 | AO36: 83.97742817 | AP36: NO | AR36: 9999 | AT36: 9.709564724 | AU36: 0.9471788298
Q37: NP | R37: 56.02439955 | S37: 63.90335365 | T37: 63.49585892 | U37: 63.0214944 | V37: 62.65897773 | W37: 63.45335084 | X37: 63.49574297 | Y37: 64.8331704 | Z37: 66.04960798 | AA37: 67.15813073 | AB37: 67.22531945 | AC37: 68.6876283 | AD37: 69.66603963 | AE37: 70.64445096 | AF37: 71.62286229 | AG37: 72.60127362 | AH37: 73.57968496 | AI37: 74.55809629 | AJ37: 75.53650762 | AK37: 76.51491895 | AL37: 77.49333028 | AM37: 78.47174161 | AN37: 79.45015294 | AO37: 80.42856427 | AP37: NP | AR37: 9999 | AT37: 21.8491586 | AU37: 0.999917976
Q38: NW | R38: 58.68175358 | S38: 66.80011234 | T38: 67.08841067 | U38: 67.04837704 | V38: 67.08373209 | W38: 67.88423536 | X38: 67.9709835 | Y38: 69.37122894 | Z38: 70.63789198 | AA38: 71.776906 | AB38: 71.87697743 | AC38: 73.39209705 | AD38: 74.41386354 | AE38: 75.43563003 | AF38: 76.45739652 | AG38: 77.47916301 | AH38: 78.50092951 | AI38: 79.522696 | AJ38: 80.54446249 | AK38: 81.56622898 | AL38: 82.58799547 | AM38: 83.60976197 | AN38: 84.63152846 | AO38: 85.65329495 | AP38: NW | AR38: 9999 | AT38: 23.48028682 | AU38: 0.9908670601
Q39: O | R39: 0 | S39: 0 | T39: 0 | U39: 0 | V39: 0 | W39: 0 | X39: 0 | Y39: 0 | Z39: 0 | AA39: 0 | AB39: 0 | AC39: 0 | AD39: 0 | AE39: 0 | AF39: 0 | AG39: 0 | AH39: 0 | AI39: 0 | AJ39: 0 | AK39: 0 | AL39: 0 | AM39: 0 | AN39: 0 | AO39: 0 | AP39: O | AR39: 9999
Q40: OAK | R40: 38.94117764 | S40: 44.41110505 | T40: 45.18948711 | U40: 45.06485191 | V40: 45.17295095 | W40: 45.74418337 | X40: 45.97127614 | Y40: 47.16956456 | Z40: 48.3454663 | AA40: 49.43814745 | AB40: 49.79090538 | AC40: 51.11542437 | AD40: 52.10620851 | AE40: 53.09699265 | AF40: 54.08777679 | AG40: 55.07856092 | AH40: 56.06934506 | AI40: 57.0601292 | AJ40: 58.05091333 | AK40: 59.04169747 | AL40: 60.03248161 | AM40: 61.02326575 | AN40: 62.01404988 | AO40: 63.00483402 | AP40: OAK | AR40: 9999 | AT40: 2.998833721 | AU40: 0.9990083633
Q41: OE | R41: 15.12472983 | S41: 16.73142508 | T41: 16.66644105 | U41: 16.69323761 | V41: 16.72130356 | W41: 16.88629162 | X41: 16.89511295 | Y41: 17.17425923 | Z41: 17.42952452 | AA41: 17.66323039 | AB41: 17.67742784 | AC41: 17.98399127 | AD41: 18.18935137 | AE41: 18.39471146 | AF41: 18.60007156 | AG41: 18.80543166 | AH41: 19.01079175 | AI41: 19.21615185 | AJ41: 19.42151194 | AK41: 19.62687204 | AL41: 19.83223213 | AM41: 20.03759223 | AN41: 20.24295232 | AO41: 20.44831242 | AP41: OE | AR41: 9999 | AT41: 4.203097226 | AU41: 0.9472707834
Q42: OR | R42: 36.05647336 | S42: 39.29783918 | T42: 39.3750744 | U42: 39.22992997 | V42: 39.17692308 | W42: 39.7439893 | X42: 39.92180044 | Y42: 40.8622463 | Z42: 41.78853711 | AA42: 42.65210569 | AB42: 42.93145156 | AC42: 43.97397671 | AD42: 44.75489287 | AE42: 45.53580903 | AF42: 46.3167252 | AG42: 47.09764136 | AH42: 47.87855752 | AI42: 48.65947369 | AJ42: 49.44038985 | AK42: 50.22130601 | AL42: 51.00222218 | AM42: 51.78313834 | AN42: 52.5640545 | AO42: 53.34497066 | AP42: OR | AR42: 9999 | AT42: 5.619144318 | AU42: 0.9818569695
Q43: RBD | R43: 40.30484388 | S43: 46.81619496 | T43: 46.95402781 | U43: 46.8693517 | V43: 47.09551962 | W43: 48.20310249 | X43: 48.8681276 | Y43: 50.26365918 | Z43: 51.64570246 | AA43: 52.93152899 | AB43: 53.44017133 | AC43: 54.9734251 | AD43: 56.15462082 | AE43: 57.33581655 | AF43: 58.51701228 | AG43: 59.69820801 | AH43: 60.87940373 | AI43: 62.06059946 | AJ43: 63.24179519 | AK43: 64.42299092 | AL43: 65.60418664 | AM43: 66.78538237 | AN43: 67.9665781 | AO43: 69.14777383 | AP43: RBD | AR43: 9999 | AT43: 14.69339316 | AU43: 0.9999917117
Q44: RWT | R44: 32.82479605 | S44: 39.01116288 | T44: 39.0005552 | U44: 38.64078534 | V44: 38.4071417 | W44: 39.00829828 | X44: 39.12536307 | Y44: 39.97671082 | Z44: 40.81106845 | AA44: 41.56318373 | AB44: 41.68308592 | AC44: 42.64245798 | AD44: 43.31264984 | AE44: 43.9828417 | AF44: 44.65303356 | AG44: 45.32322542 | AH44: 45.99341728 | AI44: 46.66360914 | AJ44: 47.333801 | AK44: 48.00399286 | AL44: 48.67418472 | AM44: 49.34437658 | AN44: 50.01456844 | AO44: 50.6847603 | AP44: RWT | AR44: 9999 | AU44: 0.9861152365
Q45: SCY | R45: 0 | S45: 0 | T45: 0 | U45: 0 | V45: 0 | W45: 0 | X45: 0 | Y45: 0 | Z45: 0 | AA45: 0 | AB45: 0 | AC45: 0 | AD45: 0 | AE45: 0 | AF45: 0 | AG45: 0 | AH45: 0 | AI45: 0 | AJ45: 0 | AK45: 0 | AL45: 0 | AM45: 0 | AN45: 0 | AO45: 0 | AP45: SCY | AR45: 9999
Q46: SH | R46: 7.354585182 | S46: 8.165291743 | T46: 8.197761279 | U46: 8.176332721 | V46: 8.195562422 | W46: 8.287876824 | X46: 8.379558763 | Y46: 8.498277514 | Z46: 8.618722867 | AA46: 8.734769958 | AB46: 8.831714203 | AC46: 8.954849657 | AD46: 9.06892999 | AE46: 9.183010322 | AF46: 9.297090654 | AG46: 9.411170986 | AH46: 9.525251319 | AI46: 9.639331651 | AJ46: 9.753411983 | AK46: 9.867492315 | AL46: 9.981572647 | AM46: 10.09565298 | AN46: 10.20973331 | AO46: 10.32381364 | AP46: SH | AR46: 9999 | AT46: 0 | AU46: 0.9776214265
Q47: SR | R47: 31.67423035 | S47: 35.09767552 | T47: 35.19333321 | U47: 35.25685204 | V47: 35.36033402 | W47: 35.72138357 | X47: 35.83546977 | Y47: 36.56644065 | Z47: 37.26641088 | AA47: 37.91667387 | AB47: 38.03893296 | AC47: 38.85193351 | AD47: 39.42764947 | AE47: 40.00336543 | AF47: 40.57908139 | AG47: 41.15479735 | AH47: 41.73051331 | AI47: 42.30622927 | AJ47: 42.88194523 | AK47: 43.45766119 | AL47: 44.03337715 | AM47: 44.60909311 | AN47: 45.18480907 | AO47: 45.76052503 | AP47: SR | AR47: 9999 | AT47: 13.34307578 | AU47: 0.9996415067
Q48: SS | R48: 29.53152769 | S48: 40.65899064 | T48: 40.47084111 | U48: 40.05565245 | V48: 39.76682767 | W48: 40.25706974 | X48: 40.28333333 | Y48: 41.11700212 | Z48: 41.88341605 | AA48: 42.58818171 | AB48: 42.63108464 | AC48: 43.55060823 | AD48: 44.16727645 | AE48: 44.78394467 | AF48: 45.40061289 | AG48: 46.01728111 | AH48: 46.63394933 | AI48: 47.25061755 | AJ48: 47.86728577 | AK48: 48.48395399 | AL48: 49.10062221 | AM48: 49.71729043 | AN48: 50.33395865 | AO48: 50.95062687 | AP48: SS | AR48: 9999 | AT48: 15.7688523 | AU48: 0.9769119044
Q49: STO | R49: 42.06543738 | S49: 47.15579827 | T49: 47.25634943 | U49: 47.12130496 | V49: 47.16920454 | W49: 48.23147538 | X49: 48.7160507 | Y49: 50.05134589 | Z49: 51.37489018 | AA49: 52.60724771 | AB49: 53.09497936 | AC49: 54.56303051 | AD49: 55.69440642 | AE49: 56.82578233 | AF49: 57.95715825 | AG49: 59.08853416 | AH49: 60.21991007 | AI49: 61.35128599 | AJ49: 62.4826619 | AK49: 63.61403781 | AL49: 64.74541372 | AM49: 65.87678964 | AN49: 67.00816555 | AO49: 68.13954146 | AP49: STO | AR49: 9999 | AT49: 12.71718817 | AU49: 0.9891210958
Q50: SV | R50: 49.98174457 | S50: 57.21890657 | T50: 57.11297722 | U50: 57.00963588 | V50: 57.28081933 | W50: 57.82759165 | X50: 57.90964038 | Y50: 59.17369765 | Z50: 60.32151275 | AA50: 61.36602987 | AB50: 61.46038687 | AC50: 62.83440106 | AD50: 63.76378358 | AE50: 64.6931661 | AF50: 65.62254862 | AG50: 66.55193114 | AH50: 67.48131366 | AI50: 68.41069618 | AJ50: 69.3400787 | AK50: 70.26946121 | AL50: 71.19884373 | AM50: 72.12822625 | AN50: 73.05760877 | AO50: 73.98699129 | AP50: SV | AR50: 9999 | AT50: 16.85212479 | AU50: 0.9922614768
Q51: SVW | R51: 49.11355997 | S51: 57.63892146 | T51: 59.19715058 | U51: 60.70001991 | V51: 61.7634316 | W51: 63.23839156 | X51: 64.16651019 | Y51: 65.58920419 | Z51: 66.88155331 | AA51: 68.05797198 | AB51: 68.26378245 | AC51: 69.79079812 | AD51: 70.85712935 | AE51: 71.92346058 | AF51: 72.98979181 | AG51: 74.05612304 | AH51: 75.12245427 | AI51: 76.1887855 | AJ51: 77.25511673 | AK51: 78.32144796 | AL51: 79.38777919 | AM51: 80.45411042 | AN51: 81.52044165 | AO51: 82.58677288 | AP51: SVW | AR51: 9999 | AU51: 0.9924553659
Q52: T | R52: 0 | S52: 0 | T52: 0 | U52: 0 | V52: 0 | W52: 0 | X52: 0 | Y52: 0 | Z52: 0 | AA52: 0 | AB52: 0 | AC52: 0 | AD52: 0 | AE52: 0 | AF52: 0 | AG52: 0 | AH52: 0 | AI52: 0 | AJ52: 0 | AK52: 0 | AL52: 0 | AM52: 0 | AN52: 0 | AO52: 0 | AP52: T | AR52: 9999
Q53: TSE | R53: 0 | S53: 0 | T53: 0 | U53: 0 | V53: 0 | W53: 0 | X53: 0 | Y53: 0 | Z53: 0 | AA53: 0 | AB53: 0 | AC53: 0 | AD53: 0 | AE53: 0 | AF53: 0 | AG53: 0 | AH53: 0 | AI53: 0 | AJ53: 0 | AK53: 0 | AL53: 0 | AM53: 0 | AN53: 0 | AO53: 0 | AP53: TSE | AR53: 9999
Q54: WD | R54: 49.78236677 | S54: 55.14210122 | T54: 55.07193973 | U54: 54.69063846 | V54: 54.57352146 | W54: 55.17535721 | X54: 55.3749503 | Y54: 56.31523087 | Z54: 57.19710903 | AA54: 57.94286438 | AB54: 58.16669726 | AC54: 59.16270859 | AD54: 59.88382133 | AE54: 60.60493407 | AF54: 61.32604682 | AG54: 62.04715956 | AH54: 62.7682723 | AI54: 63.48938504 | AJ54: 64.21049778 | AK54: 64.93161052 | AL54: 65.65272326 | AM54: 66.373836 | AN54: 67.09494874 | AO54: 67.81606149 | AP54: WD | AR54: 9999 | AT54: 6.519998925 | AU54: 0.9878185977
Q57: ZSS
Q58: BH | R58: BH:-:66/22kV:Trans Summation:MW | Y58: EM Augmentation | AA58: TRUE
Q59: BR | R59: BR:-:66/11kV:Trans Summation:MW | Y59: EM Load forecast | Z59: Post-Augex | AA59: Pre-Augex
Q60: BT | R60: BT:-:66/11kV:Trans Summation:MW | Y60: Summer | Z60: 10PoE | AA60: 10PoE
Q61: BU | R61: BU:-:66/11kV:Trans Summation:MW | Y61: 2021 | Z61: 49.2 | AA61: 37.19445216 | AB61: 2021 | AC61: 37.19445216
Q62: BW | R62: BW:-:22/11kV:Trans Summation:MW | Y62: 2022 | Z62: 50.3 | AA62: 38.14305976 | AB62: 2022 | AC62: 38.14305976
Q63: CDA | R63: CDA:-:66/22kV:Trans Summation:MW | Y63: 2023 | Z63: 51.1 | AA63: 38.60016936 | AB63: 2023 | AC63: 38.60016936
Q64: CFD | R64: CFD:-:66/11kV:Trans Summation:MW | Y64: 2024 | Z64: 51.5 | AA64: 38.69584903 | AB64: 2024 | AC64: 51.5
Q65: CM | R65: CM:-:66/11kV:Trans Summation:MW | Y65: 2025 | Z65: 52.9 | AA65: 39.42464756 | AB65: 2025 | AC65: 52.9
Q66: CRM | R66: CRM:-:66/22kV:Trans Summation:MW | Y66: 2026 | Z66: 54.3 | AA66: 40.16924432 | AB66: 2026 | AC66: 54.3
Q67: DC | R67: DC:-:66/22kV:Trans Summation:MW | Y67: 2027 | Z67: 55.5 | AA67: 41.04963537 | AB67: 2027 | AC67: 55.5
Q68: DMA | R68: DMA:#1:66/22kV:Trans:MW | Y68: 2028 | Z68: 56.2 | AA68: 41.33405288 | AB68: 2028 | AC68: 56.2
Q69: DN | R69: DN:-:66/22kV:Trans Summation:MW | Y69: 2029 | Z69: 56.5 | AB69: 2029 | AC69: 56.5
Q70: DSH | R70: DSH:-:-:Station:MW | Y70: 2030 | Z70: 56.7 | AB70: 2030 | AC70: 56.7
Q71: DVY | R71: DVY:-:66/22kV:Trans Summation:MW | Y71: 2031 | Z71: 56.9 | AB71: 2031 | AC71: 56.9
Q72: EB | R72: EB:-:66/22kV:Trans Summation:MW | Y72: 2032 | Z72: 57
Q73: EL | R73: EL:-:-:Station:MW | Y73: 2033 | Z73: 57.2
Q74: EM | R74: EM:-:66/11kV:Trans Summation:MW | Y74: 2034 | Z74: 57.3
Q75: EW | R75: EW:-:-:Station:MW | Y75: 2035 | Z75: 57.4
Q76: FSH | R76: FSH:-:66/22kV:Trans Summation:MW | Y76: 2036 | Z76: 57.5
Q77: FTN | R77: FTN:-:66/22kV:Trans Summation:MW | Y77: 2037 | Z77: 57.6
Q78: GW | R78: GW:-:66/22kV:Trans Summation:MW | Y78: 2038 | Z78: 57.7
Q79: HGS | R79: HGS:-:66/22kV:Trans Summation:MW
Q80: HT | R80: HT:-:66/22kV:Trans Summation:MW
Q81: K | R81: K:-:11kV:Trans Summation:MW
Q82: KBH | R82: KBH:-:-:Station:MW
Q83: LD | R83: LD:-:66/22kV:Trans Summation:MW
Q84: LWN | R84: LWN:-:66/22kV:Trans Summation:MW
Q85: M | R85: M:-:66/11kV:Trans Summation:MW
Q86: MC | R86: MC:-:66/22kV:Trans Summation:MW
Q87: MGE | R87: MGE:-:66/22kV:Trans Summation:MW
Q88: MR | R88: MR:-:66/11kV:Trans Summation:MW
Q89: MTN | R89: MTN:-:66/22kV:Trans Summation:MW
Q90: NB | R90: NB:-:66/11kV:Trans Summation:MW
Q91: NO | R91: NO:-:66/22kV:Trans Summation:MW
Q92: NP | R92: NP:-:66/22kV:Trans Summation:MW
Q93: NW | R93: NW:-:66/22kV:Trans Summation:MW
Q95: OAK | R95: OAK:-:66/11kV:Trans Summation:MW
Q96: OE | R96: OE:-:66/11kV:Trans Summation:MW
Q97: OR | R97: OR:-:66/11kV:Trans Summation:MW
Q98: RBD | R98: RBD:-:66/22kV:Trans Summation:MW
Q101: SH | R101: SH:-:22/6.6kV:Trans Summation:MW
Q102: SR | R102: SR:-:66/11kV:Trans Summation:MW
Q103: SS | R103: SS:-:66/22kV:Trans Summation:MW
Q104: STO | R104: STO:-:66/22kV:Trans Summation:MW
Q105: SV | R105: SV:-:66/22kV:Trans Summation:MW
Q106: SVW | R106: SVW:-:66/22kV:Trans Summation:MW
R107: T_1.STNMW
Q109: WD | R109: WD:-:66/11kV:Trans Summation:MW
R110: SVW:-:66/22kV:Trans Summation:MW
R111: DN:-:66/22kV:Trans Summation:MW
R112: SS:-:66/22kV:Trans Summation:MW

Sheet Assets
A1: ZSS | B1: =Engine!C1 -> MC
A2: Asset Number | B2: Type | C2: Starting Year | D2: Modified Year | E2: 2018 | F2: 2019 | G2: 2020 | H2: 2021 | I2: 2022 | J2: 2023 | K2: 2024 | L2: 2025 | M2: 2026 | N2: 2027 | O2: 2028 | P2: 2029 | Q2: 2030 | R2: 2031 | S2: 2032 | T2: 2033 | U2: 2034 | V2: 2035 | W2: 2036 | X2: 2037 | Y2: 2038 | Z2: 2039 | AA2: 2040 | AC2: Cyclic Rating | AD2: 2Hr Rating | AF2: Ratings Selected | AG2: PR
A3: =$B$1&" #1" -> MC #1 | B3: =AssetType -> Transformer | C3: =IFERROR(VLOOKUP(A3, $C$170:$E$320,IF(B3="Transformer", 2,3),FALSE),9999) -> 1958 | D3: =IFERROR(VLOOKUP(A3, $C$170:$H$320,6,FALSE),9999) -> 9999 | E3: =IF($D3>=E$2,IF($C3=9999,TRUE,VLOOKUP(E$2-$C3,$A$39:$D$156,3,FALSE)),VLOOKUP(E$2-$D3,$A$39:$D$156,3,FALSE)) -> 0.01100314847 | F3: 0.01148633011 | G3: 0.01198235314 | H3: 0.01249134349 | I3: 0.01301342623 | J3: 0.01354872567 | K3: 0.01409736534 | L3: 0.01465946798 | M3: 0.01523515564 | N3: 0.01582454961 | O3: =IF($D3>=O$2,IF($C3=9999,TRUE,VLOOKUP(O$2-$C3,$A$39:$D$156,3,FALSE)),VLOOKUP(O$2-$D3,$A$39:$D$156,3,FALSE)) -> 0.01642777047 | P3: 0.01704493812 | Q3: 0.01767617176 | R3: 0.01832158993 | S3: 0.0189813105 | T3: 0.01965545072 | U3: 0.02034412718 | V3: 0.02104745588 | W3: 0.02176555217 | X3: 0.02249853085 | Y3: 0.02324650609 | Z3: 0.02400959152 | AA3: 0.02478790017 | AB3: =A3 -> MC #1 | AC3: =IFERROR(VLOOKUP(AB3, $C$170:$G$320,4,FALSE),42) -> 27.05 | AD3: =IFERROR(VLOOKUP(AB3, $C$170:$G$320,5,FALSE),42) -> 29.29 | AG3: Planning Ratings
A4: =$B$1&" #2" -> MC #2 | B4: =AssetType -> Transformer | C4: =IFERROR(VLOOKUP(A4, $C$170:$E$320,IF(B4="Transformer", 2,3),FALSE),9999) -> 1958 | D4: =IFERROR(VLOOKUP(A4, $C$170:$H$320,6,FALSE),9999) -> 9999 | E4: 0.01100314847 | F4: 0.01148633011 | G4: 0.01198235314 | H4: 0.01249134349 | I4: 0.01301342623 | J4: 0.01354872567 | K4: 0.01409736534 | L4: 0.01465946798 | M4: 0.01523515564 | N4: 0.01582454961 | O4: 0.01642777047 | P4: 0.01704493812 | Q4: 0.01767617176 | R4: 0.01832158993 | S4: 0.0189813105 | T4: 0.01965545072 | U4: 0.02034412718 | V4: 0.02104745588 | W4: 0.02176555217 | X4: 0.02249853085 | Y4: 0.02324650609 | Z4: 0.02400959152 | AA4: 0.02478790017 | AB4: =A4 -> MC #2 | AC4: =IFERROR(VLOOKUP(AB4, $C$170:$G$320,4,FALSE),42) -> 27.05 | AD4: =IFERROR(VLOOKUP(AB4, $C$170:$G$320,5,FALSE),42) -> 29.29 | AF4: Float Voltage | AG4: =VLOOKUP(ZSS,K170:M216,3,FALSE) -> 1.022727273
A5: =$B$1&" #3" -> MC #3 | B5: =AssetType -> Transformer | C5: =IFERROR(VLOOKUP(A5, $C$170:$E$320,IF(B5="Transformer", 2,3),FALSE),9999) -> 2001 | D5: =IFERROR(VLOOKUP(A5, $C$170:$H$320,6,FALSE),9999) -> 2001 | E5: 0.0004144679164 | F5: 0.0004808750401 | G5: 0.0005534559806 | H5: 0.0006324143429 | I5: 0.0007179494855 | J5: 0.0008102568148 | K5: 0.0009095280471 | L5: 0.001015951441 | M5: 0.001129712008 | N5: 0.001250991696 | O5: 0.001379969568 | P5: 0.001516821947 | Q5: 0.001661722563 | R5: 0.001814842682 | S5: 0.00197635122 | T5: 0.002146414858 | U5: 0.002325198135 | V5: 0.002512863549 | W5: 0.002709571637 | X5: 0.002915481059 | Y5: 0.003130748671 | Z5: 0.003355529595 | AA5: 0.003589977284 | AB5: =A5 -> MC #3 | AC5: =IFERROR(VLOOKUP(AB5, $C$170:$G$320,4,FALSE),42) -> 43.85 | AD5: =IFERROR(VLOOKUP(AB5, $C$170:$G$320,5,FALSE),42) -> 47.58
A6: =$B$1&" #4" -> MC #4 | B6: =AssetType -> Transformer | C6: =IFERROR(VLOOKUP(A6, $C$170:$E$320,IF(B6="Transformer", 2,3),FALSE),9999) -> 9999 | D6: =IFERROR(VLOOKUP(A6, $C$170:$H$320,6,FALSE),9999) -> 9999 | E6: =IF($D6>=E$2,IF($C6>=E2,TRUE,VLOOKUP(E$2-$C6,$A$39:$D$156,3,FALSE)),VLOOKUP(E$2-$D6,$A$39:$D$156,3,FALSE)) -> TRUE | F6: =IF($D6>=F$2,IF($C6>=F2,TRUE,VLOOKUP(F$2-$C6,$A$39:$D$156,3,FALSE)),VLOOKUP(F$2-$D6,$A$39:$D$156,3,FALSE)) -> TRUE | G6: TRUE | H6: TRUE | I6: TRUE | J6: TRUE | K6: TRUE | L6: TRUE | M6: TRUE | N6: TRUE | O6: TRUE | P6: TRUE | Q6: TRUE | R6: TRUE | S6: TRUE | T6: TRUE | U6: TRUE | V6: TRUE | W6: TRUE | X6: TRUE | Y6: TRUE | Z6: TRUE | AA6: TRUE | AB6: =A6 -> MC #4 | AC6: =IFERROR(VLOOKUP(AB6, $C$170:$G$320,4,FALSE),42) -> 42 | AD6: 44
A7: =$B$1&" #1" -> MC #1 | E7: =IF(E3=TRUE,9999, IF($D3>E$2, $C3, $D3)) -> 1958 | F7: 1958 | G7: 1958 | H7: 1958 | I7: 1958 | J7: 1958 | K7: 1958 | L7: 1958 | M7: 1958 | N7: 1958 | O7: 1958 | P7: 1958 | Q7: 1958 | R7: 1958 | S7: 1958 | T7: 1958 | U7: 1958 | V7: 1958 | W7: 1958 | X7: 1958 | Y7: 1958 | Z7: 1958 | AA7: 1958
A8: =$B$1&" #2" -> MC #2 | E8: =IF(E4=TRUE,9999, IF($D4>E$2, $C4, $D4)) -> 1958 | F8: 1958 | G8: 1958 | H8: 1958 | I8: 1958 | J8: 1958 | K8: 1958 | L8: 1958 | M8: 1958 | N8: 1958 | O8: 1958 | P8: 1958 | Q8: 1958 | R8: 1958 | S8: 1958 | T8: 1958 | U8: 1958 | V8: 1958 | W8: 1958 | X8: 1958 | Y8: 1958 | Z8: 1958 | AA8: 1958
A9: =$B$1&" #3" -> MC #3 | E9: =IF(E5=TRUE,9999, IF($D5>E$2, $C5, $D5)) -> 2001 | F9: 2001 | G9: 2001 | H9: 2001 | I9: 2001 | J9: 2001 | K9: 2001 | L9: 2001 | M9: 2001 | N9: 2001 | O9: 2001 | P9: 2001 | Q9: 2001 | R9: 2001 | S9: 2001 | T9: 2001 | U9: 2001 | V9: 2001 | W9: 2001 | X9: 2001 | Y9: 2001 | Z9: 2001 | AA9: 2001
A10: =$B$1&" #4" -> MC #4 | E10: =IF(E6=TRUE,9999, IF($D6>E$2, $C6, $D6)) -> 9999 | F10: 9999 | G10: 9999 | H10: 9999 | I10: 9999 | J10: 9999 | K10: 9999 | L10: 9999 | M10: 9999 | N10: 9999 | O10: 9999 | P10: 9999 | Q10: 9999 | R10: 9999 | S10: 9999 | T10: 9999 | U10: 9999 | V10: 9999 | W10: 9999 | X10: 9999 | Y10: 9999 | Z10: 9999 | AA10: 9999
A11: Count of Assets | D11: Row | E11: =COUNTIF(E7:E10,"<"&E2) -> 3 | F11: =COUNTIF(F7:F10,"<"&F2) -> 3 | G11: =COUNTIF(G7:G10,"<"&G2) -> 3 | H11: 3 | I11: 3 | J11: 3 | K11: 3 | L11: 3 | M11: 3 | N11: 3 | O11: 3 | P11: 3 | Q11: 3 | R11: 3 | S11: 3 | T11: 3 | U11: 3 | V11: 3 | W11: 3 | X11: 3 | Y11: 3 | Z11: 3 | AA11: 3
A12: N cyclic Rating | D12: 11 | E12: =IF($AG$2="PR",MIN(IF(E$7:E$10<E$2,$AC$3:$AC$6))*$AG$4*E$11,SUMPRODUCT((E$7:E$10<E$2)*($AC$3:$AC$6))) -> 82.99431818 | F12: =IF($AG$2="PR",MIN(IF(F$7:F$10<F$2,$AC$3:$AC$6))*$AG$4*F$11,SUMPRODUCT((F$7:F$10<F$2)*($AC$3:$AC$6))) -> 82.99431818 | G12: =IF($AG$2="PR",MIN(IF(G$7:G$10<G$2,$AC$3:$AC$6))*$AG$4*G$11,SUMPRODUCT((G$7:G$10<G$2)*($AC$3:$AC$6))) -> 82.99431818 | H12: =IF($AG$2="PR",MIN(IF(H$7:H$10<H$2,$AC$3:$AC$6))*$AG$4*H$11,SUMPRODUCT((H$7:H$10<H$2)*($AC$3:$AC$6))) -> 82.99431818 | I12: =IF($AG$2="PR",MIN(IF(I$7:I$10<I$2,$AC$3:$AC$6))*$AG$4*I$11,SUMPRODUCT((I$7:I$10<I$2)*($AC$3:$AC$6))) -> 82.99431818 | J12: =IF($AG$2="PR",MIN(IF(J$7:J$10<J$2,$AC$3:$AC$6))*$AG$4*J$11,SUMPRODUCT((J$7:J$10<J$2)*($AC$3:$AC$6))) -> 82.99431818 | K12: =IF($AG$2="PR",MIN(IF(K$7:K$10<K$2,$AC$3:$AC$6))*$AG$4*K$11,SUMPRODUCT((K$7:K$10<K$2)*($AC$3:$AC$6))) -> 82.99431818 | L12: =IF($AG$2="PR",MIN(IF(L$7:L$10<L$2,$AC$3:$AC$6))*$AG$4*L$11,SUMPRODUCT((L$7:L$10<L$2)*($AC$3:$AC$6))) -> 82.99431818 | M12: =IF($AG$2="PR",MIN(IF(M$7:M$10<M$2,$AC$3:$AC$6))*$AG$4*M$11,SUMPRODUCT((M$7:M$10<M$2)*($AC$3:$AC$6))) -> 82.99431818 | N12: =IF($AG$2="PR",MIN(IF(N$7:N$10<N$2,$AC$3:$AC$6))*$AG$4*N$11,SUMPRODUCT((N$7:N$10<N$2)*($AC$3:$AC$6))) -> 82.99431818 | O12: =IF($AG$2="PR",MIN(IF(O$7:O$10<O$2,$AC$3:$AC$6))*$AG$4*O$11,SUMPRODUCT((O$7:O$10<O$2)*($AC$3:$AC$6))) -> 82.99431818 | P12: =IF($AG$2="PR",MIN(IF(P$7:P$10<P$2,$AC$3:$AC$6))*$AG$4*P$11,SUMPRODUCT((P$7:P$10<P$2)*($AC$3:$AC$6))) -> 82.99431818 | Q12: =IF($AG$2="PR",MIN(IF(Q$7:Q$10<Q$2,$AC$3:$AC$6))*$AG$4*Q$11,SUMPRODUCT((Q$7:Q$10<Q$2)*($AC$3:$AC$6))) -> 82.99431818 | R12: =IF($AG$2="PR",MIN(IF(R$7:R$10<R$2,$AC$3:$AC$6))*$AG$4*R$11,SUMPRODUCT((R$7:R$10<R$2)*($AC$3:$AC$6))) -> 82.99431818 | S12: =IF($AG$2="PR",MIN(IF(S$7:S$10<S$2,$AC$3:$AC$6))*$AG$4*S$11,SUMPRODUCT((S$7:S$10<S$2)*($AC$3:$AC$6))) -> 82.99431818 | T12: =IF($AG$2="PR",MIN(IF(T$7:T$10<T$2,$AC$3:$AC$6))*$AG$4*T$11,SUMPRODUCT((T$7:T$10<T$2)*($AC$3:$AC$6))) -> 82.99431818 | U12: =IF($AG$2="PR",MIN(IF(U$7:U$10<U$2,$AC$3:$AC$6))*$AG$4*U$11,SUMPRODUCT((U$7:U$10<U$2)*($AC$3:$AC$6))) -> 82.99431818 | V12: =IF($AG$2="PR",MIN(IF(V$7:V$10<V$2,$AC$3:$AC$6))*$AG$4*V$11,SUMPRODUCT((V$7:V$10<V$2)*($AC$3:$AC$6))) -> 82.99431818 | W12: =IF($AG$2="PR",MIN(IF(W$7:W$10<W$2,$AC$3:$AC$6))*$AG$4*W$11,SUMPRODUCT((W$7:W$10<W$2)*($AC$3:$AC$6))) -> 82.99431818 | X12: =IF($AG$2="PR",MIN(IF(X$7:X$10<X$2,$AC$3:$AC$6))*$AG$4*X$11,SUMPRODUCT((X$7:X$10<X$2)*($AC$3:$AC$6))) -> 82.99431818 | Y12: =IF($AG$2="PR",MIN(IF(Y$7:Y$10<Y$2,$AC$3:$AC$6))*$AG$4*Y$11,SUMPRODUCT((Y$7:Y$10<Y$2)*($AC$3:$AC$6))) -> 82.99431818 | Z12: =IF($AG$2="PR",MIN(IF(Z$7:Z$10<Z$2,$AC$3:$AC$6))*$AG$4*Z$11,SUMPRODUCT((Z$7:Z$10<Z$2)*($AC$3:$AC$6))) -> 82.99431818 | AA12: =IF($AG$2="PR",MIN(IF(AA$7:AA$10<AA$2,$AC$3:$AC$6))*$AG$4*AA$11,SUMPRODUCT((AA$7:AA$10<AA$2)*($AC$3:$AC$6))) -> 82.99431818
A13: N 2hR Rating | D13: 12 | E13: =IF($AG$2="PR",MIN(IF(E$7:E$10<E$2,$AD$3:$AD$6))*$AG$4*E$11,SUMPRODUCT((E$7:E$10<E$2)*($AD$3:$AD$6))) -> 89.86704545 | F13: =IF($AG$2="PR",MIN(IF(F$7:F$10<F$2,$AD$3:$AD$6))*$AG$4*F$11,SUMPRODUCT((F$7:F$10<F$2)*($AD$3:$AD$6))) -> 89.86704545 | G13: =IF($AG$2="PR",MIN(IF(G$7:G$10<G$2,$AD$3:$AD$6))*$AG$4*G$11,SUMPRODUCT((G$7:G$10<G$2)*($AD$3:$AD$6))) -> 89.86704545 | H13: =IF($AG$2="PR",MIN(IF(H$7:H$10<H$2,$AD$3:$AD$6))*$AG$4*H$11,SUMPRODUCT((H$7:H$10<H$2)*($AD$3:$AD$6))) -> 89.86704545 | I13: =IF($AG$2="PR",MIN(IF(I$7:I$10<I$2,$AD$3:$AD$6))*$AG$4*I$11,SUMPRODUCT((I$7:I$10<I$2)*($AD$3:$AD$6))) -> 89.86704545 | J13: =IF($AG$2="PR",MIN(IF(J$7:J$10<J$2,$AD$3:$AD$6))*$AG$4*J$11,SUMPRODUCT((J$7:J$10<J$2)*($AD$3:$AD$6))) -> 89.86704545 | K13: =IF($AG$2="PR",MIN(IF(K$7:K$10<K$2,$AD$3:$AD$6))*$AG$4*K$11,SUMPRODUCT((K$7:K$10<K$2)*($AD$3:$AD$6))) -> 89.86704545 | L13: =IF($AG$2="PR",MIN(IF(L$7:L$10<L$2,$AD$3:$AD$6))*$AG$4*L$11,SUMPRODUCT((L$7:L$10<L$2)*($AD$3:$AD$6))) -> 89.86704545 | M13: =IF($AG$2="PR",MIN(IF(M$7:M$10<M$2,$AD$3:$AD$6))*$AG$4*M$11,SUMPRODUCT((M$7:M$10<M$2)*($AD$3:$AD$6))) -> 89.86704545 | N13: =IF($AG$2="PR",MIN(IF(N$7:N$10<N$2,$AD$3:$AD$6))*$AG$4*N$11,SUMPRODUCT((N$7:N$10<N$2)*($AD$3:$AD$6))) -> 89.86704545 | O13: =IF($AG$2="PR",MIN(IF(O$7:O$10<O$2,$AD$3:$AD$6))*$AG$4*O$11,SUMPRODUCT((O$7:O$10<O$2)*($AD$3:$AD$6))) -> 89.86704545 | P13: =IF($AG$2="PR",MIN(IF(P$7:P$10<P$2,$AD$3:$AD$6))*$AG$4*P$11,SUMPRODUCT((P$7:P$10<P$2)*($AD$3:$AD$6))) -> 89.86704545 | Q13: =IF($AG$2="PR",MIN(IF(Q$7:Q$10<Q$2,$AD$3:$AD$6))*$AG$4*Q$11,SUMPRODUCT((Q$7:Q$10<Q$2)*($AD$3:$AD$6))) -> 89.86704545 | R13: =IF($AG$2="PR",MIN(IF(R$7:R$10<R$2,$AD$3:$AD$6))*$AG$4*R$11,SUMPRODUCT((R$7:R$10<R$2)*($AD$3:$AD$6))) -> 89.86704545 | S13: =IF($AG$2="PR",MIN(IF(S$7:S$10<S$2,$AD$3:$AD$6))*$AG$4*S$11,SUMPRODUCT((S$7:S$10<S$2)*($AD$3:$AD$6))) -> 89.86704545 | T13: =IF($AG$2="PR",MIN(IF(T$7:T$10<T$2,$AD$3:$AD$6))*$AG$4*T$11,SUMPRODUCT((T$7:T$10<T$2)*($AD$3:$AD$6))) -> 89.86704545 | U13: =IF($AG$2="PR",MIN(IF(U$7:U$10<U$2,$AD$3:$AD$6))*$AG$4*U$11,SUMPRODUCT((U$7:U$10<U$2)*($AD$3:$AD$6))) -> 89.86704545 | V13: =IF($AG$2="PR",MIN(IF(V$7:V$10<V$2,$AD$3:$AD$6))*$AG$4*V$11,SUMPRODUCT((V$7:V$10<V$2)*($AD$3:$AD$6))) -> 89.86704545 | W13: =IF($AG$2="PR",MIN(IF(W$7:W$10<W$2,$AD$3:$AD$6))*$AG$4*W$11,SUMPRODUCT((W$7:W$10<W$2)*($AD$3:$AD$6))) -> 89.86704545 | X13: =IF($AG$2="PR",MIN(IF(X$7:X$10<X$2,$AD$3:$AD$6))*$AG$4*X$11,SUMPRODUCT((X$7:X$10<X$2)*($AD$3:$AD$6))) -> 89.86704545 | Y13: =IF($AG$2="PR",MIN(IF(Y$7:Y$10<Y$2,$AD$3:$AD$6))*$AG$4*Y$11,SUMPRODUCT((Y$7:Y$10<Y$2)*($AD$3:$AD$6))) -> 89.86704545 | Z13: =IF($AG$2="PR",MIN(IF(Z$7:Z$10<Z$2,$AD$3:$AD$6))*$AG$4*Z$11,SUMPRODUCT((Z$7:Z$10<Z$2)*($AD$3:$AD$6))) -> 89.86704545 | AA13: =IF($AG$2="PR",MIN(IF(AA$7:AA$10<AA$2,$AD$3:$AD$6))*$AG$4*AA$11,SUMPRODUCT((AA$7:AA$10<AA$2)*($AD$3:$AD$6))) -> 89.86704545
A14: N-1 2Hr Rating (Probability weighted) | D14: 13 | E14: =IF($AG$2="PR",E13*(E11-1)/E11,E13-SUMPRODUCT(($E$7:$E$10<E$2)*($AD$3:$AD$6)*(E3:E6))/SUMPRODUCT(($E$7:$E$10<E$2)*(E3:E6))) -> 59.91136364 | F14: =IF($AG$2="PR",F13*(F11-1)/F11,F13-SUMPRODUCT(($E$7:$E$10<F$2)*($AD$3:$AD$6)*(F3:F6))/SUMPRODUCT(($E$7:$E$10<F$2)*(F3:F6))) -> 59.91136364 | G14: 59.91136364 | H14: 59.91136364 | I14: 59.91136364 | J14: 59.91136364 | K14: 59.91136364 | L14: 59.91136364 | M14: 59.91136364 | N14: 59.91136364 | O14: 59.91136364 | P14: 59.91136364 | Q14: 59.91136364 | R14: 59.91136364 | S14: 59.91136364 | T14: 59.91136364 | U14: 59.91136364 | V14: 59.91136364 | W14: 59.91136364 | X14: 59.91136364 | Y14: 59.91136364 | Z14: 59.91136364 | AA14: 59.91136364
A15: N-1 Cyclic Rating (Probability weighted) | D15: 14 | E15: =IF($AG$2="PR",E12*(E11-1)/E11,E12-SUMPRODUCT(($E$7:$E$10<E$2)*($AC$3:$AC$6)*(E3:E6))/SUMPRODUCT(($E$7:$E$10<E$2)*(E3:E6))) -> 55.32954545 | F15: 55.32954545 | G15: 55.32954545 | H15: 55.32954545 | I15: 55.32954545 | J15: 55.32954545 | K15: 55.32954545 | L15: 55.32954545 | M15: 55.32954545 | N15: 55.32954545 | O15: 55.32954545 | P15: 55.32954545 | Q15: 55.32954545 | R15: 55.32954545 | S15: 55.32954545 | T15: 55.32954545 | U15: 55.32954545 | V15: 55.32954545 | W15: 55.32954545 | X15: 55.32954545 | Y15: 55.32954545 | Z15: 55.32954545 | AA15: 55.32954545
A16: N-2 Cyclic (Residual Rating) | D16: 15 | E16: =IF($AG$2="PR",IF((E$11-2)<0,0,E$12*(E$11-2)/E$11),IFERROR(E$15-(E$15/(COUNTIF(E$7:E$10,"<"&E$2)-1)),0)) -> 27.66477273 | F16: 27.66477273 | G16: 27.66477273 | H16: 27.66477273 | I16: 27.66477273 | J16: 27.66477273 | K16: 27.66477273 | L16: 27.66477273 | M16: 27.66477273 | N16: 27.66477273 | O16: 27.66477273 | P16: 27.66477273 | Q16: 27.66477273 | R16: 27.66477273 | S16: 27.66477273 | T16: 27.66477273 | U16: 27.66477273 | V16: 27.66477273 | W16: 27.66477273 | X16: 27.66477273 | Y16: 27.66477273 | Z16: 27.66477273 | AA16: 27.66477273
A17: N-3 Cyclic (Residual Rating) | D17: 16 | E17: =IF($AG$2="PR",IF((E$11-3)<0,0,E$12*(E$11-3)/E$11),IFERROR(E$15-(E$15/(COUNTIF(E$7:E$10,"<"&E$2)-2)),0)) -> 0 | F17: 0 | G17: 0 | H17: 0 | I17: 0 | J17: 0 | K17: 0 | L17: 0 | M17: 0 | N17: 0 | O17: 0 | P17: 0 | Q17: 0 | R17: 0 | S17: 0 | T17: 0 | U17: 0 | V17: 0 | W17: 0 | X17: 0 | Y17: 0 | Z17: 0 | AA17: 0
A18: N-4 Cyclic (Residual Rating) | D18: 17 | E18: 0 | F18: 0 | G18: 0 | H18: 0 | I18: 0 | J18: 0 | K18: 0 | L18: 0 | M18: 0 | N18: 0 | O18: 0 | P18: 0 | Q18: 0 | R18: 0 | S18: 0 | T18: 0 | U18: 0 | V18: 0 | W18: 0 | X18: 0 | Y18: 0 | Z18: 0 | AA18: 0
A20: Feeder Risk | B20: Switchgear Only | D20: Base Load | E20: =VLOOKUP(E21, Load!$A$6:$K$28,11,FALSE) -> 53.29442211 | F20: =VLOOKUP(F21, Load!$A$6:$K$28,11,FALSE) -> 57.88937371 | G20: =VLOOKUP(G21, Load!$A$6:$K$28,11,FALSE) -> 57.57484029 | H20: =VLOOKUP(H21, Load!$A$6:$K$28,11,FALSE) -> 57.36732017 | I20: =VLOOKUP(I21, Load!$A$6:$K$28,11,FALSE) -> 57.53536344 | J20: =VLOOKUP(J21, Load!$A$6:$K$28,11,FALSE) -> 58.35759353 | K20: =VLOOKUP(K21, Load!$A$6:$K$28,11,FALSE) -> 58.59997557 | L20: =VLOOKUP(L21, Load!$A$6:$K$28,11,FALSE) -> 59.35858585 | M20: =VLOOKUP(M21, Load!$A$6:$K$28,11,FALSE) -> 60.591056 | N20: =VLOOKUP(N21, Load!$A$6:$K$28,11,FALSE) -> 61.44985138 | O20: =VLOOKUP(O21, Load!$A$6:$K$28,11,FALSE) -> 61.69367987 | P20: =VLOOKUP(P21, Load!$A$6:$K$28,11,FALSE) -> 63.47871218 | Q20: =VLOOKUP(Q21, Load!$A$6:$K$28,11,FALSE) -> 64.44477383 | R20: =VLOOKUP(R21, Load!$A$6:$K$28,11,FALSE) -> 65.41083548 | S20: =VLOOKUP(S21, Load!$A$6:$K$28,11,FALSE) -> 66.37689713 | T20: =VLOOKUP(T21, Load!$A$6:$K$28,11,FALSE) -> 67.34295878 | U20: =VLOOKUP(U21, Load!$A$6:$K$28,11,FALSE) -> 68.30902044 | V20: =VLOOKUP(V21, Load!$A$6:$K$28,11,FALSE) -> 69.27508209 | W20: =VLOOKUP(W21, Load!$A$6:$K$28,11,FALSE) -> 70.24114374 | X20: =VLOOKUP(X21, Load!$A$6:$K$28,11,FALSE) -> 71.20720539 | Y20: =VLOOKUP(Y21, Load!$A$6:$K$28,11,FALSE) -> 72.17326704 | Z20: =VLOOKUP(Z21, Load!$A$6:$K$28,11,FALSE) -> 73.13932869 | AA20: =VLOOKUP(AA21, Load!$A$6:$K$28,11,FALSE) -> 74.10539035
A21: Bus # | B21: # Feeder Bays | C21: Average Load' | E21: =E2 -> 2018 | F21: 2019 | G21: 2020 | H21: 2021 | I21: 2022 | J21: 2023 | K21: 2024 | L21: 2025 | M21: 2026 | N21: 2027 | O21: 2028 | P21: 2029 | Q21: 2030 | R21: 2031 | S21: 2032 | T21: 2033 | U21: 2034 | V21: 2035 | W21: 2036 | X21: 2037 | Y21: 2038 | Z21: 2039 | AA21: 2040
A22: 1 | B22: =COUNTIFS(Feeders!$B:$B,ZSS, Feeders!$E:$E,A22) -> 3 | C22: =SUMPRODUCT((Feeders!$B2:$B518=ZSS)*(Feeders!$E2:$E518=A22)*(Feeders!$I2:$I518)) -> 10.12770097 | E22: =C22 -> 10.12770097 | F22: =F$20/$E$20*$E22 -> 11.00089359 | G22: =G$20/$E$20*$E22 -> 10.94112185 | H22: 10.90168617 | I22: 10.93361994 | J22: 11.08987082 | K22: 11.13593142 | L22: 11.28009244 | M22: 11.51430248 | N22: 11.67750198 | O22: 11.72383745 | P22: 12.06305256 | Q22: 12.24663619 | R22: 12.43021982 | S22: 12.61380345 | T22: 12.79738708 | U22: 12.98097072 | V22: 13.16455435 | W22: 13.34813798 | X22: 13.53172161 | Y22: 13.71530524 | Z22: 13.89888887 | AA22: 14.0824725
A23: 2 | B23: =COUNTIFS(Feeders!$B:$B,ZSS, Feeders!$E:$E,A23) -> 3 | C23: =SUMPRODUCT((Feeders!$B3:$B519=ZSS)*(Feeders!$E3:$E519=A23)*(Feeders!$I3:$I519)) -> 11.83136005 | E23: =C23 -> 11.83136005 | F23: =F$20/$E$20*$E23 -> 12.85143916 | G23: =G$20/$E$20*$E23 -> 12.78161275 | H23: 12.73554329 | I23: 12.77284889 | J23: 12.95538394 | K23: 13.00919275 | L23: 13.17760421 | M23: 13.45121254 | N23: 13.64186509 | O23: 13.69599501 | P23: 14.09227212 | Q23: 14.30673778 | R23: 14.52120344 | S23: 14.73566909 | T23: 14.95013475 | U23: 15.16460041 | V23: 15.37906606 | W23: 15.59353172 | X23: 15.80799737 | Y23: 16.02246303 | Z23: 16.23692869 | AA23: 16.45139434
A24: 3 | B24: =COUNTIFS(Feeders!$B:$B,ZSS, Feeders!$E:$E,A24) -> 3 | C24: =SUMPRODUCT((Feeders!$B4:$B520=ZSS)*(Feeders!$E4:$E520=A24)*(Feeders!$I4:$I520)) -> 11.01968823 | E24: 11.01968823 | F24: 11.96978642 | G24: 11.90475035 | H24: 11.86184141 | I24: 11.89658772 | J24: 12.06660024 | K24: 12.11671758 | L24: 12.27357544 | M24: 12.5284133 | N24: 12.70598643 | O24: 12.75640285 | P24: 13.125494 | Q24: 13.32524658 | R24: 13.52499916 | S24: 13.72475173 | T24: 13.92450431 | U24: 14.12425689 | V24: 14.32400947 | W24: 14.52376205 | X24: 14.72351462 | Y24: 14.9232672 | Z24: 15.12301978 | AA24: 15.32277236
A25: 4 | B25: =COUNTIFS(Feeders!$B:$B,ZSS, Feeders!$E:$E,A25) -> 0 | C25: =SUMPRODUCT((Feeders!$B5:$B521=ZSS)*(Feeders!$E5:$E521=A25)*(Feeders!$I5:$I521)) -> 0 | E25: 0 | F25: 0 | G25: 0 | H25: 0 | I25: 0 | J25: 0 | K25: 0 | L25: 0 | M25: 0 | N25: 0 | O25: 0 | P25: 0 | Q25: 0 | R25: 0 | S25: 0 | T25: 0 | U25: 0 | V25: 0 | W25: 0 | X25: 0 | Y25: 0 | Z25: 0 | AA25: 0
A26: 1 | B26: =IF(AssetType="Transformer", FALSE, B22) -> FALSE | E26: =E3*$B26*E22*OUTAGE_DUR*1000 -> 0 | F26: 0 | G26: =G3*$B26*G22*OUTAGE_DUR*1000 -> 0 | H26: 0 | I26: 0 | J26: 0 | K26: 0 | L26: 0 | M26: 0 | N26: 0 | O26: 0 | P26: 0 | Q26: 0 | R26: 0 | S26: 0 | T26: 0 | U26: 0 | V26: 0 | W26: 0 | X26: 0 | Y26: 0 | Z26: 0 | AA26: 0
A27: 2 | B27: =IF(AssetType="Transformer", FALSE, B23) -> FALSE | E27: =E4*$B27*E23*OUTAGE_DUR*1000 -> 0 | F27: 0 | G27: 0 | H27: 0 | I27: 0 | J27: 0 | K27: 0 | L27: 0 | M27: 0 | N27: 0 | O27: 0 | P27: 0 | Q27: 0 | R27: 0 | S27: 0 | T27: 0 | U27: 0 | V27: 0 | W27: 0 | X27: 0 | Y27: 0 | Z27: 0 | AA27: 0
A28: 3 | B28: =IF(AssetType="Transformer", FALSE, B24) -> FALSE | E28: =E5*$B28*E24*OUTAGE_DUR*1000 -> 0 | F28: 0 | G28: 0 | H28: 0 | I28: 0 | J28: 0 | K28: 0 | L28: 0 | M28: 0 | N28: 0 | O28: 0 | P28: 0 | Q28: 0 | R28: 0 | S28: 0 | T28: 0 | U28: 0 | V28: 0 | W28: 0 | X28: 0 | Y28: 0 | Z28: 0 | AA28: 0
A29: 4 | B29: =IF(AssetType="Transformer", FALSE, B25) -> FALSE | E29: =E6*$B29*E25*OUTAGE_DUR*1000 -> 0 | F29: 0 | G29: 0 | H29: 0 | I29: 0 | J29: 0 | K29: 0 | L29: 0 | M29: 0 | N29: 0 | O29: 0 | P29: 0 | Q29: 0 | R29: 0 | S29: 0 | T29: 0 | U29: 0 | V29: 0 | W29: 0 | X29: 0 | Y29: 0 | Z29: 0 | AA29: 0
D30: Total kWh | E30: =SUM(E26:E29) -> 0 | F30: =SUM(F26:F29) -> 0 | G30: 0 | H30: 0 | I30: 0 | J30: 0 | K30: 0 | L30: 0 | M30: 0 | N30: 0 | O30: 0 | P30: 0 | Q30: 0 | R30: 0 | S30: 0 | T30: 0 | U30: 0 | V30: 0 | W30: 0 | X30: 0 | Y30: 0 | Z30: 0 | AA30: 0
A32: Reliability Functions | B32: A | C32: B | D32: Chosen Asset | E32: =AssetType -> Transformer
A33: Transformer | B33: 3.6 | C33: 105 | D33: A | E33: =VLOOKUP($E$32,$A$33:$C$35,2,FALSE) -> 3.6
A34: Indoor CB | B34: 9.8 | C34: 80 | D34: B | E34: =VLOOKUP($E$32,$A$33:$C$35,3,FALSE) -> 105
A35: Outdoor CB | B35: 9.8 | C35: 80 | D35: Major | E35: =IF($E$32="Transformer",POC_TX_MAJOR,IF($E$32="Indoor CB",POC_INDOOR_MAJOR,POC_OUTDOOR_MAJOR)) -> 0.77
D36: Minor | E36: =IF($E$32="Transformer",POC_TX_MINOR,IF($E$32="Indoor CB",POC_INDOOR_MINOR,POC_OUTDOOR_MINOR)) -> 0.23
A37: Hazard function | H37: Sensitivity Analysis Limits | I37: PoF- Lower | J37: PoF - Upper
A38: Age | B38: Base Failure Hazard Function | C38: Major Failure | D38: Minor Failure | E38: 1 in.. | H38: Transformer
A39: 1 | B39: =IF(_xlfn.WEIBULL.DIST(A39,$E$33,$E$34,FALSE)/(1-_xlfn.WEIBULL.DIST(A39,$E$33,$E$34,TRUE))<0.0001,0.0001,_xlfn.WEIBULL.DIST(A39,$E$33,$E$34,FALSE)/(1-_xlfn.WEIBULL.DIST(A39,$E$33,$E$34,TRUE))) -> 0.0001 | C39: =IF($E$32="TRANSFORMER",(_xlfn.WEIBULL.DIST(A39,$E$33,$E$34,FALSE)/(1-_xlfn.WEIBULL.DIST(A39,$E$33,$E$34,TRUE))/$B$160)*$E$35,B39*$E$35) -> 2.620135324e-07 | D39: =IF($E$32="TRANSFORMER",(C39/$B$160)*$E$36,$E$36*B39) -> 1.076127008e-07 | E39: =1/B39 -> 10000 | H39: Indoor CB
A40: 2 | B40: =IF(_xlfn.WEIBULL.DIST(A40,$E$33,$E$34,FALSE)/(1-_xlfn.WEIBULL.DIST(A40,$E$33,$E$34,TRUE))<0.0001,0.0001,_xlfn.WEIBULL.DIST(A40,$E$33,$E$34,FALSE)/(1-_xlfn.WEIBULL.DIST(A40,$E$33,$E$34,TRUE))) -> 0.0001 | C40: =IF($E$32="TRANSFORMER",(_xlfn.WEIBULL.DIST(A40,$E$33,$E$34,FALSE)/(1-_xlfn.WEIBULL.DIST(A40,$E$33,$E$34,TRUE))/$B$160)*$E$35,B40*$E$35) -> 1.588553007e-06 | D40: =IF($E$32="TRANSFORMER",(C40/$B$160)*$E$36,$E$36*B40) -> 6.524414136e-07 | E40: =1/B40 -> 10000 | H40: Outdoor CB
A41: 3 | B41: 0.0001 | C41: 4.558678708e-06 | D41: 1.872314469e-06 | E41: 10000
A42: 4 | B42: 0.0001 | C42: 9.631184438e-06 | D42: 3.955665037e-06 | E42: 10000
A43: 5 | B43: 0.0001 | C43: 1.72046457e-05 | D43: 7.06619377e-06 | E43: 10000
A44: 6 | B44: 0.0001 | C44: 2.763865936e-05 | D44: 1.135159224e-05 | E44: 10000 | H44: Conditional Probability
A45: 7 | B45: 0.0001 | C45: 4.126469375e-05 | D45: 1.694799922e-05 | E45: 10000 | H45: Scenario | I45: β
A46: 8 | B46: 0.0001 | C46: 5.839258323e-05 | D46: 2.398266811e-05 | E46: 10000 | H46: 6 Month | I46: =IF(AND($B$1="BR",$E$32="TRANSFORMER"),(0.24-0.05)/2+0.05,0.24) -> 0.24
A47: 9 | B47: 0.0001 | C47: 7.931480244e-05 | D47: 3.257572243e-05 | E47: 10000 | H47: 4 Month | I47: =IF(AND($B$1="BR",$E$32="TRANSFORMER"),(0.22-0.05)/2+0.05,0.22) -> 0.22
A48: 10 | B48: 0.0001 | C48: =IF($E$32="TRANSFORMER",(_xlfn.WEIBULL.DIST(A48,$E$33,$E$34,FALSE)/(1-_xlfn.WEIBULL.DIST(A48,$E$33,$E$34,TRUE))/$B$160)*$E$35,B48*$E$35) -> 0.000104309466 | D48: =IF($E$32="TRANSFORMER",(C48/$B$160)*$E$36,$E$36*B48) -> 4.284138784e-05 | E48: 10000 | H48: 1 Month | I48: =IF(AND($B$1="BR",$E$32="TRANSFORMER"),(0.15-0.05)/2+0.05,0.15) -> 0.15
A49: 11 | B49: 0.0001 | C49: =IF($E$32="TRANSFORMER",(_xlfn.WEIBULL.DIST(A49,$E$33,$E$34,FALSE)/(1-_xlfn.WEIBULL.DIST(A49,$E$33,$E$34,TRUE))/$B$160)*$E$35,B49*$E$35) -> 0.0001336425346 | D49: 5.488889814e-05 | E49: 10000 | H49: 1 week | I49: =IF(AND($B$1="BR",$E$32="TRANSFORMER"),(0.08-0.05)/2+0.05,0.08) -> 0.08
A50: 12 | B50: 0.000121868724 | C50: 0.0001675694954 | D50: 6.882318563e-05 | E50: 8205.550756 | H50: Nil | I50: 0.05
A51: 13 | B51: 0.00015006304 | C51: 0.00020633668 | D51: 8.474542212e-05 | E51: 6663.866067
A52: 14 | B52: 0.000181950778 | C52: 0.0002501823197 | D52: 0.0001027534527 | E52: 5495.991889
A53: 15 | B53: 0.0002176999341 | C53: 0.0002993374094 | D53: 0.0001229421503 | E53: 4593.478652
A54: 16 | B54: 0.0002574737622 | C54: 0.0003540264231 | D54: 0.0001454037095 | E54: 3883.890892
A55: 17 | B55: 0.000301431212 | C55: 0.0004144679164 | D55: 0.0001702278942 | E55: 3317.506484
A56: 18 | B56: 0.0003497273019 | C56: 0.0004808750401 | D56: 0.0001975022486 | E56: 2859.3707
A57: 19 | B57: 0.0004025134404 | C57: 0.0005534559806 | D57: 0.0002273122777 | E57: 2484.38909
A58: 20 | B58: 0.0004599377039 | C58: 0.0006324143429 | D58: 0.0002597416051 | E58: 2174.207488
A59: 21 | B59: 0.0005221450803 | C59: 0.0007179494855 | D59: 0.0002948721101 | E59: 1915.176524
A60: 22 | B60: 0.0005892776835 | C60: 0.0008102568148 | D60: 0.0003327840489 | E60: 1696.992824
A61: 23 | B61: 0.0006614749433 | C61: 0.0009095280471 | D61: 0.0003735561622 | E61: 1511.773061
A62: 24 | B62: 0.0007388737754 | C62: 0.001015951441 | D62: 0.0004172657705 | E62: 1353.411142
A63: 25 | B63: 0.0008216087328 | C63: 0.001129712008 | D63: 0.0004639888602 | E63: 1217.124356
A64: 26 | B64: 0.0009098121428 | C64: 0.001250991696 | D64: 0.000513800161 | E64: 1099.127999
A65: 27 | B65: 0.001003614231 | C65: 0.001379969568 | D65: 0.0005667732153 | E65: 996.3987845
A66: 28 | B66: 0.001103143234 | C66: 0.001516821947 | D66: 0.0006229804424 | E66: 906.5005969
A67: 29 | B67: 0.0012085255 | C67: 0.001661722563 | D67: 0.0006824931956 | E67: 827.4546128
A68: 30 | B68: 0.001319885587 | C68: 0.001814842682 | D68: 0.0007453818158 | E68: 757.6414274
A69: 31 | B69: 0.001437346342 | C69: 0.00197635122 | D69: 0.0008117156798 | E69: 695.7265418
A70: 32 | B70: 0.001561028987 | C70: 0.002146414858 | D70: 0.0008815632451 | E70: 640.6030945
A71: 33 | B71: 0.001691053189 | C71: 0.002325198135 | D71: 0.0009549920912 | E71: 591.3474552
A72: 34 | B72: 0.001827537126 | C72: 0.002512863549 | D72: 0.001032068958 | E72: 547.1845061
A73: 35 | B73: 0.001970597554 | C73: 0.002709571637 | D73: 0.001112859779 | E73: 507.4602868
A74: 36 | B74: 0.002120349861 | C74: 0.002915481059 | D74: 0.001197429721 | E74: 471.6202823
A75: 37 | B75: 0.002276908124 | C75: 0.003130748671 | D75: 0.001285843204 | E75: 439.1920734
A76: 38 | B76: 0.00244038516 | C76: 0.003355529595 | D76: 0.001378163941 | E76: 409.7713822
A77: 39 | B77: 0.00261089257 | C77: 0.003589977284 | D77: 0.001474454956 | E77: 383.0107801
A78: 40 | B78: 0.00278854079 | C78: 0.003834243586 | D78: 0.001574778616 | E78: 358.6104975
A79: 41 | B79: 0.002973439125 | C79: 0.004088478796 | D79: 0.001679196648 | E79: 336.310904
A80: 42 | B80: 0.003165695794 | C80: 0.004352831716 | D80: 0.001787770169 | E80: 315.8863218
A81: 43 | B81: 0.003365417964 | C81: 0.004627449701 | D81: 0.001900559699 | E81: 297.1399127
A82: 44 | B82: 0.003572711789 | C82: 0.004912478709 | D82: 0.002017625184 | E82: 279.8994319
A83: 45 | B83: 0.003787682435 | C83: 0.005208063348 | D83: 0.002139026018 | E83: 264.0136857
A84: 46 | B84: 0.00401043412 | C84: 0.005514346915 | D84: 0.002264821054 | E84: 249.3495642
A85: 47 | B85: 0.004241070138 | C85: 0.005831471439 | D85: 0.002395068627 | E85: 235.7895455
A86: 48 | B86: 0.004479692888 | C86: 0.006159577721 | D86: 0.002529826564 | E86: 223.2295885
A87: 49 | B87: 0.004726403902 | C87: 0.006498805365 | D87: 0.002669152204 | E87: 211.5773473
A88: 50 | B88: 0.00498130387 | C88: 0.006849292821 | D88: 0.002813102409 | E88: 200.7506521
A89: 51 | B89: 0.005244492661 | C89: 0.007211177408 | D89: 0.002961733578 | E89: 190.6762131
A90: 52 | B90: 0.005516069349 | C90: 0.007584595355 | D90: 0.003115101664 | E90: 181.2885112
A91: 53 | B91: 0.005796132235 | C91: 0.007969681823 | D91: 0.003273262177 | E91: 172.528845
A92: 54 | B92: 0.006084778866 | C92: 0.008366570941 | D92: 0.003436270208 | E92: 164.3445098
A93: 55 | B93: 0.006382106055 | C93: 0.008775395825 | D93: 0.003604180428 | E93: 156.6880888
A94: 56 | B94: 0.0066882099 | C94: 0.009196288612 | D94: 0.003777047108 | E94: 149.5168386
A95: 57 | B95: 0.007003185803 | C95: 0.009629380479 | D95: 0.003954924125 | E95: 142.792156
A96: 58 | B96: 0.007327128488 | C96: 0.01007480167 | D96: 0.004137864972 | E96: 136.4791134
A97: 59 | B97: 0.007660132016 | C97: 0.01053268152 | D97: 0.004325922768 | E97: 130.546053
A98: 60 | B98: 0.008002289799 | C98: 0.01100314847 | D98: 0.004519150266 | E98: 124.9642321
A99: 61 | B99: 0.008353694622 | C99: 0.01148633011 | D99: 0.004717599865 | E99: 119.7075121
A100: 62 | B100: 0.00871443865 | C100: 0.01198235314 | D100: 0.004921323613 | E100: 114.7520845
A101: 63 | B101: 0.009084613447 | C101: 0.01249134349 | D101: 0.005130373219 | E101: 110.0762301
A102: 64 | B102: 0.009464309988 | C102: 0.01301342623 | D102: 0.00534480006 | E102: 105.6601064
A103: 65 | B103: 0.009853618672 | C103: 0.01354872567 | D103: 0.005564655188 | E103: 101.4855591
A104: 66 | B104: =IF(_xlfn.WEIBULL.DIST(A104,$E$33,$E$34,FALSE)/(1-_xlfn.WEIBULL.DIST(A104,$E$33,$E$34,TRUE))<0.0001,0.0001,_xlfn.WEIBULL.DIST(A104,$E$33,$E$34,FALSE)/(1-_xlfn.WEIBULL.DIST(A104,$E$33,$E$34,TRUE))) -> 0.01025262933 | C104: =IF($E$32="TRANSFORMER",(_xlfn.WEIBULL.DIST(A104,$E$33,$E$34,FALSE)/(1-_xlfn.WEIBULL.DIST(A104,$E$33,$E$34,TRUE))/$B$160)*$E$35,B104*$E$35) -> 0.01409736534 | D104: =IF($E$32="TRANSFORMER",(C104/$B$160)*$E$36,$E$36*B104) -> 0.005789989334 | E104: =1/B104 -> 97.53595564
A105: 67 | B105: 0.01066143126 | C105: 0.01465946798 | D105: 0.006020852922 | E105: 93.79603691
A106: 68 | B106: 0.01108011319 | C106: 0.01523515564 | D106: 0.006257296067 | E106: 90.25178556
A107: 69 | B107: 0.01150876335 | C107: 0.01582454961 | D107: 0.00649936859 | E107: 86.89030866
A108: 70 | B108: 0.01194746944 | C108: 0.01642777047 | D108: 0.006747120016 | E108: 83.69973285
A109: 71 | B109: 0.01239631863 | C109: 0.01704493812 | D109: 0.007000599586 | E109: 80.66911069
A110: 72 | B110: 0.01285539764 | C110: 0.01767617176 | D110: 0.007259856259 | E110: 77.78833667
A111: 73 | B111: 0.01332479268 | C111: 0.01832158993 | D111: 0.007524938721 | E111: 75.04807199
A112: 74 | B112: 0.01380458946 | C112: 0.0189813105 | D112: 0.007795895385 | E112: 72.4396769
A113: 75 | B113: 0.01429487325 | C113: 0.01965545072 | D113: 0.008072774403 | E113: 69.95514982
A114: 76 | B114: 0.01479572886 | C114: 0.02034412718 | D114: 0.008355623665 | E114: 67.58707255
A115: 77 | B115: 0.01530724064 | C115: 0.02104745588 | D115: 0.008644490806 | E115: 65.32856076
A116: 78 | B116: 0.01582949249 | C116: 0.02176555217 | D116: 0.008939423213 | E116: 63.17321928
A117: 79 | B117: 0.01636256789 | C117: 0.02249853085 | D117: 0.009240468027 | E117: 61.11510166
A118: 80 | B118: 0.01690654989 | C118: 0.02324650609 | D118: 0.009547672145 | E118: 59.14867355
A119: 81 | B119: 0.0174615211 | C119: 0.02400959152 | D119: 0.009861082231 | E119: 57.26877939
A120: 82 | B120: 0.01802756376 | C120: 0.02478790017 | D120: 0.01018074471 | E120: 55.47061229
A121: 83 | B121: 0.01860475967 | C121: 0.02558154454 | D121: 0.0105067058 | E121: 53.74968652
A122: 84 | B122: 0.01919319024 | C122: 0.02639063657 | D122: 0.01083901145 | E122: 52.10181256
A123: 85 | B123: 0.01979293648 | C123: 0.02721528766 | D123: 0.01117770743 | E123: 50.52307427
A124: 86 | B124: 0.02040407905 | C124: 0.02805560869 | D124: 0.01152283928 | E124: 49.00980817
A125: 87 | B125: 0.02102669818 | C125: 0.02891171 | D125: 0.01187445232 | E125: 47.55858439
A126: 88 | B126: 0.02166087378 | C126: 0.02978370145 | D126: 0.01223259167 | E126: 46.16618933
A127: 89 | B127: 0.02230668535 | C127: 0.03067169236 | D127: 0.01259730222 | E127: 44.82960978
A128: 90 | B128: 0.02296421206 | C128: 0.03157579158 | D128: 0.01296862869 | E128: 43.54601836
A129: 91 | B129: 0.0236335327 | C129: 0.03249610747 | D129: 0.01334661557 | E129: 42.31276012
A130: 92 | B130: 0.02431472574 | C130: 0.03343274789 | D130: 0.01373130717 | E130: 41.12734031
A131: 93 | B131: 0.02500786927 | C131: 0.03438582024 | D131: 0.0141227476 | E131: 39.98741313
A132: 94 | B132: 0.02571304107 | C132: 0.03535543147 | D132: 0.01452098078 | E132: 38.89077131
A133: 95 | B133: 0.02643031857 | C133: 0.03634168804 | D133: 0.01492605044 | E133: 37.83533661
A134: 96 | B134: 0.02715977889 | C134: 0.03734469598 | D134: 0.01533800013 | E134: 36.819151
A135: 97 | B135: 0.0279014988 | C135: 0.03836456086 | D135: 0.01575687321 | E135: 35.84036854
A136: 98 | B136: 0.02865555478 | C136: 0.03940138782 | D136: 0.01618271285 | E136: 34.89724794
A137: 99 | B137: 0.02942202296 | C137: 0.04045528157 | D137: 0.01661556207 | E137: 33.98814559
A138: 100 | B138: 0.03020097919 | C138: 0.04152634639 | D138: 0.0170554637 | E138: 33.11150919
A139: 101 | B139: 0.03099249901 | C139: 0.04261468613 | D139: 0.01750246038 | E139: 32.26587181
A140: 102 | B140: 0.03179665763 | C140: 0.04372040425 | D140: 0.0179565946 | E140: 31.44984644
A141: 103 | B141: 0.03261353001 | C141: 0.04484360376 | D141: 0.01841790869 | E141: 30.66212089
A142: 104 | B142: 0.03344319078 | C142: 0.04598438732 | D142: 0.01888644479 | E142: 29.90145308
A143: 105 | B143: 0.03428571429 | C143: 0.04714285714 | D143: 0.0193622449 | E143: 29.16666667
A144: 106 | B144: 0.0351411746 | C144: 0.04831911508 | D144: 0.01984535084 | E144: 28.45664698
A145: 107 | B145: 0.03600964551 | C145: 0.04951326258 | D145: 0.02033580427 | E145: 27.77033725
A146: 108 | B146: 0.03689120052 | C146: 0.05072540072 | D146: 0.02083364672 | E146: 27.1067351
A147: 109 | B147: 0.03778591287 | C147: 0.05195563019 | D147: 0.02133891954 | E147: 26.46488927
A148: 110 | B148: 0.0386938555 | C148: 0.05320405132 | D148: 0.02185166393 | E148: 25.84389658
A149: 111 | B149: 0.03961510113 | C149: 0.05447076406 | D149: 0.02237192095 | E149: 25.24289908
A150: 112 | B150: 0.04054972218 | C150: 0.055755868 | D150: 0.0228997315 | E150: 24.66108141
A151: 113 | B151: 0.04149779082 | C151: 0.05705946238 | D151: 0.02343513633 | E151: 24.09766834
A152: 114 | B152: 0.04245937896 | C152: 0.05838164607 | D152: 0.02397817606 | E152: 23.55192244
A153: 115 | B153: 0.04343455826 | C153: 0.05972251761 | D153: 0.02452889116 | E153: 23.02314194
A154: 116 | B154: 0.04442340014 | C154: 0.06108217519 | D154: 0.02508732195 | E154: 22.51065873
A155: 117 | B155: 0.04542597574 | C155: 0.06246071665 | D155: 0.02565350862 | E155: 22.01383644
A156: 118 | B156: 0.04644235599 | C156: 0.06385823949 | D156: 0.02622749122 | E156: 21.5320687
A158: UQ Research
A159: Ratio of Failure Modes | C159: Major | D159: Minor
A160: Winding | B160: 0.56 | C160: 1 | D160: 0
A161: Bushing | B161: 0.04 | C161: 0.2 | D161: 0.8
A162: OLTC | B162: 0.16 | C162: 0.5 | D162: 0.5
A163: Other | B163: 0.24 | C163: 0.5 | D163: 0.5
A165: Total Major Failure | C165: =SUMPRODUCT((C160:C163)*(B160:B163))/SUM(B160:B163) -> 0.768
A166: Total Minor Failure | C166: =SUMPRODUCT((D160:D163)*(B160:B163))/SUM(B160:B163) -> 0.232
A169: Station | B169: Trans/Bus # | C169: REF | D169: Transformer Yr | E169: CB Yr | F169: Cyclic Rating | G169: 2Hr Rating | H169: Modified Year | K169: ZSS | L169: Substation Float | M169: % of Nominal
A170: BH | B170: 1 | C170: BH #1 | D170: 1981 | E170: 1984 | F170: 35.15 | G170: 42.44 | H170: =IF(OR(ISREPLACE,ISREPLACE2DIFF,ISREPLACE2SAME),2018,9999) -> 9999 | K170: BH | L170: 22.7 | M170: =IF(L170>16,L170/22,IF(L170>8,L170/11,L170/6.6)) -> 1.031818182
A171: BH | B171: 2 | C171: BH #2 | D171: 1981 | E171: 1984 | F171: 35.15 | G171: 42.44 | H171: =IF(OR(ISREPLACE2DIFF,ISREPLACE2SAME),2018,9999) -> 9999 | K171: BR | L171: 11.7 | M171: =IF(L171>16,L171/22,IF(L171>8,L171/11,L171/6.6)) -> 1.063636364
A172: BH | B172: 3 | C172: BH #3 | D172: 2013 | E172: 2013 | F172: 45.14 | G172: 47.58 | H172: =IF($B$3="Transformer",D172,E172) -> 2013 | K172: BT | L172: 11.65 | M172: 1.059090909
A173: BH | B173: 4 | C173: BH #4 | D173: 9999 | E173: 9999 | F173: 42 | G173: 44 | H173: =IF(ISADDITIONAL, 2018,9999) -> 9999 | K173: BU | L173: 11.3 | M173: 1.027272727
A174: BR | B174: 1 | C174: BR #1 | D174: 1966 | E174: 1967 | F174: 29.59 | G174: 30.45 | H174: =IF(OR(ISREPLACE,ISREPLACE2DIFF,ISREPLACE2SAME),2018,9999) -> 9999 | K174: BW | L174: 11.32 | M174: 1.029090909
A175: BR | B175: 2 | C175: BR #2 | D175: 1968 | E175: 1967 | F175: 29.63 | G175: 30.45 | H175: =IF(OR(ISREPLACE2DIFF,ISREPLACE2SAME),2018,9999) -> 9999 | K175: CDA | L175: 22.4 | M175: 1.018181818
A176: BR | B176: 3 | C176: BR #3 | D176: 9999 | E176: 9999 | F176: 42 | G176: 44 | H176: =IF(ISADDITIONAL, 2018,9999) -> 9999 | K176: CFD | L176: 11.5 | M176: 1.045454545
A177: BT | B177: 1 | C177: BT #1 | D177: 1969 | E177: 1969 | F177: 29.31 | G177: 30.45 | H177: =IF(OR(ISREPLACE,ISREPLACE2DIFF,ISREPLACE2SAME),2018,9999) -> 9999 | K177: CM | L177: 11.5 | M177: 1.045454545
A178: BT | B178: 2 | C178: BT #2 | D178: 1969 | E178: 1969 | F178: 29.31 | G178: 30.45 | H178: =IF(OR(ISREPLACE2DIFF,ISREPLACE2SAME),2018,9999) -> 9999 | K178: CRM | L178: 22.3 | M178: 1.013636364
A179: BT | B179: 3 | C179: BT #3 | D179: 9999 | E179: 9999 | F179: 42 | G179: 44 | H179: =IF(ISADDITIONAL, 2018,9999) -> 9999 | K179: DC | L179: 22.8 | M179: 1.036363636
A180: BU | B180: 2 | C180: BU #2 | D180: 1972 | E180: 1972 | F180: 28.93 | G180: 30.45 | H180: =IF(OR(ISREPLACE,ISREPLACE2DIFF,ISREPLACE2SAME),2018,9999) -> 9999 | K180: DMA | L180: 22.2 | M180: 1.009090909
A181: BU | B181: 1 | C181: BU #1 | D181: 1972 | E181: 1972 | F181: 28.93 | G181: 30.45 | H181: =IF(OR(ISREPLACE2DIFF,ISREPLACE2SAME),2018,9999) -> 9999 | K181: DN | L181: 22.33 | M181: 1.015
A182: BU | B182: 3 | C182: BU #3 | D182: 9999 | E182: 9999 | F182: 42 | G182: 44 | H182: =IF(ISADDITIONAL, 2018,9999) -> 9999 | K182: DSH | L182: 22.3 | M182: 1.013636364
A183: BW | B183: 1 | C183: BW #1 | D183: 2015 | E183: 9999 | F183: 18.78 | G183: 18.97 | H183: =IF(B14="Transformer",D183,E183) -> 9999 | K183: DVY | L183: 22.4 | M183: 1.018181818
A184: BW | B184: 2 | C184: BW #2 | D184: 2014 | E184: 2011 | F184: 18.78 | G184: 18.97 | H184: =IF(B15="Transformer",D184,E184) -> 2011 | K184: EB | L184: 22.5 | M184: 1.022727273
A185: BW | B185: 3 | C185: BW #3 | D185: 1962 | E185: 2011 | F185: 12.34 | G185: 12.33 | H185: =IF(B16="Transformer",D185,E185) -> 2011 | K185: EL | L185: 11.4 | M185: 1.036363636
A186: BW | B186: 4 | C186: BW #4 | D186: 9999 | E186: 9999 | F186: 18.78 | G186: 18.97 | H186: =IF(ISADDITIONAL, 2018,9999) -> 9999 | K186: EM | L186: 11.5 | M186: 1.045454545
A187: CDA | B187: 2 | C187: CDA #2 | D187: 1999 | E187: 2002 | F187: 25.31 | G187: 28.59 | H187: =IF($B$3="Transformer",D187,E187) -> 1999 | K187: EW | L187: 11.7 | M187: 1.063636364
A188: CDA | B188: 1 | C188: CDA #1 | D188: 2002 | E188: 2013 | F188: 45.82 | G188: 49.82 | H188: =IF($B$3="Transformer",D188,E188) -> 2002 | K188: FSH | L188: 22.7 | M188: 1.031818182
A189: CDA | B189: 3 | C189: CDA #3 | D189: 9999 | E189: 9999 | F189: 42 | G189: 44 | H189: =IF(ISADDITIONAL, 2018,9999) -> 9999 | K189: FTN | L189: 22.5 | M189: 1.022727273
A190: CFD | B190: 1 | C190: CFD #1 | D190: 2007 | E190: 2007 | F190: 40.38 | G190: 46.81 | H190: =IF(OR(ISREPLACE,ISREPLACE2DIFF,ISREPLACE2SAME),2018,9999) -> 9999 | K190: GW | L190: 22.35 | M190: 1.015909091
A191: CFD | B191: 2 | C191: CFD #2 | D191: 2007 | E191: 2008 | F191: 40.23 | G191: 46.81 | H191: =IF(OR(ISREPLACE2DIFF,ISREPLACE2SAME),2018,9999) -> 9999 | K191: HGS | L191: 22.9 | M191: 1.040909091
A192: CM | B192: 2 | C192: CM #2 | D192: 1961 | E192: 2005 | F192: 29.5 | G192: 32.42 | H192: =IF(OR(ISREPLACE,ISREPLACE2DIFF,ISREPLACE2SAME),2018,9999) -> 9999 | K192: HT | L192: 22.6 | M192: 1.027272727
A193: CM | B193: 1 | C193: CM #1 | D193: 1961 | E193: 2005 | F193: 29.5 | G193: 32.42 | H193: =IF(OR(ISREPLACE2DIFF,ISREPLACE2SAME),2018,9999) -> 9999 | K193: K | L193: 11.5 | M193: 1.045454545
A194: CRM | B194: 1 | C194: CRM #1 | D194: 1969 | E194: 1963 | F194: 36.39 | G194: 40.8 | H194: =IF(OR(ISREPLACE,ISREPLACE2DIFF,ISREPLACE2SAME),2018,9999) -> 9999 | K194: KBH | L194: 22.5 | M194: 1.022727273
A195: CRM | B195: 2 | C195: CRM #2 | D195: 1976 | E195: 1976 | F195: 36.39 | G195: 45.67 | H195: =IF(OR(ISREPLACE2DIFF,ISREPLACE2SAME),2018,9999) -> 9999 | K195: LD | L195: 22.5 | M195: 1.022727273
A196: CRM | B196: 3 | C196: CRM #3 | D196: 2009 | E196: 2009 | F196: 45.9 | G196: 45.9 | H196: =IF($B$3="Transformer",D196,E196) -> 2009 | K196: LWN | L196: 22.3 | M196: 1.013636364
A197: CRM | B197: 4 | C197: CRM #4 | D197: 9999 | E197: 9999 | F197: 42 | G197: 44 | H197: =IF(ISADDITIONAL, 2018,9999) -> 9999 | K197: M | L197: 11.465 | M197: 1.042272727
A198: DC | B198: 1 | C198: DC #1 | D198: 1963 | E198: 1963 | F198: 35.46 | G198: 40.14 | H198: =IF(OR(ISREPLACE,ISREPLACE2DIFF,ISREPLACE2SAME),2018,9999) -> 9999 | K198: MC | L198: 22.5 | M198: 1.022727273
A199: DC | B199: 3 | C199: DC #3 | D199: 1963 | E199: 1963 | F199: 35.46 | G199: 40.14 | H199: =IF(OR(ISREPLACE2DIFF,ISREPLACE2SAME),2018,9999) -> 9999 | K199: MGE | L199: 22.2 | M199: 1.009090909
A200: DC | B200: 2 | C200: DC #2 | D200: 1968 | E200: 1969 | F200: 36.54 | G200: 39.2 | H200: =IF($B$3="Transformer",D200,E200) -> 1968 | K200: MR | L200: 11.4 | M200: 1.036363636
A201: DC | B201: 4 | C201: DC #4 | D201: 2024 | E201: 9999 | F201: 42 | G201: 44 | H201: =IF(ISADDITIONAL, 2018,9999) -> 9999 | K201: MTN | L201: 22.6 | M201: 1.027272727
A202: DMA | B202: 1 | C202: DMA #1 | D202: 2005 | E202: 2005 | F202: 44.34 | G202: 47.58 | H202: =IF($B$3="Transformer",D202,E202) -> 2005 | K202: NB | L202: 11.5 | M202: 1.045454545
A203: DMA | B203: 2 | C203: DMA #2 | D203: 2016 | E203: 2015 | F203: 44.34 | G203: 47.58 | H203: =IF($B$3="Transformer",D203,E203) -> 2016 | K203: NO | L203: 22.6 | M203: 1.027272727
A204: DMA | B204: 3 | C204: DMA #3 | D204: 9999 | E204: 9999 | F204: 42 | G204: 44 | H204: =IF(ISADDITIONAL, 2018,9999) -> 9999 | K204: NP | L204: 22.75 | M204: 1.034090909
A205: DN | B205: 1 | C205: DN #1 | D205: 1949 | E205: 1960 | F205: 43.86 | G205: 45.67 | H205: =IF($B$3="Transformer",D205,E205) -> 1949 | K205: NW | L205: 22.5 | M205: 1.022727273
A206: DN | B206: 2 | C206: DN #2 | D206: 2006 | E206: 2006 | F206: 41.41 | G206: 45.52 | H206: =IF($B$3="Transformer",D206,E206) -> 2006 | K206: OAK | L206: 11.5 | M206: 1.045454545
... 114 more rows

Sheet Feeders
A1: Feeder | B1: ZSS | C1: Amps | D1: kV | E1: Bus # | F1: 2018MD | G1: MVA MD | H1: MVA Rating | I1: Average MVA | J1: Year | K1: ID/OD | L1: Class | M1: Customers | N1: Transfers to
A2: BH 11 | B2: BH | C2: 300 | D2: 22 | E2: 1 | F2: 164.0867356 | G2: =1.73*F2*D2/1000 -> 6.245141157 | H2: =1.73*D2*C2/1000 -> 11.418 | I2: =0.5*G2 -> 3.122570579
A3: BH 12 | B3: BH | C3: 280 | D3: 22 | E3: 1 | F3: 70.07152699 | G3: =1.73*F3*D3/1000 -> 2.666922317 | H3: =1.73*D3*C3/1000 -> 10.6568 | I3: =0.5*G3 -> 1.333461159
A4: BH 14 | B4: BH | C4: 550 | D4: 22 | E4: 1 | F4: 176.0852376 | G4: 6.701804144 | H4: 20.933 | I4: 3.350902072
A5: BH 21 | B5: BH | C5: 285 | D5: 22 | E5: 2 | F5: 141.9656074 | G5: 5.403211018 | H5: 10.8471 | I5: =0.5*G5 -> 2.701605509
A6: BH 22 | B6: BH | C6: 265 | D6: 22 | E6: 2 | F6: 111.4090814 | G6: 4.240229639 | H6: 10.0859 | I6: 2.12011482
A7: BH 23 | B7: BH | C7: 350 | D7: 22 | E7: 2 | F7: 203.1238047 | G7: 7.730892007 | H7: 13.321 | I7: 3.865446004
A8: BH 24 | B8: BH | C8: 565 | D8: 22 | E8: 2 | F8: 341.6527023 | G8: 13.00330185 | H8: 21.5039 | I8: 6.501650925
A9: BH 31 | B9: BH | C9: 265 | D9: 22 | E9: 3 | F9: 94.88376823 | G9: 3.611276219 | H9: 10.0859 | I9: 1.805638109
A10: BH 34 | B10: BH | C10: 350 | D10: 22 | E10: 3 | F10: 81.43481926 | G10: 3.099409221 | H10: 13.321 | I10: 1.54970461
A11: BR 1 | B11: BR | C11: 290 | D11: 11 | E11: 1 | F11: 259.535452 | G11: 4.938959652 | H11: 5.5187 | I11: 2.469479826
A12: BR 4 | B12: BR | C12: 300 | D12: 11 | E12: 1 | F12: 233.100091 | G12: 4.435894732 | H12: 5.709 | I12: 2.217947366
A13: BR 6 | B13: BR | C13: 295 | D13: 11 | E13: 1 | F13: 192.6912583 | G13: 3.666914646 | H13: 5.61385 | I13: 1.833457323
A14: BR 9 | B14: BR | C14: 350 | D14: 11 | E14: 2 | F14: 298.9198164 | G14: 5.688444105 | H14: 6.6605 | I14: 2.844222053
A15: BR 10 | B15: BR | C15: 290 | D15: 11 | E15: 2 | F15: 188.6546216 | G15: 3.590097448 | H15: 5.5187 | I15: 1.795048724
A16: BR 13 | B16: BR | C16: 295 | D16: 11 | E16: 2 | F16: 217.1725762 | G16: 4.132794125 | H16: 5.61385 | I16: 2.066397062
A17: BR 15 | B17: BR | C17: 265 | D17: 11 | E17: 2 | F17: 211.915491 | G17: 4.032751794 | H17: 5.04295 | I17: 2.016375897
A18: BT 2 | B18: BT | C18: 275 | D18: 11 | E18: 1 | F18: 205.3104422 | G18: 3.907057716 | H18: 5.23325 | I18: 1.953528858
A19: BT 4 | B19: BT | C19: 335 | D19: 11 | E19: 1 | F19: 254.5824347 | G19: 4.844703732 | H19: 6.37505 | I19: 2.422351866
A20: BT 5 | B20: BT | C20: 285 | D20: 11 | E20: 1 | F20: 106.7007396 | G20: 2.030515074 | H20: 5.42355 | I20: 1.015257537
A21: BT 6 | B21: BT | C21: 270 | D21: 11 | E21: 1 | F21: 136.2065545 | G21: 2.592010733 | H21: 5.1381 | I21: 1.296005366
A22: BT 9 | B22: BT | C22: 280 | D22: 11 | E22: 2 | F22: 157.3240474 | G22: 2.993876621 | H22: 5.3284 | I22: 1.496938311
A23: BT 10 | B23: BT | C23: 310 | D23: 11 | E23: 2 | F23: 307.1489124 | G23: 5.845043803 | H23: 5.8993 | I23: 2.922521901
A24: BT 14 | B24: BT | C24: 270 | D24: 11 | E24: 2 | F24: 190.7712983 | G24: 3.630377806 | H24: 5.1381 | I24: 1.815188903
A25: BT 15 | B25: BT | C25: 305 | D25: 11 | E25: 2 | F25: 208.4503547 | G25: 3.966810249 | H25: 5.80415 | I25: 1.983405125
A26: BU 1 | B26: BU | C26: 295 | D26: 11 | E26: 1 | F26: 204.4191849 | G26: 3.890097088 | H26: 5.61385 | I26: 1.945048544
A27: BU 2 | B27: BU | C27: 305 | D27: 11 | E27: 1 | F27: 240.683562 | G27: 4.580208184 | H27: 5.80415 | I27: 2.290104092
A28: BU 4 | B28: BU | C28: 305 | D28: 11 | E28: 1 | F28: 199.7282487 | G28: 3.800828572 | H28: 5.80415 | I28: 1.900414286
A29: BU 6 | B29: BU | C29: 235 | D29: 11 | E29: 1 | F29: 212.7872496 | G29: 4.04934136 | H29: 4.47205 | I29: 2.02467068
A30: BU 9 | B30: BU | C30: 295 | D30: 11 | E30: 2 | F30: 220.7318494 | G30: 4.200527093 | H30: 5.61385 | I30: 2.100263547
A31: BU 10 | B31: BU | C31: 305 | D31: 11 | E31: 2 | F31: 237.1222771 | G31: 4.512436932 | H31: 5.80415 | I31: 2.256218466
A32: BU 13 | B32: BU | C32: 350 | D32: 11 | E32: 2 | F32: 118.7622864 | G32: 2.26004631 | H32: 6.6605 | I32: 1.130023155
A33: BU 14 | B33: BU | C33: 290 | D33: 11 | E33: 2 | F33: 252.1097784 | G33: 4.797649083 | H33: 5.5187 | I33: 2.398824541
A34: BW 21 | B34: BW | C34: 290 | D34: 11 | E34: 2 | F34: 242.3216137 | G34: 4.611380309 | H34: 5.5187 | I34: 2.305690154
A35: BW 22 | B35: BW | C35: 300 | D35: 11 | E35: 2 | F35: 146.2055248 | G35: 2.782291136 | H35: 5.709 | I35: 1.391145568
A36: BW 23 | B36: BW | C36: 300 | D36: 11 | E36: 2 | F36: 132.2983657 | G36: 2.517637899 | H36: 5.709 | I36: 1.25881895
A37: BW 32 | B37: BW | C37: 265 | D37: 11 | E37: 3 | F37: 134.8226674 | G37: 2.565675361 | H37: 5.04295 | I37: 1.28283768
A38: BW 33 | B38: BW | C38: 295 | D38: 11 | E38: 3 | F38: 188.398021 | G38: 3.58521434 | H38: 5.61385 | I38: 1.79260717
A39: BW 34 | B39: BW | C39: 350 | D39: 11 | E39: 3 | F39: 199.2860632 | G39: 3.792413784 | H39: 6.6605 | I39: 1.896206892
A40: BW 35 | B40: BW | C40: 350 | D40: 11 | E40: 3 | F40: 259.9456839 | G40: 4.946766365 | H40: 6.6605 | I40: 2.473383183
A41: CDA 11 | B41: CDA | C41: 350 | D41: 22 | E41: 1 | F41: 122.3542968 | G41: 4.656804535 | H41: 13.321 | I41: 2.328402267
A42: CDA 21 | B42: CDA | C42: 350 | D42: 22 | E42: 2 | F42: 49.5837118 | G42: 1.887156071 | H42: 13.321 | I42: 0.9435780355
A43: CDA 22 | B43: CDA | C43: 400 | D43: 22 | E43: 2 | F43: 220.7247537 | G43: 8.400784124 | H43: 15.224 | I43: 4.200392062
A44: CDA 23 | B44: CDA | C44: 350 | D44: 22 | E44: 2 | F44: 282.1047324 | G44: 10.73690611 | H44: 13.321 | I44: 5.368453057
A45: CDA 24 | B45: CDA | C45: 365 | D45: 22 | E45: 2 | F45: 273.4111958 | G45: 10.40603011 | H45: 13.8919 | I45: 5.203015056
A46: CFD 11 | B46: CFD | C46: 300 | D46: 11 | E46: 1 | F46: 176.3093506 | G46: 3.355166943 | H46: 5.709 | I46: 1.677583471
A47: CFD 12 | B47: CFD | C47: 350 | D47: 11 | E47: 1 | F47: 243.6401441 | G47: 4.636471943 | H47: 6.6605 | I47: 2.318235971
A48: CFD 13 | B48: CFD | C48: 350 | D48: 11 | E48: 1 | F48: 236.4203667 | G48: 4.499079578 | H48: 6.6605 | I48: 2.249539789
A49: CFD 14 | B49: CFD | C49: 630 | D49: 11 | E49: 1 | F49: 458.6069062 | G49: 8.727289425 | H49: 11.9889 | I49: 4.363644713
A50: CFD 15 | B50: CFD | C50: 280 | D50: 11 | E50: 1 | F50: 189.6690905 | G50: 3.609402793 | H50: 5.3284 | I50: 1.804701396
A51: CFD 16 | B51: CFD | C51: 340 | D51: 11 | E51: 1 | F51: 218.2824959 | G51: 4.153915898 | H51: 6.4702 | I51: 2.076957949
A52: CFD 21 | B52: CFD | C52: 160 | D52: 11 | E52: 2 | F52: 40.89299001 | G52: 0.7781935998 | H52: 3.0448 | I52: 0.3890967999
A53: CFD 22 | B53: CFD | C53: 300 | D53: 11 | E53: 2 | F53: 173.7082267 | G53: 3.305667554 | H53: 5.709 | I53: 1.652833777
A54: CFD 23 | B54: CFD | C54: 350 | D54: 11 | E54: 2 | F54: 293.6462782 | G54: 5.588088675 | H54: 6.6605 | I54: 2.794044337
A55: CFD 24 | B55: CFD | C55: 350 | D55: 11 | E55: 2 | F55: 200.2050459 | G55: 3.809902023 | H55: 6.6605 | I55: 1.904951011
A56: CFD 25 | B56: CFD | C56: 300 | D56: 11 | E56: 2 | F56: 160.5907554 | G56: 3.056042076 | H56: 5.709 | I56: 1.528021038
A57: CFD 26 | B57: CFD | C57: 300 | D57: 11 | E57: 2 | F57: 226.2741087 | G57: 4.305996288 | H57: 5.709 | I57: 2.152998144
A58: CM 11 | B58: CM | C58: 315 | D58: 11 | E58: 1 | F58: 116.1679407 | G58: 2.210675912 | H58: 5.99445 | I58: 1.105337956
A59: CM 12 | B59: CM | C59: 300 | D59: 11 | E59: 1 | F59: 209.7699485 | G59: 3.99192212 | H59: 5.709 | I59: 1.99596106
A60: CM 13 | B60: CM | C60: 335 | D60: 11 | E60: 1 | F60: 140.8591883 | G60: 2.680550354 | H60: 6.37505 | I60: 1.340275177
A61: CM 14 | B61: CM | C61: 300 | D61: 11 | E61: 1 | F61: 120.4636784 | G61: 2.2924238 | H61: 5.709 | I61: 1.1462119
A62: CM 15 | B62: CM | C62: 300 | D62: 11 | E62: 1 | F62: 74.00896606 | G62: 1.408390624 | H62: 5.709 | I62: 0.7041953121
A63: CM 21 | B63: CM | C63: 330 | D63: 11 | E63: 2 | F63: 185.5200468 | G63: 3.530446491 | H63: 6.2799 | I63: 1.765223246
A64: CM 22 | B64: CM | C64: 315 | D64: 11 | E64: 2 | F64: 68.33994749 | G64: 1.300509201 | H64: 5.99445 | I64: 0.6502546004
A65: CM 23 | B65: CM | C65: 335 | D65: 11 | E65: 2 | F65: 114.825935 | G65: 2.185137542 | H65: 6.37505 | I65: 1.092568771
A66: CM 24 | B66: CM | C66: 315 | D66: 11 | E66: 2 | F66: 150.7793413 | G66: 2.869330866 | H66: 5.99445 | I66: 1.434665433
A67: CM 25 | B67: CM | C67: 315 | D67: 11 | E67: 2 | F67: 163.0761137 | G67: =1.73*F67*D67/1000 -> 3.103338444 | H67: =1.73*D67*C67/1000 -> 5.99445 | I67: =0.5*G67 -> 1.551669222
A68: CRM 11 | B68: CRM | C68: 390 | D68: 22 | E68: 1 | F68: 367.4959998 | G68: 13.98689775 | H68: 14.8434 | I68: 6.993448877
A69: CRM 12 | B69: CRM | C69: 310 | D69: 22 | E69: 1 | F69: 174.9503023 | G69: 6.658608507 | H69: 11.7986 | I69: 3.329304254
A70: CRM 13 | B70: CRM | C70: 295 | D70: 22 | E70: 1 | F70: 188.6166494 | G70: 7.178749676 | H70: 11.2277 | I70: 3.589374838
A71: CRM 14 | B71: CRM | C71: 315 | D71: 22 | E71: 1 | F71: 257.7964716 | G71: 9.811733709 | H71: 11.9889 | I71: 4.905866855
A72: CRM 21 | B72: CRM | C72: 300 | D72: 22 | E72: 2 | F72: 257.9374966 | G72: 9.817101121 | H72: 11.418 | I72: 4.90855056
A73: CRM 22 | B73: CRM | C73: 350 | D73: 22 | E73: 2 | F73: 318.6698735 | G73: 12.12857538 | H73: 13.321 | I73: 6.064287692
A74: CRM 24 | B74: CRM | C74: 280 | D74: 22 | E74: 2 | F74: 120.5694231 | G74: 4.588872242 | H74: 10.6568 | I74: 2.294436121
A75: CRM 32 | B75: CRM | C75: 390 | D75: 22 | E75: 3 | F75: 218.326852 | G75: 8.309519989 | H75: 14.8434 | I75: 4.154759995
A76: CRM 33 | B76: CRM | C76: 290 | D76: 22 | E76: 3 | F76: 166.2957045 | G76: 6.329214513 | H76: 11.0374 | I76: 3.164607256
A77: CRM 34 | B77: CRM | C77: 320 | D77: 22 | E77: 3 | F77: 189.5522058 | G77: 7.214356952 | H77: 12.1792 | I77: 3.607178476
A78: CRM 35 | B78: CRM | C78: 350 | D78: 22 | E78: 3 | F78: 271.4246923 | G78: 10.33042379 | H78: 13.321 | I78: 5.165211894
A79: DC 1 | B79: DC | C79: 350 | D79: 22 | E79: 1 | F79: 231.4514648 | G79: 8.809042752 | H79: 13.321 | I79: 4.404521376
A80: DC 2 | B80: DC | C80: 350 | D80: 22 | E80: 3 | F80: 296.9475951 | G80: 11.30182547 | H80: 13.321 | I80: 5.650912736
A81: DC 3 | B81: DC | C81: 350 | D81: 22 | E81: 1 | F81: 278.5379372 | G81: 10.60115389 | H81: 13.321 | I81: 5.300576944
A82: DC 4 | B82: DC | C82: 350 | D82: 22 | E82: 3 | F82: 218.0001237 | G82: 8.297084709 | H82: 13.321 | I82: 4.148542354
A83: DC 5 | B83: DC | C83: 350 | D83: 22 | E83: 1 | F83: 272.5449827 | G83: 10.37306204 | H83: 13.321 | I83: 5.186531021
A84: DC 6 | B84: DC | C84: 350 | D84: 22 | E84: 3 | F84: 220.9610273 | G84: 8.409776698 | H84: 13.321 | I84: 4.204888349
A85: DC 7 | B85: DC | C85: 265 | D85: 22 | E85: 1 | F85: 137.4483596 | G85: 5.231284566 | H85: 10.0859 | I85: 2.615642283
A86: DC 8 | B86: DC | C86: 265 | D86: 22 | E86: 3 | F86: 154.1484662 | G86: 5.866890622 | H86: 10.0859 | I86: 2.933445311
A87: DC 10 | B87: DC | C87: 330 | D87: 22 | E87: 3 | F87: 234.847094 | G87: 8.938280396 | H87: 12.5598 | I87: 4.469140198
A88: DC 12 | B88: DC | C88: 350 | D88: 22 | E88: 3 | F88: 215.8422464 | G88: 8.214955898 | H88: 13.321 | I88: 4.107477949
A89: DMA 21 | B89: DMA | C89: 260 | D89: 22 | E89: 2 | F89: 182.565033 | G89: 6.948425155 | H89: 9.8956 | I89: 3.474212577
A90: DMA 12 | B90: DMA | C90: 315 | D90: 22 | E90: 1 | F90: 146.5385755 | G90: 5.577258185 | H90: 11.9889 | I90: 2.788629093
A91: DMA 13 | B91: DMA | C91: 350 | D91: 22 | E91: 1 | F91: 130.2061149 | G91: 4.955644733 | H91: 13.321 | I91: 2.477822367
A92: DMA 14 | B92: DMA | C92: 315 | D92: 22 | E92: 1 | F92: 233.8940234 | G92: 8.902006532 | H92: 11.9889 | I92: 4.451003266
A93: DMA 15 | B93: DMA | C93: 310 | D93: 22 | E93: 1 | F93: 78.07018413 | G93: 2.971351208 | H93: 11.7986 | I93: 1.485675604
A94: DMA 23 | B94: DMA | C94: 275 | D94: 22 | E94: 2 | F94: 179.2585458 | G94: 6.822580253 | H94: 10.4665 | I94: 3.411290126
A95: DMA 24 | B95: DMA | C95: 320 | D95: 22 | E95: 2 | F95: 172.6344846 | G95: 6.570468485 | H95: 12.1792 | I95: 3.285234243
A96: DN 2 | B96: DN | C96: 340 | D96: 22 | E96: 3 | F96: 181.0579171 | G96: 6.891064325 | H96: 12.9404 | I96: 3.445532163
A97: DN 4 | B97: DN | C97: 260 | D97: 22 | E97: 3 | F97: 116.5422223 | G97: 4.43559698 | H97: 9.8956 | I97: 2.21779849
A98: DN 6 | B98: DN | C98: 350 | D98: 22 | E98: 3 | F98: 134.638515 | G98: 5.124341881 | H98: 13.321 | I98: 2.562170941
A99: DN 7 | B99: DN | C99: 350 | D99: 22 | E99: 1 | F99: 225.4513898 | G99: 8.580679895 | H99: 13.321 | I99: 4.290339948
A100: DN 8 | B100: DN | C100: 350 | D100: 22 | E100: 3 | F100: 121.8385871 | G100: 4.637176625 | H100: 13.321 | I100: 2.318588313
A101: DN 9 | B101: DN | C101: 350 | D101: 22 | E101: 1 | F101: 195.1430859 | G101: 7.427145848 | H101: 13.321 | I101: 3.713572924
A102: DN 10 | B102: DN | C102: 260 | D102: 22 | E102: 3 | F102: 237.877821 | G102: 9.053629866 | H102: 9.8956 | I102: 4.526814933
A103: DN 11 | B103: DN | C103: 265 | D103: 22 | E103: 1 | F103: 205.4923065 | G103: 7.821037186 | H103: 10.0859 | I103: 3.910518593
A104: DN 13 | B104: DN | C104: 350 | D104: 22 | E104: 1 | F104: 259.8562447 | G104: 9.890128673 | H104: 13.321 | I104: 4.945064336
A105: DN 21 | B105: DN | C105: 260 | D105: 22 | E105: 2 | F105: 173.2930493 | G105: 6.595533458 | H105: 9.8956 | I105: 3.297766729
A106: DN 22 | B106: DN | C106: 350 | D106: 22 | E106: 2 | F106: 239.1160699 | G106: 9.100757619 | H106: 13.321 | I106: 4.550378809
A107: DN 23 | B107: DN | C107: 400 | D107: 22 | E107: 2 | F107: 61.5505215 | G107: 2.342612848 | H107: 15.224 | I107: 1.171306424
A108: DN 24 | B108: DN | C108: 300 | D108: 22 | E108: 2 | F108: 151.2248767 | G108: 5.755618806 | H108: 11.418 | I108: 2.877809403
A109: DN 25 | B109: DN | C109: 360 | D109: 22 | E109: 2 | F109: 169.1513905 | G109: 6.437901923 | H109: 13.7016 | I109: 3.218950962
A110: DSH 13 | B110: DSH | C110: 344 | D110: 22 | E110: 1 | F110: 306.7418588 | G110: 11.67459515 | H110: 13.09264 | I110: 5.837297573
A111: DSH 14 | B111: DSH | C111: 350 | D111: 22 | E111: 1 | F111: 210.6803326 | G111: 8.01849346 | H111: 13.321 | I111: 4.00924673
A112: DSH 21 | B112: DSH | C112: 350 | D112: 22 | E112: 2 | F112: 289.3004794 | G112: 11.01077625 | H112: 13.321 | I112: 5.505388123
A113: DSH 22 | B113: DSH | C113: 345 | D113: 22 | E113: 2 | F113: 148.2495058 | G113: 5.642376192 | H113: 13.1307 | I113: 2.821188096
A114: DSH 23 | B114: DSH | C114: 335 | D114: 22 | E114: 2 | F114: 69.73979199 | G114: 2.654296483 | H114: 12.7501 | I114: 1.327148242
A115: DSH 24 | B115: DSH | C115: 350 | D115: 22 | E115: 2 | F115: 72.62395971 | G115: 2.764067906 | H115: 13.321 | I115: 1.382033953
A116: DSH 31 | B116: DSH | C116: 350 | D116: 22 | E116: 3 | F116: 191.3235668 | G116: 7.281774952 | H116: 13.321 | I116: 3.640887476
A117: DSH 32 | B117: DSH | C117: 325 | D117: 22 | E117: 3 | F117: 170.4744993 | G117: 6.488259442 | H117: 12.3695 | I117: 3.244129721
A118: DSH 33 | B118: DSH | C118: 550 | D118: 22 | E118: 3 | F118: 316.527578 | G118: 12.04703962 | H118: 20.933 | I118: 6.023519809
A119: DSH 34 | B119: DSH | C119: 325 | D119: 22 | E119: 3 | F119: 128.9871852 | G119: 4.909252269 | H119: 12.3695 | I119: 2.454626135
A120: DVY 11 | B120: DVY | C120: 350 | D120: 22 | E120: 1 | F120: 130.1582538 | G120: 4.953823139 | H120: 13.321 | I120: 2.47691157
A121: DVY 13 | B121: DVY | C121: 350 | D121: 22 | E121: 1 | F121: 223.1493227 | G121: 8.493063221 | H121: 13.321 | I121: 4.246531611
A122: DVY 14 | B122: DVY | C122: 350 | D122: 22 | E122: 1 | F122: 193.1469631 | G122: 7.351173415 | H122: 13.321 | I122: 3.675586707
A123: DVY 21 | B123: DVY | C123: 350 | D123: 22 | E123: 2 | F123: 242.4062336 | G123: 9.225981252 | H123: 13.321 | I123: 4.612990626
A124: DVY 22 | B124: DVY | C124: 300 | D124: 22 | E124: 2 | F124: 164.9086881 | G124: 6.276424671 | H124: 11.418 | I124: 3.138212335
A125: DVY 23 | B125: DVY | C125: 330 | D125: 22 | E125: 2 | F125: 213.1902764 | G125: 8.11402192 | H125: 12.5598 | I125: 4.05701096
A126: DVY 24 | B126: DVY | C126: 305 | D126: 22 | E126: 2 | F126: 200.2903382 | G126: 7.623050271 | H126: 11.6083 | I126: 3.811525136
A127: DVY 31 | B127: DVY | C127: 310 | D127: 22 | E127: 3 | F127: 206.8091252 | G127: 7.871155306 | H127: 11.7986 | I127: 3.935577653
A128: DVY 32 | B128: DVY | C128: 260 | D128: 22 | E128: 3 | F128: 169.8995516 | G128: 6.466376934 | H128: 9.8956 | I128: 3.233188467
A129: DVY 33 | B129: DVY | C129: 330 | D129: 22 | E129: 3 | F129: 155.094389 | G129: 5.902892447 | H129: 12.5598 | I129: 2.951446223
A130: DVY 34 | B130: DVY | C130: 340 | D130: 22 | E130: 3 | F130: 306.5042851 | G130: 11.66555309 | H130: 12.9404 | I130: 5.832776545
A131: EB 11 | B131: EB | C131: 350 | D131: 22 | E131: 1 | F131: 201.3281823 | G131: =1.73*F131*D131/1000 -> 7.662550619 | H131: =1.73*D131*C131/1000 -> 13.321 | I131: =0.5*G131 -> 3.83127531
A132: EB 12 | B132: EB | C132: 260 | D132: 22 | E132: 1 | F132: 106.8450889 | G132: 4.066524084 | H132: 9.8956 | I132: 2.033262042
A133: EB 13 | B133: EB | C133: 270 | D133: 22 | E133: 1 | F133: 100.6523075 | G133: 3.830826824 | H133: 10.2762 | I133: 1.915413412
A134: EB 14 | B134: EB | C134: 280 | D134: 22 | E134: 1 | F134: 121.86302 | G134: 4.63810654 | H134: 10.6568 | I134: 2.31905327
A135: EB 21 | B135: EB | C135: 270 | D135: 22 | E135: 2 | F135: 101.9230826 | G135: 3.879192525 | H135: 10.2762 | I135: 1.939596262
A136: EB 22 | B136: EB | C136: 270 | D136: 22 | E136: 2 | F136: 154.2953308 | G136: 5.872480292 | H136: 10.2762 | I136: 2.936240146
A137: EB 23 | B137: EB | C137: 350 | D137: 22 | E137: 2 | F137: 159.4452871 | G137: 6.068487627 | H137: 13.321 | I137: 3.034243814
A138: EB 24 | B138: EB | C138: 350 | D138: 22 | E138: 2 | F138: 69.55237674 | G138: 2.647163459 | H138: 13.321 | I138: 1.323581729
A139: EB 31 | B139: EB | C139: 350 | D139: 22 | E139: 3 | F139: 163.528881 | G139: 6.223909211 | H139: 13.321 | I139: 3.111954606
A140: EB 32 | B140: EB | C140: 290 | D140: 22 | E140: 3 | F140: 237.551477 | G140: 9.041209216 | H140: 11.0374 | I140: 4.520604608
A141: EB 33 | B141: EB | C141: 265 | D141: 22 | E141: 3 | F141: 193.4183559 | G141: 7.361502624 | H141: 10.0859 | I141: 3.680751312
A142: EL 5 | B142: EL | C142: 265 | D142: 11 | E142: 1 | F142: 147.2550653 | G142: 2.802263892 | H142: 5.04295 | I142: 1.401131946
A143: EL 6 | B143: EL | C143: 285 | D143: 11 | E143: 1 | F143: 209.5928873 | G143: 3.988552645 | H143: 5.42355 | I143: 1.994276323
A144: EL 7 | B144: EL | C144: 275 | D144: 11 | E144: 2 | F144: 132.2824146 | G144: 2.51733435 | H144: 5.23325 | I144: 1.258667175
A145: EL 8 | B145: EL | C145: 265 | D145: 11 | E145: 2 | F145: 220.9818407 | G145: 4.205284429 | H145: 5.04295 | I145: 2.102642214
A146: EL 9 | B146: EL | C146: 350 | D146: 11 | E146: 2 | F146: 171.4848196 | G146: 3.263356118 | H146: 6.6605 | I146: 1.631678059
A147: EL 10 | B147: EL | C147: 350 | D147: 11 | E147: 2 | F147: 142.6230873 | G147: 2.714117352 | H147: 6.6605 | I147: 1.357058676
A148: EL 11 | B148: EL | C148: 350 | D148: 11 | E148: 2 | F148: 234.4502807 | G148: 4.461588841 | H148: 6.6605 | I148: 2.230794421
A149: EL 12 | B149: EL | C149: 260 | D149: 11 | E149: 3 | F149: 153.441632 | G149: 2.919994256 | H149: 4.9478 | I149: 1.459997128
A150: EL 13 | B150: EL | C150: 260 | D150: 11 | E150: 3 | F150: 160.4274409 | G150: 3.052934201 | H150: 4.9478 | I150: 1.5264671
A151: EL 14 | B151: EL | C151: 285 | D151: 11 | E151: 3 | F151: 143.4269232 | G151: 2.729414348 | H151: 5.42355 | I151: 1.364707174
A152: EM 1 | B152: EM | C152: 265 | D152: 11 | E152: 1 | F152: 75.58618106 | G152: 1.438405026 | H152: 5.04295 | I152: 0.7192025128
A153: EM 2 | B153: EM | C153: 305 | D153: 11 | E153: 1 | F153: 172.9952321 | G153: 3.292099267 | H153: 5.80415 | I153: 1.646049633
A154: EM 3 | B154: EM | C154: 325 | D154: 11 | E154: 1 | F154: 133.6837627 | G154: 2.544002005 | H154: 6.18475 | I154: 1.272001002
A155: EM 5 | B155: EM | C155: 350 | D155: 11 | E155: 1 | F155: 261.7535224 | G155: 4.981169532 | H155: 6.6605 | I155: 2.490584766
A156: EM 6 | B156: EM | C156: 255 | D156: 11 | E156: 1 | F156: 205.5175856 | G156: 3.910999653 | H156: 4.85265 | I156: 1.955499827
A157: EM 7 | B157: EM | C157: 285 | D157: 11 | E157: 2 | F157: 203.3459294 | G157: 3.869673037 | H157: 5.42355 | I157: 1.934836518
A158: EM 8 | B158: EM | C158: 265 | D158: 11 | E158: 2 | F158: 249.8487952 | G158: 4.754622572 | H158: 5.04295 | I158: 2.377311286
A159: EM 9 | B159: EM | C159: 255 | D159: 11 | E159: 2 | F159: 156.1594977 | G159: 2.971715242 | H159: 4.85265 | I159: 1.485857621
A160: EM 10 | B160: EM | C160: 315 | D160: 11 | E160: 2 | F160: 196.5904688 | G160: 3.741116622 | H160: 5.99445 | I160: 1.870558311
A161: EM 11 | B161: EM | C161: 285 | D161: 11 | E161: 2 | F161: 140.3882103 | G161: 2.671587642 | H161: 5.42355 | I161: 1.335793821
A162: EW 1 | B162: EW | C162: 350 | D162: 11 | E162: 1 | F162: 239.9729963 | G162: 4.566686119 | H162: 6.6605 | I162: 2.283343059
A163: EW 2 | B163: EW | C163: 270 | D163: 11 | E163: 1 | F163: 173.8858522 | G163: 3.309047767 | H163: 5.1381 | I163: 1.654523883
A164: EW 3 | B164: EW | C164: 250 | D164: 11 | E164: 1 | F164: 115.2333643 | G164: 2.192890922 | H164: 4.7575 | I164: 1.096445461
A165: EW 8 | B165: EW | C165: 265 | D165: 11 | E165: 2 | F165: 105.6810481 | G165: 2.011110346 | H165: 5.04295 | I165: 1.005555173
A166: EW 9 | B166: EW | C166: 270 | D166: 11 | E166: 2 | F166: 193.2739156 | G166: 3.678002615 | H166: 5.1381 | I166: 1.839001307
A167: EW 12 | B167: EW | C167: 265 | D167: 11 | E167: 2 | F167: 226.0318014 | G167: 4.30138518 | H167: 5.04295 | I167: 2.15069259
A168: EW 14 | B168: EW | C168: 295 | D168: 11 | E168: 2 | F168: 276.492289 | G168: 5.26164826 | H168: 5.61385 | I168: 2.63082413
A169: FSH 11 | B169: FSH | C169: 350 | D169: 22 | E169: 1 | F169: 169.6709336 | G169: 6.457675732 | H169: 13.321 | I169: 3.228837866
A170: FSH 12 | B170: FSH | C170: 260 | D170: 22 | E170: 1 | F170: 202.7495045 | G170: 7.716646143 | H170: 9.8956 | I170: 3.858323072
A171: FSH 13 | B171: FSH | C171: 335 | D171: 22 | E171: 1 | F171: 268.3234002 | G171: 10.21238861 | H171: 12.7501 | I171: 5.106194306
A172: FSH 21 | B172: FSH | C172: 350 | D172: 22 | E172: 2 | F172: 142.4194669 | G172: 5.420484909 | H172: 13.321 | I172: 2.710242454
A173: FSH 22 | B173: FSH | C173: 365 | D173: 22 | E173: 2 | F173: 224.464909 | G173: 8.543134435 | H173: 13.8919 | I173: 4.271567217
A174: FSH 23 | B174: FSH | C174: 260 | D174: 22 | E174: 2 | F174: 91.90934578 | G174: 3.498069701 | H174: 9.8956 | I174: 1.74903485
A175: FSH 31 | B175: FSH | C175: 260 | D175: 22 | E175: 3 | F175: 226.3802231 | G175: 8.61603129 | H175: 9.8956 | I175: 4.308015645
A176: FSH 32 | B176: FSH | C176: 335 | D176: 22 | E176: 3 | F176: 211.4883806 | G176: 8.049247766 | H176: 12.7501 | I176: 4.024623883
A177: FSH 33 | B177: FSH | C177: 310 | D177: 22 | E177: 3 | F177: 273.2492101 | G177: 10.39986494 | H177: 11.7986 | I177: 5.199932469
A178: FSH 34 | B178: FSH | C178: 350 | D178: 22 | E178: 3 | F178: 163.2600745 | G178: 6.213678437 | H178: 13.321 | I178: 3.106839218
A179: FTN 11 | B179: FTN | C179: 350 | D179: 22 | E179: 1 | F179: 211.010084 | G179: 8.031043795 | H179: 13.321 | I179: 4.015521898
A180: FTN 12 | B180: FTN | C180: 350 | D180: 22 | E180: 1 | F180: 145.7990146 | G180: 5.549110494 | H180: 13.321 | I180: 2.774555247
A181: FTN 13 | B181: FTN | C181: 260 | D181: 22 | E181: 1 | F181: 99.64021897 | G181: 3.792306734 | H181: 9.8956 | I181: 1.896153367
A182: FTN 14 | B182: FTN | C182: 260 | D182: 22 | E182: 1 | F182: 128.8868881 | G182: 4.905434959 | H182: 9.8956 | I182: 2.45271748
A183: FTN 21 | B183: FTN | C183: 260 | D183: 22 | E183: 2 | F183: 114.5983386 | G183: 4.361612766 | H183: 9.8956 | I183: 2.180806383
A184: FTN 22 | B184: FTN | C184: 350 | D184: 22 | E184: 2 | F184: 200.8140147 | G184: 7.642981398 | H184: 13.321 | I184: 3.821490699
A185: FTN 23 | B185: FTN | C185: 260 | D185: 22 | E185: 2 | F185: 180.884389 | G185: 6.884459844 | H185: 9.8956 | I185: 3.442229922
A186: FTN 24 | B186: FTN | C186: 260 | D186: 22 | E186: 2 | F186: 203.5885443 | G186: 7.748579995 | H186: 9.8956 | I186: 3.874289997
A187: FTN 25 | B187: FTN | C187: 260 | D187: 22 | E187: 2 | F187: 225.0468621 | G187: 8.565283573 | H187: 9.8956 | I187: 4.282641786
A188: GW 1 | B188: GW | C188: 350 | D188: 22 | E188: 1 | F188: 179.2331593 | G188: 6.821614043 | H188: 13.321 | I188: 3.410807021 | N188: GW4,11
A189: GW 2 | B189: GW | C189: 290 | D189: 22 | E189: 3 | F189: 186.4723964 | G189: 7.097139407 | H189: 11.0374 | I189: 3.548569703
A190: GW 3 | B190: GW | C190: 335 | D190: 22 | E190: 1 | F190: 147.5717422 | G190: 5.616580506 | H190: 12.7501 | I190: 2.808290253 | N190: GW3 and 8 go to EB12.
A191: GW 4 | B191: GW | C191: 345 | D191: 22 | E191: 3 | F191: 158.9216838 | G191: 6.048559285 | H191: 13.1307 | I191: 3.024279642
A192: GW 5 | B192: GW | C192: 260 | D192: 22 | E192: 1 | F192: 208.6429256 | G192: 7.94094975 | H192: 9.8956 | I192: 3.970474875
A193: GW 6 | B193: GW | C193: 350 | D193: 22 | E193: 3 | F193: 180.1458751 | G193: 6.856352008 | H193: 13.321 | I193: 3.428176004
A194: GW 7 | B194: GW | C194: 280 | D194: 22 | E194: 1 | F194: 135.4180439 | G194: 5.154010752 | H194: 10.6568 | I194: 2.577005376
A195: GW 8 | B195: GW | C195: 260 | D195: 22 | E195: 3 | F195: 124.2140279 | G195: =1.73*F195*D195/1000 -> 4.727585901 | H195: =1.73*D195*C195/1000 -> 9.8956 | I195: =0.5*G195 -> 2.363792951 | N195: GW11
A196: GW 10 | B196: GW | C196: 350 | D196: 22 | E196: 3 | F196: 86.11767677 | G196: 3.277638778 | H196: 13.321 | I196: 1.638819389
A197: GW 11 | B197: GW | C197: 335 | D197: 22 | E197: 1 | F197: 186.2026532 | G197: 7.08687298 | H197: 12.7501 | I197: 3.54343649
A198: GW 12 | B198: GW | C198: 345 | D198: 22 | E198: 3 | F198: 160.0014713 | G198: 6.089655997 | H198: 13.1307 | I198: 3.044827999
A199: HGS 21 | B199: HGS | C199: 530 | D199: 22 | E199: 2 | F199: 237.4069032 | G199: 9.035706734 | H199: 20.1718 | I199: 4.517853367
A200: HGS 22 | B200: HGS | C200: 260 | D200: 22 | E200: 2 | F200: 212.6017086 | G200: 8.091621031 | H200: 9.8956 | I200: 4.045810515
... 253 more rows

Sheet Prices
A1: Option Costing | C1: Unit Price | D1: ZSS | E1: Asset Type | G1: Convert from: | H1: 2018
A2: Additional Path | C2: =IF($E$2="Transformer",IFERROR(VLOOKUP($D$2,$A$13:$G$59,7,FALSE),G60),(VLOOKUP($D$2,$A$13:$O$59,14,FALSE)))*CPI -> 5103884.372 | D2: =ZSS -> MC | E2: =AssetType -> Transformer | G2: Convert to : | H2: 2019
A3: 1 Replacement | C3: =IF($E$2="Transformer",IFERROR(VLOOKUP($D$2,$A$13:$G$59,4,FALSE),D60),(VLOOKUP($D$2,$A$13:$O$59,11,FALSE)))*CPI -> 2321342.565 | G3: Multiply by | H3: 1.020776874
A4: 2 Replacements - Same Make | C4: =IF($E$2="Transformer",IFERROR(VLOOKUP($D$2,$A$13:$G$59,5,FALSE),E60),(VLOOKUP($D$2,$A$13:$O$59,12,FALSE)))*CPI -> 4642685.131
A5: 2 Replacements - Different Make | C5: =IF($E$2="Transformer",IFERROR(VLOOKUP($D$2,$A$13:$G$59,6,FALSE),F60),(VLOOKUP($D$2,$A$13:$O$59,13,FALSE)))*CPI -> 4734555.05
A6: System spare available | C6: =IF($E$2="Transformer",IFERROR(VLOOKUP($D$2,$A$13:$G$59,2,FALSE),B60),(VLOOKUP($D$2,$A$13:$O$59,9,FALSE)))*CPI -> 204155.3749
A7: Non-network Solution
A8: Online Monitoring System | C8: =IF($E$2="Transformer",IFERROR(VLOOKUP($D$2,$A$13:$G$59,3,FALSE),C60),(VLOOKUP($D$2,$A$13:$O$59,10,FALSE)))*CPI -> 683034.4715
B11: Transformer | H11: Circuit Breakers
A12: ZSS | B12: Spare | C12: Online Monitor | D12: 1 Replacement | E12: 2 Replacements - Same | F12: 2 Replacements - Different | G12: Additional Path | H12: Comment | I12: Spare | J12: Online Monitor | K12: 1 Replacement | L12: 2 Replacements - Same | M12: 2 Replacements - Different | N12: Additional Path | O12: Comment | P12: Transformer | Q12: CM | R12: 2542659 | S12: CM #1 Transformer replacement (2020)
A13: BH | B13: 200000 | C13: 669132 | G13: 5000000 | P13: Transformer | Q13: EL | R13: 2402794 | S13: EL #2 Transformer replacement (2021)
A14: BR | B14: 200000 | C14: 669132 | D14: 2412203 | E14: =D14*2 -> 4824406 | F14: =E14+90000 -> 4914406 | G14: 5000000 | H14: SD Provided | I14: 1000000 | J14: 1000000 | K14: =L14 -> 2551101 | L14: 2551101 | M14: =L14+90000 -> 2641101 | N14: =M14*1.5 -> 3961651.5 | O14: As per BT | P14: Transformer | Q14: OR | R14: 2542659 | S14: OR #2 Transformer replacement (2021
A15: BT | B15: 200000 | C15: 669132 | D15: 2489090 | E15: 4978180 | F15: 5068180 | G15: 5000000 | H15: SD Provided | I15: 1000000 | J15: 1000000 | K15: =L15 -> 2551101 | L15: 2551101 | M15: =L15+90000 -> 2641101 | N15: =M15*1.5 -> 3961651.5 | O15: SD Provided | P15: Transformer | Q15: EM | R15: 2489090 | S15: EM #1 Transformer replacement (2022)
A16: BU | B16: 200000 | C16: 669132 | G16: 5000000 | I16: 1000000 | J16: 1000000 | K16: =L16 -> 2738134 | L16: 2738134 | M16: =L16+90000 -> 2828134 | N16: 4242201 | O16: SD Provided | P16: Transformer | Q16: EW | R16: 2266348 | S16: EW #2 Transformer replacement (2022)
A17: BW | B17: 200000 | C17: 669132 | D17: 1881489 | E17: 3762978 | F17: 3852978 | G17: 4000000 | H17: Based on SH | P17: Transformer | Q17: SR | R17: 2257594 | S17: SR #3 Transformer replacement (2023)
A18: CDA | B18: 200000 | C18: 669132 | G18: 5000000 | P18: Transformer | Q18: K | R18: 2542659 | S18: K #3 Transformer replacement (2023)
A19: CFD | B19: 200000 | C19: 669132 | G19: 5000000 | P19: Transformer | Q19: BT | R19: 2489090 | S19: BT #X Transformer Replacement (2024)
A20: CM | B20: 200000 | C20: 669132 | D20: 2542659 | E20: 5085318 | F20: 5175318 | G20: 5000000 | H20: SD Provided | P20: Transformer | Q20: WD | R20: 2274094 | S20: WD 1X Transformer Replacement (2025)
A21: CRM | B21: 200000 | C21: 669132 | D21: 2274094 | E21: =D21*2 -> 4548188 | F21: =E21+90000 -> 4638188 | G21: 5000000 | H21: Based on WD | S21: HGSX Transformer Replacementn (2025)
A22: DC | B22: 200000 | C22: 669132 | D22: 2274094 | E22: =D22*2 -> 4548188 | F22: =E22+90000 -> 4638188 | G22: 5000000 | H22: Based on WD | I22: 1000000 | J22: 1000000 | K22: 1567857 | L22: =K22*2*0.9 -> 2822142.6 | M22: =L22+90000 -> 2912142.6 | N22: =M22*1.5 -> 4368213.9 | O22: SD Provided | P22: Transformer | Q22: BR | R22: 2412203 | S22: BR #X Transformer Replacement (2025)
A23: DMA | B23: 200000 | C23: 669132 | G23: 5000000 | P23: Transformer | Q23: OE | R23: 2489090 | S23: OE #X Transformer Replacement (2025)
A24: DN | B24: 200000 | C24: 669132 | G24: 5000000 | I24: 1000000 | J24: 1000000 | K24: 1567857 | L24: =K24*2*0.9 -> 2822142.6 | M24: =L24+90000 -> 2912142.6 | N24: 4368213.9 | O24: Based on DC | R24: 669132 | S24: Online Monitoring System (Any transformer)
A25: DSH | B25: 200000 | C25: 669132 | G25: 5000000 | P25: Transformer | Q25: Average | R25: =AVERAGE(R12:R23) -> 2428025.455 | S25: Average unit price (33MVA)
A26: DVY | B26: 200000 | C26: 669132 | G26: 5000000 | P26: Transformer | Q26: SH | R26: 1881489 | S26: SH #3 Transformer replacement (2020)
A27: EB | B27: 200000 | C27: 669132 | G27: 5000000 | P27: Indoor CB | Q27: SR | R27: 3061268 | S27: SR 11kV Switchboard Replacement (2021)
A28: EL | B28: 200000 | C28: 669132 | D28: 2402794 | E28: 4805588 | F28: 4895588 | G28: 5000000 | H28: SD Provided | P28: Indoor CB | Q28: BT | R28: 2551101 | S28: BT 11kV switchboard replacement (2022)
A29: EM | B29: 200000 | C29: 669132 | D29: 2489090 | E29: 4978180 | F29: 5068180 | G29: 5000000 | H29: SD Provided | I29: 1000000 | J29: 1000000 | K29: =L29 -> 2903633 | L29: 2903633 | M29: =L29+90000 -> 2993633 | N29: =M29*1.5 -> 4490449.5 | O29: SD Provided | P29: Indoor CB | Q29: EM | R29: 2903633 | S29: EM 11kV switchboard replacement (2023)
A30: EW | B30: 200000 | C30: 669132 | D30: 2266348 | E30: 4532696 | F30: 4622696 | G30: 5000000 | H30: SD Provided | I30: 1000000 | J30: 1000000 | K30: =L30 -> 2551101 | L30: 2551101 | M30: 2641101 | N30: 3961651.5 | O30: SD Provided | P30: Indoor CB | Q30: EW | R30: 2551101 | S30: EW 11kV switchboard replacement (2024)
A31: FSH | B31: 200000 | C31: 669132 | G31: 5000000 | P31: Indoor CB | Q31: BU | R31: 2738134 | S31: BU 11kV switchboard replacement (2025)
A32: FTN | B32: 200000 | C32: 669132 | G32: 5000000 | P32: Indoor CB | Q32: Average | R32: =AVERAGE(R27:R31) -> 2761047.4 | S32: DN 22kV #3 Trans outdoor CB Replacement (2021)
A33: GW | B33: 200000 | C33: 669132 | D33: 2274094 | E33: =D33*2 -> 4548188 | F33: =E33+90000 -> 4638188 | G33: 5000000 | H33: Based on WD | I33: 1000000 | J33: 1000000 | K33: 1567857 | L33: =K33*2*0.9 -> 2822142.6 | M33: =L33+90000 -> 2912142.6 | N33: =M33*1.5 -> 4368213.9 | P33: Outdoor CB | Q33: DN | R33: 237105 | S33: DN 22kV #3 Trans outdoor CB Replacement (2021)
A34: HGS | B34: 200000 | C34: 669132 | G34: 5000000 | Q34: HT | R34: 1099171 | S34: HT 22kV Switchyard Improvement (2023)
A35: HT | B35: 200000 | C35: 669132 | G35: 5000000 | I35: 1000000 | J35: 1000000 | K35: 1099171 | L35: =K35*2*0.9 -> 1978507.8 | M35: =2*K35 -> 2198342 | N35: =M35*1.5 -> 3297513 | O35: Based on HT | Q35: GW | R35: 780171 | S35: GW 22kV Switchyard Improvement (2024)
A36: K | B36: 200000 | C36: 669132 | D36: 2542659 | E36: 5085318 | F36: 5175318 | G36: 5000000 | H36: SD Provided | I36: 1000000 | J36: 1000000 | Q36: DC | R36: 1567857 | S36: DC 22kV Switchyard Improvement (2024)
A37: KBH | B37: 200000 | C37: 669132 | G37: 5000000
A38: LD | B38: 200000 | C38: 669132 | G38: 5000000
A39: LWN | B39: 200000 | C39: 669132 | G39: 5000000
A40: M | B40: 200000 | C40: 669132 | G40: 5000000
A41: MC | B41: 200000 | C41: 669132 | D41: 2274094 | E41: =D41*2 -> 4548188 | F41: =E41+90000 -> 4638188 | G41: 5000000 | H41: Based on WD
A42: MGE | B42: 200000 | C42: 669132 | G42: 5000000
A43: MR | B43: 200000 | C43: 669132 | G43: 5000000
A44: MTN | B44: 200000 | C44: 669132 | G44: 5000000
A45: NB | B45: 200000 | C45: 669132 | G45: 5000000
A46: NO | B46: 200000 | C46: 669132 | G46: 5000000
A47: NP | B47: 200000 | C47: 669132 | G47: 5000000
A48: NW | B48: 200000 | C48: 669132 | G48: 5000000
A49: OAK | B49: 200000 | C49: 669132 | G49: 5000000
